Workbook

Sheet Veiledning
B1: Veileder til risikovurderingsverktøy
B2: Klikk på stegene i prosessen for å få veiledning!

Sheet Veileder stemmeverktøy
A1: Veileder ved bruk av stemmeverktøy:

Sheet Veileder samlet risiko
A1: Veileder: Samlet risikovurdering - målnivå
B3: I de tilfeller hvor mange mål skal risikovurderes kan det være hensiktsmessig å få en oversikt over hvilke mål som samlet er mest eksponert for risiko. Dette kan være nyttig i forhold til å prioritere det videre arbeidet med å etablere tiltak. Det er viktig å være oppmerksom på at grafen viser en gjennomsnittlig risikoeksponering for det enkelte mål, og at det derfor kan være enkelte risikoelementer som er betydelige i forhold til målet, selv om den gjennomsnittlige risikoen er lav. Oversikt over ”Samlet risikovurdering - målnivå” utarbeides automatisk etter hvert som risikovurderinger gjøres for det enkelte mål.

Sheet Innledning
B2: Risikovurderingsverktøy
B3: Innledning

Sheet Forside
B1: Risikovurderingsverktøy
A2: Risikovurdering for: | C2: Tjenesteområde <<tjenesteområde>>
A3: Deltakere i prosessen: | C3: <<deltakere>>
B4: Dato:
B5: Ansvarlig: | C5: <<ansvarlig>>
C6: Risikovurdering av det enkelte mål: | F6: Utfylte mål:
F7: =IF(G7="","","Mål 1") -> Mål 1 | G7: =IF('Mål 1'!$A$4="","",'Mål 1'!$A$4) -> Utsendelse av sakslister og protokoller innen gitte frister, samt et godt fungerede sekretariat
F8: =IF(G8="","","Mål 2") ->  | G8: =IF('Mål 2'!$A$4="","",'Mål 2'!$A$4) -> 
F9: =IF(G9="","","Mål 3") ->  | G9: =IF('Mål 3'!$A$4="","",'Mål 3'!$A$4) -> 
B10: Andre verktøy: | F10: =IF(G10="","","Mål 4") ->  | G10: =IF('Mål 4'!$A$4="","",'Mål 4'!$A$4) -> 
F11: =IF(G11="","","Mål 5") ->  | G11: =IF('Mål 5'!$A$4="","",'Mål 5'!$A$4) -> 
F12: =IF(G12="","","Mål 6") ->  | G12: =IF('Mål 6'!$A$4="","",'Mål 6'!$A$4) -> 
F13: =IF(G13="","","Mål 7") ->  | G13: =IF('Mål 7'!$A$4="","",'Mål 7'!$A$4) -> 
F14: =IF(G14="","","Mål 8") ->  | G14: =IF('Mål 8'!$A$4="","",'Mål 8'!$A$4) -> 
F15: =IF(G15="","","Mål 9") ->  | G15: =IF('Mål 9'!$A$4="","",'Mål 9'!$A$4) -> 
F16: =IF(G16="","","Mål 10") ->  | G16: =IF('Mål 10'!$A$4="","",'Mål 10'!$A$4) -> 
B17: Veiledere: | F17: =IF(G17="","","Mål 11") ->  | G17: =IF('Mål 11'!$A$4="","",'Mål 11'!$A$4) -> 
F18: =IF(G18="","","Mål 12") ->  | G18: =IF('Mål 12'!$A$4="","",'Mål 12'!$A$4) -> 
F19: =IF(G19="","","Mål 13") ->  | G19: =IF('Mål 13'!$A$4="","",'Mål 13'!$A$4) -> 
F20: =IF(G20="","","Mål 14") ->  | G20: =IF('Mål 14'!$A$4="","",'Mål 14'!$A$4) -> 
F21: =IF(G21="","","Mål 15") ->  | G21: =IF('Mål 15'!$A$4="","",'Mål 15'!$A$4) -> 
F22: =IF(G22="","","Mål 16") ->  | G22: =IF('Mål 16'!$A$4="","",'Mål 16'!$A$4) -> 
F23: =IF(G23="","","Mål 17") ->  | G23: =IF('Mål 17'!$A$4="","",'Mål 17'!$A$4) -> 
F24: =IF(G24="","","Mål 18") ->  | G24: =IF('Mål 18'!$A$4="","",'Mål 18'!$A$4) -> 
F25: =IF(G25="","","Mål 19") ->  | G25: =IF('Mål 19'!$A$4="","",'Mål 19'!$A$4) -> 
F26: =IF(G26="","","Mål 20") ->  | G26: =IF('Mål 20'!$A$4="","",'Mål 20'!$A$4) -> 

Sheet Samlet risiko
B1: Samlet risikovurdering - målnivå
B2: Enhet: | C2: =IF(Forside!C$2="","",Forside!C$2) -> Tjenesteområde <<tjenesteområde>>
B3: Dato: | C3: =IF(Forside!C$4="","",Forside!C$4) -> 
D4: Risiko før tiltak | G4: Risiko etter tiltak | W4: Før tiltak | Y4: Etter tiltak
B5: Mål / krav: | C5: Målnr | D5: Sannsynlighet | E5: Konsekvens | F5: Risiko-nivå | G5: Sannsynlighet | H5: Konsekvens | I5: Risiko-nivå | W5: X-forskyv konsekv | X5: Y-forskyv Sanns | Y5: X-forskyv konsekv | Z5: Y-forskyv Sanns
B6: =IF('Mål 1'!$A$4="",0,'Mål 1'!$A$4) -> Utsendelse av sakslister og protokoller innen gitte frister, samt et godt fungerede sekretariat | C6: M 1 | D6: =IF('Mål 1'!$E$6="",0,'Mål 1'!$E$6) -> 2 | E6: =IF('Mål 1'!$F$6="",0,'Mål 1'!$F$6) -> 3 | F6: =IF(E6*D6=0,"",VLOOKUP(D6,Lists!B$10:G$14,CEILING(E6-0.5,1)+1,TRUE)) -> Middels | G6: =IF('Mål 1'!$L$6="",0,'Mål 1'!$L$6) -> 0.0 | H6: =IF('Mål 1'!$M$6="",0,'Mål 1'!$M$6) -> 0.0 | I6: =IF(H6*G6=0,"",VLOOKUP(G6,Lists!B$10:G$14,CEILING(H6-0.5,1)+1,TRUE)) ->  | W6: =IF(E6=0,-10,E6+AA27) -> 2.80 | X6: =IF(D6=0,-10,D6+AB27) -> 1.50 | Y6: =IF(H6=0,W6,H6+AA27) -> 2.80 | Z6: =IF(G6=0,X6,G6+AB27) -> 1.50
B7: =IF('Mål 2'!$A$4="",0,'Mål 2'!$A$4) -> 0.00 | C7: M 2 | D7: =IF('Mål 2'!$E$6="",0,'Mål 2'!$E$6) -> 0 | E7: =IF('Mål 2'!$F$6="",0,'Mål 2'!$F$6) -> 0 | F7: =IF(E7*D7=0,"",VLOOKUP(D7,Lists!B$10:G$14,CEILING(E7-0.5,1)+1,TRUE)) ->  | G7: =IF('Mål 2'!$L$6="",0,'Mål 2'!$L$6) -> 0.0 | H7: =IF('Mål 2'!$M$6="",0,'Mål 2'!$M$6) -> 0.0 | I7: =IF(H7*G7=0,"",VLOOKUP(G7,Lists!B$10:G$14,CEILING(H7-0.5,1)+1,TRUE)) ->  | W7: -10.00 | X7: -10.00 | Y7: -10.00 | Z7: -10.00
B8: =IF('Mål 3'!$A$4="",0,'Mål 3'!$A$4) -> 0.00 | C8: M 3 | D8: =IF('Mål 3'!$E$6="",0,'Mål 3'!$E$6) -> 0 | E8: =IF('Mål 3'!$F$6="",0,'Mål 3'!$F$6) -> 0 | F8: =IF(E8*D8=0,"",VLOOKUP(D8,Lists!B$10:G$14,CEILING(E8-0.5,1)+1,TRUE)) ->  | G8: =IF('Mål 3'!$L$6="",0,'Mål 3'!$L$6) -> 0.0 | H8: =IF('Mål 3'!$M$6="",0,'Mål 3'!$M$6) -> 0.0 | I8: =IF(H8*G8=0,"",VLOOKUP(G8,Lists!B$10:G$14,CEILING(H8-0.5,1)+1,TRUE)) ->  | W8: -10.00 | X8: -10.00 | Y8: -10.00 | Z8: -10.00
B9: =IF('Mål 4'!$A$4="",0,'Mål 4'!$A$4) -> 0.00 | C9: M 4 | D9: =IF('Mål 4'!$E$6="",0,'Mål 4'!$E$6) -> 0 | E9: =IF('Mål 4'!$F$6="",0,'Mål 4'!$F$6) -> 0 | F9: =IF(E9*D9=0,"",VLOOKUP(D9,Lists!B$10:G$14,CEILING(E9-0.5,1)+1,TRUE)) ->  | G9: =IF('Mål 4'!$L$6="",0,'Mål 4'!$L$6) -> 0.0 | H9: =IF('Mål 4'!$M$6="",0,'Mål 4'!$M$6) -> 0.0 | I9: =IF(H9*G9=0,"",VLOOKUP(G9,Lists!B$10:G$14,CEILING(H9-0.5,1)+1,TRUE)) ->  | W9: -10.00 | X9: -10.00 | Y9: -10.00 | Z9: -10.00
B10: =IF('Mål 5'!$A$4="",0,'Mål 5'!$A$4) -> 0.00 | C10: M 5 | D10: =IF('Mål 5'!$E$6="",0,'Mål 5'!$E$6) -> 0 | E10: =IF('Mål 5'!$F$6="",0,'Mål 5'!$F$6) -> 0 | F10: =IF(E10*D10=0,"",VLOOKUP(D10,Lists!B$10:G$14,CEILING(E10-0.5,1)+1,TRUE)) ->  | G10: =IF('Mål 5'!$L$6="",0,'Mål 5'!$L$6) -> 0.0 | H10: =IF('Mål 5'!$M$6="",0,'Mål 5'!$M$6) -> 0.0 | I10: =IF(H10*G10=0,"",VLOOKUP(G10,Lists!B$10:G$14,CEILING(H10-0.5,1)+1,TRUE)) ->  | W10: -10.00 | X10: -10.00 | Y10: -10.00 | Z10: -10.00
B11: =IF('Mål 6'!$A$4="",0,'Mål 6'!$A$4) -> 0.00 | C11: M 6 | D11: =IF('Mål 6'!$E$6="",0,'Mål 6'!$E$6) -> 0 | E11: =IF('Mål 6'!$F$6="",0,'Mål 6'!$F$6) -> 0 | F11: =IF(E11*D11=0,"",VLOOKUP(D11,Lists!B$10:G$14,CEILING(E11-0.5,1)+1,TRUE)) ->  | G11: =IF('Mål 6'!$L$6="",0,'Mål 6'!$L$6) -> 0.0 | H11: =IF('Mål 6'!$M$6="",0,'Mål 6'!$M$6) -> 0.0 | I11: =IF(H11*G11=0,"",VLOOKUP(G11,Lists!B$10:G$14,CEILING(H11-0.5,1)+1,TRUE)) ->  | W11: -10.00 | X11: -10.00 | Y11: -10.00 | Z11: -10.00
B12: =IF('Mål 7'!$A$4="",0,'Mål 7'!$A$4) -> 0.00 | C12: M 7 | D12: =IF('Mål 7'!$E$6="",0,'Mål 7'!$E$6) -> 0 | E12: =IF('Mål 7'!$F$6="",0,'Mål 7'!$F$6) -> 0 | F12: =IF(E12*D12=0,"",VLOOKUP(D12,Lists!B$10:G$14,CEILING(E12-0.5,1)+1,TRUE)) ->  | G12: =IF('Mål 7'!$L$6="",0,'Mål 7'!$L$6) -> 0.0 | H12: =IF('Mål 7'!$M$6="",0,'Mål 7'!$M$6) -> 0.0 | I12: =IF(H12*G12=0,"",VLOOKUP(G12,Lists!B$10:G$14,CEILING(H12-0.5,1)+1,TRUE)) ->  | W12: -10.00 | X12: -10.00 | Y12: -10.00 | Z12: -10.00
B13: =IF('Mål 8'!$A$4="",0,'Mål 8'!$A$4) -> 0.00 | C13: M 8 | D13: =IF('Mål 8'!$E$6="",0,'Mål 8'!$E$6) -> 0 | E13: =IF('Mål 8'!$F$6="",0,'Mål 8'!$F$6) -> 0 | F13: =IF(E13*D13=0,"",VLOOKUP(D13,Lists!B$10:G$14,CEILING(E13-0.5,1)+1,TRUE)) ->  | G13: =IF('Mål 8'!$L$6="",0,'Mål 8'!$L$6) -> 0.0 | H13: =IF('Mål 8'!$M$6="",0,'Mål 8'!$M$6) -> 0.0 | I13: =IF(H13*G13=0,"",VLOOKUP(G13,Lists!B$10:G$14,CEILING(H13-0.5,1)+1,TRUE)) ->  | W13: -10.00 | X13: -10.00 | Y13: -10.00 | Z13: -10.00
B14: =IF('Mål 9'!$A$4="",0,'Mål 9'!$A$4) -> 0.00 | C14: M 9 | D14: =IF('Mål 9'!$E$6="",0,'Mål 9'!$E$6) -> 0 | E14: =IF('Mål 9'!$F$6="",0,'Mål 9'!$F$6) -> 0 | F14: =IF(E14*D14=0,"",VLOOKUP(D14,Lists!B$10:G$14,CEILING(E14-0.5,1)+1,TRUE)) ->  | G14: =IF('Mål 9'!$L$6="",0,'Mål 9'!$L$6) -> 0.0 | H14: =IF('Mål 9'!$M$6="",0,'Mål 9'!$M$6) -> 0.0 | I14: =IF(H14*G14=0,"",VLOOKUP(G14,Lists!B$10:G$14,CEILING(H14-0.5,1)+1,TRUE)) ->  | W14: -10.00 | X14: -10.00 | Y14: -10.00 | Z14: -10.00
B15: =IF('Mål 10'!$A$4="",0,'Mål 10'!$A$4) -> 0.00 | C15: M 10 | D15: =IF('Mål 10'!$E$6="",0,'Mål 10'!$E$6) -> 0 | E15: =IF('Mål 10'!$F$6="",0,'Mål 10'!$F$6) -> 0 | F15: =IF(E15*D15=0,"",VLOOKUP(D15,Lists!B$10:G$14,CEILING(E15-0.5,1)+1,TRUE)) ->  | G15: =IF('Mål 10'!$L$6="",0,'Mål 10'!$L$6) -> 0.0 | H15: =IF('Mål 10'!$M$6="",0,'Mål 10'!$M$6) -> 0.0 | I15: =IF(H15*G15=0,"",VLOOKUP(G15,Lists!B$10:G$14,CEILING(H15-0.5,1)+1,TRUE)) ->  | W15: -10.00 | X15: -10.00 | Y15: -10.00 | Z15: -10.00
B16: =IF('Mål 11'!$A$4="",0,'Mål 11'!$A$4) -> 0.00 | C16: M 11 | D16: =IF('Mål 11'!$E$6="",0,'Mål 11'!$E$6) -> 0 | E16: =IF('Mål 11'!$F$6="",0,'Mål 11'!$F$6) -> 0 | F16: =IF(E16*D16=0,"",VLOOKUP(D16,Lists!B$10:G$14,CEILING(E16-0.5,1)+1,TRUE)) ->  | G16: =IF('Mål 11'!$L$6="",0,'Mål 11'!$L$6) -> 0.0 | H16: =IF('Mål 11'!$M$6="",0,'Mål 11'!$M$6) -> 0.0 | I16: =IF(H16*G16=0,"",VLOOKUP(G16,Lists!B$10:G$14,CEILING(H16-0.5,1)+1,TRUE)) ->  | W16: -10.00 | X16: -10.00 | Y16: -10.00 | Z16: -10.00
B17: =IF('Mål 12'!$A$4="",0,'Mål 12'!$A$4) -> 0.00 | C17: M 12 | D17: =IF('Mål 12'!$E$6="",0,'Mål 12'!$E$6) -> 0 | E17: =IF('Mål 12'!$F$6="",0,'Mål 12'!$F$6) -> 0 | F17: =IF(E17*D17=0,"",VLOOKUP(D17,Lists!B$10:G$14,CEILING(E17-0.5,1)+1,TRUE)) ->  | G17: =IF('Mål 12'!$L$6="",0,'Mål 12'!$L$6) -> 0.0 | H17: =IF('Mål 12'!$M$6="",0,'Mål 12'!$M$6) -> 0.0 | I17: =IF(H17*G17=0,"",VLOOKUP(G17,Lists!B$10:G$14,CEILING(H17-0.5,1)+1,TRUE)) ->  | W17: -10.00 | X17: -10.00 | Y17: -10.00 | Z17: -10.00
B18: =IF('Mål 13'!$A$4="",0,'Mål 13'!$A$4) -> 0.00 | C18: M 13 | D18: =IF('Mål 13'!$E$6="",0,'Mål 13'!$E$6) -> 0 | E18: =IF('Mål 13'!$F$6="",0,'Mål 13'!$F$6) -> 0 | F18: =IF(E18*D18=0,"",VLOOKUP(D18,Lists!B$10:G$14,CEILING(E18-0.5,1)+1,TRUE)) ->  | G18: =IF('Mål 13'!$L$6="",0,'Mål 13'!$L$6) -> 0.0 | H18: =IF('Mål 13'!$M$6="",0,'Mål 13'!$M$6) -> 0.0 | I18: =IF(H18*G18=0,"",VLOOKUP(G18,Lists!B$10:G$14,CEILING(H18-0.5,1)+1,TRUE)) ->  | W18: -10.00 | X18: -10.00 | Y18: -10.00 | Z18: -10.00
B19: =IF('Mål 14'!$A$4="",0,'Mål 14'!$A$4) -> 0.00 | C19: M 14 | D19: =IF('Mål 14'!$E$6="",0,'Mål 14'!$E$6) -> 0 | E19: =IF('Mål 14'!$F$6="",0,'Mål 14'!$F$6) -> 0 | F19: =IF(E19*D19=0,"",VLOOKUP(D19,Lists!B$10:G$14,CEILING(E19-0.5,1)+1,TRUE)) ->  | G19: =IF('Mål 14'!$L$6="",0,'Mål 14'!$L$6) -> 0.0 | H19: =IF('Mål 14'!$M$6="",0,'Mål 14'!$M$6) -> 0.0 | I19: =IF(H19*G19=0,"",VLOOKUP(G19,Lists!B$10:G$14,CEILING(H19-0.5,1)+1,TRUE)) ->  | W19: -10.00 | X19: -10.00 | Y19: -10.00 | Z19: -10.00
B20: =IF('Mål 15'!$A$4="",0,'Mål 15'!$A$4) -> 0.00 | C20: M 15 | D20: =IF('Mål 15'!$E$6="",0,'Mål 15'!$E$6) -> 0 | E20: =IF('Mål 15'!$F$6="",0,'Mål 15'!$F$6) -> 0 | F20: =IF(E20*D20=0,"",VLOOKUP(D20,Lists!B$10:G$14,CEILING(E20-0.5,1)+1,TRUE)) ->  | G20: =IF('Mål 15'!$L$6="",0,'Mål 15'!$L$6) -> 0.0 | H20: =IF('Mål 15'!$M$6="",0,'Mål 15'!$M$6) -> 0.0 | I20: =IF(H20*G20=0,"",VLOOKUP(G20,Lists!B$10:G$14,CEILING(H20-0.5,1)+1,TRUE)) ->  | W20: -10.00 | X20: -10.00 | Y20: -10.00 | Z20: -10.00
B21: =IF('Mål 16'!$A$4="",0,'Mål 16'!$A$4) -> 0.00 | C21: M 16 | D21: =IF('Mål 16'!$E$6="",0,'Mål 16'!$E$6) -> 0 | E21: =IF('Mål 16'!$F$6="",0,'Mål 16'!$F$6) -> 0 | F21: =IF(E21*D21=0,"",VLOOKUP(D21,Lists!B$10:G$14,CEILING(E21-0.5,1)+1,TRUE)) ->  | G21: =IF('Mål 16'!$L$6="",0,'Mål 16'!$L$6) -> 0.0 | H21: =IF('Mål 16'!$M$6="",0,'Mål 16'!$M$6) -> 0.0 | I21: =IF(H21*G21=0,"",VLOOKUP(G21,Lists!B$10:G$14,CEILING(H21-0.5,1)+1,TRUE)) ->  | W21: -10.00 | X21: -10.00 | Y21: -10.00 | Z21: -10.00
B22: =IF('Mål 17'!$A$4="",0,'Mål 17'!$A$4) -> 0.00 | C22: M 17 | D22: =IF('Mål 17'!$E$6="",0,'Mål 17'!$E$6) -> 0 | E22: =IF('Mål 17'!$F$6="",0,'Mål 17'!$F$6) -> 0 | F22: =IF(E22*D22=0,"",VLOOKUP(D22,Lists!B$10:G$14,CEILING(E22-0.5,1)+1,TRUE)) ->  | G22: =IF('Mål 17'!$L$6="",0,'Mål 17'!$L$6) -> 0.0 | H22: =IF('Mål 17'!$M$6="",0,'Mål 17'!$M$6) -> 0.0 | I22: =IF(H22*G22=0,"",VLOOKUP(G22,Lists!B$10:G$14,CEILING(H22-0.5,1)+1,TRUE)) ->  | W22: -10.00 | X22: -10.00 | Y22: -10.00 | Z22: -10.00
B23: =IF('Mål 18'!$A$4="",0,'Mål 18'!$A$4) -> 0.00 | C23: M 18 | D23: =IF('Mål 18'!$E$6="",0,'Mål 18'!$E$6) -> 0 | E23: =IF('Mål 18'!$F$6="",0,'Mål 18'!$F$6) -> 0 | F23: =IF(E23*D23=0,"",VLOOKUP(D23,Lists!B$10:G$14,CEILING(E23-0.5,1)+1,TRUE)) ->  | G23: =IF('Mål 18'!$L$6="",0,'Mål 18'!$L$6) -> 0.0 | H23: =IF('Mål 18'!$M$6="",0,'Mål 18'!$M$6) -> 0.0 | I23: =IF(H23*G23=0,"",VLOOKUP(G23,Lists!B$10:G$14,CEILING(H23-0.5,1)+1,TRUE)) ->  | W23: -10.00 | X23: -10.00 | Y23: -10.00 | Z23: -10.00
B24: =IF('Mål 19'!$A$4="",0,'Mål 19'!$A$4) -> 0.00 | C24: M 19 | D24: =IF('Mål 19'!$E$6="",0,'Mål 19'!$E$6) -> 0 | E24: =IF('Mål 19'!$F$6="",0,'Mål 19'!$F$6) -> 0 | F24: =IF(E24*D24=0,"",VLOOKUP(D24,Lists!B$10:G$14,CEILING(E24-0.5,1)+1,TRUE)) ->  | G24: =IF('Mål 19'!$L$6="",0,'Mål 19'!$L$6) -> 0.0 | H24: =IF('Mål 19'!$M$6="",0,'Mål 19'!$M$6) -> 0.0 | I24: =IF(H24*G24=0,"",VLOOKUP(G24,Lists!B$10:G$14,CEILING(H24-0.5,1)+1,TRUE)) ->  | W24: -10.00 | X24: -10.00 | Y24: -10.00 | Z24: -10.00
B25: =IF('Mål 20'!$A$4="",0,'Mål 20'!$A$4) -> 0.00 | C25: M 20 | D25: =IF('Mål 20'!$E$6="",0,'Mål 20'!$E$6) -> 0 | E25: =IF('Mål 20'!$F$6="",0,'Mål 20'!$F$6) -> 0 | F25: =IF(E25*D25=0,"",VLOOKUP(D25,Lists!B$10:G$14,CEILING(E25-0.5,1)+1,TRUE)) ->  | G25: =IF('Mål 20'!$L$6="",0,'Mål 20'!$L$6) -> 0.0 | H25: =IF('Mål 20'!$M$6="",0,'Mål 20'!$M$6) -> 0.0 | I25: =IF(H25*G25=0,"",VLOOKUP(G25,Lists!B$10:G$14,CEILING(H25-0.5,1)+1,TRUE)) ->  | W25: -10.00 | X25: -10.00 | Y25: -10.00 | Z25: -10.00
AA26: X-forskyv | AB26: Y-forskyv
AA27: -0.2 | AB27: -0.5
W28: X-Konsekvens | X28: Y-Sannsynlighet | AA28: -0.2 | AB28: -0.25
AA29: -0.2 | AB29: -0.2
AA30: -0.4 | AB30: -0.5
V31: =C6 -> M 1 | W31: =W6 -> 2.80 | X31: =X6 -> 1.5 | AA31: -0.4 | AB31: -0.25
W32: =Y6 -> 2.80 | X32: =Z6 -> 1.5 | AA32: -0.4 | AB32: -0.4
C33: Målnr. | D33: Risiko (fra kolonne c): | E33: =IF('Mål 1'!$I7="",0,'Mål 1'!$I7) -> Nye tiltak: | F33: =IF('Mål 1'!$J7="",0,'Mål 1'!$J7) -> Ansvarlig: | G33: =IF('Mål 1'!$K7="",0,'Mål 1'!$K7) -> Frist: | V33: =C7 -> M 2 | W33: =W7 -> -10 | X33: =X7 -> -10 | AA33: -0.6 | AB33: -0.5
C34: Mål 1 | D34: =IF('Mål 1'!$C$8="",0,'Mål 1'!$C$8) -> 0 | E34: =IF('Mål 1'!$I$8="",0,'Mål 1'!$I$8) -> 0 | F34: =IF('Mål 1'!$J$8="",0,'Mål 1'!$J$8) -> 0 | G34: =IF('Mål 1'!$K$8="",0,'Mål 1'!$K$8) -> 00:00:00 | W34: =IF(Y7=-10,"",Y7) ->  | X34: =Z7 -> -10 | AA34: -0.6 | AB34: -0.25
C35: Mål 1 | D35: =IF('Mål 1'!$C$9="",0,'Mål 1'!$C$9) -> Sekretær funksjon; utsending av sakslister og protokoll, behandle evt. forfall/innkalle vara | E35: =IF('Mål 1'!#REF!="",0,'Mål 1'!#REF!) ->  | F35: =IF('Mål 1'!$J$9="",0,'Mål 1'!$J$9) -> Politisk sekretariat | G35: =IF('Mål 1'!$K$9="",0,'Mål 1'!$K$9) -> 00:00:00 | V35: =C8 -> M 3 | W35: =W8 -> -10 | X35: =X8 -> -10 | AA35: -0.6 | AB35: -0.4
C36: Mål 1 | D36: =IF('Mål 1'!$C$10="",0,'Mål 1'!$C$10) -> Sekretær i møte | E36: =IF('Mål 1'!#REF!="",0,'Mål 1'!#REF!) ->  | F36: =IF('Mål 1'!$J$10="",0,'Mål 1'!$J$10) -> Politisk sekretariat | G36: =IF('Mål 1'!$K$10="",0,'Mål 1'!$K$10) -> 00:00:00 | W36: =Y8 -> -10 | X36: =Z8 -> -10 | AA36: -0.5 | AB36: -0.5
C37: Mål 1 | D37: =IF('Mål 1'!$C$11="",0,'Mål 1'!$C11) -> Produksjon og utsendelse av sakslister og protokoll | E37: =IF('Mål 1'!$I$11="",0,'Mål 1'!$I11) -> 0 | F37: =IF('Mål 1'!$J$11="",0,'Mål 1'!$J11) -> IKT | G37: =IF('Mål 1'!$K$11="",0,'Mål 1'!$K11) -> 00:00:00 | V37: =C9 -> M 4 | W37: =W9 -> -10 | X37: =X9 -> -10 | AA37: -0.5 | AB37: -0.25
C38: Mål 1 | D38: =IF('Mål 1'!#REF!="",0,'Mål 1'!#REF!) ->  | E38: =IF('Mål 1'!#REF!="",0,'Mål 1'!#REF!) ->  | F38: =IF('Mål 1'!#REF!="",0,'Mål 1'!#REF!) ->  | G38: =IF('Mål 1'!#REF!="",0,'Mål 1'!#REF!) ->  | W38: =Y9 -> -10 | X38: =Z9 -> -10 | AA38: -0.5 | AB38: -0.4
C39: Mål 1 | D39: =IF('Mål 1'!#REF!="",0,'Mål 1'!#REF!) ->  | E39: =IF('Mål 1'!#REF!="",0,'Mål 1'!#REF!) ->  | F39: =IF('Mål 1'!#REF!="",0,'Mål 1'!#REF!) ->  | G39: =IF('Mål 1'!#REF!="",0,'Mål 1'!#REF!) ->  | V39: =C10 -> M 5 | W39: =W10 -> -10 | X39: =X10 -> -10 | AA39: -0.33 | AB39: -0.5
C40: Mål 1 | D40: =IF('Mål 1'!#REF!="",0,'Mål 1'!#REF!) ->  | E40: =IF('Mål 1'!#REF!="",0,'Mål 1'!#REF!) ->  | F40: =IF('Mål 1'!#REF!="",0,'Mål 1'!#REF!) ->  | G40: =IF('Mål 1'!#REF!="",0,'Mål 1'!#REF!) ->  | W40: =Y10 -> -10 | X40: =Z10 -> -10 | AA40: -0.33 | AB40: -0.25
C41: Mål 1 | D41: =IF('Mål 1'!#REF!="",0,'Mål 1'!#REF!) ->  | E41: =IF('Mål 1'!#REF!="",0,'Mål 1'!#REF!) ->  | F41: =IF('Mål 1'!#REF!="",0,'Mål 1'!#REF!) ->  | G41: =IF('Mål 1'!#REF!="",0,'Mål 1'!#REF!) ->  | V41: =C11 -> M 6 | W41: =W11 -> -10 | X41: =X11 -> -10 | AA41: -0.33 | AB41: -0.4
C42: Mål 1 | D42: =IF('Mål 1'!#REF!="",0,'Mål 1'!#REF!) ->  | E42: =IF('Mål 1'!#REF!="",0,'Mål 1'!#REF!) ->  | F42: =IF('Mål 1'!#REF!="",0,'Mål 1'!#REF!) ->  | G42: =IF('Mål 1'!#REF!="",0,'Mål 1'!#REF!) ->  | W42: =Y11 -> -10 | X42: =Z11 -> -10 | AA42: -0.25 | AB42: -0.5
C43: Mål 1 | D43: =IF('Mål 1'!#REF!="",0,'Mål 1'!#REF!) ->  | E43: =IF('Mål 1'!#REF!="",0,'Mål 1'!#REF!) ->  | F43: =IF('Mål 1'!#REF!="",0,'Mål 1'!#REF!) ->  | G43: =IF('Mål 1'!#REF!="",0,'Mål 1'!#REF!) ->  | V43: =C12 -> M 7 | W43: =W12 -> -10 | X43: =X12 -> -10 | AA43: -0.25 | AB43: -0.25
C44: Mål 1 | D44: =IF('Mål 1'!#REF!="",0,'Mål 1'!#REF!) ->  | E44: =IF('Mål 1'!#REF!="",0,'Mål 1'!#REF!) ->  | F44: =IF('Mål 1'!#REF!="",0,'Mål 1'!#REF!) ->  | G44: =IF('Mål 1'!#REF!="",0,'Mål 1'!#REF!) ->  | W44: =Y12 -> -10 | X44: =Z12 -> -10 | AA44: -0.25 | AB44: -0.4
C45: Mål 1 | D45: =IF('Mål 1'!$C$12="",0,'Mål 1'!$C$12) -> Produksjon og utsendelse av sakslister og protokoll | E45: =IF('Mål 1'!$I$12="",0,'Mål 1'!$I$12) -> 0 | F45: =IF('Mål 1'!$J$12="",0,'Mål 1'!$J$12) -> 0 | G45: =IF('Mål 1'!$K$12="",0,'Mål 1'!$K$12) -> 00:00:00 | V45: =C13 -> M 8 | W45: =W13 -> -10 | X45: =X13 -> -10 | AA45: -0.15 | AB45: -0.5
C46: Mål 1 | D46: =IF('Mål 1'!#REF!="",0,'Mål 1'!#REF!) ->  | E46: =IF('Mål 1'!#REF!="",0,'Mål 1'!#REF!) ->  | F46: =IF('Mål 1'!#REF!="",0,'Mål 1'!#REF!) ->  | G46: =IF('Mål 1'!#REF!="",0,'Mål 1'!#REF!) ->  | W46: =Y13 -> -10 | X46: =Z13 -> -10 | AA46: -0.15 | AB46: -0.25
C47: Mål 1 | D47: =IF('Mål 1'!#REF!="",0,'Mål 1'!#REF!) ->  | E47: =IF('Mål 1'!#REF!="",0,'Mål 1'!#REF!) ->  | F47: =IF('Mål 1'!#REF!="",0,'Mål 1'!#REF!) ->  | G47: =IF('Mål 1'!#REF!="",0,'Mål 1'!#REF!) ->  | V47: =C14 -> M 9 | W47: =W14 -> -10 | X47: =X14 -> -10
C48: Mål 1 | D48: =IF('Mål 1'!#REF!="",0,'Mål 1'!#REF!) ->  | E48: =IF('Mål 1'!#REF!="",0,'Mål 1'!#REF!) ->  | F48: =IF('Mål 1'!#REF!="",0,'Mål 1'!#REF!) ->  | G48: =IF('Mål 1'!#REF!="",0,'Mål 1'!#REF!) ->  | W48: =Y14 -> -10 | X48: =Z14 -> -10
C49: Mål 1 | D49: =IF('Mål 1'!#REF!="",0,'Mål 1'!#REF!) ->  | E49: =IF('Mål 1'!#REF!="",0,'Mål 1'!#REF!) ->  | F49: =IF('Mål 1'!#REF!="",0,'Mål 1'!#REF!) ->  | G49: =IF('Mål 1'!#REF!="",0,'Mål 1'!#REF!) ->  | V49: =C15 -> M 10 | W49: =W15 -> -10 | X49: =X15 -> -10
C50: Mål 1 | D50: =IF('Mål 1'!#REF!="",0,'Mål 1'!#REF!) ->  | E50: =IF('Mål 1'!#REF!="",0,'Mål 1'!#REF!) ->  | F50: =IF('Mål 1'!#REF!="",0,'Mål 1'!#REF!) ->  | G50: =IF('Mål 1'!#REF!="",0,'Mål 1'!#REF!) ->  | W50: =Y15 -> -10 | X50: =Z15 -> -10
C51: Mål 1 | D51: =IF('Mål 1'!$C$13="",0,'Mål 1'!$C$13) -> Produksjon og utsendelse av sakslister og protokoller | E51: =IF('Mål 1'!$I$13="",0,'Mål 1'!$I$13) -> Utsendelse av sakslister og protokoller på papir (dersom vi har tilgang til skrivere) og på mail. | F51: =IF('Mål 1'!$J$13="",0,'Mål 1'!$J$13) -> Politisk sekretariat | G51: =IF('Mål 1'!$K$13="",0,'Mål 1'!$K$13) -> 00:00:00 | V51: =C16 -> M 11 | W51: =W16 -> -10 | X51: =X16 -> -10
C52: Mål 1 | D52: =IF('Mål 1'!$C$14="",0,'Mål 1'!$C$14) -> Produksjon og utsendelse av sakslister og protokoller | E52: =IF('Mål 1'!$I$14="",0,'Mål 1'!$I$14) -> Avkare rutiner med kommunedirektør. Utsendelse av tilleggssaksliste evt. utsette sak til neste møte | F52: =IF('Mål 1'!$J$14="",0,'Mål 1'!$J$14) -> Politisk sekretariat | G52: =IF('Mål 1'!$K$14="",0,'Mål 1'!$K$14) -> 00:00:00 | W52: =Y16 -> -10 | X52: =Z16 -> -10
C53: Mål 1 | D53: =IF('Mål 1'!$C$15="",0,'Mål 1'!$C$15) -> Produksjon og utsendelse av sakslister | E53: =IF('Mål 1'!$I$15="",0,'Mål 1'!$I$15) -> 0 | F53: =IF('Mål 1'!$J$15="",0,'Mål 1'!$J$15) -> Kommunedirektøren | G53: =IF('Mål 1'!$K$15="",0,'Mål 1'!$K$15) -> 00:00:00 | V53: =C17 -> M 12 | W53: =W17 -> -10.00 | X53: =X17 -> -10
C54: Mål 2 | D54: =IF('Mål 2'!$C$8="",0,'Mål 2'!$C$8) -> 0 | E54: =IF('Mål 2'!$I$8="",0,'Mål 2'!$I$8) -> 0 | F54: =IF('Mål 2'!$J$8="",0,'Mål 2'!$J$8) -> 0 | G54: =IF('Mål 2'!$K$8="",0,'Mål 2'!$K$8) -> 00:00:00 | W54: =Y17 -> -10 | X54: =Z17 -> -10
C55: Mål 2 | D55: =IF('Mål 2'!$C$9="",0,'Mål 2'!$C$9) -> 0 | E55: =IF('Mål 2'!$I$9="",0,'Mål 2'!$I$9) -> 0 | F55: =IF('Mål 2'!$J$9="",0,'Mål 2'!$J$9) -> 0 | G55: =IF('Mål 2'!$K$9="",0,'Mål 2'!$K$9) -> 00:00:00 | V55: =C18 -> M 13 | W55: =W18 -> -10 | X55: =X18 -> -10
C56: Mål 2 | D56: =IF('Mål 2'!$C$10="",0,'Mål 2'!$C$10) -> 0 | E56: =IF('Mål 2'!$I$10="",0,'Mål 2'!$I$10) -> 0 | F56: =IF('Mål 2'!$J$10="",0,'Mål 2'!$J$10) -> 0 | G56: =IF('Mål 2'!$K$10="",0,'Mål 2'!$K$10) -> 00:00:00 | W56: =Y18 -> -10 | X56: =Z18 -> -10
C57: Mål 2 | D57: =IF('Mål 2'!$C$11="",0,'Mål 2'!$C31) -> 0 | E57: =IF('Mål 2'!$I$11="",0,'Mål 2'!$I31) -> 0 | F57: =IF('Mål 2'!$J$11="",0,'Mål 2'!$J31) -> 0 | G57: =IF('Mål 2'!$K$11="",0,'Mål 2'!$K31) -> 00:00:00 | V57: =C19 -> M 14 | W57: =W19 -> -10 | X57: =X19 -> -10
C58: Mål 2 | D58: =IF('Mål 2'!$C$12="",0,'Mål 2'!$C$12) -> 0 | E58: =IF('Mål 2'!$I$12="",0,'Mål 2'!$I$12) -> 0 | F58: =IF('Mål 2'!$J$12="",0,'Mål 2'!$J$12) -> 0 | G58: =IF('Mål 2'!$K$12="",0,'Mål 2'!$K$12) -> 00:00:00 | W58: =Y19 -> -10 | X58: =Z19 -> -10
C59: Mål 2 | D59: =IF('Mål 2'!$C$13="",0,'Mål 2'!$C$13) -> 0 | E59: =IF('Mål 2'!$I$13="",0,'Mål 2'!$I$13) -> 0 | F59: =IF('Mål 2'!$J$13="",0,'Mål 2'!$J$13) -> 0 | G59: =IF('Mål 2'!$K$13="",0,'Mål 2'!$K$13) -> 00:00:00 | V59: =C20 -> M 15 | W59: =W20 -> -10 | X59: =X20 -> -10
C60: Mål 2 | D60: =IF('Mål 2'!$C$14="",0,'Mål 2'!$C$14) -> 0 | E60: =IF('Mål 2'!$I$14="",0,'Mål 2'!$I$14) -> 0 | F60: =IF('Mål 2'!$J$14="",0,'Mål 2'!$J$14) -> 0 | G60: =IF('Mål 2'!$K$14="",0,'Mål 2'!$K$14) -> 00:00:00 | W60: =Y20 -> -10 | X60: =Z20 -> -10
C61: Mål 2 | D61: =IF('Mål 2'!$C$15="",0,'Mål 2'!$C$15) -> 0 | E61: =IF('Mål 2'!$I$15="",0,'Mål 2'!$I$15) -> 0 | F61: =IF('Mål 2'!$J$15="",0,'Mål 2'!$J$15) -> 0 | G61: =IF('Mål 2'!$K$15="",0,'Mål 2'!$K$15) -> 00:00:00 | V61: =C21 -> M 16 | W61: =W21 -> -10.00 | X61: =X21 -> -10.00
C62: Mål 2 | D62: =IF('Mål 2'!$C$16="",0,'Mål 2'!$C$16) -> 0 | E62: =IF('Mål 2'!$I$16="",0,'Mål 2'!$I$16) -> 0 | F62: =IF('Mål 2'!$J$16="",0,'Mål 2'!$J$16) -> 0 | G62: =IF('Mål 2'!$K$16="",0,'Mål 2'!$K$16) -> 00:00:00 | W62: =Y21 -> -10.00 | X62: =Z21 -> -10.00
C63: Mål 2 | D63: =IF('Mål 2'!$C$17="",0,'Mål 2'!$C$17) -> 0 | E63: =IF('Mål 2'!$I$17="",0,'Mål 2'!$I$17) -> 0 | F63: =IF('Mål 2'!$J$17="",0,'Mål 2'!$J$17) -> 0 | G63: =IF('Mål 2'!$K$17="",0,'Mål 2'!$K$17) -> 00:00:00 | V63: =C22 -> M 17 | W63: =W22 -> -10.00 | X63: =X22 -> -10.00
C64: Mål 2 | D64: =IF('Mål 2'!$C$18="",0,'Mål 2'!$C$18) -> 0 | E64: =IF('Mål 2'!$I$18="",0,'Mål 2'!$I$18) -> 0 | F64: =IF('Mål 2'!$J$18="",0,'Mål 2'!$J$18) -> 0 | G64: =IF('Mål 2'!$K$18="",0,'Mål 2'!$K$18) -> 00:00:00 | W64: =Y22 -> -10.00 | X64: =Z22 -> -10.00
C65: Mål 2 | D65: =IF('Mål 2'!$C$19="",0,'Mål 2'!$C$19) -> 0 | E65: =IF('Mål 2'!$I$19="",0,'Mål 2'!$I$19) -> 0 | F65: =IF('Mål 2'!$J$19="",0,'Mål 2'!$J$19) -> 0 | G65: =IF('Mål 2'!$K$19="",0,'Mål 2'!$K$19) -> 00:00:00 | V65: =C23 -> M 18 | W65: =W23 -> -10.00 | X65: =X23 -> -10.00
C66: Mål 2 | D66: =IF('Mål 2'!$C$20="",0,'Mål 2'!$C$20) -> 0 | E66: =IF('Mål 2'!$I$20="",0,'Mål 2'!$I$20) -> 0 | F66: =IF('Mål 2'!$J$20="",0,'Mål 2'!$J$20) -> 0 | G66: =IF('Mål 2'!$K$20="",0,'Mål 2'!$K$20) -> 00:00:00 | W66: =Y23 -> -10.00 | X66: =Z23 -> -10.00
C67: Mål 2 | D67: =IF('Mål 2'!$C$21="",0,'Mål 2'!$C$21) -> 0 | E67: =IF('Mål 2'!$I$21="",0,'Mål 2'!$I$21) -> 0 | F67: =IF('Mål 2'!$J$21="",0,'Mål 2'!$J$21) -> 0 | G67: =IF('Mål 2'!$K$21="",0,'Mål 2'!$K$21) -> 00:00:00 | V67: =C24 -> M 19 | W67: =W24 -> -10.00 | X67: =X24 -> -10.00
C68: Mål 2 | D68: =IF('Mål 2'!$C$22="",0,'Mål 2'!$C$22) -> 0 | E68: =IF('Mål 2'!$I$22="",0,'Mål 2'!$I$22) -> 0 | F68: =IF('Mål 2'!$J$22="",0,'Mål 2'!$J$22) -> 0 | G68: =IF('Mål 2'!$K$22="",0,'Mål 2'!$K$22) -> 00:00:00 | W68: =Y24 -> -10.00 | X68: =Z24 -> -10.00
C69: Mål 2 | D69: =IF('Mål 2'!$C$23="",0,'Mål 2'!$C$23) -> 0 | E69: =IF('Mål 2'!$I$23="",0,'Mål 2'!$I$23) -> 0 | F69: =IF('Mål 2'!$J$23="",0,'Mål 2'!$J$23) -> 0 | G69: =IF('Mål 2'!$K$23="",0,'Mål 2'!$K$23) -> 00:00:00 | V69: =C25 -> M 20 | W69: =W25 -> -10.00 | X69: =X25 -> -10.00
C70: Mål 2 | D70: =IF('Mål 2'!$C$24="",0,'Mål 2'!$C$24) -> 0 | E70: =IF('Mål 2'!$I$24="",0,'Mål 2'!$I$24) -> 0 | F70: =IF('Mål 2'!$J$24="",0,'Mål 2'!$J$24) -> 0 | G70: =IF('Mål 2'!$K$24="",0,'Mål 2'!$K$24) -> 00:00:00 | W70: =Y25 -> -10.00 | X70: =Z25 -> -10.00
C71: Mål 2 | D71: =IF('Mål 2'!$C$25="",0,'Mål 2'!$C$25) -> 0 | E71: =IF('Mål 2'!$I$25="",0,'Mål 2'!$I$25) -> 0 | F71: =IF('Mål 2'!$J$25="",0,'Mål 2'!$J$25) -> 0 | G71: =IF('Mål 2'!$K$25="",0,'Mål 2'!$K$25) -> 00:00:00
C72: Mål 2 | D72: =IF('Mål 2'!$C$26="",0,'Mål 2'!$C$26) -> 0 | E72: =IF('Mål 2'!$I$26="",0,'Mål 2'!$I$26) -> 0 | F72: =IF('Mål 2'!$J$26="",0,'Mål 2'!$J$26) -> 0 | G72: =IF('Mål 2'!$K$26="",0,'Mål 2'!$K$26) -> 00:00:00
C73: Mål 2 | D73: =IF('Mål 2'!$C$27="",0,'Mål 2'!$C$27) -> 0 | E73: =IF('Mål 2'!$I$27="",0,'Mål 2'!$I$27) -> 0 | F73: =IF('Mål 2'!$J$27="",0,'Mål 2'!$J$27) -> 0 | G73: =IF('Mål 2'!$K$27="",0,'Mål 2'!$K$27) -> 00:00:00
C74: Mål 3 | D74: =IF('Mål 3'!$C$8="",0,'Mål 3'!$C$8) -> 0 | E74: =IF('Mål 3'!$I$8="",0,'Mål 3'!$I$8) -> 0 | F74: =IF('Mål 3'!$J$8="",0,'Mål 3'!$J$8) -> 0 | G74: =IF('Mål 3'!$K$8="",0,'Mål 3'!$K$8) -> 00:00:00
C75: Mål 3 | D75: =IF('Mål 3'!$C$9="",0,'Mål 3'!$C$9) -> 0 | E75: =IF('Mål 3'!$I$9="",0,'Mål 3'!$I$9) -> 0 | F75: =IF('Mål 3'!$J$9="",0,'Mål 3'!$J$9) -> 0 | G75: =IF('Mål 3'!$K$9="",0,'Mål 3'!$K$9) -> 00:00:00
C76: Mål 3 | D76: =IF('Mål 3'!$C$10="",0,'Mål 3'!$C$10) -> 0 | E76: =IF('Mål 3'!$I$10="",0,'Mål 3'!$I$10) -> 0 | F76: =IF('Mål 3'!$J$10="",0,'Mål 3'!$J$10) -> 0 | G76: =IF('Mål 3'!$K$10="",0,'Mål 3'!$K$10) -> 00:00:00
C77: Mål 3 | D77: =IF('Mål 3'!$C$11="",0,'Mål 3'!$C51) -> 0 | E77: =IF('Mål 3'!$I$11="",0,'Mål 3'!$I51) -> 0 | F77: =IF('Mål 3'!$J$11="",0,'Mål 3'!$J51) -> 0 | G77: =IF('Mål 3'!$K$11="",0,'Mål 3'!$K51) -> 00:00:00
C78: Mål 3 | D78: =IF('Mål 3'!$C$12="",0,'Mål 3'!$C$12) -> 0 | E78: =IF('Mål 3'!$I$12="",0,'Mål 3'!$I$12) -> 0 | F78: =IF('Mål 3'!$J$12="",0,'Mål 3'!$J$12) -> 0 | G78: =IF('Mål 3'!$K$12="",0,'Mål 3'!$K$12) -> 00:00:00
C79: Mål 3 | D79: =IF('Mål 3'!$C$13="",0,'Mål 3'!$C$13) -> 0 | E79: =IF('Mål 3'!$I$13="",0,'Mål 3'!$I$13) -> 0 | F79: =IF('Mål 3'!$J$13="",0,'Mål 3'!$J$13) -> 0 | G79: =IF('Mål 3'!$K$13="",0,'Mål 3'!$K$13) -> 00:00:00
C80: Mål 3 | D80: =IF('Mål 3'!$C$14="",0,'Mål 3'!$C$14) -> 0 | E80: =IF('Mål 3'!$I$14="",0,'Mål 3'!$I$14) -> 0 | F80: =IF('Mål 3'!$J$14="",0,'Mål 3'!$J$14) -> 0 | G80: =IF('Mål 3'!$K$14="",0,'Mål 3'!$K$14) -> 00:00:00
C81: Mål 3 | D81: =IF('Mål 3'!$C$15="",0,'Mål 3'!$C$15) -> 0 | E81: =IF('Mål 3'!$I$15="",0,'Mål 3'!$I$15) -> 0 | F81: =IF('Mål 3'!$J$15="",0,'Mål 3'!$J$15) -> 0 | G81: =IF('Mål 3'!$K$15="",0,'Mål 3'!$K$15) -> 00:00:00
C82: Mål 3 | D82: =IF('Mål 3'!$C$16="",0,'Mål 3'!$C$16) -> 0 | E82: =IF('Mål 3'!$I$16="",0,'Mål 3'!$I$16) -> 0 | F82: =IF('Mål 3'!$J$16="",0,'Mål 3'!$J$16) -> 0 | G82: =IF('Mål 3'!$K$16="",0,'Mål 3'!$K$16) -> 00:00:00
C83: Mål 3 | D83: =IF('Mål 3'!$C$17="",0,'Mål 3'!$C$17) -> 0 | E83: =IF('Mål 3'!$I$17="",0,'Mål 3'!$I$17) -> 0 | F83: =IF('Mål 3'!$J$17="",0,'Mål 3'!$J$17) -> 0 | G83: =IF('Mål 3'!$K$17="",0,'Mål 3'!$K$17) -> 00:00:00
C84: Mål 3 | D84: =IF('Mål 3'!$C$18="",0,'Mål 3'!$C$18) -> 0 | E84: =IF('Mål 3'!$I$18="",0,'Mål 3'!$I$18) -> 0 | F84: =IF('Mål 3'!$J$18="",0,'Mål 3'!$J$18) -> 0 | G84: =IF('Mål 3'!$K$18="",0,'Mål 3'!$K$18) -> 00:00:00
C85: Mål 3 | D85: =IF('Mål 3'!$C$19="",0,'Mål 3'!$C$19) -> 0 | E85: =IF('Mål 3'!$I$19="",0,'Mål 3'!$I$19) -> 0 | F85: =IF('Mål 3'!$J$19="",0,'Mål 3'!$J$19) -> 0 | G85: =IF('Mål 3'!$K$19="",0,'Mål 3'!$K$19) -> 00:00:00
C86: Mål 3 | D86: =IF('Mål 3'!$C$20="",0,'Mål 3'!$C$20) -> 0 | E86: =IF('Mål 3'!$I$20="",0,'Mål 3'!$I$20) -> 0 | F86: =IF('Mål 3'!$J$20="",0,'Mål 3'!$J$20) -> 0 | G86: =IF('Mål 3'!$K$20="",0,'Mål 3'!$K$20) -> 00:00:00
C87: Mål 3 | D87: =IF('Mål 3'!$C$21="",0,'Mål 3'!$C$21) -> 0 | E87: =IF('Mål 3'!$I$21="",0,'Mål 3'!$I$21) -> 0 | F87: =IF('Mål 3'!$J$21="",0,'Mål 3'!$J$21) -> 0 | G87: =IF('Mål 3'!$K$21="",0,'Mål 3'!$K$21) -> 00:00:00
C88: Mål 3 | D88: =IF('Mål 3'!$C$22="",0,'Mål 3'!$C$22) -> 0 | E88: =IF('Mål 3'!$I$22="",0,'Mål 3'!$I$22) -> 0 | F88: =IF('Mål 3'!$J$22="",0,'Mål 3'!$J$22) -> 0 | G88: =IF('Mål 3'!$K$22="",0,'Mål 3'!$K$22) -> 00:00:00
C89: Mål 3 | D89: =IF('Mål 3'!$C$23="",0,'Mål 3'!$C$23) -> 0 | E89: =IF('Mål 3'!$I$23="",0,'Mål 3'!$I$23) -> 0 | F89: =IF('Mål 3'!$J$23="",0,'Mål 3'!$J$23) -> 0 | G89: =IF('Mål 3'!$K$23="",0,'Mål 3'!$K$23) -> 00:00:00
C90: Mål 3 | D90: =IF('Mål 3'!$C$24="",0,'Mål 3'!$C$24) -> 0 | E90: =IF('Mål 3'!$I$24="",0,'Mål 3'!$I$24) -> 0 | F90: =IF('Mål 3'!$J$24="",0,'Mål 3'!$J$24) -> 0 | G90: =IF('Mål 3'!$K$24="",0,'Mål 3'!$K$24) -> 00:00:00
C91: Mål 3 | D91: =IF('Mål 3'!$C$25="",0,'Mål 3'!$C$25) -> 0 | E91: =IF('Mål 3'!$I$25="",0,'Mål 3'!$I$25) -> 0 | F91: =IF('Mål 3'!$J$25="",0,'Mål 3'!$J$25) -> 0 | G91: =IF('Mål 3'!$K$25="",0,'Mål 3'!$K$25) -> 00:00:00
C92: Mål 3 | D92: =IF('Mål 3'!$C$26="",0,'Mål 3'!$C$26) -> 0 | E92: =IF('Mål 3'!$I$26="",0,'Mål 3'!$I$26) -> 0 | F92: =IF('Mål 3'!$J$26="",0,'Mål 3'!$J$26) -> 0 | G92: =IF('Mål 3'!$K$26="",0,'Mål 3'!$K$26) -> 00:00:00
C93: Mål 3 | D93: =IF('Mål 3'!$C$27="",0,'Mål 3'!$C$27) -> 0 | E93: =IF('Mål 3'!$I$27="",0,'Mål 3'!$I$27) -> 0 | F93: =IF('Mål 3'!$J$27="",0,'Mål 3'!$J$27) -> 0 | G93: =IF('Mål 3'!$K$27="",0,'Mål 3'!$K$27) -> 00:00:00
C94: Mål 4 | D94: =IF('Mål 4'!#REF!="",0,'Mål 4'!#REF!) ->  | E94: =IF('Mål 4'!$I$8="",0,'Mål 4'!$I$8) -> 0 | F94: =IF('Mål 4'!$J$8="",0,'Mål 4'!$J$8) -> 0 | G94: =IF('Mål 4'!$K$8="",0,'Mål 4'!$K$8) -> 00:00:00
C95: Mål 4 | D95: =IF('Mål 4'!#REF!="",0,'Mål 4'!#REF!) ->  | E95: =IF('Mål 4'!$I$9="",0,'Mål 4'!$I$9) -> 0 | F95: =IF('Mål 4'!$J$9="",0,'Mål 4'!$J$9) -> 0 | G95: =IF('Mål 4'!$K$9="",0,'Mål 4'!$K$9) -> 00:00:00
C96: Mål 4 | D96: =IF('Mål 4'!$C$10="",0,'Mål 4'!$C$10) -> 0 | E96: =IF('Mål 4'!$I$10="",0,'Mål 4'!$I$10) -> 0 | F96: =IF('Mål 4'!$J$10="",0,'Mål 4'!$J$10) -> 0 | G96: =IF('Mål 4'!$K$10="",0,'Mål 4'!$K$10) -> 00:00:00
C97: Mål 4 | D97: =IF('Mål 4'!$C$11="",0,'Mål 4'!$C71) -> 0 | E97: =IF('Mål 4'!$I$11="",0,'Mål 4'!$I71) -> 0 | F97: =IF('Mål 4'!$J$11="",0,'Mål 4'!$J71) -> 0 | G97: =IF('Mål 4'!$K$11="",0,'Mål 4'!$K71) -> 00:00:00
C98: Mål 4 | D98: =IF('Mål 4'!$C$12="",0,'Mål 4'!$C$12) -> 0 | E98: =IF('Mål 4'!$I$12="",0,'Mål 4'!$I$12) -> 0 | F98: =IF('Mål 4'!$J$12="",0,'Mål 4'!$J$12) -> 0 | G98: =IF('Mål 4'!$K$12="",0,'Mål 4'!$K$12) -> 00:00:00
C99: Mål 4 | D99: =IF('Mål 4'!$C$13="",0,'Mål 4'!$C$13) -> 0 | E99: =IF('Mål 4'!$I$13="",0,'Mål 4'!$I$13) -> 0 | F99: =IF('Mål 4'!$J$13="",0,'Mål 4'!$J$13) -> 0 | G99: =IF('Mål 4'!$K$13="",0,'Mål 4'!$K$13) -> 00:00:00
C100: Mål 4 | D100: =IF('Mål 4'!$C$14="",0,'Mål 4'!$C$14) -> 0 | E100: =IF('Mål 4'!$I$14="",0,'Mål 4'!$I$14) -> 0 | F100: =IF('Mål 4'!$J$14="",0,'Mål 4'!$J$14) -> 0 | G100: =IF('Mål 4'!$K$14="",0,'Mål 4'!$K$14) -> 00:00:00
C101: Mål 4 | D101: =IF('Mål 4'!$C$15="",0,'Mål 4'!$C$15) -> 0 | E101: =IF('Mål 4'!$I$15="",0,'Mål 4'!$I$15) -> 0 | F101: =IF('Mål 4'!$J$15="",0,'Mål 4'!$J$15) -> 0 | G101: =IF('Mål 4'!$K$15="",0,'Mål 4'!$K$15) -> 00:00:00
C102: Mål 4 | D102: =IF('Mål 4'!$C$16="",0,'Mål 4'!$C$16) -> 0 | E102: =IF('Mål 4'!$I$16="",0,'Mål 4'!$I$16) -> 0 | F102: =IF('Mål 4'!$J$16="",0,'Mål 4'!$J$16) -> 0 | G102: =IF('Mål 4'!$K$16="",0,'Mål 4'!$K$16) -> 00:00:00
C103: Mål 4 | D103: =IF('Mål 4'!$C$17="",0,'Mål 4'!$C$17) -> 0 | E103: =IF('Mål 4'!$I$17="",0,'Mål 4'!$I$17) -> 0 | F103: =IF('Mål 4'!$J$17="",0,'Mål 4'!$J$17) -> 0 | G103: =IF('Mål 4'!$K$17="",0,'Mål 4'!$K$17) -> 00:00:00
C104: Mål 4 | D104: =IF('Mål 4'!$C$18="",0,'Mål 4'!$C$18) -> 0 | E104: =IF('Mål 4'!$I$18="",0,'Mål 4'!$I$18) -> 0 | F104: =IF('Mål 4'!$J$18="",0,'Mål 4'!$J$18) -> 0 | G104: =IF('Mål 4'!$K$18="",0,'Mål 4'!$K$18) -> 00:00:00
C105: Mål 4 | D105: =IF('Mål 4'!$C$19="",0,'Mål 4'!$C$19) -> 0 | E105: =IF('Mål 4'!$I$19="",0,'Mål 4'!$I$19) -> 0 | F105: =IF('Mål 4'!$J$19="",0,'Mål 4'!$J$19) -> 0 | G105: =IF('Mål 4'!$K$19="",0,'Mål 4'!$K$19) -> 00:00:00
C106: Mål 4 | D106: =IF('Mål 4'!$C$20="",0,'Mål 4'!$C$20) -> 0 | E106: =IF('Mål 4'!$I$20="",0,'Mål 4'!$I$20) -> 0 | F106: =IF('Mål 4'!$J$20="",0,'Mål 4'!$J$20) -> 0 | G106: =IF('Mål 4'!$K$20="",0,'Mål 4'!$K$20) -> 00:00:00
C107: Mål 4 | D107: =IF('Mål 4'!$C$21="",0,'Mål 4'!$C$21) -> 0 | E107: =IF('Mål 4'!$I$21="",0,'Mål 4'!$I$21) -> 0 | F107: =IF('Mål 4'!$J$21="",0,'Mål 4'!$J$21) -> 0 | G107: =IF('Mål 4'!$K$21="",0,'Mål 4'!$K$21) -> 00:00:00
C108: Mål 4 | D108: =IF('Mål 4'!$C$22="",0,'Mål 4'!$C$22) -> 0 | E108: =IF('Mål 4'!$I$22="",0,'Mål 4'!$I$22) -> 0 | F108: =IF('Mål 4'!$J$22="",0,'Mål 4'!$J$22) -> 0 | G108: =IF('Mål 4'!$K$22="",0,'Mål 4'!$K$22) -> 00:00:00
C109: Mål 4 | D109: =IF('Mål 4'!$C$23="",0,'Mål 4'!$C$23) -> 0 | E109: =IF('Mål 4'!$I$23="",0,'Mål 4'!$I$23) -> 0 | F109: =IF('Mål 4'!$J$23="",0,'Mål 4'!$J$23) -> 0 | G109: =IF('Mål 4'!$K$23="",0,'Mål 4'!$K$23) -> 00:00:00
C110: Mål 4 | D110: =IF('Mål 4'!$C$24="",0,'Mål 4'!$C$24) -> 0 | E110: =IF('Mål 4'!$I$24="",0,'Mål 4'!$I$24) -> 0 | F110: =IF('Mål 4'!$J$24="",0,'Mål 4'!$J$24) -> 0 | G110: =IF('Mål 4'!$K$24="",0,'Mål 4'!$K$24) -> 00:00:00
C111: Mål 4 | D111: =IF('Mål 4'!$C$25="",0,'Mål 4'!$C$25) -> 0 | E111: =IF('Mål 4'!$I$25="",0,'Mål 4'!$I$25) -> 0 | F111: =IF('Mål 4'!$J$25="",0,'Mål 4'!$J$25) -> 0 | G111: =IF('Mål 4'!$K$25="",0,'Mål 4'!$K$25) -> 00:00:00
C112: Mål 4 | D112: =IF('Mål 4'!$C$26="",0,'Mål 4'!$C$26) -> 0 | E112: =IF('Mål 4'!$I$26="",0,'Mål 4'!$I$26) -> 0 | F112: =IF('Mål 4'!$J$26="",0,'Mål 4'!$J$26) -> 0 | G112: =IF('Mål 4'!$K$26="",0,'Mål 4'!$K$26) -> 00:00:00
C113: Mål 4 | D113: =IF('Mål 4'!$C$27="",0,'Mål 4'!$C$27) -> 0 | E113: =IF('Mål 4'!$I$27="",0,'Mål 4'!$I$27) -> 0 | F113: =IF('Mål 4'!$J$27="",0,'Mål 4'!$J$27) -> 0 | G113: =IF('Mål 4'!$K$27="",0,'Mål 4'!$K$27) -> 00:00:00
C114: Mål 5 | D114: =IF('Mål 5'!$C$8="",0,'Mål 5'!$C$8) -> 0 | E114: =IF('Mål 5'!$I$8="",0,'Mål 5'!$I$8) -> 0 | F114: =IF('Mål 5'!$J$8="",0,'Mål 5'!$J$8) -> 0 | G114: =IF('Mål 5'!$K$8="",0,'Mål 5'!$K$8) -> 00:00:00
C115: Mål 5 | D115: =IF('Mål 5'!$C$9="",0,'Mål 5'!$C$9) -> 0 | E115: =IF('Mål 5'!$I$9="",0,'Mål 5'!$I$9) -> 0 | F115: =IF('Mål 5'!$J$9="",0,'Mål 5'!$J$9) -> 0 | G115: =IF('Mål 5'!$K$9="",0,'Mål 5'!$K$9) -> 00:00:00
C116: Mål 5 | D116: =IF('Mål 5'!$C$10="",0,'Mål 5'!$C$10) -> 0 | E116: =IF('Mål 5'!$I$10="",0,'Mål 5'!$I$10) -> 0 | F116: =IF('Mål 5'!$J$10="",0,'Mål 5'!$J$10) -> 0 | G116: =IF('Mål 5'!$K$10="",0,'Mål 5'!$K$10) -> 00:00:00
C117: Mål 5 | D117: =IF('Mål 5'!$C$11="",0,'Mål 5'!$C91) -> 0 | E117: =IF('Mål 5'!$I$11="",0,'Mål 5'!$I91) -> 0 | F117: =IF('Mål 5'!$J$11="",0,'Mål 5'!$J91) -> 0 | G117: =IF('Mål 5'!$K$11="",0,'Mål 5'!$K91) -> 00:00:00
C118: Mål 5 | D118: =IF('Mål 5'!$C$12="",0,'Mål 5'!$C$12) -> 0 | E118: =IF('Mål 5'!$I$12="",0,'Mål 5'!$I$12) -> 0 | F118: =IF('Mål 5'!$J$12="",0,'Mål 5'!$J$12) -> 0 | G118: =IF('Mål 5'!$K$12="",0,'Mål 5'!$K$12) -> 00:00:00
C119: Mål 5 | D119: =IF('Mål 5'!$C$13="",0,'Mål 5'!$C$13) -> 0 | E119: =IF('Mål 5'!$I$13="",0,'Mål 5'!$I$13) -> 0 | F119: =IF('Mål 5'!$J$13="",0,'Mål 5'!$J$13) -> 0 | G119: =IF('Mål 5'!$K$13="",0,'Mål 5'!$K$13) -> 00:00:00
C120: Mål 5 | D120: =IF('Mål 5'!$C$14="",0,'Mål 5'!$C$14) -> 0 | E120: =IF('Mål 5'!$I$14="",0,'Mål 5'!$I$14) -> 0 | F120: =IF('Mål 5'!$J$14="",0,'Mål 5'!$J$14) -> 0 | G120: =IF('Mål 5'!$K$14="",0,'Mål 5'!$K$14) -> 00:00:00
C121: Mål 5 | D121: =IF('Mål 5'!$C$15="",0,'Mål 5'!$C$15) -> 0 | E121: =IF('Mål 5'!$I$15="",0,'Mål 5'!$I$15) -> 0 | F121: =IF('Mål 5'!$J$15="",0,'Mål 5'!$J$15) -> 0 | G121: =IF('Mål 5'!$K$15="",0,'Mål 5'!$K$15) -> 00:00:00
C122: Mål 5 | D122: =IF('Mål 5'!$C$16="",0,'Mål 5'!$C$16) -> 0 | E122: =IF('Mål 5'!$I$16="",0,'Mål 5'!$I$16) -> 0 | F122: =IF('Mål 5'!$J$16="",0,'Mål 5'!$J$16) -> 0 | G122: =IF('Mål 5'!$K$16="",0,'Mål 5'!$K$16) -> 00:00:00
C123: Mål 5 | D123: =IF('Mål 5'!$C$17="",0,'Mål 5'!$C$17) -> 0 | E123: =IF('Mål 5'!$I$17="",0,'Mål 5'!$I$17) -> 0 | F123: =IF('Mål 5'!$J$17="",0,'Mål 5'!$J$17) -> 0 | G123: =IF('Mål 5'!$K$17="",0,'Mål 5'!$K$17) -> 00:00:00
C124: Mål 5 | D124: =IF('Mål 5'!$C$18="",0,'Mål 5'!$C$18) -> 0 | E124: =IF('Mål 5'!$I$18="",0,'Mål 5'!$I$18) -> 0 | F124: =IF('Mål 5'!$J$18="",0,'Mål 5'!$J$18) -> 0 | G124: =IF('Mål 5'!$K$18="",0,'Mål 5'!$K$18) -> 00:00:00
C125: Mål 5 | D125: =IF('Mål 5'!$C$19="",0,'Mål 5'!$C$19) -> 0 | E125: =IF('Mål 5'!$I$19="",0,'Mål 5'!$I$19) -> 0 | F125: =IF('Mål 5'!$J$19="",0,'Mål 5'!$J$19) -> 0 | G125: =IF('Mål 5'!$K$19="",0,'Mål 5'!$K$19) -> 00:00:00
C126: Mål 5 | D126: =IF('Mål 5'!$C$20="",0,'Mål 5'!$C$20) -> 0 | E126: =IF('Mål 5'!$I$20="",0,'Mål 5'!$I$20) -> 0 | F126: =IF('Mål 5'!$J$20="",0,'Mål 5'!$J$20) -> 0 | G126: =IF('Mål 5'!$K$20="",0,'Mål 5'!$K$20) -> 00:00:00
C127: Mål 5 | D127: =IF('Mål 5'!$C$21="",0,'Mål 5'!$C$21) -> 0 | E127: =IF('Mål 5'!$I$21="",0,'Mål 5'!$I$21) -> 0 | F127: =IF('Mål 5'!$J$21="",0,'Mål 5'!$J$21) -> 0 | G127: =IF('Mål 5'!$K$21="",0,'Mål 5'!$K$21) -> 00:00:00
C128: Mål 5 | D128: =IF('Mål 5'!$C$22="",0,'Mål 5'!$C$22) -> 0 | E128: =IF('Mål 5'!$I$22="",0,'Mål 5'!$I$22) -> 0 | F128: =IF('Mål 5'!$J$22="",0,'Mål 5'!$J$22) -> 0 | G128: =IF('Mål 5'!$K$22="",0,'Mål 5'!$K$22) -> 00:00:00
C129: Mål 5 | D129: =IF('Mål 5'!$C$23="",0,'Mål 5'!$C$23) -> 0 | E129: =IF('Mål 5'!$I$23="",0,'Mål 5'!$I$23) -> 0 | F129: =IF('Mål 5'!$J$23="",0,'Mål 5'!$J$23) -> 0 | G129: =IF('Mål 5'!$K$23="",0,'Mål 5'!$K$23) -> 00:00:00
C130: Mål 5 | D130: =IF('Mål 5'!$C$24="",0,'Mål 5'!$C$24) -> 0 | E130: =IF('Mål 5'!$I$24="",0,'Mål 5'!$I$24) -> 0 | F130: =IF('Mål 5'!$J$24="",0,'Mål 5'!$J$24) -> 0 | G130: =IF('Mål 5'!$K$24="",0,'Mål 5'!$K$24) -> 00:00:00
C131: Mål 5 | D131: =IF('Mål 5'!$C$25="",0,'Mål 5'!$C$25) -> 0 | E131: =IF('Mål 5'!$I$25="",0,'Mål 5'!$I$25) -> 0 | F131: =IF('Mål 5'!$J$25="",0,'Mål 5'!$J$25) -> 0 | G131: =IF('Mål 5'!$K$25="",0,'Mål 5'!$K$25) -> 00:00:00
C132: Mål 5 | D132: =IF('Mål 5'!$C$26="",0,'Mål 5'!$C$26) -> 0 | E132: =IF('Mål 5'!$I$26="",0,'Mål 5'!$I$26) -> 0 | F132: =IF('Mål 5'!$J$26="",0,'Mål 5'!$J$26) -> 0 | G132: =IF('Mål 5'!$K$26="",0,'Mål 5'!$K$26) -> 00:00:00
C133: Mål 5 | D133: =IF('Mål 5'!$C$27="",0,'Mål 5'!$C$27) -> 0 | E133: =IF('Mål 5'!$I$27="",0,'Mål 5'!$I$27) -> 0 | F133: =IF('Mål 5'!$J$27="",0,'Mål 5'!$J$27) -> 0 | G133: =IF('Mål 5'!$K$27="",0,'Mål 5'!$K$27) -> 00:00:00
C134: Mål 6 | D134: =IF('Mål 6'!$C$8="",0,'Mål 6'!$C$8) -> 0 | E134: =IF('Mål 6'!$I$8="",0,'Mål 6'!$I$8) -> 0 | F134: =IF('Mål 6'!$J$8="",0,'Mål 6'!$J$8) -> 0 | G134: =IF('Mål 6'!$K$8="",0,'Mål 6'!$K$8) -> 00:00:00
C135: Mål 6 | D135: =IF('Mål 6'!$C$9="",0,'Mål 6'!$C$9) -> 0 | E135: =IF('Mål 6'!$I$9="",0,'Mål 6'!$I$9) -> 0 | F135: =IF('Mål 6'!$J$9="",0,'Mål 6'!$J$9) -> 0 | G135: =IF('Mål 6'!$K$9="",0,'Mål 6'!$K$9) -> 00:00:00
C136: Mål 6 | D136: =IF('Mål 6'!$C$10="",0,'Mål 6'!$C$10) -> 0 | E136: =IF('Mål 6'!$I$10="",0,'Mål 6'!$I$10) -> 0 | F136: =IF('Mål 6'!$J$10="",0,'Mål 6'!$J$10) -> 0 | G136: =IF('Mål 6'!$K$10="",0,'Mål 6'!$K$10) -> 00:00:00
C137: Mål 6 | D137: =IF('Mål 6'!$C$11="",0,'Mål 6'!$C111) -> 0 | E137: =IF('Mål 6'!$I$11="",0,'Mål 6'!$I111) -> 0 | F137: =IF('Mål 6'!$J$11="",0,'Mål 6'!$J111) -> 0 | G137: =IF('Mål 6'!$K$11="",0,'Mål 6'!$K111) -> 00:00:00
C138: Mål 6 | D138: =IF('Mål 6'!$C$12="",0,'Mål 6'!$C$12) -> 0 | E138: =IF('Mål 6'!$I$12="",0,'Mål 6'!$I$12) -> 0 | F138: =IF('Mål 6'!$J$12="",0,'Mål 6'!$J$12) -> 0 | G138: =IF('Mål 6'!$K$12="",0,'Mål 6'!$K$12) -> 00:00:00
C139: Mål 6 | D139: =IF('Mål 6'!$C$13="",0,'Mål 6'!$C$13) -> 0 | E139: =IF('Mål 6'!$I$13="",0,'Mål 6'!$I$13) -> 0 | F139: =IF('Mål 6'!$J$13="",0,'Mål 6'!$J$13) -> 0 | G139: =IF('Mål 6'!$K$13="",0,'Mål 6'!$K$13) -> 00:00:00
C140: Mål 6 | D140: =IF('Mål 6'!$C$14="",0,'Mål 6'!$C$14) -> 0 | E140: =IF('Mål 6'!$I$14="",0,'Mål 6'!$I$14) -> 0 | F140: =IF('Mål 6'!$J$14="",0,'Mål 6'!$J$14) -> 0 | G140: =IF('Mål 6'!$K$14="",0,'Mål 6'!$K$14) -> 00:00:00
C141: Mål 6 | D141: =IF('Mål 6'!$C$15="",0,'Mål 6'!$C$15) -> 0 | E141: =IF('Mål 6'!$I$15="",0,'Mål 6'!$I$15) -> 0 | F141: =IF('Mål 6'!$J$15="",0,'Mål 6'!$J$15) -> 0 | G141: =IF('Mål 6'!$K$15="",0,'Mål 6'!$K$15) -> 00:00:00
C142: Mål 6 | D142: =IF('Mål 6'!$C$16="",0,'Mål 6'!$C$16) -> 0 | E142: =IF('Mål 6'!$I$16="",0,'Mål 6'!$I$16) -> 0 | F142: =IF('Mål 6'!$J$16="",0,'Mål 6'!$J$16) -> 0 | G142: =IF('Mål 6'!$K$16="",0,'Mål 6'!$K$16) -> 00:00:00
C143: Mål 6 | D143: =IF('Mål 6'!$C$17="",0,'Mål 6'!$C$17) -> 0 | E143: =IF('Mål 6'!$I$17="",0,'Mål 6'!$I$17) -> 0 | F143: =IF('Mål 6'!$J$17="",0,'Mål 6'!$J$17) -> 0 | G143: =IF('Mål 6'!$K$17="",0,'Mål 6'!$K$17) -> 00:00:00
C144: Mål 6 | D144: =IF('Mål 6'!$C$18="",0,'Mål 6'!$C$18) -> 0 | E144: =IF('Mål 6'!$I$18="",0,'Mål 6'!$I$18) -> 0 | F144: =IF('Mål 6'!$J$18="",0,'Mål 6'!$J$18) -> 0 | G144: =IF('Mål 6'!$K$18="",0,'Mål 6'!$K$18) -> 00:00:00
C145: Mål 6 | D145: =IF('Mål 6'!$C$19="",0,'Mål 6'!$C$19) -> 0 | E145: =IF('Mål 6'!$I$19="",0,'Mål 6'!$I$19) -> 0 | F145: =IF('Mål 6'!$J$19="",0,'Mål 6'!$J$19) -> 0 | G145: =IF('Mål 6'!$K$19="",0,'Mål 6'!$K$19) -> 00:00:00
C146: Mål 6 | D146: =IF('Mål 6'!$C$20="",0,'Mål 6'!$C$20) -> 0 | E146: =IF('Mål 6'!$I$20="",0,'Mål 6'!$I$20) -> 0 | F146: =IF('Mål 6'!$J$20="",0,'Mål 6'!$J$20) -> 0 | G146: =IF('Mål 6'!$K$20="",0,'Mål 6'!$K$20) -> 00:00:00
C147: Mål 6 | D147: =IF('Mål 6'!$C$21="",0,'Mål 6'!$C$21) -> 0 | E147: =IF('Mål 6'!$I$21="",0,'Mål 6'!$I$21) -> 0 | F147: =IF('Mål 6'!$J$21="",0,'Mål 6'!$J$21) -> 0 | G147: =IF('Mål 6'!$K$21="",0,'Mål 6'!$K$21) -> 00:00:00
C148: Mål 6 | D148: =IF('Mål 6'!$C$22="",0,'Mål 6'!$C$22) -> 0 | E148: =IF('Mål 6'!$I$22="",0,'Mål 6'!$I$22) -> 0 | F148: =IF('Mål 6'!$J$22="",0,'Mål 6'!$J$22) -> 0 | G148: =IF('Mål 6'!$K$22="",0,'Mål 6'!$K$22) -> 00:00:00
C149: Mål 6 | D149: =IF('Mål 6'!$C$23="",0,'Mål 6'!$C$23) -> 0 | E149: =IF('Mål 6'!$I$23="",0,'Mål 6'!$I$23) -> 0 | F149: =IF('Mål 6'!$J$23="",0,'Mål 6'!$J$23) -> 0 | G149: =IF('Mål 6'!$K$23="",0,'Mål 6'!$K$23) -> 00:00:00
C150: Mål 6 | D150: =IF('Mål 6'!$C$24="",0,'Mål 6'!$C$24) -> 0 | E150: =IF('Mål 6'!$I$24="",0,'Mål 6'!$I$24) -> 0 | F150: =IF('Mål 6'!$J$24="",0,'Mål 6'!$J$24) -> 0 | G150: =IF('Mål 6'!$K$24="",0,'Mål 6'!$K$24) -> 00:00:00
C151: Mål 6 | D151: =IF('Mål 6'!$C$25="",0,'Mål 6'!$C$25) -> 0 | E151: =IF('Mål 6'!$I$25="",0,'Mål 6'!$I$25) -> 0 | F151: =IF('Mål 6'!$J$25="",0,'Mål 6'!$J$25) -> 0 | G151: =IF('Mål 6'!$K$25="",0,'Mål 6'!$K$25) -> 00:00:00
C152: Mål 6 | D152: =IF('Mål 6'!$C$26="",0,'Mål 6'!$C$26) -> 0 | E152: =IF('Mål 6'!$I$26="",0,'Mål 6'!$I$26) -> 0 | F152: =IF('Mål 6'!$J$26="",0,'Mål 6'!$J$26) -> 0 | G152: =IF('Mål 6'!$K$26="",0,'Mål 6'!$K$26) -> 00:00:00
C153: Mål 6 | D153: =IF('Mål 6'!$C$27="",0,'Mål 6'!$C$27) -> 0 | E153: =IF('Mål 6'!$I$27="",0,'Mål 6'!$I$27) -> 0 | F153: =IF('Mål 6'!$J$27="",0,'Mål 6'!$J$27) -> 0 | G153: =IF('Mål 6'!$K$27="",0,'Mål 6'!$K$27) -> 00:00:00
C154: Mål 7 | D154: =IF('Mål 7'!$C$8="",0,'Mål 7'!$C$8) -> 0 | E154: =IF('Mål 7'!$I$8="",0,'Mål 7'!$I$8) -> 0 | F154: =IF('Mål 7'!$J$8="",0,'Mål 7'!$J$8) -> 0 | G154: =IF('Mål 7'!$K$8="",0,'Mål 7'!$K$8) -> 00:00:00
C155: Mål 7 | D155: =IF('Mål 7'!$C$9="",0,'Mål 7'!$C$9) -> 0 | E155: =IF('Mål 7'!$I$9="",0,'Mål 7'!$I$9) -> 0 | F155: =IF('Mål 7'!$J$9="",0,'Mål 7'!$J$9) -> 0 | G155: =IF('Mål 7'!$K$9="",0,'Mål 7'!$K$9) -> 00:00:00
C156: Mål 7 | D156: =IF('Mål 7'!$C$10="",0,'Mål 7'!$C$10) -> 0 | E156: =IF('Mål 7'!$I$10="",0,'Mål 7'!$I$10) -> 0 | F156: =IF('Mål 7'!$J$10="",0,'Mål 7'!$J$10) -> 0 | G156: =IF('Mål 7'!$K$10="",0,'Mål 7'!$K$10) -> 00:00:00
C157: Mål 7 | D157: =IF('Mål 7'!$C$11="",0,'Mål 7'!$C131) -> 0 | E157: =IF('Mål 7'!$I$11="",0,'Mål 7'!$I131) -> 0 | F157: =IF('Mål 7'!$J$11="",0,'Mål 7'!$J131) -> 0 | G157: =IF('Mål 7'!$K$11="",0,'Mål 7'!$K131) -> 00:00:00
C158: Mål 7 | D158: =IF('Mål 7'!$C$12="",0,'Mål 7'!$C$12) -> 0 | E158: =IF('Mål 7'!$I$12="",0,'Mål 7'!$I$12) -> 0 | F158: =IF('Mål 7'!$J$12="",0,'Mål 7'!$J$12) -> 0 | G158: =IF('Mål 7'!$K$12="",0,'Mål 7'!$K$12) -> 00:00:00
C159: Mål 7 | D159: =IF('Mål 7'!$C$13="",0,'Mål 7'!$C$13) -> 0 | E159: =IF('Mål 7'!$I$13="",0,'Mål 7'!$I$13) -> 0 | F159: =IF('Mål 7'!$J$13="",0,'Mål 7'!$J$13) -> 0 | G159: =IF('Mål 7'!$K$13="",0,'Mål 7'!$K$13) -> 00:00:00
C160: Mål 7 | D160: =IF('Mål 7'!$C$14="",0,'Mål 7'!$C$14) -> 0 | E160: =IF('Mål 7'!$I$14="",0,'Mål 7'!$I$14) -> 0 | F160: =IF('Mål 7'!$J$14="",0,'Mål 7'!$J$14) -> 0 | G160: =IF('Mål 7'!$K$14="",0,'Mål 7'!$K$14) -> 00:00:00
C161: Mål 7 | D161: =IF('Mål 7'!$C$15="",0,'Mål 7'!$C$15) -> 0 | E161: =IF('Mål 7'!$I$15="",0,'Mål 7'!$I$15) -> 0 | F161: =IF('Mål 7'!$J$15="",0,'Mål 7'!$J$15) -> 0 | G161: =IF('Mål 7'!$K$15="",0,'Mål 7'!$K$15) -> 00:00:00
C162: Mål 7 | D162: =IF('Mål 7'!$C$16="",0,'Mål 7'!$C$16) -> 0 | E162: =IF('Mål 7'!$I$16="",0,'Mål 7'!$I$16) -> 0 | F162: =IF('Mål 7'!$J$16="",0,'Mål 7'!$J$16) -> 0 | G162: =IF('Mål 7'!$K$16="",0,'Mål 7'!$K$16) -> 00:00:00
C163: Mål 7 | D163: =IF('Mål 7'!$C$17="",0,'Mål 7'!$C$17) -> 0 | E163: =IF('Mål 7'!$I$17="",0,'Mål 7'!$I$17) -> 0 | F163: =IF('Mål 7'!$J$17="",0,'Mål 7'!$J$17) -> 0 | G163: =IF('Mål 7'!$K$17="",0,'Mål 7'!$K$17) -> 00:00:00
C164: Mål 7 | D164: =IF('Mål 7'!$C$18="",0,'Mål 7'!$C$18) -> 0 | E164: =IF('Mål 7'!$I$18="",0,'Mål 7'!$I$18) -> 0 | F164: =IF('Mål 7'!$J$18="",0,'Mål 7'!$J$18) -> 0 | G164: =IF('Mål 7'!$K$18="",0,'Mål 7'!$K$18) -> 00:00:00
C165: Mål 7 | D165: =IF('Mål 7'!$C$19="",0,'Mål 7'!$C$19) -> 0 | E165: =IF('Mål 7'!$I$19="",0,'Mål 7'!$I$19) -> 0 | F165: =IF('Mål 7'!$J$19="",0,'Mål 7'!$J$19) -> 0 | G165: =IF('Mål 7'!$K$19="",0,'Mål 7'!$K$19) -> 00:00:00
C166: Mål 7 | D166: =IF('Mål 7'!$C$20="",0,'Mål 7'!$C$20) -> 0 | E166: =IF('Mål 7'!$I$20="",0,'Mål 7'!$I$20) -> 0 | F166: =IF('Mål 7'!$J$20="",0,'Mål 7'!$J$20) -> 0 | G166: =IF('Mål 7'!$K$20="",0,'Mål 7'!$K$20) -> 00:00:00
C167: Mål 7 | D167: =IF('Mål 7'!$C$21="",0,'Mål 7'!$C$21) -> 0 | E167: =IF('Mål 7'!$I$21="",0,'Mål 7'!$I$21) -> 0 | F167: =IF('Mål 7'!$J$21="",0,'Mål 7'!$J$21) -> 0 | G167: =IF('Mål 7'!$K$21="",0,'Mål 7'!$K$21) -> 00:00:00
C168: Mål 7 | D168: =IF('Mål 7'!$C$22="",0,'Mål 7'!$C$22) -> 0 | E168: =IF('Mål 7'!$I$22="",0,'Mål 7'!$I$22) -> 0 | F168: =IF('Mål 7'!$J$22="",0,'Mål 7'!$J$22) -> 0 | G168: =IF('Mål 7'!$K$22="",0,'Mål 7'!$K$22) -> 00:00:00
C169: Mål 7 | D169: =IF('Mål 7'!$C$23="",0,'Mål 7'!$C$23) -> 0 | E169: =IF('Mål 7'!$I$23="",0,'Mål 7'!$I$23) -> 0 | F169: =IF('Mål 7'!$J$23="",0,'Mål 7'!$J$23) -> 0 | G169: =IF('Mål 7'!$K$23="",0,'Mål 7'!$K$23) -> 00:00:00
C170: Mål 7 | D170: =IF('Mål 7'!$C$24="",0,'Mål 7'!$C$24) -> 0 | E170: =IF('Mål 7'!$I$24="",0,'Mål 7'!$I$24) -> 0 | F170: =IF('Mål 7'!$J$24="",0,'Mål 7'!$J$24) -> 0 | G170: =IF('Mål 7'!$K$24="",0,'Mål 7'!$K$24) -> 00:00:00
C171: Mål 7 | D171: =IF('Mål 7'!$C$25="",0,'Mål 7'!$C$25) -> 0 | E171: =IF('Mål 7'!$I$25="",0,'Mål 7'!$I$25) -> 0 | F171: =IF('Mål 7'!$J$25="",0,'Mål 7'!$J$25) -> 0 | G171: =IF('Mål 7'!$K$25="",0,'Mål 7'!$K$25) -> 00:00:00
C172: Mål 7 | D172: =IF('Mål 7'!$C$26="",0,'Mål 7'!$C$26) -> 0 | E172: =IF('Mål 7'!$I$26="",0,'Mål 7'!$I$26) -> 0 | F172: =IF('Mål 7'!$J$26="",0,'Mål 7'!$J$26) -> 0 | G172: =IF('Mål 7'!$K$26="",0,'Mål 7'!$K$26) -> 00:00:00
C173: Mål 7 | D173: =IF('Mål 7'!$C$27="",0,'Mål 7'!$C$27) -> 0 | E173: =IF('Mål 7'!$I$27="",0,'Mål 7'!$I$27) -> 0 | F173: =IF('Mål 7'!$J$27="",0,'Mål 7'!$J$27) -> 0 | G173: =IF('Mål 7'!$K$27="",0,'Mål 7'!$K$27) -> 00:00:00
C174: Mål 8 | D174: =IF('Mål 8'!$C$8="",0,'Mål 8'!$C$8) -> 0 | E174: =IF('Mål 8'!$I$8="",0,'Mål 8'!$I$8) -> 0 | F174: =IF('Mål 8'!$J$8="",0,'Mål 8'!$J$8) -> 0 | G174: =IF('Mål 8'!$K$8="",0,'Mål 8'!$K$8) -> 00:00:00
C175: Mål 8 | D175: =IF('Mål 8'!$C$9="",0,'Mål 8'!$C$9) -> 0 | E175: =IF('Mål 8'!$I$9="",0,'Mål 8'!$I$9) -> 0 | F175: =IF('Mål 8'!$J$9="",0,'Mål 8'!$J$9) -> 0 | G175: =IF('Mål 8'!$K$9="",0,'Mål 8'!$K$9) -> 00:00:00
C176: Mål 8 | D176: =IF('Mål 8'!$C$10="",0,'Mål 8'!$C$10) -> 0 | E176: =IF('Mål 8'!$I$10="",0,'Mål 8'!$I$10) -> 0 | F176: =IF('Mål 8'!$J$10="",0,'Mål 8'!$J$10) -> 0 | G176: =IF('Mål 8'!$K$10="",0,'Mål 8'!$K$10) -> 00:00:00
C177: Mål 8 | D177: =IF('Mål 8'!$C$11="",0,'Mål 8'!$C151) -> 0 | E177: =IF('Mål 8'!$I$11="",0,'Mål 8'!$I151) -> 0 | F177: =IF('Mål 8'!$J$11="",0,'Mål 8'!$J151) -> 0 | G177: =IF('Mål 8'!$K$11="",0,'Mål 8'!$K151) -> 00:00:00
C178: Mål 8 | D178: =IF('Mål 8'!$C$12="",0,'Mål 8'!$C$12) -> 0 | E178: =IF('Mål 8'!$I$12="",0,'Mål 8'!$I$12) -> 0 | F178: =IF('Mål 8'!$J$12="",0,'Mål 8'!$J$12) -> 0 | G178: =IF('Mål 8'!$K$12="",0,'Mål 8'!$K$12) -> 00:00:00
C179: Mål 8 | D179: =IF('Mål 8'!$C$13="",0,'Mål 8'!$C$13) -> 0 | E179: =IF('Mål 8'!$I$13="",0,'Mål 8'!$I$13) -> 0 | F179: =IF('Mål 8'!$J$13="",0,'Mål 8'!$J$13) -> 0 | G179: =IF('Mål 8'!$K$13="",0,'Mål 8'!$K$13) -> 00:00:00
C180: Mål 8 | D180: =IF('Mål 8'!$C$14="",0,'Mål 8'!$C$14) -> 0 | E180: =IF('Mål 8'!$I$14="",0,'Mål 8'!$I$14) -> 0 | F180: =IF('Mål 8'!$J$14="",0,'Mål 8'!$J$14) -> 0 | G180: =IF('Mål 8'!$K$14="",0,'Mål 8'!$K$14) -> 00:00:00
C181: Mål 8 | D181: =IF('Mål 8'!$C$15="",0,'Mål 8'!$C$15) -> 0 | E181: =IF('Mål 8'!$I$15="",0,'Mål 8'!$I$15) -> 0 | F181: =IF('Mål 8'!$J$15="",0,'Mål 8'!$J$15) -> 0 | G181: =IF('Mål 8'!$K$15="",0,'Mål 8'!$K$15) -> 00:00:00
C182: Mål 8 | D182: =IF('Mål 8'!$C$16="",0,'Mål 8'!$C$16) -> 0 | E182: =IF('Mål 8'!$I$16="",0,'Mål 8'!$I$16) -> 0 | F182: =IF('Mål 8'!$J$16="",0,'Mål 8'!$J$16) -> 0 | G182: =IF('Mål 8'!$K$16="",0,'Mål 8'!$K$16) -> 00:00:00
C183: Mål 8 | D183: =IF('Mål 8'!$C$17="",0,'Mål 8'!$C$17) -> 0 | E183: =IF('Mål 8'!$I$17="",0,'Mål 8'!$I$17) -> 0 | F183: =IF('Mål 8'!$J$17="",0,'Mål 8'!$J$17) -> 0 | G183: =IF('Mål 8'!$K$17="",0,'Mål 8'!$K$17) -> 00:00:00
C184: Mål 8 | D184: =IF('Mål 8'!$C$18="",0,'Mål 8'!$C$18) -> 0 | E184: =IF('Mål 8'!$I$18="",0,'Mål 8'!$I$18) -> 0 | F184: =IF('Mål 8'!$J$18="",0,'Mål 8'!$J$18) -> 0 | G184: =IF('Mål 8'!$K$18="",0,'Mål 8'!$K$18) -> 00:00:00
C185: Mål 8 | D185: =IF('Mål 8'!$C$19="",0,'Mål 8'!$C$19) -> 0 | E185: =IF('Mål 8'!$I$19="",0,'Mål 8'!$I$19) -> 0 | F185: =IF('Mål 8'!$J$19="",0,'Mål 8'!$J$19) -> 0 | G185: =IF('Mål 8'!$K$19="",0,'Mål 8'!$K$19) -> 00:00:00
C186: Mål 8 | D186: =IF('Mål 8'!$C$20="",0,'Mål 8'!$C$20) -> 0 | E186: =IF('Mål 8'!$I$20="",0,'Mål 8'!$I$20) -> 0 | F186: =IF('Mål 8'!$J$20="",0,'Mål 8'!$J$20) -> 0 | G186: =IF('Mål 8'!$K$20="",0,'Mål 8'!$K$20) -> 00:00:00
C187: Mål 8 | D187: =IF('Mål 8'!$C$21="",0,'Mål 8'!$C$21) -> 0 | E187: =IF('Mål 8'!$I$21="",0,'Mål 8'!$I$21) -> 0 | F187: =IF('Mål 8'!$J$21="",0,'Mål 8'!$J$21) -> 0 | G187: =IF('Mål 8'!$K$21="",0,'Mål 8'!$K$21) -> 00:00:00
C188: Mål 8 | D188: =IF('Mål 8'!$C$22="",0,'Mål 8'!$C$22) -> 0 | E188: =IF('Mål 8'!$I$22="",0,'Mål 8'!$I$22) -> 0 | F188: =IF('Mål 8'!$J$22="",0,'Mål 8'!$J$22) -> 0 | G188: =IF('Mål 8'!$K$22="",0,'Mål 8'!$K$22) -> 00:00:00
C189: Mål 8 | D189: =IF('Mål 8'!$C$23="",0,'Mål 8'!$C$23) -> 0 | E189: =IF('Mål 8'!$I$23="",0,'Mål 8'!$I$23) -> 0 | F189: =IF('Mål 8'!$J$23="",0,'Mål 8'!$J$23) -> 0 | G189: =IF('Mål 8'!$K$23="",0,'Mål 8'!$K$23) -> 00:00:00
C190: Mål 8 | D190: =IF('Mål 8'!$C$24="",0,'Mål 8'!$C$24) -> 0 | E190: =IF('Mål 8'!$I$24="",0,'Mål 8'!$I$24) -> 0 | F190: =IF('Mål 8'!$J$24="",0,'Mål 8'!$J$24) -> 0 | G190: =IF('Mål 8'!$K$24="",0,'Mål 8'!$K$24) -> 00:00:00
C191: Mål 8 | D191: =IF('Mål 8'!$C$25="",0,'Mål 8'!$C$25) -> 0 | E191: =IF('Mål 8'!$I$25="",0,'Mål 8'!$I$25) -> 0 | F191: =IF('Mål 8'!$J$25="",0,'Mål 8'!$J$25) -> 0 | G191: =IF('Mål 8'!$K$25="",0,'Mål 8'!$K$25) -> 00:00:00
C192: Mål 8 | D192: =IF('Mål 8'!$C$26="",0,'Mål 8'!$C$26) -> 0 | E192: =IF('Mål 8'!$I$26="",0,'Mål 8'!$I$26) -> 0 | F192: =IF('Mål 8'!$J$26="",0,'Mål 8'!$J$26) -> 0 | G192: =IF('Mål 8'!$K$26="",0,'Mål 8'!$K$26) -> 00:00:00
C193: Mål 8 | D193: =IF('Mål 8'!$C$27="",0,'Mål 8'!$C$27) -> 0 | E193: =IF('Mål 8'!$I$27="",0,'Mål 8'!$I$27) -> 0 | F193: =IF('Mål 8'!$J$27="",0,'Mål 8'!$J$27) -> 0 | G193: =IF('Mål 8'!$K$27="",0,'Mål 8'!$K$27) -> 00:00:00
C194: Mål 9 | D194: =IF('Mål 9'!$C$8="",0,'Mål 9'!$C$8) -> 0 | E194: =IF('Mål 9'!$I$8="",0,'Mål 9'!$I$8) -> 0 | F194: =IF('Mål 9'!$J$8="",0,'Mål 9'!$J$8) -> 0 | G194: =IF('Mål 9'!$K$8="",0,'Mål 9'!$K$8) -> 00:00:00
C195: Mål 9 | D195: =IF('Mål 9'!$C$9="",0,'Mål 9'!$C$9) -> 0 | E195: =IF('Mål 9'!$I$9="",0,'Mål 9'!$I$9) -> 0 | F195: =IF('Mål 9'!$J$9="",0,'Mål 9'!$J$9) -> 0 | G195: =IF('Mål 9'!$K$9="",0,'Mål 9'!$K$9) -> 00:00:00
C196: Mål 9 | D196: =IF('Mål 9'!$C$10="",0,'Mål 9'!$C$10) -> 0 | E196: =IF('Mål 9'!$I$10="",0,'Mål 9'!$I$10) -> 0 | F196: =IF('Mål 9'!$J$10="",0,'Mål 9'!$J$10) -> 0 | G196: =IF('Mål 9'!$K$10="",0,'Mål 9'!$K$10) -> 00:00:00
C197: Mål 9 | D197: =IF('Mål 9'!$C$11="",0,'Mål 9'!$C171) -> 0 | E197: =IF('Mål 9'!$I$11="",0,'Mål 9'!$I171) -> 0 | F197: =IF('Mål 9'!$J$11="",0,'Mål 9'!$J171) -> 0 | G197: =IF('Mål 9'!$K$11="",0,'Mål 9'!$K171) -> 00:00:00
C198: Mål 9 | D198: =IF('Mål 9'!$C$12="",0,'Mål 9'!$C$12) -> 0 | E198: =IF('Mål 9'!$I$12="",0,'Mål 9'!$I$12) -> 0 | F198: =IF('Mål 9'!$J$12="",0,'Mål 9'!$J$12) -> 0 | G198: =IF('Mål 9'!$K$12="",0,'Mål 9'!$K$12) -> 00:00:00
C199: Mål 9 | D199: =IF('Mål 9'!$C$13="",0,'Mål 9'!$C$13) -> 0 | E199: =IF('Mål 9'!$I$13="",0,'Mål 9'!$I$13) -> 0 | F199: =IF('Mål 9'!$J$13="",0,'Mål 9'!$J$13) -> 0 | G199: =IF('Mål 9'!$K$13="",0,'Mål 9'!$K$13) -> 00:00:00
C200: Mål 9 | D200: =IF('Mål 9'!$C$14="",0,'Mål 9'!$C$14) -> 0 | E200: =IF('Mål 9'!$I$14="",0,'Mål 9'!$I$14) -> 0 | F200: =IF('Mål 9'!$J$14="",0,'Mål 9'!$J$14) -> 0 | G200: =IF('Mål 9'!$K$14="",0,'Mål 9'!$K$14) -> 00:00:00
... 233 more rows

Sheet Stemmeverktøy
A2: Risikoavstemming
A5: Enhet
A6: Mål / krav:
A7: Risiko:
B9: Sannsynlighet | C9: Konsekvens | D9: Risikonivå
A10: Gj.snitt risikonivå | B10: =IF(ISERROR(AVERAGE(B13:B32)),"",AVERAGE(B13:B32)) -> 3 | C10: =IF(ISERROR(AVERAGE(C13:C32)),"",AVERAGE(C13:C32)) -> 3 | D10: =IF(ISERROR(C10*B10),"",VLOOKUP(B10,Lists!B$10:G$14,CEILING(C10-0.5,1)+1,TRUE)) -> Høy | U10: =IF(C10="",-10,C10+W31) -> 2.17 | V10: =IF(B10="",-10,B10+X31) -> 2.17
A12: Risikoavstemming | B12: Sannsynlighet | C12: Konsekvens | D12: Risikonivå | U12: X-forskyv konsekv | V12: Y-forskyv Sanns
A13: P1 | B13: 4 | C13: 2 | D13: =IF(C13*B13=0,"",VLOOKUP(B13,Lists!B$10:G$14,CEILING(C13-0.5,1)+1,TRUE)) -> Høy | T13: Person 1 | U13: =IF(C13="",-10,C13+U34) -> 1.15 | V13: =IF(B13="",-10,B13+V34) -> 3.50
A14: P2 | B14: 2 | C14: 2 | D14: =IF(C14*B14=0,"",VLOOKUP(B14,Lists!B$10:G$14,CEILING(C14-0.5,1)+1,TRUE)) -> Lav | T14: Person 2 | U14: 1.15 | V14: 1.75
A15: P3 | B15: 2 | C15: 4 | D15: =IF(C15*B15=0,"",VLOOKUP(B15,Lists!B$10:G$14,CEILING(C15-0.5,1)+1,TRUE)) -> Høy | T15: Person 3 | U15: 3.15 | V15: 1.25
A16: P4 | D16: =IF(C16*B16=0,"",VLOOKUP(B16,Lists!B$10:G$14,CEILING(C16-0.5,1)+1,TRUE)) ->  | T16: Person 4 | U16: -10.00 | V16: -10.00
A17: P5 | D17: =IF(C17*B17=0,"",VLOOKUP(B17,Lists!B$10:G$14,CEILING(C17-0.5,1)+1,TRUE)) ->  | T17: Person 5 | U17: -10.00 | V17: -10.00
A18: P6 | D18: =IF(C18*B18=0,"",VLOOKUP(B18,Lists!B$10:G$14,CEILING(C18-0.5,1)+1,TRUE)) ->  | T18: Person 6 | U18: -10.00 | V18: -10.00
A19: P7 | D19: =IF(C19*B19=0,"",VLOOKUP(B19,Lists!B$10:G$14,CEILING(C19-0.5,1)+1,TRUE)) ->  | T19: Person 7 | U19: -10.00 | V19: -10.00
A20: P8 | D20: =IF(C20*B20=0,"",VLOOKUP(B20,Lists!B$10:G$14,CEILING(C20-0.5,1)+1,TRUE)) ->  | T20: Person 8 | U20: -10.00 | V20: -10.00
A21: P9 | D21: =IF(C21*B21=0,"",VLOOKUP(B21,Lists!B$10:G$14,CEILING(C21-0.5,1)+1,TRUE)) ->  | T21: Person 9 | U21: -10.00 | V21: -10.00
A22: P10 | D22: =IF(C22*B22=0,"",VLOOKUP(B22,Lists!B$10:G$14,CEILING(C22-0.5,1)+1,TRUE)) ->  | T22: Person 10 | U22: -10.00 | V22: -10.00
A23: P11 | D23: =IF(C23*B23=0,"",VLOOKUP(B23,Lists!B$10:G$14,CEILING(C23-0.5,1)+1,TRUE)) ->  | T23: Person 11 | U23: -10.00 | V23: -10.00
A24: P12 | D24: =IF(C24*B24=0,"",VLOOKUP(B24,Lists!B$10:G$14,CEILING(C24-0.5,1)+1,TRUE)) ->  | T24: Person 12 | U24: -10.00 | V24: -10.00
A25: P13 | D25: =IF(C25*B25=0,"",VLOOKUP(B25,Lists!B$10:G$14,CEILING(C25-0.5,1)+1,TRUE)) ->  | T25: Person 13 | U25: -10.00 | V25: -10.00
A26: P14 | D26: =IF(C26*B26=0,"",VLOOKUP(B26,Lists!B$10:G$14,CEILING(C26-0.5,1)+1,TRUE)) ->  | T26: Person 14 | U26: -10.00 | V26: -10.00
A27: P15 | D27: =IF(C27*B27=0,"",VLOOKUP(B27,Lists!B$10:G$14,CEILING(C27-0.5,1)+1,TRUE)) ->  | T27: Person 15 | U27: -10.00 | V27: -10.00
A28: P16 | D28: =IF(C28*B28=0,"",VLOOKUP(B28,Lists!B$10:G$14,CEILING(C28-0.5,1)+1,TRUE)) ->  | T28: Person 16 | U28: -10.00 | V28: -10.00
A29: P17 | D29: =IF(C29*B29=0,"",VLOOKUP(B29,Lists!B$10:G$14,CEILING(C29-0.5,1)+1,TRUE)) ->  | T29: Person 17 | U29: -10.00 | V29: -10.00
A30: P18 | D30: =IF(C30*B30=0,"",VLOOKUP(B30,Lists!B$10:G$14,CEILING(C30-0.5,1)+1,TRUE)) ->  | T30: Person 18 | U30: -10.00 | V30: -10.00
A31: P19 | D31: =IF(C31*B31=0,"",VLOOKUP(B31,Lists!B$10:G$14,CEILING(C31-0.5,1)+1,TRUE)) ->  | T31: Person 19 | U31: -10.00 | V31: -10.00 | W31: -0.5 | X31: -0.5
A32: P20 | D32: =IF(C32*B32=0,"",VLOOKUP(B32,Lists!B$10:G$14,CEILING(C32-0.5,1)+1,TRUE)) ->  | T32: Person 20 | U32: -10.00 | V32: -10.00
U33: X-forskyv | V33: Y-forskyv
U34: -0.85 | V34: -0.5
U35: -0.85 | V35: -0.25
U36: -0.85 | V36: -0.75
U37: -0.75 | V37: -0.5
U38: -0.75 | V38: -0.25
U39: -0.75 | V39: -0.75
U40: -0.66 | V40: -0.5
U41: -0.66 | V41: -0.25
U42: -0.66 | V42: -0.75
U43: -0.5 | V43: -0.5
U44: -0.5 | V44: -0.25
U45: -0.5 | V45: -0.75
U46: -0.33 | V46: -0.5
U47: -0.33 | V47: -0.25
U48: -0.33 | V48: -0.75
U49: -0.25 | V49: -0.5
U50: -0.25 | V50: -0.25
U51: -0.25 | V51: -0.75
U52: -0.15 | V52: -0.5
U53: -0.15 | V53: -0.25

Sheet Lists
A1: Risk levels
A2: 0 | B2: Lav
A3: 4 | B3: Middels
A4: 6 | B4: Høy
A5: 8 | B5: Kritisk
A7: Inversed risk matrix
C8: Consequence
C9: 0.5 | D9: 1.5 | E9: 2.5 | F9: 3.5 | G9: 4.5
A10: Probability | B10: 0.5 | C10: Lav | D10: Lav | E10: Middels | F10: Høy | G10: Høy
B11: 1.5 | C11: Lav | D11: Lav | E11: Middels | F11: Høy | G11: Kritisk
B12: 2.5 | C12: Lav | D12: Middels | E12: Høy | F12: Kritisk | G12: Kritisk
B13: 3.5 | C13: Middels | D13: Høy | E13: Høy | F13: Kritisk | G13: Kritisk
B14: 4.5 | C14: Høy | D14: Høy | E14: Kritisk | F14: Kritisk | G14: Kritisk

Sheet Mål 1
A1: Risikoidentifikasjon og analyse | E1: Ansvarlig: | H1: Helen Bakke Klemoen og Bente Øverby | L1: Risikomatrise, se under
A2: Enhet: | E2: Dato: | F2: =IF(Forside!C4="","",Forside!C4) ->  | H2: 12.01.2021
A3: Mål / krav nr 1: | E3: Risiko før tiltak | H3: Deltakere i prosessen: | L3: Risiko etter tiltak
A4: Utsendelse av sakslister og protokoller innen gitte frister, samt et godt fungerede sekretariat | E4: Risiko-vurdering | G4: Risiko-nivå | H4: Helen Bakke Klemoen og Bente Øverby | L4: Risiko-vurdering | N4: Risiko-nivå
E5: S | F5: K | L5: S | M5: K
D6: Gjsn risiko for målet: | E6: =IF(ISERROR(AVERAGE(E8:E15)),"",ROUND(AVERAGE(E8:E15),0)) -> 2 | F6: =IF(ISERROR(AVERAGE(F8:F15)),"",ROUND(AVERAGE(F8:F15),0)) -> 3 | G6: =IF(ISERROR(E6*F6),"",VLOOKUP(E6,Lists!B$10:G$14,CEILING(F6-0.5,1)+1,TRUE)) -> Middels | L6: =IF(ISERROR(AVERAGE(L8:L15)),"",ROUND(AVERAGE(L8:L15),0)) ->  | M6: =IF(ISERROR(AVERAGE(M8:M15)),"",ROUND(AVERAGE(M8:M15),0)) ->  | N6: =IF(ISERROR(L6*M6),"",VLOOKUP(L6,Lists!B$10:G$14,CEILING(M6-0.5,1)+1,TRUE)) ->  | Y6: Før tiltak | AA6: Etter tiltak
A7: Risiko nr | B7: Mulige hendelser/ risiko | C7: Område | D7: Eksisterende tiltak | E7: S | F7: K | G7: Risiko-nivå | H7: Risikoeier: | I7: Nye tiltak: | J7: Ansvarlig: | K7: Frist: | L7: S | M7: K | N7: Risiko-nivå | Y7: X-forskyv konsekv | Z7: Y-forskyv Sanns | AA7: X-forskyv konsekv | AB7: Y-forskyv Sanns
A8: R1 | G8: =IF(F8*E8=0,"",VLOOKUP(E8,Lists!B$10:G$14,CEILING(F8-0.5,1)+1,TRUE)) ->  | N8: =IF(M8*L8=0,"",VLOOKUP(L8,Lists!B$10:G$14,CEILING(M8-0.5,1)+1,TRUE)) ->  | Y8: =IF(F8="",-10,F8+#REF!) -> -10.00 | Z8: =IF(E8="",-10,E8+#REF!) -> -10.00 | AA8: =IF(M8="",Y8,M8+#REF!) -> -10.00 | AB8: =IF(L8="",Z8,L8+#REF!) -> -10.00
A9: R2 | B9: Sykdom politisk sekretariat | C9: Sekretær funksjon; utsending av sakslister og protokoll, behandle evt. forfall/innkalle vara | D9: 2 ansatte i det politiske sekretariatet. Arkivleder har også kjennskap til acos møte | E9: 2 | F9: 2 | G9: =IF(F9*E9=0,"",VLOOKUP(E9,Lists!B$10:G$14,CEILING(F9-0.5,1)+1,TRUE)) -> Lav | H9: Stableder HR og service | I9: Grundigere opplæring av arkivleder | J9: Politisk sekretariat | N9: =IF(M9*L9=0,"",VLOOKUP(L9,Lists!B$10:G$14,CEILING(M9-0.5,1)+1,TRUE)) ->  | Y9: =IF(F9="",-10,F9+AC17) -> 1.15 | Z9: =IF(E9="",-10,E9+AD17) -> 1.75 | AA9: =IF(M9="",Y9,M9+AC17) -> 1.15 | AB9: =IF(L9="",Z9,L9+AD17) -> 1.75
A10: R3 | B10: Sykdom politisk sekretariat | C10: Sekretær i møte | D10: 2 ansatte i det politiske sekretariatet. Leder av råd/utvalg kan skrive protokoll. | E10: 2 | F10: 1 | G10: =IF(F10*E10=0,"",VLOOKUP(E10,Lists!B$10:G$14,CEILING(F10-0.5,1)+1,TRUE)) -> Lav | H10: Stableder HR og service | J10: Politisk sekretariat | N10: =IF(M10*L10=0,"",VLOOKUP(L10,Lists!B$10:G$14,CEILING(M10-0.5,1)+1,TRUE)) ->  | Y10: =IF(F10="",-10,F10+AC18) -> 0.15 | Z10: =IF(E10="",-10,E10+AD18) -> 1.25 | AA10: =IF(M10="",Y10,M10+AC18) -> 0.15 | AB10: =IF(L10="",Z10,L10+AD18) -> 1.25
A11: R4 | B11: Internettbrudd | C11: Produksjon og utsendelse av sakslister og protokoll | D11: Mobilt bredbånd | E11: 3 | F11: 2 | G11: =IF(F11*E11=0,"",VLOOKUP(E11,Lists!B$10:G$14,CEILING(F11-0.5,1)+1,TRUE)) -> Middels | H11: Stableder Økonomi og IKT | J11: IKT | N11: =IF(M11*L11=0,"",VLOOKUP(L11,Lists!B$10:G$14,CEILING(M11-0.5,1)+1,TRUE)) ->  | Y11: =IF(F11="",-10,F11+AC19) -> 1.25 | Z11: =IF(E11="",-10,E11+AD19) -> 2.50 | AA11: =IF(M11="",Y11,M11+AC19) -> 1.25 | AB11: =IF(L11="",Z11,L11+AD19) -> 2.50
A12: R12 | B12: Streik | C12: Produksjon og utsendelse av sakslister og protokoll | D12: Utsettelse av politisk møte | E12: 1 | F12: 5 | G12: =IF(F12*E12=0,"",VLOOKUP(E12,Lists!B$10:G$14,CEILING(F12-0.5,1)+1,TRUE)) -> Høy | H12: Stableder HR og service | N12: =IF(M12*L12=0,"",VLOOKUP(L12,Lists!B$10:G$14,CEILING(M12-0.5,1)+1,TRUE)) ->  | Y12: =IF(F12="",-10,F12+AC27) -> 4.50 | Z12: =IF(E12="",-10,E12+AD27) -> 0.25 | AA12: =IF(M12="",Y12,M12+AC27) -> 4.50 | AB12: =IF(L12="",Z12,L12+AD27) -> 0.25
A13: R18 | B13: Datavirus | C13: Produksjon og utsendelse av sakslister og protokoller | D13: Oppdaterte lister over råd og utvalg er skrivet ut og lagret på papir i hylle | E13: 2 | F13: 4 | G13: =IF(F13*E13=0,"",VLOOKUP(E13,Lists!B$10:G$14,CEILING(F13-0.5,1)+1,TRUE)) -> Høy | H13: Stableder HR og service | I13: Utsendelse av sakslister og protokoller på papir (dersom vi har tilgang til skrivere) og på mail. | J13: Politisk sekretariat | N13: =IF(M13*L13=0,"",VLOOKUP(L13,Lists!B$10:G$14,CEILING(M13-0.5,1)+1,TRUE)) ->  | Y13: =IF(F13="",-10,F13+AC33) -> 3.75 | Z13: =IF(E13="",-10,E13+AD33) -> 1.25 | AA13: =IF(M13="",Y13,M13+AC33) -> 3.75 | AB13: =IF(L13="",Z13,L13+AD33) -> 1.25
A14: R19 | B14: Skrivefrister overskrides | C14: Produksjon og utsendelse av sakslister og protokoller | D14: Utsettelse av saker. Eventuell tilleggssaksliste | E14: 4 | F14: 2 | G14: =IF(F14*E14=0,"",VLOOKUP(E14,Lists!B$10:G$14,CEILING(F14-0.5,1)+1,TRUE)) -> Høy | H14: Kommunedirektør | I14: Avkare rutiner med kommunedirektør. Utsendelse av tilleggssaksliste evt. utsette sak til neste møte | J14: Politisk sekretariat | N14: =IF(M14*L14=0,"",VLOOKUP(L14,Lists!B$10:G$14,CEILING(M14-0.5,1)+1,TRUE)) ->  | Y14: 1.85 | Z14: 3.50 | AA14: 1.85 | AB14: 3.50
A15: R20 | B15: Sykdom kommunedirektør | C15: Produksjon og utsendelse av sakslister | D15: Godkjenning av saksfremlegg delegeres | E15: 2 | F15: 2 | G15: =IF(F15*E15=0,"",VLOOKUP(E15,Lists!B$10:G$14,CEILING(F15-0.5,1)+1,TRUE)) -> Lav | H15: Stableder HR og service | J15: Kommunedirektøren | N15: =IF(M15*L15=0,"",VLOOKUP(L15,Lists!B$10:G$14,CEILING(M15-0.5,1)+1,TRUE)) ->  | Y15: 1.85 | Z15: 1.75 | AA15: 1.85 | AB15: 1.75
A16: R21 | B16: Pandemi utrudd | C16: Produksjon og utsendelse av sakslister og protokoller | D16: Hjemmekontor | E16: 3 | F16: 3 | G16: =IF(F16*E16=0,"",VLOOKUP(E16,Lists!B$10:G$14,CEILING(F16-0.5,1)+1,TRUE)) -> Høy | H16: Kommunedirektør | J16: Arkivleder/Stavleder HR og service/Kommunedirektør | N16: =IF(M16*L16=0,"",VLOOKUP(L16,Lists!B$10:G$14,CEILING(M16-0.5,1)+1,TRUE)) ->  | AC16: X-forskyv | AD16: Y-forskyv
A17: R22 | B17: Pandemi utrudd | C17: Gjennomføring av møter | D17: Teams møter | E17: 3 | F17: 2 | G17: =IF(F17*E17=0,"",VLOOKUP(E17,Lists!B$10:G$14,CEILING(F17-0.5,1)+1,TRUE)) -> Middels | H17: Kommunedirektør | J17: Kommunedirektør | N17: =IF(M17*L17=0,"",VLOOKUP(L17,Lists!B$10:G$14,CEILING(M17-0.5,1)+1,TRUE)) ->  | Y17: X-Konsekvens | Z17: Y-Sannsynlighet | AC17: -0.85 | AD17: -0.25
A18: R23 | B18: Langvarig strømbrudd (nede telenett, ikke tilgang til skriverer/pc) | C18: Produksjon og utsendelse av sakslister og protokoller | D18: Utsettelse av møte eller forsinket utsendelse av sakslister/protokoller | E18: 1 | F18: 3 | G18: =IF(F18*E18=0,"",VLOOKUP(E18,Lists!B$10:G$14,CEILING(F18-0.5,1)+1,TRUE)) -> Middels | H18: Kommunedirektør | I18: Hvordan skal dette kommuniseres ut? Penn og papir? | J18: Kommunedirektør | N18: =IF(M18*L18=0,"",VLOOKUP(L18,Lists!B$10:G$14,CEILING(M18-0.5,1)+1,TRUE)) ->  | X18: Gj sn | Y18: =IF(F6="",-10,F6-0.5) -> 2.50 | Z18: =IF(E6="",-10,E6-0.5) -> 1.50 | AC18: -0.85 | AD18: -0.75
A19: R24 | G19: =IF(F19*E19=0,"",VLOOKUP(E19,Lists!B$10:G$14,CEILING(F19-0.5,1)+1,TRUE)) ->  | N19: =IF(M19*L19=0,"",VLOOKUP(L19,Lists!B$10:G$14,CEILING(M19-0.5,1)+1,TRUE)) ->  | Y19: =IF(M6="",Y18,M6-0.6) -> 2.50 | Z19: =IF(L6="",Z18,L6-0.6) -> 1.50 | AC19: -0.75 | AD19: -0.5
A20: R25 | G20: =IF(F20*E20=0,"",VLOOKUP(E20,Lists!B$10:G$14,CEILING(F20-0.5,1)+1,TRUE)) ->  | N20: =IF(M20*L20=0,"",VLOOKUP(L20,Lists!B$10:G$14,CEILING(M20-0.5,1)+1,TRUE)) ->  | X20: =A8 -> R1 | Y20: =Y8 -> -10.00 | Z20: =Z8 -> -10 | AC20: -0.75 | AD20: -0.25
A21: R26 | G21: =IF(F21*E21=0,"",VLOOKUP(E21,Lists!B$10:G$14,CEILING(F21-0.5,1)+1,TRUE)) ->  | N21: =IF(M21*L21=0,"",VLOOKUP(L21,Lists!B$10:G$14,CEILING(M21-0.5,1)+1,TRUE)) ->  | Y21: =AA8 -> -10.00 | Z21: =AB8 -> -10 | AC21: -0.75 | AD21: -0.75
C22: ● = Risikonivå før tiltak | X22: =A9 -> R2 | Y22: =Y9 -> 1.15 | Z22: =Z9 -> 1.75 | AC22: -0.66 | AD22: -0.5
C23: ■ = Risikonivå etter tiltak | Y23: =AA9 -> 1.15 | Z23: =AB9 -> 1.75 | AC23: -0.66 | AD23: -0.25
X24: =A10 -> R3 | Y24: =Y10 -> 0.15 | Z24: =Z10 -> 1.25 | AC24: -0.66 | AD24: -0.75
Y25: =AA10 -> 0.15 | Z25: =AB10 -> 1.25 | AC25: -0.5 | AD25: -0.5
X26: =A11 -> R4 | Y26: =Y11 -> 1.25 | Z26: =Z11 -> 2.5 | AC26: -0.5 | AD26: -0.25
Y27: =AA11 -> 1.25 | Z27: =AB11 -> 2.5 | AC27: -0.5 | AD27: -0.75
X28: =#REF! ->  | Y28: =#REF! ->  | Z28: =#REF! ->  | AC28: -0.33 | AD28: -0.5
Y29: =#REF! ->  | Z29: =#REF! ->  | AC29: -0.33 | AD29: -0.25
X30: =#REF! ->  | Y30: =#REF! ->  | Z30: =#REF! ->  | AC30: -0.33 | AD30: -0.75
Y31: =#REF! ->  | Z31: =#REF! ->  | AC31: -0.25 | AD31: -0.5
X32: =#REF! ->  | Y32: =#REF! ->  | Z32: =#REF! ->  | AC32: -0.25 | AD32: -0.25
Y33: =#REF! ->  | Z33: =#REF! ->  | AC33: -0.25 | AD33: -0.75
X34: =#REF! ->  | Y34: =#REF! ->  | Z34: =#REF! ->  | AC34: -0.15 | AD34: -0.5
Y35: =#REF! ->  | Z35: =#REF! ->  | AC35: -0.15 | AD35: -0.25
X36: =#REF! ->  | Y36: =#REF! ->  | Z36: =#REF! -> 
Y37: =#REF! ->  | Z37: =#REF! -> 
X38: =#REF! ->  | Y38: =#REF! ->  | Z38: =#REF! -> 
Y39: =#REF! ->  | Z39: =#REF! -> 
X40: =#REF! ->  | Y40: =#REF! ->  | Z40: =#REF! -> 
Y41: =#REF! ->  | Z41: =#REF! -> 
X42: =A12 -> R12 | Y42: =Y12 -> 4.50 | Z42: =Z12 -> 0.25
Y43: =AA12 -> 4.5 | Z43: =AB12 -> 0.25
X44: =#REF! ->  | Y44: =#REF! ->  | Z44: =#REF! -> 
Y45: =#REF! ->  | Z45: =#REF! -> 
X46: =#REF! ->  | Y46: =#REF! ->  | Z46: =#REF! -> 
Y47: =#REF! ->  | Z47: =#REF! -> 
X48: =#REF! ->  | Y48: =#REF! ->  | Z48: =#REF! -> 
Y49: =#REF! ->  | Z49: =#REF! -> 
X50: =#REF! ->  | Y50: =#REF! ->  | Z50: =#REF! -> 
Y51: =#REF! ->  | Z51: =#REF! -> 
X52: =#REF! ->  | Y52: =#REF! ->  | Z52: =#REF! -> 
Y53: =#REF! ->  | Z53: =#REF! -> 
X54: =A13 -> R18 | Y54: =Y13 -> 3.75 | Z54: =Z13 -> 1.25
Y55: =AA13 -> 3.75 | Z55: =AB13 -> 1.25
X56: =A14 -> R19 | Y56: =Y14 -> 1.85 | Z56: =Z14 -> 3.50
Y57: =AA14 -> 1.85 | Z57: =AB14 -> 3.50
X58: =A15 -> R20 | Y58: =Y15 -> 1.85 | Z58: =Z15 -> 1.75
Y59: =AA15 -> 1.85 | Z59: =AB15 -> 1.75

Sheet Mål 2
A1: Risikoidentifikasjon og analyse | E1: Ansvarlig: | L1: Risikomatrise, se under
A2: Enhet: | C2: =IF(Forside!C2="","",Forside!C2) -> Tjenesteområde <<tjenesteområde>> | E2: Dato: | F2: =IF(Forside!C4="","",Forside!C4) -> 
A3: Mål / krav nr 2: | E3: Risiko før tiltak | H3: Deltakere i prosessen: | L3: Risiko etter tiltak
E4: Risiko-vurdering | G4: Risiko-nivå | H4: =IF(Forside!C3="","",Forside!C3) -> <<deltakere>> | L4: Risiko-vurdering | N4: Risiko-nivå
E5: S | F5: K | L5: S | M5: K
D6: Gjsn risiko for målet: | E6: =IF(ISERROR(AVERAGE(E8:E27)),"",ROUND(AVERAGE(E8:E27),0)) ->  | F6: =IF(ISERROR(AVERAGE(F8:F27)),"",ROUND(AVERAGE(F8:F27),0)) ->  | G6: =IF(ISERROR(E6*F6),"",VLOOKUP(E6,Lists!B$10:G$14,CEILING(F6-0.5,1)+1,TRUE)) ->  | L6: =IF(ISERROR(AVERAGE(L8:L27)),"",ROUND(AVERAGE(L8:L27),0)) ->  | M6: =IF(ISERROR(AVERAGE(M8:M27)),"",ROUND(AVERAGE(M8:M27),0)) ->  | N6: =IF(ISERROR(L6*M6),"",VLOOKUP(L6,Lists!B$10:G$14,CEILING(M6-0.5,1)+1,TRUE)) ->  | Y6: Før tiltak | AA6: Etter tiltak
A7: Risiko nr | B7: Mulige hendelser/ risiko | C7: Område | D7: Eksisterende tiltak | E7: S | F7: K | G7: Risiko-nivå | H7: Risikoeier: | I7: Nye tiltak: | J7: Ansvarlig: | K7: Frist: | L7: S | M7: K | N7: Risiko-nivå | Y7: X-forskyv konsekv | Z7: Y-forskyv Sanns | AA7: X-forskyv konsekv | AB7: Y-forskyv Sanns
A8: R1 | G8: =IF(F8*E8=0,"",VLOOKUP(E8,Lists!B$10:G$14,CEILING(F8-0.5,1)+1,TRUE)) ->  | N8: =IF(M8*L8=0,"",VLOOKUP(L8,Lists!B$10:G$14,CEILING(M8-0.5,1)+1,TRUE)) ->  | Y8: =IF(F8="",-10,F8+AC29) -> -10.00 | Z8: =IF(E8="",-10,E8+AD29) -> -10.00 | AA8: =IF(M8="",Y8,M8+AC29) -> -10.00 | AB8: =IF(L8="",Z8,L8+AD29) -> -10.00
A9: R2 | G9: =IF(F9*E9=0,"",VLOOKUP(E9,Lists!B$10:G$14,CEILING(F9-0.5,1)+1,TRUE)) ->  | N9: =IF(M9*L9=0,"",VLOOKUP(L9,Lists!B$10:G$14,CEILING(M9-0.5,1)+1,TRUE)) ->  | Y9: -10.00 | Z9: -10.00 | AA9: -10.00 | AB9: -10.00
A10: R3 | G10: =IF(F10*E10=0,"",VLOOKUP(E10,Lists!B$10:G$14,CEILING(F10-0.5,1)+1,TRUE)) ->  | N10: =IF(M10*L10=0,"",VLOOKUP(L10,Lists!B$10:G$14,CEILING(M10-0.5,1)+1,TRUE)) ->  | Y10: -10.00 | Z10: -10.00 | AA10: -10.00 | AB10: -10.00
A11: R4 | G11: =IF(F11*E11=0,"",VLOOKUP(E11,Lists!B$10:G$14,CEILING(F11-0.5,1)+1,TRUE)) ->  | N11: =IF(M11*L11=0,"",VLOOKUP(L11,Lists!B$10:G$14,CEILING(M11-0.5,1)+1,TRUE)) ->  | Y11: -10.00 | Z11: -10.00 | AA11: -10.00 | AB11: -10.00
A12: R5 | G12: =IF(F12*E12=0,"",VLOOKUP(E12,Lists!B$10:G$14,CEILING(F12-0.5,1)+1,TRUE)) ->  | N12: =IF(M12*L12=0,"",VLOOKUP(L12,Lists!B$10:G$14,CEILING(M12-0.5,1)+1,TRUE)) ->  | Y12: -10.00 | Z12: -10.00 | AA12: -10.00 | AB12: -10.00
A13: R6 | G13: =IF(F13*E13=0,"",VLOOKUP(E13,Lists!B$10:G$14,CEILING(F13-0.5,1)+1,TRUE)) ->  | N13: =IF(M13*L13=0,"",VLOOKUP(L13,Lists!B$10:G$14,CEILING(M13-0.5,1)+1,TRUE)) ->  | Y13: -10.00 | Z13: -10.00 | AA13: -10.00 | AB13: -10.00
A14: R7 | G14: =IF(F14*E14=0,"",VLOOKUP(E14,Lists!B$10:G$14,CEILING(F14-0.5,1)+1,TRUE)) ->  | N14: =IF(M14*L14=0,"",VLOOKUP(L14,Lists!B$10:G$14,CEILING(M14-0.5,1)+1,TRUE)) ->  | Y14: -10.00 | Z14: -10.00 | AA14: -10.00 | AB14: -10.00
A15: R8 | G15: =IF(F15*E15=0,"",VLOOKUP(E15,Lists!B$10:G$14,CEILING(F15-0.5,1)+1,TRUE)) ->  | N15: =IF(M15*L15=0,"",VLOOKUP(L15,Lists!B$10:G$14,CEILING(M15-0.5,1)+1,TRUE)) ->  | Y15: -10.00 | Z15: -10.00 | AA15: -10.00 | AB15: -10.00
A16: R9 | G16: =IF(F16*E16=0,"",VLOOKUP(E16,Lists!B$10:G$14,CEILING(F16-0.5,1)+1,TRUE)) ->  | N16: =IF(M16*L16=0,"",VLOOKUP(L16,Lists!B$10:G$14,CEILING(M16-0.5,1)+1,TRUE)) ->  | Y16: -10.00 | Z16: -10.00 | AA16: -10.00 | AB16: -10.00
A17: R10 | G17: =IF(F17*E17=0,"",VLOOKUP(E17,Lists!B$10:G$14,CEILING(F17-0.5,1)+1,TRUE)) ->  | N17: =IF(M17*L17=0,"",VLOOKUP(L17,Lists!B$10:G$14,CEILING(M17-0.5,1)+1,TRUE)) ->  | Y17: -10.00 | Z17: -10.00 | AA17: -10.00 | AB17: -10.00
A18: R11 | G18: =IF(F18*E18=0,"",VLOOKUP(E18,Lists!B$10:G$14,CEILING(F18-0.5,1)+1,TRUE)) ->  | N18: =IF(M18*L18=0,"",VLOOKUP(L18,Lists!B$10:G$14,CEILING(M18-0.5,1)+1,TRUE)) ->  | Y18: -10.00 | Z18: -10.00 | AA18: -10.00 | AB18: -10.00
A19: R12 | G19: =IF(F19*E19=0,"",VLOOKUP(E19,Lists!B$10:G$14,CEILING(F19-0.5,1)+1,TRUE)) ->  | N19: =IF(M19*L19=0,"",VLOOKUP(L19,Lists!B$10:G$14,CEILING(M19-0.5,1)+1,TRUE)) ->  | Y19: -10.00 | Z19: -10.00 | AA19: -10.00 | AB19: -10.00
A20: R13 | G20: =IF(F20*E20=0,"",VLOOKUP(E20,Lists!B$10:G$14,CEILING(F20-0.5,1)+1,TRUE)) ->  | N20: =IF(M20*L20=0,"",VLOOKUP(L20,Lists!B$10:G$14,CEILING(M20-0.5,1)+1,TRUE)) ->  | Y20: -10.00 | Z20: -10.00 | AA20: -10.00 | AB20: -10.00
A21: R14 | G21: =IF(F21*E21=0,"",VLOOKUP(E21,Lists!B$10:G$14,CEILING(F21-0.5,1)+1,TRUE)) ->  | N21: =IF(M21*L21=0,"",VLOOKUP(L21,Lists!B$10:G$14,CEILING(M21-0.5,1)+1,TRUE)) ->  | Y21: -10.00 | Z21: -10.00 | AA21: -10.00 | AB21: -10.00
A22: R15 | G22: =IF(F22*E22=0,"",VLOOKUP(E22,Lists!B$10:G$14,CEILING(F22-0.5,1)+1,TRUE)) ->  | N22: =IF(M22*L22=0,"",VLOOKUP(L22,Lists!B$10:G$14,CEILING(M22-0.5,1)+1,TRUE)) ->  | Y22: -10.00 | Z22: -10.00 | AA22: -10.00 | AB22: -10.00
A23: R16 | G23: =IF(F23*E23=0,"",VLOOKUP(E23,Lists!B$10:G$14,CEILING(F23-0.5,1)+1,TRUE)) ->  | N23: =IF(M23*L23=0,"",VLOOKUP(L23,Lists!B$10:G$14,CEILING(M23-0.5,1)+1,TRUE)) ->  | Y23: -10.00 | Z23: -10.00 | AA23: -10.00 | AB23: -10.00
A24: R17 | G24: =IF(F24*E24=0,"",VLOOKUP(E24,Lists!B$10:G$14,CEILING(F24-0.5,1)+1,TRUE)) ->  | N24: =IF(M24*L24=0,"",VLOOKUP(L24,Lists!B$10:G$14,CEILING(M24-0.5,1)+1,TRUE)) ->  | Y24: -10.00 | Z24: -10.00 | AA24: -10.00 | AB24: -10.00
A25: R18 | G25: =IF(F25*E25=0,"",VLOOKUP(E25,Lists!B$10:G$14,CEILING(F25-0.5,1)+1,TRUE)) ->  | N25: =IF(M25*L25=0,"",VLOOKUP(L25,Lists!B$10:G$14,CEILING(M25-0.5,1)+1,TRUE)) ->  | Y25: -10.00 | Z25: -10.00 | AA25: -10.00 | AB25: -10.00
A26: R19 | G26: =IF(F26*E26=0,"",VLOOKUP(E26,Lists!B$10:G$14,CEILING(F26-0.5,1)+1,TRUE)) ->  | N26: =IF(M26*L26=0,"",VLOOKUP(L26,Lists!B$10:G$14,CEILING(M26-0.5,1)+1,TRUE)) ->  | Y26: -10.00 | Z26: -10.00 | AA26: -10.00 | AB26: -10.00
A27: R20 | G27: =IF(F27*E27=0,"",VLOOKUP(E27,Lists!B$10:G$14,CEILING(F27-0.5,1)+1,TRUE)) ->  | N27: =IF(M27*L27=0,"",VLOOKUP(L27,Lists!B$10:G$14,CEILING(M27-0.5,1)+1,TRUE)) ->  | Y27: -10.00 | Z27: -10.00 | AA27: -10.00 | AB27: -10.00
AC28: X-forskyv | AD28: Y-forskyv
AC29: -0.85 | AD29: -0.5
Y30: X-Konsekvens | Z30: Y-Sannsynlighet | AC30: -0.85 | AD30: -0.25
A31: =A3 -> Mål / krav nr 2: | X31: Gj sn | Y31: =IF(F6="",-10,F6-0.5) -> -10.00 | Z31: =IF(E6="",-10,E6-0.5) -> -10.00 | AC31: -0.85 | AD31: -0.75
A32: =IF(A4="","",A4) ->  | Y32: =IF(M6="",Y31,M6-0.6) -> -10.00 | Z32: =IF(L6="",Z31,L6-0.6) -> -10.00 | AC32: -0.75 | AD32: -0.5
X33: =A8 -> R1 | Y33: =Y8 -> -10.00 | Z33: =Z8 -> -10 | AC33: -0.75 | AD33: -0.25
C34: Når risikovurdering før og etter tiltak er utfylt er: | Y34: =AA8 -> -10.00 | Z34: =AB8 -> -10 | AC34: -0.75 | AD34: -0.75
C35: ● = Risikonivå før tiltak | X35: =A9 -> R2 | Y35: =Y9 -> -10 | Z35: =Z9 -> -10 | AC35: -0.66 | AD35: -0.5
C36: ■ = Risikonivå etter tiltak | Y36: =AA9 -> -10.00 | Z36: =AB9 -> -10 | AC36: -0.66 | AD36: -0.25
X37: =A10 -> R3 | Y37: =Y10 -> -10 | Z37: =Z10 -> -10 | AC37: -0.66 | AD37: -0.75
Y38: =AA10 -> -10 | Z38: =AB10 -> -10 | AC38: -0.5 | AD38: -0.5
X39: =A11 -> R4 | Y39: =Y11 -> -10 | Z39: =Z11 -> -10 | AC39: -0.5 | AD39: -0.25
Y40: =AA11 -> -10 | Z40: =AB11 -> -10 | AC40: -0.5 | AD40: -0.75
X41: =A12 -> R5 | Y41: =Y12 -> -10 | Z41: =Z12 -> -10 | AC41: -0.33 | AD41: -0.5
Y42: =AA12 -> -10 | Z42: =AB12 -> -10 | AC42: -0.33 | AD42: -0.25
X43: =A13 -> R6 | Y43: =Y13 -> -10 | Z43: =Z13 -> -10 | AC43: -0.33 | AD43: -0.75
Y44: =AA13 -> -10 | Z44: =AB13 -> -10 | AC44: -0.25 | AD44: -0.5
X45: =A14 -> R7 | Y45: =Y14 -> -10 | Z45: =Z14 -> -10 | AC45: -0.25 | AD45: -0.25
Y46: =AA14 -> -10 | Z46: =AB14 -> -10 | AC46: -0.25 | AD46: -0.75
X47: =A15 -> R8 | Y47: =Y15 -> -10 | Z47: =Z15 -> -10 | AC47: -0.15 | AD47: -0.5
Y48: =AA15 -> -10 | Z48: =AB15 -> -10 | AC48: -0.15 | AD48: -0.25
X49: =A16 -> R9 | Y49: =Y16 -> -10 | Z49: =Z16 -> -10
Y50: =AA16 -> -10 | Z50: =AB16 -> -10
X51: =A17 -> R10 | Y51: =Y17 -> -10 | Z51: =Z17 -> -10
Y52: =AA17 -> -10 | Z52: =AB17 -> -10
X53: =A18 -> R11 | Y53: =Y18 -> -10 | Z53: =Z18 -> -10
Y54: =AA18 -> -10 | Z54: =AB18 -> -10
X55: =A19 -> R12 | Y55: =Y19 -> -10.00 | Z55: =Z19 -> -10
Y56: =AA19 -> -10 | Z56: =AB19 -> -10
X57: =A20 -> R13 | Y57: =Y20 -> -10 | Z57: =Z20 -> -10
Y58: =AA20 -> -10 | Z58: =AB20 -> -10
X59: =A21 -> R14 | Y59: =Y21 -> -10 | Z59: =Z21 -> -10
Y60: =AA21 -> -10 | Z60: =AB21 -> -10
X61: =A22 -> R15 | Y61: =Y22 -> -10 | Z61: =Z22 -> -10
Y62: =AA22 -> -10 | Z62: =AB22 -> -10
X63: =A23 -> R16 | Y63: =Y23 -> -10.00 | Z63: =Z23 -> -10.00
Y64: =AA23 -> -10.00 | Z64: =AB23 -> -10.00
X65: =A24 -> R17 | Y65: =Y24 -> -10.00 | Z65: =Z24 -> -10.00
Y66: =AA24 -> -10.00 | Z66: =AB24 -> -10.00
X67: =A25 -> R18 | Y67: =Y25 -> -10.00 | Z67: =Z25 -> -10.00
Y68: =AA25 -> -10.00 | Z68: =AB25 -> -10.00
X69: =A26 -> R19 | Y69: =Y26 -> -10.00 | Z69: =Z26 -> -10.00
Y70: =AA26 -> -10.00 | Z70: =AB26 -> -10.00
X71: =A27 -> R20 | Y71: =Y27 -> -10.00 | Z71: =Z27 -> -10.00
Y72: =AA27 -> -10.00 | Z72: =AB27 -> -10.00

Sheet Mål 3
A1: Risikoidentifikasjon og analyse | E1: Ansvarlig: | L1: Risikomatrise, se under
A2: Enhet: | C2: =IF(Forside!C2="","",Forside!C2) -> Tjenesteområde <<tjenesteområde>> | E2: Dato: | F2: =IF(Forside!C4="","",Forside!C4) -> 
A3: Mål / krav nr 3: | E3: Risiko før tiltak | H3: Deltakere i prosessen: | L3: Risiko etter tiltak
E4: Risiko-vurdering | G4: Risiko-nivå | H4: =IF(Forside!C3="","",Forside!C3) -> <<deltakere>> | L4: Risiko-vurdering | N4: Risiko-nivå
E5: S | F5: K | L5: S | M5: K
D6: Gjsn risiko for målet: | E6: =IF(ISERROR(AVERAGE(E8:E27)),"",ROUND(AVERAGE(E8:E27),0)) ->  | F6: =IF(ISERROR(AVERAGE(F8:F27)),"",ROUND(AVERAGE(F8:F27),0)) ->  | G6: =IF(ISERROR(E6*F6),"",VLOOKUP(E6,Lists!B$10:G$14,CEILING(F6-0.5,1)+1,TRUE)) ->  | L6: =IF(ISERROR(AVERAGE(L8:L27)),"",ROUND(AVERAGE(L8:L27),0)) ->  | M6: =IF(ISERROR(AVERAGE(M8:M27)),"",ROUND(AVERAGE(M8:M27),0)) ->  | N6: =IF(ISERROR(L6*M6),"",VLOOKUP(L6,Lists!B$10:G$14,CEILING(M6-0.5,1)+1,TRUE)) ->  | Y6: Før tiltak | AA6: Etter tiltak
A7: Risiko nr | B7: Mulige hendelser/ risiko | C7: Område | D7: Eksisterende tiltak | E7: S | F7: K | G7: Risiko-nivå | H7: Risikoeier: | I7: Nye tiltak: | J7: Ansvarlig: | K7: Frist: | L7: S | M7: K | N7: Risiko-nivå | Y7: X-forskyv konsekv | Z7: Y-forskyv Sanns | AA7: X-forskyv konsekv | AB7: Y-forskyv Sanns
A8: R1 | G8: =IF(F8*E8=0,"",VLOOKUP(E8,Lists!B$10:G$14,CEILING(F8-0.5,1)+1,TRUE)) ->  | N8: =IF(M8*L8=0,"",VLOOKUP(L8,Lists!B$10:G$14,CEILING(M8-0.5,1)+1,TRUE)) ->  | Y8: =IF(F8="",-10,F8+AC29) -> -10.00 | Z8: =IF(E8="",-10,E8+AD29) -> -10.00 | AA8: =IF(M8="",Y8,M8+AC29) -> -10.00 | AB8: =IF(L8="",Z8,L8+AD29) -> -10.00
A9: R2 | G9: =IF(F9*E9=0,"",VLOOKUP(E9,Lists!B$10:G$14,CEILING(F9-0.5,1)+1,TRUE)) ->  | N9: =IF(M9*L9=0,"",VLOOKUP(L9,Lists!B$10:G$14,CEILING(M9-0.5,1)+1,TRUE)) ->  | Y9: -10.00 | Z9: -10.00 | AA9: -10.00 | AB9: -10.00
A10: R3 | G10: =IF(F10*E10=0,"",VLOOKUP(E10,Lists!B$10:G$14,CEILING(F10-0.5,1)+1,TRUE)) ->  | N10: =IF(M10*L10=0,"",VLOOKUP(L10,Lists!B$10:G$14,CEILING(M10-0.5,1)+1,TRUE)) ->  | Y10: -10.00 | Z10: -10.00 | AA10: -10.00 | AB10: -10.00
A11: R4 | G11: =IF(F11*E11=0,"",VLOOKUP(E11,Lists!B$10:G$14,CEILING(F11-0.5,1)+1,TRUE)) ->  | N11: =IF(M11*L11=0,"",VLOOKUP(L11,Lists!B$10:G$14,CEILING(M11-0.5,1)+1,TRUE)) ->  | Y11: -10.00 | Z11: -10.00 | AA11: -10.00 | AB11: -10.00
A12: R5 | G12: =IF(F12*E12=0,"",VLOOKUP(E12,Lists!B$10:G$14,CEILING(F12-0.5,1)+1,TRUE)) ->  | N12: =IF(M12*L12=0,"",VLOOKUP(L12,Lists!B$10:G$14,CEILING(M12-0.5,1)+1,TRUE)) ->  | Y12: -10.00 | Z12: -10.00 | AA12: -10.00 | AB12: -10.00
A13: R6 | G13: =IF(F13*E13=0,"",VLOOKUP(E13,Lists!B$10:G$14,CEILING(F13-0.5,1)+1,TRUE)) ->  | N13: =IF(M13*L13=0,"",VLOOKUP(L13,Lists!B$10:G$14,CEILING(M13-0.5,1)+1,TRUE)) ->  | Y13: -10.00 | Z13: -10.00 | AA13: -10.00 | AB13: -10.00
A14: R7 | G14: =IF(F14*E14=0,"",VLOOKUP(E14,Lists!B$10:G$14,CEILING(F14-0.5,1)+1,TRUE)) ->  | N14: =IF(M14*L14=0,"",VLOOKUP(L14,Lists!B$10:G$14,CEILING(M14-0.5,1)+1,TRUE)) ->  | Y14: -10.00 | Z14: -10.00 | AA14: -10.00 | AB14: -10.00
A15: R8 | G15: =IF(F15*E15=0,"",VLOOKUP(E15,Lists!B$10:G$14,CEILING(F15-0.5,1)+1,TRUE)) ->  | N15: =IF(M15*L15=0,"",VLOOKUP(L15,Lists!B$10:G$14,CEILING(M15-0.5,1)+1,TRUE)) ->  | Y15: -10.00 | Z15: -10.00 | AA15: -10.00 | AB15: -10.00
A16: R9 | G16: =IF(F16*E16=0,"",VLOOKUP(E16,Lists!B$10:G$14,CEILING(F16-0.5,1)+1,TRUE)) ->  | N16: =IF(M16*L16=0,"",VLOOKUP(L16,Lists!B$10:G$14,CEILING(M16-0.5,1)+1,TRUE)) ->  | Y16: -10.00 | Z16: -10.00 | AA16: -10.00 | AB16: -10.00
A17: R10 | G17: =IF(F17*E17=0,"",VLOOKUP(E17,Lists!B$10:G$14,CEILING(F17-0.5,1)+1,TRUE)) ->  | N17: =IF(M17*L17=0,"",VLOOKUP(L17,Lists!B$10:G$14,CEILING(M17-0.5,1)+1,TRUE)) ->  | Y17: -10.00 | Z17: -10.00 | AA17: -10.00 | AB17: -10.00
A18: R11 | G18: =IF(F18*E18=0,"",VLOOKUP(E18,Lists!B$10:G$14,CEILING(F18-0.5,1)+1,TRUE)) ->  | N18: =IF(M18*L18=0,"",VLOOKUP(L18,Lists!B$10:G$14,CEILING(M18-0.5,1)+1,TRUE)) ->  | Y18: -10.00 | Z18: -10.00 | AA18: -10.00 | AB18: -10.00
A19: R12 | G19: =IF(F19*E19=0,"",VLOOKUP(E19,Lists!B$10:G$14,CEILING(F19-0.5,1)+1,TRUE)) ->  | N19: =IF(M19*L19=0,"",VLOOKUP(L19,Lists!B$10:G$14,CEILING(M19-0.5,1)+1,TRUE)) ->  | Y19: -10.00 | Z19: -10.00 | AA19: -10.00 | AB19: -10.00
A20: R13 | G20: =IF(F20*E20=0,"",VLOOKUP(E20,Lists!B$10:G$14,CEILING(F20-0.5,1)+1,TRUE)) ->  | N20: =IF(M20*L20=0,"",VLOOKUP(L20,Lists!B$10:G$14,CEILING(M20-0.5,1)+1,TRUE)) ->  | Y20: -10.00 | Z20: -10.00 | AA20: -10.00 | AB20: -10.00
A21: R14 | G21: =IF(F21*E21=0,"",VLOOKUP(E21,Lists!B$10:G$14,CEILING(F21-0.5,1)+1,TRUE)) ->  | N21: =IF(M21*L21=0,"",VLOOKUP(L21,Lists!B$10:G$14,CEILING(M21-0.5,1)+1,TRUE)) ->  | Y21: -10.00 | Z21: -10.00 | AA21: -10.00 | AB21: -10.00
A22: R15 | G22: =IF(F22*E22=0,"",VLOOKUP(E22,Lists!B$10:G$14,CEILING(F22-0.5,1)+1,TRUE)) ->  | N22: =IF(M22*L22=0,"",VLOOKUP(L22,Lists!B$10:G$14,CEILING(M22-0.5,1)+1,TRUE)) ->  | Y22: -10.00 | Z22: -10.00 | AA22: -10.00 | AB22: -10.00
A23: R16 | G23: =IF(F23*E23=0,"",VLOOKUP(E23,Lists!B$10:G$14,CEILING(F23-0.5,1)+1,TRUE)) ->  | N23: =IF(M23*L23=0,"",VLOOKUP(L23,Lists!B$10:G$14,CEILING(M23-0.5,1)+1,TRUE)) ->  | Y23: -10.00 | Z23: -10.00 | AA23: -10.00 | AB23: -10.00
A24: R17 | G24: =IF(F24*E24=0,"",VLOOKUP(E24,Lists!B$10:G$14,CEILING(F24-0.5,1)+1,TRUE)) ->  | N24: =IF(M24*L24=0,"",VLOOKUP(L24,Lists!B$10:G$14,CEILING(M24-0.5,1)+1,TRUE)) ->  | Y24: -10.00 | Z24: -10.00 | AA24: -10.00 | AB24: -10.00
A25: R18 | G25: =IF(F25*E25=0,"",VLOOKUP(E25,Lists!B$10:G$14,CEILING(F25-0.5,1)+1,TRUE)) ->  | N25: =IF(M25*L25=0,"",VLOOKUP(L25,Lists!B$10:G$14,CEILING(M25-0.5,1)+1,TRUE)) ->  | Y25: -10.00 | Z25: -10.00 | AA25: -10.00 | AB25: -10.00
A26: R19 | G26: =IF(F26*E26=0,"",VLOOKUP(E26,Lists!B$10:G$14,CEILING(F26-0.5,1)+1,TRUE)) ->  | N26: =IF(M26*L26=0,"",VLOOKUP(L26,Lists!B$10:G$14,CEILING(M26-0.5,1)+1,TRUE)) ->  | Y26: -10.00 | Z26: -10.00 | AA26: -10.00 | AB26: -10.00
A27: R20 | G27: =IF(F27*E27=0,"",VLOOKUP(E27,Lists!B$10:G$14,CEILING(F27-0.5,1)+1,TRUE)) ->  | N27: =IF(M27*L27=0,"",VLOOKUP(L27,Lists!B$10:G$14,CEILING(M27-0.5,1)+1,TRUE)) ->  | Y27: -10.00 | Z27: -10.00 | AA27: -10.00 | AB27: -10.00
AC28: X-forskyv | AD28: Y-forskyv
AC29: -0.85 | AD29: -0.5
Y30: X-Konsekvens | Z30: Y-Sannsynlighet | AC30: -0.85 | AD30: -0.25
A31: =A3 -> Mål / krav nr 3: | X31: Gj sn | Y31: =IF(F6="",-10,F6-0.5) -> -10.00 | Z31: =IF(E6="",-10,E6-0.5) -> -10.00 | AC31: -0.85 | AD31: -0.75
A32: =IF(A4="","",A4) ->  | Y32: =IF(M6="",Y31,M6-0.6) -> -10.00 | Z32: =IF(L6="",Z31,L6-0.6) -> -10.00 | AC32: -0.75 | AD32: -0.5
X33: =A8 -> R1 | Y33: =Y8 -> -10.00 | Z33: =Z8 -> -10 | AC33: -0.75 | AD33: -0.25
C34: Når risikovurdering før og etter tiltak er utfylt er: | Y34: =AA8 -> -10.00 | Z34: =AB8 -> -10 | AC34: -0.75 | AD34: -0.75
C35: ● = Risikonivå før tiltak | X35: =A9 -> R2 | Y35: =Y9 -> -10 | Z35: =Z9 -> -10 | AC35: -0.66 | AD35: -0.5
C36: ■ = Risikonivå etter tiltak | Y36: =AA9 -> -10.00 | Z36: =AB9 -> -10 | AC36: -0.66 | AD36: -0.25
X37: =A10 -> R3 | Y37: =Y10 -> -10 | Z37: =Z10 -> -10 | AC37: -0.66 | AD37: -0.75
Y38: =AA10 -> -10 | Z38: =AB10 -> -10 | AC38: -0.5 | AD38: -0.5
X39: =A11 -> R4 | Y39: =Y11 -> -10 | Z39: =Z11 -> -10 | AC39: -0.5 | AD39: -0.25
Y40: =AA11 -> -10 | Z40: =AB11 -> -10 | AC40: -0.5 | AD40: -0.75
X41: =A12 -> R5 | Y41: =Y12 -> -10 | Z41: =Z12 -> -10 | AC41: -0.33 | AD41: -0.5
Y42: =AA12 -> -10 | Z42: =AB12 -> -10 | AC42: -0.33 | AD42: -0.25
X43: =A13 -> R6 | Y43: =Y13 -> -10 | Z43: =Z13 -> -10 | AC43: -0.33 | AD43: -0.75
Y44: =AA13 -> -10 | Z44: =AB13 -> -10 | AC44: -0.25 | AD44: -0.5
X45: =A14 -> R7 | Y45: =Y14 -> -10 | Z45: =Z14 -> -10 | AC45: -0.25 | AD45: -0.25
Y46: =AA14 -> -10 | Z46: =AB14 -> -10 | AC46: -0.25 | AD46: -0.75
X47: =A15 -> R8 | Y47: =Y15 -> -10 | Z47: =Z15 -> -10 | AC47: -0.15 | AD47: -0.5
Y48: =AA15 -> -10 | Z48: =AB15 -> -10 | AC48: -0.15 | AD48: -0.25
X49: =A16 -> R9 | Y49: =Y16 -> -10 | Z49: =Z16 -> -10
Y50: =AA16 -> -10 | Z50: =AB16 -> -10
X51: =A17 -> R10 | Y51: =Y17 -> -10 | Z51: =Z17 -> -10
Y52: =AA17 -> -10 | Z52: =AB17 -> -10
X53: =A18 -> R11 | Y53: =Y18 -> -10 | Z53: =Z18 -> -10
Y54: =AA18 -> -10 | Z54: =AB18 -> -10
X55: =A19 -> R12 | Y55: =Y19 -> -10.00 | Z55: =Z19 -> -10
Y56: =AA19 -> -10 | Z56: =AB19 -> -10
X57: =A20 -> R13 | Y57: =Y20 -> -10 | Z57: =Z20 -> -10
Y58: =AA20 -> -10 | Z58: =AB20 -> -10
X59: =A21 -> R14 | Y59: =Y21 -> -10 | Z59: =Z21 -> -10
Y60: =AA21 -> -10 | Z60: =AB21 -> -10
X61: =A22 -> R15 | Y61: =Y22 -> -10 | Z61: =Z22 -> -10
Y62: =AA22 -> -10 | Z62: =AB22 -> -10
X63: =A23 -> R16 | Y63: =Y23 -> -10.00 | Z63: =Z23 -> -10.00
Y64: =AA23 -> -10.00 | Z64: =AB23 -> -10.00
X65: =A24 -> R17 | Y65: =Y24 -> -10.00 | Z65: =Z24 -> -10.00
Y66: =AA24 -> -10.00 | Z66: =AB24 -> -10.00
X67: =A25 -> R18 | Y67: =Y25 -> -10.00 | Z67: =Z25 -> -10.00
Y68: =AA25 -> -10.00 | Z68: =AB25 -> -10.00
X69: =A26 -> R19 | Y69: =Y26 -> -10.00 | Z69: =Z26 -> -10.00
Y70: =AA26 -> -10.00 | Z70: =AB26 -> -10.00
X71: =A27 -> R20 | Y71: =Y27 -> -10.00 | Z71: =Z27 -> -10.00
Y72: =AA27 -> -10.00 | Z72: =AB27 -> -10.00

Sheet Mål 4
A1: Risikoidentifikasjon og analyse | E1: Ansvarlig: | L1: Risikomatrise, se under
A2: Enhet: | C2: =IF(Forside!C2="","",Forside!C2) -> Tjenesteområde <<tjenesteområde>> | E2: Dato: | F2: =IF(Forside!C4="","",Forside!C4) -> 
A3: Mål / krav nr 4: | E3: Risiko før tiltak | H3: Deltakere i prosessen: | L3: Risiko etter tiltak
E4: Risiko-vurdering | G4: Risiko-nivå | H4: =IF(Forside!C3="","",Forside!C3) -> <<deltakere>> | L4: Risiko-vurdering | N4: Risiko-nivå
E5: S | F5: K | L5: S | M5: K
D6: Gjsn risiko for målet: | E6: =IF(ISERROR(AVERAGE(E8:E27)),"",ROUND(AVERAGE(E8:E27),0)) ->  | F6: =IF(ISERROR(AVERAGE(F8:F27)),"",ROUND(AVERAGE(F8:F27),0)) ->  | G6: =IF(ISERROR(E6*F6),"",VLOOKUP(E6,Lists!B$10:G$14,CEILING(F6-0.5,1)+1,TRUE)) ->  | L6: =IF(ISERROR(AVERAGE(L8:L27)),"",ROUND(AVERAGE(L8:L27),0)) ->  | M6: =IF(ISERROR(AVERAGE(M8:M27)),"",ROUND(AVERAGE(M8:M27),0)) ->  | N6: =IF(ISERROR(L6*M6),"",VLOOKUP(L6,Lists!B$10:G$14,CEILING(M6-0.5,1)+1,TRUE)) ->  | Y6: Før tiltak | AA6: Etter tiltak
A7: Risiko nr | B7: Mulige hendelser/ risiko | C7: Område | D7: Eksisterende tiltak | E7: S | F7: K | G7: Risiko-nivå | H7: Risikoeier: | I7: Nye tiltak: | J7: Ansvarlig: | K7: Frist: | L7: S | M7: K | N7: Risiko-nivå | Y7: X-forskyv konsekv | Z7: Y-forskyv Sanns | AA7: X-forskyv konsekv | AB7: Y-forskyv Sanns
A8: R1 | G8: =IF(F8*E8=0,"",VLOOKUP(E8,Lists!B$10:G$14,CEILING(F8-0.5,1)+1,TRUE)) ->  | N8: =IF(M8*L8=0,"",VLOOKUP(L8,Lists!B$10:G$14,CEILING(M8-0.5,1)+1,TRUE)) ->  | Y8: =IF(F8="",-10,F8+AC29) -> -10.00 | Z8: =IF(E8="",-10,E8+AD29) -> -10.00 | AA8: =IF(M8="",Y8,M8+AC29) -> -10.00 | AB8: =IF(L8="",Z8,L8+AD29) -> -10.00
A9: R2 | G9: =IF(F9*E9=0,"",VLOOKUP(E9,Lists!B$10:G$14,CEILING(F9-0.5,1)+1,TRUE)) ->  | N9: =IF(M9*L9=0,"",VLOOKUP(L9,Lists!B$10:G$14,CEILING(M9-0.5,1)+1,TRUE)) ->  | Y9: -10.00 | Z9: -10.00 | AA9: -10.00 | AB9: -10.00
A10: R3 | G10: =IF(F10*E10=0,"",VLOOKUP(E10,Lists!B$10:G$14,CEILING(F10-0.5,1)+1,TRUE)) ->  | N10: =IF(M10*L10=0,"",VLOOKUP(L10,Lists!B$10:G$14,CEILING(M10-0.5,1)+1,TRUE)) ->  | Y10: -10.00 | Z10: -10.00 | AA10: -10.00 | AB10: -10.00
A11: R4 | G11: =IF(F11*E11=0,"",VLOOKUP(E11,Lists!B$10:G$14,CEILING(F11-0.5,1)+1,TRUE)) ->  | N11: =IF(M11*L11=0,"",VLOOKUP(L11,Lists!B$10:G$14,CEILING(M11-0.5,1)+1,TRUE)) ->  | Y11: -10.00 | Z11: -10.00 | AA11: -10.00 | AB11: -10.00
A12: R5 | G12: =IF(F12*E12=0,"",VLOOKUP(E12,Lists!B$10:G$14,CEILING(F12-0.5,1)+1,TRUE)) ->  | N12: =IF(M12*L12=0,"",VLOOKUP(L12,Lists!B$10:G$14,CEILING(M12-0.5,1)+1,TRUE)) ->  | Y12: -10.00 | Z12: -10.00 | AA12: -10.00 | AB12: -10.00
A13: R6 | G13: =IF(F13*E13=0,"",VLOOKUP(E13,Lists!B$10:G$14,CEILING(F13-0.5,1)+1,TRUE)) ->  | N13: =IF(M13*L13=0,"",VLOOKUP(L13,Lists!B$10:G$14,CEILING(M13-0.5,1)+1,TRUE)) ->  | Y13: -10.00 | Z13: -10.00 | AA13: -10.00 | AB13: -10.00
A14: R7 | G14: =IF(F14*E14=0,"",VLOOKUP(E14,Lists!B$10:G$14,CEILING(F14-0.5,1)+1,TRUE)) ->  | N14: =IF(M14*L14=0,"",VLOOKUP(L14,Lists!B$10:G$14,CEILING(M14-0.5,1)+1,TRUE)) ->  | Y14: -10.00 | Z14: -10.00 | AA14: -10.00 | AB14: -10.00
A15: R8 | G15: =IF(F15*E15=0,"",VLOOKUP(E15,Lists!B$10:G$14,CEILING(F15-0.5,1)+1,TRUE)) ->  | N15: =IF(M15*L15=0,"",VLOOKUP(L15,Lists!B$10:G$14,CEILING(M15-0.5,1)+1,TRUE)) ->  | Y15: -10.00 | Z15: -10.00 | AA15: -10.00 | AB15: -10.00
A16: R9 | G16: =IF(F16*E16=0,"",VLOOKUP(E16,Lists!B$10:G$14,CEILING(F16-0.5,1)+1,TRUE)) ->  | N16: =IF(M16*L16=0,"",VLOOKUP(L16,Lists!B$10:G$14,CEILING(M16-0.5,1)+1,TRUE)) ->  | Y16: -10.00 | Z16: -10.00 | AA16: -10.00 | AB16: -10.00
A17: R10 | G17: =IF(F17*E17=0,"",VLOOKUP(E17,Lists!B$10:G$14,CEILING(F17-0.5,1)+1,TRUE)) ->  | N17: =IF(M17*L17=0,"",VLOOKUP(L17,Lists!B$10:G$14,CEILING(M17-0.5,1)+1,TRUE)) ->  | Y17: -10.00 | Z17: -10.00 | AA17: -10.00 | AB17: -10.00
A18: R11 | G18: =IF(F18*E18=0,"",VLOOKUP(E18,Lists!B$10:G$14,CEILING(F18-0.5,1)+1,TRUE)) ->  | N18: =IF(M18*L18=0,"",VLOOKUP(L18,Lists!B$10:G$14,CEILING(M18-0.5,1)+1,TRUE)) ->  | Y18: -10.00 | Z18: -10.00 | AA18: -10.00 | AB18: -10.00
A19: R12 | G19: =IF(F19*E19=0,"",VLOOKUP(E19,Lists!B$10:G$14,CEILING(F19-0.5,1)+1,TRUE)) ->  | N19: =IF(M19*L19=0,"",VLOOKUP(L19,Lists!B$10:G$14,CEILING(M19-0.5,1)+1,TRUE)) ->  | Y19: -10.00 | Z19: -10.00 | AA19: -10.00 | AB19: -10.00
A20: R13 | G20: =IF(F20*E20=0,"",VLOOKUP(E20,Lists!B$10:G$14,CEILING(F20-0.5,1)+1,TRUE)) ->  | N20: =IF(M20*L20=0,"",VLOOKUP(L20,Lists!B$10:G$14,CEILING(M20-0.5,1)+1,TRUE)) ->  | Y20: -10.00 | Z20: -10.00 | AA20: -10.00 | AB20: -10.00
A21: R14 | G21: =IF(F21*E21=0,"",VLOOKUP(E21,Lists!B$10:G$14,CEILING(F21-0.5,1)+1,TRUE)) ->  | N21: =IF(M21*L21=0,"",VLOOKUP(L21,Lists!B$10:G$14,CEILING(M21-0.5,1)+1,TRUE)) ->  | Y21: -10.00 | Z21: -10.00 | AA21: -10.00 | AB21: -10.00
A22: R15 | G22: =IF(F22*E22=0,"",VLOOKUP(E22,Lists!B$10:G$14,CEILING(F22-0.5,1)+1,TRUE)) ->  | N22: =IF(M22*L22=0,"",VLOOKUP(L22,Lists!B$10:G$14,CEILING(M22-0.5,1)+1,TRUE)) ->  | Y22: -10.00 | Z22: -10.00 | AA22: -10.00 | AB22: -10.00
A23: R16 | G23: =IF(F23*E23=0,"",VLOOKUP(E23,Lists!B$10:G$14,CEILING(F23-0.5,1)+1,TRUE)) ->  | N23: =IF(M23*L23=0,"",VLOOKUP(L23,Lists!B$10:G$14,CEILING(M23-0.5,1)+1,TRUE)) ->  | Y23: -10.00 | Z23: -10.00 | AA23: -10.00 | AB23: -10.00
A24: R17 | G24: =IF(F24*E24=0,"",VLOOKUP(E24,Lists!B$10:G$14,CEILING(F24-0.5,1)+1,TRUE)) ->  | N24: =IF(M24*L24=0,"",VLOOKUP(L24,Lists!B$10:G$14,CEILING(M24-0.5,1)+1,TRUE)) ->  | Y24: -10.00 | Z24: -10.00 | AA24: -10.00 | AB24: -10.00
A25: R18 | G25: =IF(F25*E25=0,"",VLOOKUP(E25,Lists!B$10:G$14,CEILING(F25-0.5,1)+1,TRUE)) ->  | N25: =IF(M25*L25=0,"",VLOOKUP(L25,Lists!B$10:G$14,CEILING(M25-0.5,1)+1,TRUE)) ->  | Y25: -10.00 | Z25: -10.00 | AA25: -10.00 | AB25: -10.00
A26: R19 | G26: =IF(F26*E26=0,"",VLOOKUP(E26,Lists!B$10:G$14,CEILING(F26-0.5,1)+1,TRUE)) ->  | N26: =IF(M26*L26=0,"",VLOOKUP(L26,Lists!B$10:G$14,CEILING(M26-0.5,1)+1,TRUE)) ->  | Y26: -10.00 | Z26: -10.00 | AA26: -10.00 | AB26: -10.00
A27: R20 | G27: =IF(F27*E27=0,"",VLOOKUP(E27,Lists!B$10:G$14,CEILING(F27-0.5,1)+1,TRUE)) ->  | N27: =IF(M27*L27=0,"",VLOOKUP(L27,Lists!B$10:G$14,CEILING(M27-0.5,1)+1,TRUE)) ->  | Y27: -10.00 | Z27: -10.00 | AA27: -10.00 | AB27: -10.00
AC28: X-forskyv | AD28: Y-forskyv
AC29: -0.85 | AD29: -0.5
Y30: X-Konsekvens | Z30: Y-Sannsynlighet | AC30: -0.85 | AD30: -0.25
A31: =A3 -> Mål / krav nr 4: | X31: Gj sn | Y31: =IF(F6="",-10,F6-0.5) -> -10.00 | Z31: =IF(E6="",-10,E6-0.5) -> -10.00 | AC31: -0.85 | AD31: -0.75
A32: =IF(A4="","",A4) ->  | Y32: =IF(M6="",Y31,M6-0.6) -> -10.00 | Z32: =IF(L6="",Z31,L6-0.6) -> -10.00 | AC32: -0.75 | AD32: -0.5
X33: =A8 -> R1 | Y33: =Y8 -> -10.00 | Z33: =Z8 -> -10 | AC33: -0.75 | AD33: -0.25
C34: Når risikovurdering før og etter tiltak er utfylt er: | Y34: =AA8 -> -10.00 | Z34: =AB8 -> -10 | AC34: -0.75 | AD34: -0.75
C35: ● = Risikonivå før tiltak | X35: =A9 -> R2 | Y35: =Y9 -> -10 | Z35: =Z9 -> -10 | AC35: -0.66 | AD35: -0.5
C36: ■ = Risikonivå etter tiltak | Y36: =AA9 -> -10.00 | Z36: =AB9 -> -10 | AC36: -0.66 | AD36: -0.25
X37: =A10 -> R3 | Y37: =Y10 -> -10 | Z37: =Z10 -> -10 | AC37: -0.66 | AD37: -0.75
Y38: =AA10 -> -10 | Z38: =AB10 -> -10 | AC38: -0.5 | AD38: -0.5
X39: =A11 -> R4 | Y39: =Y11 -> -10 | Z39: =Z11 -> -10 | AC39: -0.5 | AD39: -0.25
Y40: =AA11 -> -10 | Z40: =AB11 -> -10 | AC40: -0.5 | AD40: -0.75
X41: =A12 -> R5 | Y41: =Y12 -> -10 | Z41: =Z12 -> -10 | AC41: -0.33 | AD41: -0.5
Y42: =AA12 -> -10 | Z42: =AB12 -> -10 | AC42: -0.33 | AD42: -0.25
X43: =A13 -> R6 | Y43: =Y13 -> -10 | Z43: =Z13 -> -10 | AC43: -0.33 | AD43: -0.75
Y44: =AA13 -> -10 | Z44: =AB13 -> -10 | AC44: -0.25 | AD44: -0.5
X45: =A14 -> R7 | Y45: =Y14 -> -10 | Z45: =Z14 -> -10 | AC45: -0.25 | AD45: -0.25
Y46: =AA14 -> -10 | Z46: =AB14 -> -10 | AC46: -0.25 | AD46: -0.75
X47: =A15 -> R8 | Y47: =Y15 -> -10 | Z47: =Z15 -> -10 | AC47: -0.15 | AD47: -0.5
Y48: =AA15 -> -10 | Z48: =AB15 -> -10 | AC48: -0.15 | AD48: -0.25
X49: =A16 -> R9 | Y49: =Y16 -> -10 | Z49: =Z16 -> -10
Y50: =AA16 -> -10 | Z50: =AB16 -> -10
X51: =A17 -> R10 | Y51: =Y17 -> -10 | Z51: =Z17 -> -10
Y52: =AA17 -> -10 | Z52: =AB17 -> -10
X53: =A18 -> R11 | Y53: =Y18 -> -10 | Z53: =Z18 -> -10
Y54: =AA18 -> -10 | Z54: =AB18 -> -10
X55: =A19 -> R12 | Y55: =Y19 -> -10.00 | Z55: =Z19 -> -10
Y56: =AA19 -> -10 | Z56: =AB19 -> -10
X57: =A20 -> R13 | Y57: =Y20 -> -10 | Z57: =Z20 -> -10
Y58: =AA20 -> -10 | Z58: =AB20 -> -10
X59: =A21 -> R14 | Y59: =Y21 -> -10 | Z59: =Z21 -> -10
Y60: =AA21 -> -10 | Z60: =AB21 -> -10
X61: =A22 -> R15 | Y61: =Y22 -> -10 | Z61: =Z22 -> -10
Y62: =AA22 -> -10 | Z62: =AB22 -> -10
X63: =A23 -> R16 | Y63: =Y23 -> -10.00 | Z63: =Z23 -> -10.00
Y64: =AA23 -> -10.00 | Z64: =AB23 -> -10.00
X65: =A24 -> R17 | Y65: =Y24 -> -10.00 | Z65: =Z24 -> -10.00
Y66: =AA24 -> -10.00 | Z66: =AB24 -> -10.00
X67: =A25 -> R18 | Y67: =Y25 -> -10.00 | Z67: =Z25 -> -10.00
Y68: =AA25 -> -10.00 | Z68: =AB25 -> -10.00
X69: =A26 -> R19 | Y69: =Y26 -> -10.00 | Z69: =Z26 -> -10.00
Y70: =AA26 -> -10.00 | Z70: =AB26 -> -10.00
X71: =A27 -> R20 | Y71: =Y27 -> -10.00 | Z71: =Z27 -> -10.00
Y72: =AA27 -> -10.00 | Z72: =AB27 -> -10.00

Sheet Mål 5
A1: Risikoidentifikasjon og analyse | E1: Ansvarlig: | L1: Risikomatrise, se under
A2: Enhet: | C2: =IF(Forside!C2="","",Forside!C2) -> Tjenesteområde <<tjenesteområde>> | E2: Dato: | F2: =IF(Forside!C4="","",Forside!C4) -> 
A3: Mål / resultatkrav nr 5: | E3: Risiko før tiltak | H3: Deltakere i prosessen: | L3: Risiko etter tiltak
E4: Risiko-vurdering | G4: Risiko-nivå | H4: =IF(Forside!C3="","",Forside!C3) -> <<deltakere>> | L4: Risiko-vurdering | N4: Risiko-nivå
E5: S | F5: K | L5: S | M5: K
D6: Gjsn risiko for målet: | E6: =IF(ISERROR(AVERAGE(E8:E27)),"",ROUND(AVERAGE(E8:E27),0)) ->  | F6: =IF(ISERROR(AVERAGE(F8:F27)),"",ROUND(AVERAGE(F8:F27),0)) ->  | G6: =IF(ISERROR(E6*F6),"",VLOOKUP(E6,Lists!B$10:G$14,CEILING(F6-0.5,1)+1,TRUE)) ->  | L6: =IF(ISERROR(AVERAGE(L8:L27)),"",ROUND(AVERAGE(L8:L27),0)) ->  | M6: =IF(ISERROR(AVERAGE(M8:M27)),"",ROUND(AVERAGE(M8:M27),0)) ->  | N6: =IF(ISERROR(L6*M6),"",VLOOKUP(L6,Lists!B$10:G$14,CEILING(M6-0.5,1)+1,TRUE)) ->  | Y6: Før tiltak | AA6: Etter tiltak
A7: Risiko nr | B7: Mulige hendelser/ risiko | C7: Område | D7: Eksisterende tiltak | E7: S | F7: K | G7: Risiko-nivå | H7: Risikoeier: | I7: Nye tiltak: | J7: Ansvarlig: | K7: Frist: | L7: S | M7: K | N7: Risiko-nivå | Y7: X-forskyv konsekv | Z7: Y-forskyv Sanns | AA7: X-forskyv konsekv | AB7: Y-forskyv Sanns
A8: R1 | G8: =IF(F8*E8=0,"",VLOOKUP(E8,Lists!B$10:G$14,CEILING(F8-0.5,1)+1,TRUE)) ->  | N8: =IF(M8*L8=0,"",VLOOKUP(L8,Lists!B$10:G$14,CEILING(M8-0.5,1)+1,TRUE)) ->  | Y8: =IF(F8="",-10,F8+AC29) -> -10.00 | Z8: =IF(E8="",-10,E8+AD29) -> -10.00 | AA8: =IF(M8="",Y8,M8+AC29) -> -10.00 | AB8: =IF(L8="",Z8,L8+AD29) -> -10.00
A9: R2 | G9: =IF(F9*E9=0,"",VLOOKUP(E9,Lists!B$10:G$14,CEILING(F9-0.5,1)+1,TRUE)) ->  | N9: =IF(M9*L9=0,"",VLOOKUP(L9,Lists!B$10:G$14,CEILING(M9-0.5,1)+1,TRUE)) ->  | Y9: -10.00 | Z9: -10.00 | AA9: -10.00 | AB9: -10.00
A10: R3 | G10: =IF(F10*E10=0,"",VLOOKUP(E10,Lists!B$10:G$14,CEILING(F10-0.5,1)+1,TRUE)) ->  | N10: =IF(M10*L10=0,"",VLOOKUP(L10,Lists!B$10:G$14,CEILING(M10-0.5,1)+1,TRUE)) ->  | Y10: -10.00 | Z10: -10.00 | AA10: -10.00 | AB10: -10.00
A11: R4 | G11: =IF(F11*E11=0,"",VLOOKUP(E11,Lists!B$10:G$14,CEILING(F11-0.5,1)+1,TRUE)) ->  | N11: =IF(M11*L11=0,"",VLOOKUP(L11,Lists!B$10:G$14,CEILING(M11-0.5,1)+1,TRUE)) ->  | Y11: -10.00 | Z11: -10.00 | AA11: -10.00 | AB11: -10.00
A12: R5 | G12: =IF(F12*E12=0,"",VLOOKUP(E12,Lists!B$10:G$14,CEILING(F12-0.5,1)+1,TRUE)) ->  | N12: =IF(M12*L12=0,"",VLOOKUP(L12,Lists!B$10:G$14,CEILING(M12-0.5,1)+1,TRUE)) ->  | Y12: -10.00 | Z12: -10.00 | AA12: -10.00 | AB12: -10.00
A13: R6 | G13: =IF(F13*E13=0,"",VLOOKUP(E13,Lists!B$10:G$14,CEILING(F13-0.5,1)+1,TRUE)) ->  | N13: =IF(M13*L13=0,"",VLOOKUP(L13,Lists!B$10:G$14,CEILING(M13-0.5,1)+1,TRUE)) ->  | Y13: -10.00 | Z13: -10.00 | AA13: -10.00 | AB13: -10.00
A14: R7 | G14: =IF(F14*E14=0,"",VLOOKUP(E14,Lists!B$10:G$14,CEILING(F14-0.5,1)+1,TRUE)) ->  | N14: =IF(M14*L14=0,"",VLOOKUP(L14,Lists!B$10:G$14,CEILING(M14-0.5,1)+1,TRUE)) ->  | Y14: -10.00 | Z14: -10.00 | AA14: -10.00 | AB14: -10.00
A15: R8 | G15: =IF(F15*E15=0,"",VLOOKUP(E15,Lists!B$10:G$14,CEILING(F15-0.5,1)+1,TRUE)) ->  | N15: =IF(M15*L15=0,"",VLOOKUP(L15,Lists!B$10:G$14,CEILING(M15-0.5,1)+1,TRUE)) ->  | Y15: -10.00 | Z15: -10.00 | AA15: -10.00 | AB15: -10.00
A16: R9 | G16: =IF(F16*E16=0,"",VLOOKUP(E16,Lists!B$10:G$14,CEILING(F16-0.5,1)+1,TRUE)) ->  | N16: =IF(M16*L16=0,"",VLOOKUP(L16,Lists!B$10:G$14,CEILING(M16-0.5,1)+1,TRUE)) ->  | Y16: -10.00 | Z16: -10.00 | AA16: -10.00 | AB16: -10.00
A17: R10 | G17: =IF(F17*E17=0,"",VLOOKUP(E17,Lists!B$10:G$14,CEILING(F17-0.5,1)+1,TRUE)) ->  | N17: =IF(M17*L17=0,"",VLOOKUP(L17,Lists!B$10:G$14,CEILING(M17-0.5,1)+1,TRUE)) ->  | Y17: -10.00 | Z17: -10.00 | AA17: -10.00 | AB17: -10.00
A18: R11 | G18: =IF(F18*E18=0,"",VLOOKUP(E18,Lists!B$10:G$14,CEILING(F18-0.5,1)+1,TRUE)) ->  | N18: =IF(M18*L18=0,"",VLOOKUP(L18,Lists!B$10:G$14,CEILING(M18-0.5,1)+1,TRUE)) ->  | Y18: -10.00 | Z18: -10.00 | AA18: -10.00 | AB18: -10.00
A19: R12 | G19: =IF(F19*E19=0,"",VLOOKUP(E19,Lists!B$10:G$14,CEILING(F19-0.5,1)+1,TRUE)) ->  | N19: =IF(M19*L19=0,"",VLOOKUP(L19,Lists!B$10:G$14,CEILING(M19-0.5,1)+1,TRUE)) ->  | Y19: -10.00 | Z19: -10.00 | AA19: -10.00 | AB19: -10.00
A20: R13 | G20: =IF(F20*E20=0,"",VLOOKUP(E20,Lists!B$10:G$14,CEILING(F20-0.5,1)+1,TRUE)) ->  | N20: =IF(M20*L20=0,"",VLOOKUP(L20,Lists!B$10:G$14,CEILING(M20-0.5,1)+1,TRUE)) ->  | Y20: -10.00 | Z20: -10.00 | AA20: -10.00 | AB20: -10.00
A21: R14 | G21: =IF(F21*E21=0,"",VLOOKUP(E21,Lists!B$10:G$14,CEILING(F21-0.5,1)+1,TRUE)) ->  | N21: =IF(M21*L21=0,"",VLOOKUP(L21,Lists!B$10:G$14,CEILING(M21-0.5,1)+1,TRUE)) ->  | Y21: -10.00 | Z21: -10.00 | AA21: -10.00 | AB21: -10.00
A22: R15 | G22: =IF(F22*E22=0,"",VLOOKUP(E22,Lists!B$10:G$14,CEILING(F22-0.5,1)+1,TRUE)) ->  | N22: =IF(M22*L22=0,"",VLOOKUP(L22,Lists!B$10:G$14,CEILING(M22-0.5,1)+1,TRUE)) ->  | Y22: -10.00 | Z22: -10.00 | AA22: -10.00 | AB22: -10.00
A23: R16 | G23: =IF(F23*E23=0,"",VLOOKUP(E23,Lists!B$10:G$14,CEILING(F23-0.5,1)+1,TRUE)) ->  | N23: =IF(M23*L23=0,"",VLOOKUP(L23,Lists!B$10:G$14,CEILING(M23-0.5,1)+1,TRUE)) ->  | Y23: -10.00 | Z23: -10.00 | AA23: -10.00 | AB23: -10.00
A24: R17 | G24: =IF(F24*E24=0,"",VLOOKUP(E24,Lists!B$10:G$14,CEILING(F24-0.5,1)+1,TRUE)) ->  | N24: =IF(M24*L24=0,"",VLOOKUP(L24,Lists!B$10:G$14,CEILING(M24-0.5,1)+1,TRUE)) ->  | Y24: -10.00 | Z24: -10.00 | AA24: -10.00 | AB24: -10.00
A25: R18 | G25: =IF(F25*E25=0,"",VLOOKUP(E25,Lists!B$10:G$14,CEILING(F25-0.5,1)+1,TRUE)) ->  | N25: =IF(M25*L25=0,"",VLOOKUP(L25,Lists!B$10:G$14,CEILING(M25-0.5,1)+1,TRUE)) ->  | Y25: -10.00 | Z25: -10.00 | AA25: -10.00 | AB25: -10.00
A26: R19 | G26: =IF(F26*E26=0,"",VLOOKUP(E26,Lists!B$10:G$14,CEILING(F26-0.5,1)+1,TRUE)) ->  | N26: =IF(M26*L26=0,"",VLOOKUP(L26,Lists!B$10:G$14,CEILING(M26-0.5,1)+1,TRUE)) ->  | Y26: -10.00 | Z26: -10.00 | AA26: -10.00 | AB26: -10.00
A27: R20 | G27: =IF(F27*E27=0,"",VLOOKUP(E27,Lists!B$10:G$14,CEILING(F27-0.5,1)+1,TRUE)) ->  | N27: =IF(M27*L27=0,"",VLOOKUP(L27,Lists!B$10:G$14,CEILING(M27-0.5,1)+1,TRUE)) ->  | Y27: -10.00 | Z27: -10.00 | AA27: -10.00 | AB27: -10.00
AC28: X-forskyv | AD28: Y-forskyv
AC29: -0.85 | AD29: -0.5
Y30: X-Konsekvens | Z30: Y-Sannsynlighet | AC30: -0.85 | AD30: -0.25
A31: =A3 -> Mål / resultatkrav nr 5: | X31: Gj sn | Y31: =IF(F6="",-10,F6-0.5) -> -10.00 | Z31: =IF(E6="",-10,E6-0.5) -> -10.00 | AC31: -0.85 | AD31: -0.75
A32: =IF(A4="","",A4) ->  | Y32: =IF(M6="",Y31,M6-0.6) -> -10.00 | Z32: =IF(L6="",Z31,L6-0.6) -> -10.00 | AC32: -0.75 | AD32: -0.5
X33: =A8 -> R1 | Y33: =Y8 -> -10.00 | Z33: =Z8 -> -10 | AC33: -0.75 | AD33: -0.25
C34: Når risikovurdering før og etter tiltak er utfylt er: | Y34: =AA8 -> -10.00 | Z34: =AB8 -> -10 | AC34: -0.75 | AD34: -0.75
C35: ● = Risikonivå før tiltak | X35: =A9 -> R2 | Y35: =Y9 -> -10 | Z35: =Z9 -> -10 | AC35: -0.66 | AD35: -0.5
C36: ■ = Risikonivå etter tiltak | Y36: =AA9 -> -10.00 | Z36: =AB9 -> -10 | AC36: -0.66 | AD36: -0.25
X37: =A10 -> R3 | Y37: =Y10 -> -10 | Z37: =Z10 -> -10 | AC37: -0.66 | AD37: -0.75
Y38: =AA10 -> -10 | Z38: =AB10 -> -10 | AC38: -0.5 | AD38: -0.5
X39: =A11 -> R4 | Y39: =Y11 -> -10 | Z39: =Z11 -> -10 | AC39: -0.5 | AD39: -0.25
Y40: =AA11 -> -10 | Z40: =AB11 -> -10 | AC40: -0.5 | AD40: -0.75
X41: =A12 -> R5 | Y41: =Y12 -> -10 | Z41: =Z12 -> -10 | AC41: -0.33 | AD41: -0.5
Y42: =AA12 -> -10 | Z42: =AB12 -> -10 | AC42: -0.33 | AD42: -0.25
X43: =A13 -> R6 | Y43: =Y13 -> -10 | Z43: =Z13 -> -10 | AC43: -0.33 | AD43: -0.75
Y44: =AA13 -> -10 | Z44: =AB13 -> -10 | AC44: -0.25 | AD44: -0.5
X45: =A14 -> R7 | Y45: =Y14 -> -10 | Z45: =Z14 -> -10 | AC45: -0.25 | AD45: -0.25
Y46: =AA14 -> -10 | Z46: =AB14 -> -10 | AC46: -0.25 | AD46: -0.75
X47: =A15 -> R8 | Y47: =Y15 -> -10 | Z47: =Z15 -> -10 | AC47: -0.15 | AD47: -0.5
Y48: =AA15 -> -10 | Z48: =AB15 -> -10 | AC48: -0.15 | AD48: -0.25
X49: =A16 -> R9 | Y49: =Y16 -> -10 | Z49: =Z16 -> -10
Y50: =AA16 -> -10 | Z50: =AB16 -> -10
X51: =A17 -> R10 | Y51: =Y17 -> -10 | Z51: =Z17 -> -10
Y52: =AA17 -> -10 | Z52: =AB17 -> -10
X53: =A18 -> R11 | Y53: =Y18 -> -10 | Z53: =Z18 -> -10
Y54: =AA18 -> -10 | Z54: =AB18 -> -10
X55: =A19 -> R12 | Y55: =Y19 -> -10.00 | Z55: =Z19 -> -10
Y56: =AA19 -> -10 | Z56: =AB19 -> -10
X57: =A20 -> R13 | Y57: =Y20 -> -10 | Z57: =Z20 -> -10
Y58: =AA20 -> -10 | Z58: =AB20 -> -10
X59: =A21 -> R14 | Y59: =Y21 -> -10 | Z59: =Z21 -> -10
Y60: =AA21 -> -10 | Z60: =AB21 -> -10
X61: =A22 -> R15 | Y61: =Y22 -> -10 | Z61: =Z22 -> -10
Y62: =AA22 -> -10 | Z62: =AB22 -> -10
X63: =A23 -> R16 | Y63: =Y23 -> -10.00 | Z63: =Z23 -> -10.00
Y64: =AA23 -> -10.00 | Z64: =AB23 -> -10.00
X65: =A24 -> R17 | Y65: =Y24 -> -10.00 | Z65: =Z24 -> -10.00
Y66: =AA24 -> -10.00 | Z66: =AB24 -> -10.00
X67: =A25 -> R18 | Y67: =Y25 -> -10.00 | Z67: =Z25 -> -10.00
Y68: =AA25 -> -10.00 | Z68: =AB25 -> -10.00
X69: =A26 -> R19 | Y69: =Y26 -> -10.00 | Z69: =Z26 -> -10.00
Y70: =AA26 -> -10.00 | Z70: =AB26 -> -10.00
X71: =A27 -> R20 | Y71: =Y27 -> -10.00 | Z71: =Z27 -> -10.00
Y72: =AA27 -> -10.00 | Z72: =AB27 -> -10.00

Sheet Mål 6
A1: Risikoidentifikasjon og analyse | E1: Ansvarlig: | L1: Risikomatrise, se under
A2: Enhet: | C2: =IF(Forside!C2="","",Forside!C2) -> Tjenesteområde <<tjenesteområde>> | E2: Dato: | F2: =IF(Forside!C4="","",Forside!C4) -> 
A3: Mål / krav nr 6: | E3: Risiko før tiltak | H3: Deltakere i prosessen: | L3: Risiko etter tiltak
E4: Risiko-vurdering | G4: Risiko-nivå | H4: =IF(Forside!C3="","",Forside!C3) -> <<deltakere>> | L4: Risiko-vurdering | N4: Risiko-nivå
E5: S | F5: K | L5: S | M5: K
D6: Gjsn risiko for målet: | E6: =IF(ISERROR(AVERAGE(E8:E27)),"",ROUND(AVERAGE(E8:E27),0)) ->  | F6: =IF(ISERROR(AVERAGE(F8:F27)),"",ROUND(AVERAGE(F8:F27),0)) ->  | G6: =IF(ISERROR(E6*F6),"",VLOOKUP(E6,Lists!B$10:G$14,CEILING(F6-0.5,1)+1,TRUE)) ->  | L6: =IF(ISERROR(AVERAGE(L8:L27)),"",ROUND(AVERAGE(L8:L27),0)) ->  | M6: =IF(ISERROR(AVERAGE(M8:M27)),"",ROUND(AVERAGE(M8:M27),0)) ->  | N6: =IF(ISERROR(L6*M6),"",VLOOKUP(L6,Lists!B$10:G$14,CEILING(M6-0.5,1)+1,TRUE)) ->  | Y6: Før tiltak | AA6: Etter tiltak
A7: Risiko nr | B7: Mulige hendelser/ risiko | C7: Område | D7: Eksisterende tiltak | E7: S | F7: K | G7: Risiko-nivå | H7: Risikoeier: | I7: Nye tiltak: | J7: Ansvarlig: | K7: Frist: | L7: S | M7: K | N7: Risiko-nivå | Y7: X-forskyv konsekv | Z7: Y-forskyv Sanns | AA7: X-forskyv konsekv | AB7: Y-forskyv Sanns
A8: R1 | G8: =IF(F8*E8=0,"",VLOOKUP(E8,Lists!B$10:G$14,CEILING(F8-0.5,1)+1,TRUE)) ->  | N8: =IF(M8*L8=0,"",VLOOKUP(L8,Lists!B$10:G$14,CEILING(M8-0.5,1)+1,TRUE)) ->  | Y8: =IF(F8="",-10,F8+AC29) -> -10.00 | Z8: =IF(E8="",-10,E8+AD29) -> -10.00 | AA8: =IF(M8="",Y8,M8+AC29) -> -10.00 | AB8: =IF(L8="",Z8,L8+AD29) -> -10.00
A9: R2 | G9: =IF(F9*E9=0,"",VLOOKUP(E9,Lists!B$10:G$14,CEILING(F9-0.5,1)+1,TRUE)) ->  | N9: =IF(M9*L9=0,"",VLOOKUP(L9,Lists!B$10:G$14,CEILING(M9-0.5,1)+1,TRUE)) ->  | Y9: -10.00 | Z9: -10.00 | AA9: -10.00 | AB9: -10.00
A10: R3 | G10: =IF(F10*E10=0,"",VLOOKUP(E10,Lists!B$10:G$14,CEILING(F10-0.5,1)+1,TRUE)) ->  | N10: =IF(M10*L10=0,"",VLOOKUP(L10,Lists!B$10:G$14,CEILING(M10-0.5,1)+1,TRUE)) ->  | Y10: -10.00 | Z10: -10.00 | AA10: -10.00 | AB10: -10.00
A11: R4 | G11: =IF(F11*E11=0,"",VLOOKUP(E11,Lists!B$10:G$14,CEILING(F11-0.5,1)+1,TRUE)) ->  | N11: =IF(M11*L11=0,"",VLOOKUP(L11,Lists!B$10:G$14,CEILING(M11-0.5,1)+1,TRUE)) ->  | Y11: -10.00 | Z11: -10.00 | AA11: -10.00 | AB11: -10.00
A12: R5 | G12: =IF(F12*E12=0,"",VLOOKUP(E12,Lists!B$10:G$14,CEILING(F12-0.5,1)+1,TRUE)) ->  | N12: =IF(M12*L12=0,"",VLOOKUP(L12,Lists!B$10:G$14,CEILING(M12-0.5,1)+1,TRUE)) ->  | Y12: -10.00 | Z12: -10.00 | AA12: -10.00 | AB12: -10.00
A13: R6 | G13: =IF(F13*E13=0,"",VLOOKUP(E13,Lists!B$10:G$14,CEILING(F13-0.5,1)+1,TRUE)) ->  | N13: =IF(M13*L13=0,"",VLOOKUP(L13,Lists!B$10:G$14,CEILING(M13-0.5,1)+1,TRUE)) ->  | Y13: -10.00 | Z13: -10.00 | AA13: -10.00 | AB13: -10.00
A14: R7 | G14: =IF(F14*E14=0,"",VLOOKUP(E14,Lists!B$10:G$14,CEILING(F14-0.5,1)+1,TRUE)) ->  | N14: =IF(M14*L14=0,"",VLOOKUP(L14,Lists!B$10:G$14,CEILING(M14-0.5,1)+1,TRUE)) ->  | Y14: -10.00 | Z14: -10.00 | AA14: -10.00 | AB14: -10.00
A15: R8 | G15: =IF(F15*E15=0,"",VLOOKUP(E15,Lists!B$10:G$14,CEILING(F15-0.5,1)+1,TRUE)) ->  | N15: =IF(M15*L15=0,"",VLOOKUP(L15,Lists!B$10:G$14,CEILING(M15-0.5,1)+1,TRUE)) ->  | Y15: -10.00 | Z15: -10.00 | AA15: -10.00 | AB15: -10.00
A16: R9 | G16: =IF(F16*E16=0,"",VLOOKUP(E16,Lists!B$10:G$14,CEILING(F16-0.5,1)+1,TRUE)) ->  | N16: =IF(M16*L16=0,"",VLOOKUP(L16,Lists!B$10:G$14,CEILING(M16-0.5,1)+1,TRUE)) ->  | Y16: -10.00 | Z16: -10.00 | AA16: -10.00 | AB16: -10.00
A17: R10 | G17: =IF(F17*E17=0,"",VLOOKUP(E17,Lists!B$10:G$14,CEILING(F17-0.5,1)+1,TRUE)) ->  | N17: =IF(M17*L17=0,"",VLOOKUP(L17,Lists!B$10:G$14,CEILING(M17-0.5,1)+1,TRUE)) ->  | Y17: -10.00 | Z17: -10.00 | AA17: -10.00 | AB17: -10.00
A18: R11 | G18: =IF(F18*E18=0,"",VLOOKUP(E18,Lists!B$10:G$14,CEILING(F18-0.5,1)+1,TRUE)) ->  | N18: =IF(M18*L18=0,"",VLOOKUP(L18,Lists!B$10:G$14,CEILING(M18-0.5,1)+1,TRUE)) ->  | Y18: -10.00 | Z18: -10.00 | AA18: -10.00 | AB18: -10.00
A19: R12 | G19: =IF(F19*E19=0,"",VLOOKUP(E19,Lists!B$10:G$14,CEILING(F19-0.5,1)+1,TRUE)) ->  | N19: =IF(M19*L19=0,"",VLOOKUP(L19,Lists!B$10:G$14,CEILING(M19-0.5,1)+1,TRUE)) ->  | Y19: -10.00 | Z19: -10.00 | AA19: -10.00 | AB19: -10.00
A20: R13 | G20: =IF(F20*E20=0,"",VLOOKUP(E20,Lists!B$10:G$14,CEILING(F20-0.5,1)+1,TRUE)) ->  | N20: =IF(M20*L20=0,"",VLOOKUP(L20,Lists!B$10:G$14,CEILING(M20-0.5,1)+1,TRUE)) ->  | Y20: -10.00 | Z20: -10.00 | AA20: -10.00 | AB20: -10.00
A21: R14 | G21: =IF(F21*E21=0,"",VLOOKUP(E21,Lists!B$10:G$14,CEILING(F21-0.5,1)+1,TRUE)) ->  | N21: =IF(M21*L21=0,"",VLOOKUP(L21,Lists!B$10:G$14,CEILING(M21-0.5,1)+1,TRUE)) ->  | Y21: -10.00 | Z21: -10.00 | AA21: -10.00 | AB21: -10.00
A22: R15 | G22: =IF(F22*E22=0,"",VLOOKUP(E22,Lists!B$10:G$14,CEILING(F22-0.5,1)+1,TRUE)) ->  | N22: =IF(M22*L22=0,"",VLOOKUP(L22,Lists!B$10:G$14,CEILING(M22-0.5,1)+1,TRUE)) ->  | Y22: -10.00 | Z22: -10.00 | AA22: -10.00 | AB22: -10.00
A23: R16 | G23: =IF(F23*E23=0,"",VLOOKUP(E23,Lists!B$10:G$14,CEILING(F23-0.5,1)+1,TRUE)) ->  | N23: =IF(M23*L23=0,"",VLOOKUP(L23,Lists!B$10:G$14,CEILING(M23-0.5,1)+1,TRUE)) ->  | Y23: -10.00 | Z23: -10.00 | AA23: -10.00 | AB23: -10.00
A24: R17 | G24: =IF(F24*E24=0,"",VLOOKUP(E24,Lists!B$10:G$14,CEILING(F24-0.5,1)+1,TRUE)) ->  | N24: =IF(M24*L24=0,"",VLOOKUP(L24,Lists!B$10:G$14,CEILING(M24-0.5,1)+1,TRUE)) ->  | Y24: -10.00 | Z24: -10.00 | AA24: -10.00 | AB24: -10.00
A25: R18 | G25: =IF(F25*E25=0,"",VLOOKUP(E25,Lists!B$10:G$14,CEILING(F25-0.5,1)+1,TRUE)) ->  | N25: =IF(M25*L25=0,"",VLOOKUP(L25,Lists!B$10:G$14,CEILING(M25-0.5,1)+1,TRUE)) ->  | Y25: -10.00 | Z25: -10.00 | AA25: -10.00 | AB25: -10.00
A26: R19 | G26: =IF(F26*E26=0,"",VLOOKUP(E26,Lists!B$10:G$14,CEILING(F26-0.5,1)+1,TRUE)) ->  | N26: =IF(M26*L26=0,"",VLOOKUP(L26,Lists!B$10:G$14,CEILING(M26-0.5,1)+1,TRUE)) ->  | Y26: -10.00 | Z26: -10.00 | AA26: -10.00 | AB26: -10.00
A27: R20 | G27: =IF(F27*E27=0,"",VLOOKUP(E27,Lists!B$10:G$14,CEILING(F27-0.5,1)+1,TRUE)) ->  | N27: =IF(M27*L27=0,"",VLOOKUP(L27,Lists!B$10:G$14,CEILING(M27-0.5,1)+1,TRUE)) ->  | Y27: -10.00 | Z27: -10.00 | AA27: -10.00 | AB27: -10.00
AC28: X-forskyv | AD28: Y-forskyv
AC29: -0.85 | AD29: -0.5
Y30: X-Konsekvens | Z30: Y-Sannsynlighet | AC30: -0.85 | AD30: -0.25
A31: =A3 -> Mål / krav nr 6: | X31: Gj sn | Y31: =IF(F6="",-10,F6-0.5) -> -10.00 | Z31: =IF(E6="",-10,E6-0.5) -> -10.00 | AC31: -0.85 | AD31: -0.75
A32: =IF(A4="","",A4) ->  | Y32: =IF(M6="",Y31,M6-0.6) -> -10.00 | Z32: =IF(L6="",Z31,L6-0.6) -> -10.00 | AC32: -0.75 | AD32: -0.5
X33: =A8 -> R1 | Y33: =Y8 -> -10.00 | Z33: =Z8 -> -10 | AC33: -0.75 | AD33: -0.25
C34: Når risikovurdering før og etter tiltak er utfylt er: | Y34: =AA8 -> -10.00 | Z34: =AB8 -> -10 | AC34: -0.75 | AD34: -0.75
C35: ● = Risikonivå før tiltak | X35: =A9 -> R2 | Y35: =Y9 -> -10 | Z35: =Z9 -> -10 | AC35: -0.66 | AD35: -0.5
C36: ■ = Risikonivå etter tiltak | Y36: =AA9 -> -10.00 | Z36: =AB9 -> -10 | AC36: -0.66 | AD36: -0.25
X37: =A10 -> R3 | Y37: =Y10 -> -10 | Z37: =Z10 -> -10 | AC37: -0.66 | AD37: -0.75
Y38: =AA10 -> -10 | Z38: =AB10 -> -10 | AC38: -0.5 | AD38: -0.5
X39: =A11 -> R4 | Y39: =Y11 -> -10 | Z39: =Z11 -> -10 | AC39: -0.5 | AD39: -0.25
Y40: =AA11 -> -10 | Z40: =AB11 -> -10 | AC40: -0.5 | AD40: -0.75
X41: =A12 -> R5 | Y41: =Y12 -> -10 | Z41: =Z12 -> -10 | AC41: -0.33 | AD41: -0.5
Y42: =AA12 -> -10 | Z42: =AB12 -> -10 | AC42: -0.33 | AD42: -0.25
X43: =A13 -> R6 | Y43: =Y13 -> -10 | Z43: =Z13 -> -10 | AC43: -0.33 | AD43: -0.75
Y44: =AA13 -> -10 | Z44: =AB13 -> -10 | AC44: -0.25 | AD44: -0.5
X45: =A14 -> R7 | Y45: =Y14 -> -10 | Z45: =Z14 -> -10 | AC45: -0.25 | AD45: -0.25
Y46: =AA14 -> -10 | Z46: =AB14 -> -10 | AC46: -0.25 | AD46: -0.75
X47: =A15 -> R8 | Y47: =Y15 -> -10 | Z47: =Z15 -> -10 | AC47: -0.15 | AD47: -0.5
Y48: =AA15 -> -10 | Z48: =AB15 -> -10 | AC48: -0.15 | AD48: -0.25
X49: =A16 -> R9 | Y49: =Y16 -> -10 | Z49: =Z16 -> -10
Y50: =AA16 -> -10 | Z50: =AB16 -> -10
X51: =A17 -> R10 | Y51: =Y17 -> -10 | Z51: =Z17 -> -10
Y52: =AA17 -> -10 | Z52: =AB17 -> -10
X53: =A18 -> R11 | Y53: =Y18 -> -10 | Z53: =Z18 -> -10
Y54: =AA18 -> -10 | Z54: =AB18 -> -10
X55: =A19 -> R12 | Y55: =Y19 -> -10.00 | Z55: =Z19 -> -10
Y56: =AA19 -> -10 | Z56: =AB19 -> -10
X57: =A20 -> R13 | Y57: =Y20 -> -10 | Z57: =Z20 -> -10
Y58: =AA20 -> -10 | Z58: =AB20 -> -10
X59: =A21 -> R14 | Y59: =Y21 -> -10 | Z59: =Z21 -> -10
Y60: =AA21 -> -10 | Z60: =AB21 -> -10
X61: =A22 -> R15 | Y61: =Y22 -> -10 | Z61: =Z22 -> -10
Y62: =AA22 -> -10 | Z62: =AB22 -> -10
X63: =A23 -> R16 | Y63: =Y23 -> -10.00 | Z63: =Z23 -> -10.00
Y64: =AA23 -> -10.00 | Z64: =AB23 -> -10.00
X65: =A24 -> R17 | Y65: =Y24 -> -10.00 | Z65: =Z24 -> -10.00
Y66: =AA24 -> -10.00 | Z66: =AB24 -> -10.00
X67: =A25 -> R18 | Y67: =Y25 -> -10.00 | Z67: =Z25 -> -10.00
Y68: =AA25 -> -10.00 | Z68: =AB25 -> -10.00
X69: =A26 -> R19 | Y69: =Y26 -> -10.00 | Z69: =Z26 -> -10.00
Y70: =AA26 -> -10.00 | Z70: =AB26 -> -10.00
X71: =A27 -> R20 | Y71: =Y27 -> -10.00 | Z71: =Z27 -> -10.00
Y72: =AA27 -> -10.00 | Z72: =AB27 -> -10.00

Sheet Mål 7
A1: Risikoidentifikasjon og analyse | E1: Ansvarlig: | L1: Risikomatrise, se under
A2: Enhet: | C2: =IF(Forside!C2="","",Forside!C2) -> Tjenesteområde <<tjenesteområde>> | E2: Dato: | F2: =IF(Forside!C4="","",Forside!C4) -> 
A3: Mål / krav nr 7: | E3: Risiko før tiltak | H3: Deltakere i prosessen: | L3: Risiko etter tiltak
E4: Risiko-vurdering | G4: Risiko-nivå | H4: =IF(Forside!C3="","",Forside!C3) -> <<deltakere>> | L4: Risiko-vurdering | N4: Risiko-nivå
E5: S | F5: K | L5: S | M5: K
D6: Gjsn risiko for målet: | E6: =IF(ISERROR(AVERAGE(E8:E27)),"",ROUND(AVERAGE(E8:E27),0)) ->  | F6: =IF(ISERROR(AVERAGE(F8:F27)),"",ROUND(AVERAGE(F8:F27),0)) ->  | G6: =IF(ISERROR(E6*F6),"",VLOOKUP(E6,Lists!B$10:G$14,CEILING(F6-0.5,1)+1,TRUE)) ->  | L6: =IF(ISERROR(AVERAGE(L8:L27)),"",ROUND(AVERAGE(L8:L27),0)) ->  | M6: =IF(ISERROR(AVERAGE(M8:M27)),"",ROUND(AVERAGE(M8:M27),0)) ->  | N6: =IF(ISERROR(L6*M6),"",VLOOKUP(L6,Lists!B$10:G$14,CEILING(M6-0.5,1)+1,TRUE)) ->  | Y6: Før tiltak | AA6: Etter tiltak
A7: Risiko nr | B7: Mulige hendelser/ risiko | C7: Område | D7: Eksisterende tiltak | E7: S | F7: K | G7: Risiko-nivå | H7: Risikoeier: | I7: Nye tiltak: | J7: Ansvarlig: | K7: Frist: | L7: S | M7: K | N7: Risiko-nivå | Y7: X-forskyv konsekv | Z7: Y-forskyv Sanns | AA7: X-forskyv konsekv | AB7: Y-forskyv Sanns
A8: R1 | G8: =IF(F8*E8=0,"",VLOOKUP(E8,Lists!B$10:G$14,CEILING(F8-0.5,1)+1,TRUE)) ->  | N8: =IF(M8*L8=0,"",VLOOKUP(L8,Lists!B$10:G$14,CEILING(M8-0.5,1)+1,TRUE)) ->  | Y8: =IF(F8="",-10,F8+AC29) -> -10.00 | Z8: =IF(E8="",-10,E8+AD29) -> -10.00 | AA8: =IF(M8="",Y8,M8+AC29) -> -10.00 | AB8: =IF(L8="",Z8,L8+AD29) -> -10.00
A9: R2 | G9: =IF(F9*E9=0,"",VLOOKUP(E9,Lists!B$10:G$14,CEILING(F9-0.5,1)+1,TRUE)) ->  | N9: =IF(M9*L9=0,"",VLOOKUP(L9,Lists!B$10:G$14,CEILING(M9-0.5,1)+1,TRUE)) ->  | Y9: -10.00 | Z9: -10.00 | AA9: -10.00 | AB9: -10.00
A10: R3 | G10: =IF(F10*E10=0,"",VLOOKUP(E10,Lists!B$10:G$14,CEILING(F10-0.5,1)+1,TRUE)) ->  | N10: =IF(M10*L10=0,"",VLOOKUP(L10,Lists!B$10:G$14,CEILING(M10-0.5,1)+1,TRUE)) ->  | Y10: -10.00 | Z10: -10.00 | AA10: -10.00 | AB10: -10.00
A11: R4 | G11: =IF(F11*E11=0,"",VLOOKUP(E11,Lists!B$10:G$14,CEILING(F11-0.5,1)+1,TRUE)) ->  | N11: =IF(M11*L11=0,"",VLOOKUP(L11,Lists!B$10:G$14,CEILING(M11-0.5,1)+1,TRUE)) ->  | Y11: -10.00 | Z11: -10.00 | AA11: -10.00 | AB11: -10.00
A12: R5 | G12: =IF(F12*E12=0,"",VLOOKUP(E12,Lists!B$10:G$14,CEILING(F12-0.5,1)+1,TRUE)) ->  | N12: =IF(M12*L12=0,"",VLOOKUP(L12,Lists!B$10:G$14,CEILING(M12-0.5,1)+1,TRUE)) ->  | Y12: -10.00 | Z12: -10.00 | AA12: -10.00 | AB12: -10.00
A13: R6 | G13: =IF(F13*E13=0,"",VLOOKUP(E13,Lists!B$10:G$14,CEILING(F13-0.5,1)+1,TRUE)) ->  | N13: =IF(M13*L13=0,"",VLOOKUP(L13,Lists!B$10:G$14,CEILING(M13-0.5,1)+1,TRUE)) ->  | Y13: -10.00 | Z13: -10.00 | AA13: -10.00 | AB13: -10.00
A14: R7 | G14: =IF(F14*E14=0,"",VLOOKUP(E14,Lists!B$10:G$14,CEILING(F14-0.5,1)+1,TRUE)) ->  | N14: =IF(M14*L14=0,"",VLOOKUP(L14,Lists!B$10:G$14,CEILING(M14-0.5,1)+1,TRUE)) ->  | Y14: -10.00 | Z14: -10.00 | AA14: -10.00 | AB14: -10.00
A15: R8 | G15: =IF(F15*E15=0,"",VLOOKUP(E15,Lists!B$10:G$14,CEILING(F15-0.5,1)+1,TRUE)) ->  | N15: =IF(M15*L15=0,"",VLOOKUP(L15,Lists!B$10:G$14,CEILING(M15-0.5,1)+1,TRUE)) ->  | Y15: -10.00 | Z15: -10.00 | AA15: -10.00 | AB15: -10.00
A16: R9 | G16: =IF(F16*E16=0,"",VLOOKUP(E16,Lists!B$10:G$14,CEILING(F16-0.5,1)+1,TRUE)) ->  | N16: =IF(M16*L16=0,"",VLOOKUP(L16,Lists!B$10:G$14,CEILING(M16-0.5,1)+1,TRUE)) ->  | Y16: -10.00 | Z16: -10.00 | AA16: -10.00 | AB16: -10.00
A17: R10 | G17: =IF(F17*E17=0,"",VLOOKUP(E17,Lists!B$10:G$14,CEILING(F17-0.5,1)+1,TRUE)) ->  | N17: =IF(M17*L17=0,"",VLOOKUP(L17,Lists!B$10:G$14,CEILING(M17-0.5,1)+1,TRUE)) ->  | Y17: -10.00 | Z17: -10.00 | AA17: -10.00 | AB17: -10.00
A18: R11 | G18: =IF(F18*E18=0,"",VLOOKUP(E18,Lists!B$10:G$14,CEILING(F18-0.5,1)+1,TRUE)) ->  | N18: =IF(M18*L18=0,"",VLOOKUP(L18,Lists!B$10:G$14,CEILING(M18-0.5,1)+1,TRUE)) ->  | Y18: -10.00 | Z18: -10.00 | AA18: -10.00 | AB18: -10.00
A19: R12 | G19: =IF(F19*E19=0,"",VLOOKUP(E19,Lists!B$10:G$14,CEILING(F19-0.5,1)+1,TRUE)) ->  | N19: =IF(M19*L19=0,"",VLOOKUP(L19,Lists!B$10:G$14,CEILING(M19-0.5,1)+1,TRUE)) ->  | Y19: -10.00 | Z19: -10.00 | AA19: -10.00 | AB19: -10.00
A20: R13 | G20: =IF(F20*E20=0,"",VLOOKUP(E20,Lists!B$10:G$14,CEILING(F20-0.5,1)+1,TRUE)) ->  | N20: =IF(M20*L20=0,"",VLOOKUP(L20,Lists!B$10:G$14,CEILING(M20-0.5,1)+1,TRUE)) ->  | Y20: -10.00 | Z20: -10.00 | AA20: -10.00 | AB20: -10.00
A21: R14 | G21: =IF(F21*E21=0,"",VLOOKUP(E21,Lists!B$10:G$14,CEILING(F21-0.5,1)+1,TRUE)) ->  | N21: =IF(M21*L21=0,"",VLOOKUP(L21,Lists!B$10:G$14,CEILING(M21-0.5,1)+1,TRUE)) ->  | Y21: -10.00 | Z21: -10.00 | AA21: -10.00 | AB21: -10.00
A22: R15 | G22: =IF(F22*E22=0,"",VLOOKUP(E22,Lists!B$10:G$14,CEILING(F22-0.5,1)+1,TRUE)) ->  | N22: =IF(M22*L22=0,"",VLOOKUP(L22,Lists!B$10:G$14,CEILING(M22-0.5,1)+1,TRUE)) ->  | Y22: -10.00 | Z22: -10.00 | AA22: -10.00 | AB22: -10.00
A23: R16 | G23: =IF(F23*E23=0,"",VLOOKUP(E23,Lists!B$10:G$14,CEILING(F23-0.5,1)+1,TRUE)) ->  | N23: =IF(M23*L23=0,"",VLOOKUP(L23,Lists!B$10:G$14,CEILING(M23-0.5,1)+1,TRUE)) ->  | Y23: -10.00 | Z23: -10.00 | AA23: -10.00 | AB23: -10.00
A24: R17 | G24: =IF(F24*E24=0,"",VLOOKUP(E24,Lists!B$10:G$14,CEILING(F24-0.5,1)+1,TRUE)) ->  | N24: =IF(M24*L24=0,"",VLOOKUP(L24,Lists!B$10:G$14,CEILING(M24-0.5,1)+1,TRUE)) ->  | Y24: -10.00 | Z24: -10.00 | AA24: -10.00 | AB24: -10.00
A25: R18 | G25: =IF(F25*E25=0,"",VLOOKUP(E25,Lists!B$10:G$14,CEILING(F25-0.5,1)+1,TRUE)) ->  | N25: =IF(M25*L25=0,"",VLOOKUP(L25,Lists!B$10:G$14,CEILING(M25-0.5,1)+1,TRUE)) ->  | Y25: -10.00 | Z25: -10.00 | AA25: -10.00 | AB25: -10.00
A26: R19 | G26: =IF(F26*E26=0,"",VLOOKUP(E26,Lists!B$10:G$14,CEILING(F26-0.5,1)+1,TRUE)) ->  | N26: =IF(M26*L26=0,"",VLOOKUP(L26,Lists!B$10:G$14,CEILING(M26-0.5,1)+1,TRUE)) ->  | Y26: -10.00 | Z26: -10.00 | AA26: -10.00 | AB26: -10.00
A27: R20 | G27: =IF(F27*E27=0,"",VLOOKUP(E27,Lists!B$10:G$14,CEILING(F27-0.5,1)+1,TRUE)) ->  | N27: =IF(M27*L27=0,"",VLOOKUP(L27,Lists!B$10:G$14,CEILING(M27-0.5,1)+1,TRUE)) ->  | Y27: -10.00 | Z27: -10.00 | AA27: -10.00 | AB27: -10.00
AC28: X-forskyv | AD28: Y-forskyv
AC29: -0.85 | AD29: -0.5
Y30: X-Konsekvens | Z30: Y-Sannsynlighet | AC30: -0.85 | AD30: -0.25
A31: =A3 -> Mål / krav nr 7: | X31: Gj sn | Y31: =IF(F6="",-10,F6-0.5) -> -10.00 | Z31: =IF(E6="",-10,E6-0.5) -> -10.00 | AC31: -0.85 | AD31: -0.75
A32: =IF(A4="","",A4) ->  | Y32: =IF(M6="",Y31,M6-0.6) -> -10.00 | Z32: =IF(L6="",Z31,L6-0.6) -> -10.00 | AC32: -0.75 | AD32: -0.5
X33: =A8 -> R1 | Y33: =Y8 -> -10.00 | Z33: =Z8 -> -10 | AC33: -0.75 | AD33: -0.25
C34: Når risikovurdering før og etter tiltak er utfylt er: | Y34: =AA8 -> -10.00 | Z34: =AB8 -> -10 | AC34: -0.75 | AD34: -0.75
C35: ● = Risikonivå før tiltak | X35: =A9 -> R2 | Y35: =Y9 -> -10 | Z35: =Z9 -> -10 | AC35: -0.66 | AD35: -0.5
C36: ■ = Risikonivå etter tiltak | Y36: =AA9 -> -10.00 | Z36: =AB9 -> -10 | AC36: -0.66 | AD36: -0.25
X37: =A10 -> R3 | Y37: =Y10 -> -10 | Z37: =Z10 -> -10 | AC37: -0.66 | AD37: -0.75
Y38: =AA10 -> -10 | Z38: =AB10 -> -10 | AC38: -0.5 | AD38: -0.5
X39: =A11 -> R4 | Y39: =Y11 -> -10 | Z39: =Z11 -> -10 | AC39: -0.5 | AD39: -0.25
Y40: =AA11 -> -10 | Z40: =AB11 -> -10 | AC40: -0.5 | AD40: -0.75
X41: =A12 -> R5 | Y41: =Y12 -> -10 | Z41: =Z12 -> -10 | AC41: -0.33 | AD41: -0.5
Y42: =AA12 -> -10 | Z42: =AB12 -> -10 | AC42: -0.33 | AD42: -0.25
X43: =A13 -> R6 | Y43: =Y13 -> -10 | Z43: =Z13 -> -10 | AC43: -0.33 | AD43: -0.75
Y44: =AA13 -> -10 | Z44: =AB13 -> -10 | AC44: -0.25 | AD44: -0.5
X45: =A14 -> R7 | Y45: =Y14 -> -10 | Z45: =Z14 -> -10 | AC45: -0.25 | AD45: -0.25
Y46: =AA14 -> -10 | Z46: =AB14 -> -10 | AC46: -0.25 | AD46: -0.75
X47: =A15 -> R8 | Y47: =Y15 -> -10 | Z47: =Z15 -> -10 | AC47: -0.15 | AD47: -0.5
Y48: =AA15 -> -10 | Z48: =AB15 -> -10 | AC48: -0.15 | AD48: -0.25
X49: =A16 -> R9 | Y49: =Y16 -> -10 | Z49: =Z16 -> -10
Y50: =AA16 -> -10 | Z50: =AB16 -> -10
X51: =A17 -> R10 | Y51: =Y17 -> -10 | Z51: =Z17 -> -10
Y52: =AA17 -> -10 | Z52: =AB17 -> -10
X53: =A18 -> R11 | Y53: =Y18 -> -10 | Z53: =Z18 -> -10
Y54: =AA18 -> -10 | Z54: =AB18 -> -10
X55: =A19 -> R12 | Y55: =Y19 -> -10.00 | Z55: =Z19 -> -10
Y56: =AA19 -> -10 | Z56: =AB19 -> -10
X57: =A20 -> R13 | Y57: =Y20 -> -10 | Z57: =Z20 -> -10
Y58: =AA20 -> -10 | Z58: =AB20 -> -10
X59: =A21 -> R14 | Y59: =Y21 -> -10 | Z59: =Z21 -> -10
Y60: =AA21 -> -10 | Z60: =AB21 -> -10
X61: =A22 -> R15 | Y61: =Y22 -> -10 | Z61: =Z22 -> -10
Y62: =AA22 -> -10 | Z62: =AB22 -> -10
X63: =A23 -> R16 | Y63: =Y23 -> -10.00 | Z63: =Z23 -> -10.00
Y64: =AA23 -> -10.00 | Z64: =AB23 -> -10.00
X65: =A24 -> R17 | Y65: =Y24 -> -10.00 | Z65: =Z24 -> -10.00
Y66: =AA24 -> -10.00 | Z66: =AB24 -> -10.00
X67: =A25 -> R18 | Y67: =Y25 -> -10.00 | Z67: =Z25 -> -10.00
Y68: =AA25 -> -10.00 | Z68: =AB25 -> -10.00
X69: =A26 -> R19 | Y69: =Y26 -> -10.00 | Z69: =Z26 -> -10.00
Y70: =AA26 -> -10.00 | Z70: =AB26 -> -10.00
X71: =A27 -> R20 | Y71: =Y27 -> -10.00 | Z71: =Z27 -> -10.00
Y72: =AA27 -> -10.00 | Z72: =AB27 -> -10.00

Sheet Mål 8
A1: Risikoidentifikasjon og analyse | E1: Ansvarlig: | L1: Risikomatrise, se under
A2: Enhet: | C2: =IF(Forside!C2="","",Forside!C2) -> Tjenesteområde <<tjenesteområde>> | E2: Dato: | F2: =IF(Forside!C4="","",Forside!C4) -> 
A3: Mål / krav nr 8: | E3: Risiko før tiltak | H3: Deltakere i prosessen: | L3: Risiko etter tiltak
E4: Risiko-vurdering | G4: Risiko-nivå | H4: =IF(Forside!C3="","",Forside!C3) -> <<deltakere>> | L4: Risiko-vurdering | N4: Risiko-nivå
E5: S | F5: K | L5: S | M5: K
D6: Gjsn risiko for målet: | E6: =IF(ISERROR(AVERAGE(E8:E27)),"",ROUND(AVERAGE(E8:E27),0)) ->  | F6: =IF(ISERROR(AVERAGE(F8:F27)),"",ROUND(AVERAGE(F8:F27),0)) ->  | G6: =IF(ISERROR(E6*F6),"",VLOOKUP(E6,Lists!B$10:G$14,CEILING(F6-0.5,1)+1,TRUE)) ->  | L6: =IF(ISERROR(AVERAGE(L8:L27)),"",ROUND(AVERAGE(L8:L27),0)) ->  | M6: =IF(ISERROR(AVERAGE(M8:M27)),"",ROUND(AVERAGE(M8:M27),0)) ->  | N6: =IF(ISERROR(L6*M6),"",VLOOKUP(L6,Lists!B$10:G$14,CEILING(M6-0.5,1)+1,TRUE)) ->  | Y6: Før tiltak | AA6: Etter tiltak
A7: Risiko nr | B7: Mulige hendelser/ risiko | C7: Område | D7: Eksisterende tiltak | E7: S | F7: K | G7: Risiko-nivå | H7: Risikoeier: | I7: Nye tiltak: | J7: Ansvarlig: | K7: Frist: | L7: S | M7: K | N7: Risiko-nivå | Y7: X-forskyv konsekv | Z7: Y-forskyv Sanns | AA7: X-forskyv konsekv | AB7: Y-forskyv Sanns
A8: R1 | G8: =IF(F8*E8=0,"",VLOOKUP(E8,Lists!B$10:G$14,CEILING(F8-0.5,1)+1,TRUE)) ->  | N8: =IF(M8*L8=0,"",VLOOKUP(L8,Lists!B$10:G$14,CEILING(M8-0.5,1)+1,TRUE)) ->  | Y8: =IF(F8="",-10,F8+AC29) -> -10.00 | Z8: =IF(E8="",-10,E8+AD29) -> -10.00 | AA8: =IF(M8="",Y8,M8+AC29) -> -10.00 | AB8: =IF(L8="",Z8,L8+AD29) -> -10.00
A9: R2 | G9: =IF(F9*E9=0,"",VLOOKUP(E9,Lists!B$10:G$14,CEILING(F9-0.5,1)+1,TRUE)) ->  | N9: =IF(M9*L9=0,"",VLOOKUP(L9,Lists!B$10:G$14,CEILING(M9-0.5,1)+1,TRUE)) ->  | Y9: -10.00 | Z9: -10.00 | AA9: -10.00 | AB9: -10.00
A10: R3 | G10: =IF(F10*E10=0,"",VLOOKUP(E10,Lists!B$10:G$14,CEILING(F10-0.5,1)+1,TRUE)) ->  | N10: =IF(M10*L10=0,"",VLOOKUP(L10,Lists!B$10:G$14,CEILING(M10-0.5,1)+1,TRUE)) ->  | Y10: -10.00 | Z10: -10.00 | AA10: -10.00 | AB10: -10.00
A11: R4 | G11: =IF(F11*E11=0,"",VLOOKUP(E11,Lists!B$10:G$14,CEILING(F11-0.5,1)+1,TRUE)) ->  | N11: =IF(M11*L11=0,"",VLOOKUP(L11,Lists!B$10:G$14,CEILING(M11-0.5,1)+1,TRUE)) ->  | Y11: -10.00 | Z11: -10.00 | AA11: -10.00 | AB11: -10.00
A12: R5 | G12: =IF(F12*E12=0,"",VLOOKUP(E12,Lists!B$10:G$14,CEILING(F12-0.5,1)+1,TRUE)) ->  | N12: =IF(M12*L12=0,"",VLOOKUP(L12,Lists!B$10:G$14,CEILING(M12-0.5,1)+1,TRUE)) ->  | Y12: -10.00 | Z12: -10.00 | AA12: -10.00 | AB12: -10.00
A13: R6 | G13: =IF(F13*E13=0,"",VLOOKUP(E13,Lists!B$10:G$14,CEILING(F13-0.5,1)+1,TRUE)) ->  | N13: =IF(M13*L13=0,"",VLOOKUP(L13,Lists!B$10:G$14,CEILING(M13-0.5,1)+1,TRUE)) ->  | Y13: -10.00 | Z13: -10.00 | AA13: -10.00 | AB13: -10.00
A14: R7 | G14: =IF(F14*E14=0,"",VLOOKUP(E14,Lists!B$10:G$14,CEILING(F14-0.5,1)+1,TRUE)) ->  | N14: =IF(M14*L14=0,"",VLOOKUP(L14,Lists!B$10:G$14,CEILING(M14-0.5,1)+1,TRUE)) ->  | Y14: -10.00 | Z14: -10.00 | AA14: -10.00 | AB14: -10.00
A15: R8 | G15: =IF(F15*E15=0,"",VLOOKUP(E15,Lists!B$10:G$14,CEILING(F15-0.5,1)+1,TRUE)) ->  | N15: =IF(M15*L15=0,"",VLOOKUP(L15,Lists!B$10:G$14,CEILING(M15-0.5,1)+1,TRUE)) ->  | Y15: -10.00 | Z15: -10.00 | AA15: -10.00 | AB15: -10.00
A16: R9 | G16: =IF(F16*E16=0,"",VLOOKUP(E16,Lists!B$10:G$14,CEILING(F16-0.5,1)+1,TRUE)) ->  | N16: =IF(M16*L16=0,"",VLOOKUP(L16,Lists!B$10:G$14,CEILING(M16-0.5,1)+1,TRUE)) ->  | Y16: -10.00 | Z16: -10.00 | AA16: -10.00 | AB16: -10.00
A17: R10 | G17: =IF(F17*E17=0,"",VLOOKUP(E17,Lists!B$10:G$14,CEILING(F17-0.5,1)+1,TRUE)) ->  | N17: =IF(M17*L17=0,"",VLOOKUP(L17,Lists!B$10:G$14,CEILING(M17-0.5,1)+1,TRUE)) ->  | Y17: -10.00 | Z17: -10.00 | AA17: -10.00 | AB17: -10.00
A18: R11 | G18: =IF(F18*E18=0,"",VLOOKUP(E18,Lists!B$10:G$14,CEILING(F18-0.5,1)+1,TRUE)) ->  | N18: =IF(M18*L18=0,"",VLOOKUP(L18,Lists!B$10:G$14,CEILING(M18-0.5,1)+1,TRUE)) ->  | Y18: -10.00 | Z18: -10.00 | AA18: -10.00 | AB18: -10.00
A19: R12 | G19: =IF(F19*E19=0,"",VLOOKUP(E19,Lists!B$10:G$14,CEILING(F19-0.5,1)+1,TRUE)) ->  | N19: =IF(M19*L19=0,"",VLOOKUP(L19,Lists!B$10:G$14,CEILING(M19-0.5,1)+1,TRUE)) ->  | Y19: -10.00 | Z19: -10.00 | AA19: -10.00 | AB19: -10.00
A20: R13 | G20: =IF(F20*E20=0,"",VLOOKUP(E20,Lists!B$10:G$14,CEILING(F20-0.5,1)+1,TRUE)) ->  | N20: =IF(M20*L20=0,"",VLOOKUP(L20,Lists!B$10:G$14,CEILING(M20-0.5,1)+1,TRUE)) ->  | Y20: -10.00 | Z20: -10.00 | AA20: -10.00 | AB20: -10.00
A21: R14 | G21: =IF(F21*E21=0,"",VLOOKUP(E21,Lists!B$10:G$14,CEILING(F21-0.5,1)+1,TRUE)) ->  | N21: =IF(M21*L21=0,"",VLOOKUP(L21,Lists!B$10:G$14,CEILING(M21-0.5,1)+1,TRUE)) ->  | Y21: -10.00 | Z21: -10.00 | AA21: -10.00 | AB21: -10.00
A22: R15 | G22: =IF(F22*E22=0,"",VLOOKUP(E22,Lists!B$10:G$14,CEILING(F22-0.5,1)+1,TRUE)) ->  | N22: =IF(M22*L22=0,"",VLOOKUP(L22,Lists!B$10:G$14,CEILING(M22-0.5,1)+1,TRUE)) ->  | Y22: -10.00 | Z22: -10.00 | AA22: -10.00 | AB22: -10.00
A23: R16 | G23: =IF(F23*E23=0,"",VLOOKUP(E23,Lists!B$10:G$14,CEILING(F23-0.5,1)+1,TRUE)) ->  | N23: =IF(M23*L23=0,"",VLOOKUP(L23,Lists!B$10:G$14,CEILING(M23-0.5,1)+1,TRUE)) ->  | Y23: -10.00 | Z23: -10.00 | AA23: -10.00 | AB23: -10.00
A24: R17 | G24: =IF(F24*E24=0,"",VLOOKUP(E24,Lists!B$10:G$14,CEILING(F24-0.5,1)+1,TRUE)) ->  | N24: =IF(M24*L24=0,"",VLOOKUP(L24,Lists!B$10:G$14,CEILING(M24-0.5,1)+1,TRUE)) ->  | Y24: -10.00 | Z24: -10.00 | AA24: -10.00 | AB24: -10.00
A25: R18 | G25: =IF(F25*E25=0,"",VLOOKUP(E25,Lists!B$10:G$14,CEILING(F25-0.5,1)+1,TRUE)) ->  | N25: =IF(M25*L25=0,"",VLOOKUP(L25,Lists!B$10:G$14,CEILING(M25-0.5,1)+1,TRUE)) ->  | Y25: -10.00 | Z25: -10.00 | AA25: -10.00 | AB25: -10.00
A26: R19 | G26: =IF(F26*E26=0,"",VLOOKUP(E26,Lists!B$10:G$14,CEILING(F26-0.5,1)+1,TRUE)) ->  | N26: =IF(M26*L26=0,"",VLOOKUP(L26,Lists!B$10:G$14,CEILING(M26-0.5,1)+1,TRUE)) ->  | Y26: -10.00 | Z26: -10.00 | AA26: -10.00 | AB26: -10.00
A27: R20 | G27: =IF(F27*E27=0,"",VLOOKUP(E27,Lists!B$10:G$14,CEILING(F27-0.5,1)+1,TRUE)) ->  | N27: =IF(M27*L27=0,"",VLOOKUP(L27,Lists!B$10:G$14,CEILING(M27-0.5,1)+1,TRUE)) ->  | Y27: -10.00 | Z27: -10.00 | AA27: -10.00 | AB27: -10.00
AC28: X-forskyv | AD28: Y-forskyv
AC29: -0.85 | AD29: -0.5
Y30: X-Konsekvens | Z30: Y-Sannsynlighet | AC30: -0.85 | AD30: -0.25
A31: =A3 -> Mål / krav nr 8: | X31: Gj sn | Y31: =IF(F6="",-10,F6-0.5) -> -10.00 | Z31: =IF(E6="",-10,E6-0.5) -> -10.00 | AC31: -0.85 | AD31: -0.75
A32: =IF(A4="","",A4) ->  | Y32: =IF(M6="",Y31,M6-0.6) -> -10.00 | Z32: =IF(L6="",Z31,L6-0.6) -> -10.00 | AC32: -0.75 | AD32: -0.5
X33: =A8 -> R1 | Y33: =Y8 -> -10.00 | Z33: =Z8 -> -10 | AC33: -0.75 | AD33: -0.25
C34: Når risikovurdering før og etter tiltak er utfylt er: | Y34: =AA8 -> -10.00 | Z34: =AB8 -> -10 | AC34: -0.75 | AD34: -0.75
C35: ● = Risikonivå før tiltak | X35: =A9 -> R2 | Y35: =Y9 -> -10 | Z35: =Z9 -> -10 | AC35: -0.66 | AD35: -0.5
C36: ■ = Risikonivå etter tiltak | Y36: =AA9 -> -10.00 | Z36: =AB9 -> -10 | AC36: -0.66 | AD36: -0.25
X37: =A10 -> R3 | Y37: =Y10 -> -10 | Z37: =Z10 -> -10 | AC37: -0.66 | AD37: -0.75
Y38: =AA10 -> -10 | Z38: =AB10 -> -10 | AC38: -0.5 | AD38: -0.5
X39: =A11 -> R4 | Y39: =Y11 -> -10 | Z39: =Z11 -> -10 | AC39: -0.5 | AD39: -0.25
Y40: =AA11 -> -10 | Z40: =AB11 -> -10 | AC40: -0.5 | AD40: -0.75
X41: =A12 -> R5 | Y41: =Y12 -> -10 | Z41: =Z12 -> -10 | AC41: -0.33 | AD41: -0.5
Y42: =AA12 -> -10 | Z42: =AB12 -> -10 | AC42: -0.33 | AD42: -0.25
X43: =A13 -> R6 | Y43: =Y13 -> -10 | Z43: =Z13 -> -10 | AC43: -0.33 | AD43: -0.75
Y44: =AA13 -> -10 | Z44: =AB13 -> -10 | AC44: -0.25 | AD44: -0.5
X45: =A14 -> R7 | Y45: =Y14 -> -10 | Z45: =Z14 -> -10 | AC45: -0.25 | AD45: -0.25
Y46: =AA14 -> -10 | Z46: =AB14 -> -10 | AC46: -0.25 | AD46: -0.75
X47: =A15 -> R8 | Y47: =Y15 -> -10 | Z47: =Z15 -> -10 | AC47: -0.15 | AD47: -0.5
Y48: =AA15 -> -10 | Z48: =AB15 -> -10 | AC48: -0.15 | AD48: -0.25
X49: =A16 -> R9 | Y49: =Y16 -> -10 | Z49: =Z16 -> -10
Y50: =AA16 -> -10 | Z50: =AB16 -> -10
X51: =A17 -> R10 | Y51: =Y17 -> -10 | Z51: =Z17 -> -10
Y52: =AA17 -> -10 | Z52: =AB17 -> -10
X53: =A18 -> R11 | Y53: =Y18 -> -10 | Z53: =Z18 -> -10
Y54: =AA18 -> -10 | Z54: =AB18 -> -10
X55: =A19 -> R12 | Y55: =Y19 -> -10.00 | Z55: =Z19 -> -10
Y56: =AA19 -> -10 | Z56: =AB19 -> -10
X57: =A20 -> R13 | Y57: =Y20 -> -10 | Z57: =Z20 -> -10
Y58: =AA20 -> -10 | Z58: =AB20 -> -10
X59: =A21 -> R14 | Y59: =Y21 -> -10 | Z59: =Z21 -> -10
Y60: =AA21 -> -10 | Z60: =AB21 -> -10
X61: =A22 -> R15 | Y61: =Y22 -> -10 | Z61: =Z22 -> -10
Y62: =AA22 -> -10 | Z62: =AB22 -> -10
X63: =A23 -> R16 | Y63: =Y23 -> -10.00 | Z63: =Z23 -> -10.00
Y64: =AA23 -> -10.00 | Z64: =AB23 -> -10.00
X65: =A24 -> R17 | Y65: =Y24 -> -10.00 | Z65: =Z24 -> -10.00
Y66: =AA24 -> -10.00 | Z66: =AB24 -> -10.00
X67: =A25 -> R18 | Y67: =Y25 -> -10.00 | Z67: =Z25 -> -10.00
Y68: =AA25 -> -10.00 | Z68: =AB25 -> -10.00
X69: =A26 -> R19 | Y69: =Y26 -> -10.00 | Z69: =Z26 -> -10.00
Y70: =AA26 -> -10.00 | Z70: =AB26 -> -10.00
X71: =A27 -> R20 | Y71: =Y27 -> -10.00 | Z71: =Z27 -> -10.00
Y72: =AA27 -> -10.00 | Z72: =AB27 -> -10.00

Sheet Mål 9
A1: Risikoidentifikasjon og analyse | E1: Ansvarlig: | L1: Risikomatrise, se under
A2: Enhet: | C2: =IF(Forside!C2="","",Forside!C2) -> Tjenesteområde <<tjenesteområde>> | E2: Dato: | F2: =IF(Forside!C4="","",Forside!C4) -> 
A3: Mål / krav nr 9: | E3: Risiko før tiltak | H3: Deltakere i prosessen: | L3: Risiko etter tiltak
E4: Risiko-vurdering | G4: Risiko-nivå | H4: =IF(Forside!C3="","",Forside!C3) -> <<deltakere>> | L4: Risiko-vurdering | N4: Risiko-nivå
E5: S | F5: K | L5: S | M5: K
D6: Gjsn risiko for målet: | E6: =IF(ISERROR(AVERAGE(E8:E27)),"",ROUND(AVERAGE(E8:E27),0)) ->  | F6: =IF(ISERROR(AVERAGE(F8:F27)),"",ROUND(AVERAGE(F8:F27),0)) ->  | G6: =IF(ISERROR(E6*F6),"",VLOOKUP(E6,Lists!B$10:G$14,CEILING(F6-0.5,1)+1,TRUE)) ->  | L6: =IF(ISERROR(AVERAGE(L8:L27)),"",ROUND(AVERAGE(L8:L27),0)) ->  | M6: =IF(ISERROR(AVERAGE(M8:M27)),"",ROUND(AVERAGE(M8:M27),0)) ->  | N6: =IF(ISERROR(L6*M6),"",VLOOKUP(L6,Lists!B$10:G$14,CEILING(M6-0.5,1)+1,TRUE)) ->  | Y6: Før tiltak | AA6: Etter tiltak
A7: Risiko nr | B7: Mulige hendelser/ risiko | C7: Område | D7: Eksisterende tiltak | E7: S | F7: K | G7: Risiko-nivå | H7: Risikoeier: | I7: Nye tiltak: | J7: Ansvarlig: | K7: Frist: | L7: S | M7: K | N7: Risiko-nivå | Y7: X-forskyv konsekv | Z7: Y-forskyv Sanns | AA7: X-forskyv konsekv | AB7: Y-forskyv Sanns
A8: R1 | G8: =IF(F8*E8=0,"",VLOOKUP(E8,Lists!B$10:G$14,CEILING(F8-0.5,1)+1,TRUE)) ->  | N8: =IF(M8*L8=0,"",VLOOKUP(L8,Lists!B$10:G$14,CEILING(M8-0.5,1)+1,TRUE)) ->  | Y8: =IF(F8="",-10,F8+AC29) -> -10.00 | Z8: =IF(E8="",-10,E8+AD29) -> -10.00 | AA8: =IF(M8="",Y8,M8+AC29) -> -10.00 | AB8: =IF(L8="",Z8,L8+AD29) -> -10.00
A9: R2 | G9: =IF(F9*E9=0,"",VLOOKUP(E9,Lists!B$10:G$14,CEILING(F9-0.5,1)+1,TRUE)) ->  | N9: =IF(M9*L9=0,"",VLOOKUP(L9,Lists!B$10:G$14,CEILING(M9-0.5,1)+1,TRUE)) ->  | Y9: -10.00 | Z9: -10.00 | AA9: -10.00 | AB9: -10.00
A10: R3 | G10: =IF(F10*E10=0,"",VLOOKUP(E10,Lists!B$10:G$14,CEILING(F10-0.5,1)+1,TRUE)) ->  | N10: =IF(M10*L10=0,"",VLOOKUP(L10,Lists!B$10:G$14,CEILING(M10-0.5,1)+1,TRUE)) ->  | Y10: -10.00 | Z10: -10.00 | AA10: -10.00 | AB10: -10.00
A11: R4 | G11: =IF(F11*E11=0,"",VLOOKUP(E11,Lists!B$10:G$14,CEILING(F11-0.5,1)+1,TRUE)) ->  | N11: =IF(M11*L11=0,"",VLOOKUP(L11,Lists!B$10:G$14,CEILING(M11-0.5,1)+1,TRUE)) ->  | Y11: -10.00 | Z11: -10.00 | AA11: -10.00 | AB11: -10.00
A12: R5 | G12: =IF(F12*E12=0,"",VLOOKUP(E12,Lists!B$10:G$14,CEILING(F12-0.5,1)+1,TRUE)) ->  | N12: =IF(M12*L12=0,"",VLOOKUP(L12,Lists!B$10:G$14,CEILING(M12-0.5,1)+1,TRUE)) ->  | Y12: -10.00 | Z12: -10.00 | AA12: -10.00 | AB12: -10.00
A13: R6 | G13: =IF(F13*E13=0,"",VLOOKUP(E13,Lists!B$10:G$14,CEILING(F13-0.5,1)+1,TRUE)) ->  | N13: =IF(M13*L13=0,"",VLOOKUP(L13,Lists!B$10:G$14,CEILING(M13-0.5,1)+1,TRUE)) ->  | Y13: -10.00 | Z13: -10.00 | AA13: -10.00 | AB13: -10.00
A14: R7 | G14: =IF(F14*E14=0,"",VLOOKUP(E14,Lists!B$10:G$14,CEILING(F14-0.5,1)+1,TRUE)) ->  | N14: =IF(M14*L14=0,"",VLOOKUP(L14,Lists!B$10:G$14,CEILING(M14-0.5,1)+1,TRUE)) ->  | Y14: -10.00 | Z14: -10.00 | AA14: -10.00 | AB14: -10.00
A15: R8 | G15: =IF(F15*E15=0,"",VLOOKUP(E15,Lists!B$10:G$14,CEILING(F15-0.5,1)+1,TRUE)) ->  | N15: =IF(M15*L15=0,"",VLOOKUP(L15,Lists!B$10:G$14,CEILING(M15-0.5,1)+1,TRUE)) ->  | Y15: -10.00 | Z15: -10.00 | AA15: -10.00 | AB15: -10.00
A16: R9 | G16: =IF(F16*E16=0,"",VLOOKUP(E16,Lists!B$10:G$14,CEILING(F16-0.5,1)+1,TRUE)) ->  | N16: =IF(M16*L16=0,"",VLOOKUP(L16,Lists!B$10:G$14,CEILING(M16-0.5,1)+1,TRUE)) ->  | Y16: -10.00 | Z16: -10.00 | AA16: -10.00 | AB16: -10.00
A17: R10 | G17: =IF(F17*E17=0,"",VLOOKUP(E17,Lists!B$10:G$14,CEILING(F17-0.5,1)+1,TRUE)) ->  | N17: =IF(M17*L17=0,"",VLOOKUP(L17,Lists!B$10:G$14,CEILING(M17-0.5,1)+1,TRUE)) ->  | Y17: -10.00 | Z17: -10.00 | AA17: -10.00 | AB17: -10.00
A18: R11 | G18: =IF(F18*E18=0,"",VLOOKUP(E18,Lists!B$10:G$14,CEILING(F18-0.5,1)+1,TRUE)) ->  | N18: =IF(M18*L18=0,"",VLOOKUP(L18,Lists!B$10:G$14,CEILING(M18-0.5,1)+1,TRUE)) ->  | Y18: -10.00 | Z18: -10.00 | AA18: -10.00 | AB18: -10.00
A19: R12 | G19: =IF(F19*E19=0,"",VLOOKUP(E19,Lists!B$10:G$14,CEILING(F19-0.5,1)+1,TRUE)) ->  | N19: =IF(M19*L19=0,"",VLOOKUP(L19,Lists!B$10:G$14,CEILING(M19-0.5,1)+1,TRUE)) ->  | Y19: -10.00 | Z19: -10.00 | AA19: -10.00 | AB19: -10.00
A20: R13 | G20: =IF(F20*E20=0,"",VLOOKUP(E20,Lists!B$10:G$14,CEILING(F20-0.5,1)+1,TRUE)) ->  | N20: =IF(M20*L20=0,"",VLOOKUP(L20,Lists!B$10:G$14,CEILING(M20-0.5,1)+1,TRUE)) ->  | Y20: -10.00 | Z20: -10.00 | AA20: -10.00 | AB20: -10.00
A21: R14 | G21: =IF(F21*E21=0,"",VLOOKUP(E21,Lists!B$10:G$14,CEILING(F21-0.5,1)+1,TRUE)) ->  | N21: =IF(M21*L21=0,"",VLOOKUP(L21,Lists!B$10:G$14,CEILING(M21-0.5,1)+1,TRUE)) ->  | Y21: -10.00 | Z21: -10.00 | AA21: -10.00 | AB21: -10.00
A22: R15 | G22: =IF(F22*E22=0,"",VLOOKUP(E22,Lists!B$10:G$14,CEILING(F22-0.5,1)+1,TRUE)) ->  | N22: =IF(M22*L22=0,"",VLOOKUP(L22,Lists!B$10:G$14,CEILING(M22-0.5,1)+1,TRUE)) ->  | Y22: -10.00 | Z22: -10.00 | AA22: -10.00 | AB22: -10.00
A23: R16 | G23: =IF(F23*E23=0,"",VLOOKUP(E23,Lists!B$10:G$14,CEILING(F23-0.5,1)+1,TRUE)) ->  | N23: =IF(M23*L23=0,"",VLOOKUP(L23,Lists!B$10:G$14,CEILING(M23-0.5,1)+1,TRUE)) ->  | Y23: -10.00 | Z23: -10.00 | AA23: -10.00 | AB23: -10.00
A24: R17 | G24: =IF(F24*E24=0,"",VLOOKUP(E24,Lists!B$10:G$14,CEILING(F24-0.5,1)+1,TRUE)) ->  | N24: =IF(M24*L24=0,"",VLOOKUP(L24,Lists!B$10:G$14,CEILING(M24-0.5,1)+1,TRUE)) ->  | Y24: -10.00 | Z24: -10.00 | AA24: -10.00 | AB24: -10.00
A25: R18 | G25: =IF(F25*E25=0,"",VLOOKUP(E25,Lists!B$10:G$14,CEILING(F25-0.5,1)+1,TRUE)) ->  | N25: =IF(M25*L25=0,"",VLOOKUP(L25,Lists!B$10:G$14,CEILING(M25-0.5,1)+1,TRUE)) ->  | Y25: -10.00 | Z25: -10.00 | AA25: -10.00 | AB25: -10.00
A26: R19 | G26: =IF(F26*E26=0,"",VLOOKUP(E26,Lists!B$10:G$14,CEILING(F26-0.5,1)+1,TRUE)) ->  | N26: =IF(M26*L26=0,"",VLOOKUP(L26,Lists!B$10:G$14,CEILING(M26-0.5,1)+1,TRUE)) ->  | Y26: -10.00 | Z26: -10.00 | AA26: -10.00 | AB26: -10.00
A27: R20 | G27: =IF(F27*E27=0,"",VLOOKUP(E27,Lists!B$10:G$14,CEILING(F27-0.5,1)+1,TRUE)) ->  | N27: =IF(M27*L27=0,"",VLOOKUP(L27,Lists!B$10:G$14,CEILING(M27-0.5,1)+1,TRUE)) ->  | Y27: -10.00 | Z27: -10.00 | AA27: -10.00 | AB27: -10.00
AC28: X-forskyv | AD28: Y-forskyv
AC29: -0.85 | AD29: -0.5
Y30: X-Konsekvens | Z30: Y-Sannsynlighet | AC30: -0.85 | AD30: -0.25
A31: =A3 -> Mål / krav nr 9: | X31: Gj sn | Y31: =IF(F6="",-10,F6-0.5) -> -10.00 | Z31: =IF(E6="",-10,E6-0.5) -> -10.00 | AC31: -0.85 | AD31: -0.75
A32: =IF(A4="","",A4) ->  | Y32: =IF(M6="",Y31,M6-0.6) -> -10.00 | Z32: =IF(L6="",Z31,L6-0.6) -> -10.00 | AC32: -0.75 | AD32: -0.5
X33: =A8 -> R1 | Y33: =Y8 -> -10.00 | Z33: =Z8 -> -10 | AC33: -0.75 | AD33: -0.25
C34: Når risikovurdering før og etter tiltak er utfylt er: | Y34: =AA8 -> -10.00 | Z34: =AB8 -> -10 | AC34: -0.75 | AD34: -0.75
C35: ● = Risikonivå før tiltak | X35: =A9 -> R2 | Y35: =Y9 -> -10 | Z35: =Z9 -> -10 | AC35: -0.66 | AD35: -0.5
C36: ■ = Risikonivå etter tiltak | Y36: =AA9 -> -10.00 | Z36: =AB9 -> -10 | AC36: -0.66 | AD36: -0.25
X37: =A10 -> R3 | Y37: =Y10 -> -10 | Z37: =Z10 -> -10 | AC37: -0.66 | AD37: -0.75
Y38: =AA10 -> -10 | Z38: =AB10 -> -10 | AC38: -0.5 | AD38: -0.5
X39: =A11 -> R4 | Y39: =Y11 -> -10 | Z39: =Z11 -> -10 | AC39: -0.5 | AD39: -0.25
Y40: =AA11 -> -10 | Z40: =AB11 -> -10 | AC40: -0.5 | AD40: -0.75
X41: =A12 -> R5 | Y41: =Y12 -> -10 | Z41: =Z12 -> -10 | AC41: -0.33 | AD41: -0.5
Y42: =AA12 -> -10 | Z42: =AB12 -> -10 | AC42: -0.33 | AD42: -0.25
X43: =A13 -> R6 | Y43: =Y13 -> -10 | Z43: =Z13 -> -10 | AC43: -0.33 | AD43: -0.75
Y44: =AA13 -> -10 | Z44: =AB13 -> -10 | AC44: -0.25 | AD44: -0.5
X45: =A14 -> R7 | Y45: =Y14 -> -10 | Z45: =Z14 -> -10 | AC45: -0.25 | AD45: -0.25
Y46: =AA14 -> -10 | Z46: =AB14 -> -10 | AC46: -0.25 | AD46: -0.75
X47: =A15 -> R8 | Y47: =Y15 -> -10 | Z47: =Z15 -> -10 | AC47: -0.15 | AD47: -0.5
Y48: =AA15 -> -10 | Z48: =AB15 -> -10 | AC48: -0.15 | AD48: -0.25
X49: =A16 -> R9 | Y49: =Y16 -> -10 | Z49: =Z16 -> -10
Y50: =AA16 -> -10 | Z50: =AB16 -> -10
X51: =A17 -> R10 | Y51: =Y17 -> -10 | Z51: =Z17 -> -10
Y52: =AA17 -> -10 | Z52: =AB17 -> -10
X53: =A18 -> R11 | Y53: =Y18 -> -10 | Z53: =Z18 -> -10
Y54: =AA18 -> -10 | Z54: =AB18 -> -10
X55: =A19 -> R12 | Y55: =Y19 -> -10.00 | Z55: =Z19 -> -10
Y56: =AA19 -> -10 | Z56: =AB19 -> -10
X57: =A20 -> R13 | Y57: =Y20 -> -10 | Z57: =Z20 -> -10
Y58: =AA20 -> -10 | Z58: =AB20 -> -10
X59: =A21 -> R14 | Y59: =Y21 -> -10 | Z59: =Z21 -> -10
Y60: =AA21 -> -10 | Z60: =AB21 -> -10
X61: =A22 -> R15 | Y61: =Y22 -> -10 | Z61: =Z22 -> -10
Y62: =AA22 -> -10 | Z62: =AB22 -> -10
X63: =A23 -> R16 | Y63: =Y23 -> -10.00 | Z63: =Z23 -> -10.00
Y64: =AA23 -> -10.00 | Z64: =AB23 -> -10.00
X65: =A24 -> R17 | Y65: =Y24 -> -10.00 | Z65: =Z24 -> -10.00
Y66: =AA24 -> -10.00 | Z66: =AB24 -> -10.00
X67: =A25 -> R18 | Y67: =Y25 -> -10.00 | Z67: =Z25 -> -10.00
Y68: =AA25 -> -10.00 | Z68: =AB25 -> -10.00
X69: =A26 -> R19 | Y69: =Y26 -> -10.00 | Z69: =Z26 -> -10.00
Y70: =AA26 -> -10.00 | Z70: =AB26 -> -10.00
X71: =A27 -> R20 | Y71: =Y27 -> -10.00 | Z71: =Z27 -> -10.00
Y72: =AA27 -> -10.00 | Z72: =AB27 -> -10.00

Sheet Mål 10
A1: Risikoidentifikasjon og analyse | E1: Ansvarlig: | L1: Risikomatrise, se under
A2: Enhet: | C2: =IF(Forside!C2="","",Forside!C2) -> Tjenesteområde <<tjenesteområde>> | E2: Dato: | F2: =IF(Forside!C4="","",Forside!C4) -> 
A3: Mål / krav nr 10: | E3: Risiko før tiltak | H3: Deltakere i prosessen: | L3: Risiko etter tiltak
E4: Risiko-vurdering | G4: Risiko-nivå | H4: =IF(Forside!C3="","",Forside!C3) -> <<deltakere>> | L4: Risiko-vurdering | N4: Risiko-nivå
E5: S | F5: K | L5: S | M5: K
D6: Gjsn risiko for målet: | E6: =IF(ISERROR(AVERAGE(E8:E27)),"",ROUND(AVERAGE(E8:E27),0)) ->  | F6: =IF(ISERROR(AVERAGE(F8:F27)),"",ROUND(AVERAGE(F8:F27),0)) ->  | G6: =IF(ISERROR(E6*F6),"",VLOOKUP(E6,Lists!B$10:G$14,CEILING(F6-0.5,1)+1,TRUE)) ->  | L6: =IF(ISERROR(AVERAGE(L8:L27)),"",ROUND(AVERAGE(L8:L27),0)) ->  | M6: =IF(ISERROR(AVERAGE(M8:M27)),"",ROUND(AVERAGE(M8:M27),0)) ->  | N6: =IF(ISERROR(L6*M6),"",VLOOKUP(L6,Lists!B$10:G$14,CEILING(M6-0.5,1)+1,TRUE)) ->  | Y6: Før tiltak | AA6: Etter tiltak
A7: Risiko nr | B7: Mulige hendelser/ risiko | C7: Område | D7: Eksisterende tiltak | E7: S | F7: K | G7: Risiko-nivå | H7: Risikoeier: | I7: Nye tiltak: | J7: Ansvarlig: | K7: Frist: | L7: S | M7: K | N7: Risiko-nivå | Y7: X-forskyv konsekv | Z7: Y-forskyv Sanns | AA7: X-forskyv konsekv | AB7: Y-forskyv Sanns
A8: R1 | G8: =IF(F8*E8=0,"",VLOOKUP(E8,Lists!B$10:G$14,CEILING(F8-0.5,1)+1,TRUE)) ->  | N8: =IF(M8*L8=0,"",VLOOKUP(L8,Lists!B$10:G$14,CEILING(M8-0.5,1)+1,TRUE)) ->  | Y8: =IF(F8="",-10,F8+AC29) -> -10.00 | Z8: =IF(E8="",-10,E8+AD29) -> -10.00 | AA8: =IF(M8="",Y8,M8+AC29) -> -10.00 | AB8: =IF(L8="",Z8,L8+AD29) -> -10.00
A9: R2 | G9: =IF(F9*E9=0,"",VLOOKUP(E9,Lists!B$10:G$14,CEILING(F9-0.5,1)+1,TRUE)) ->  | N9: =IF(M9*L9=0,"",VLOOKUP(L9,Lists!B$10:G$14,CEILING(M9-0.5,1)+1,TRUE)) ->  | Y9: -10.00 | Z9: -10.00 | AA9: -10.00 | AB9: -10.00
A10: R3 | G10: =IF(F10*E10=0,"",VLOOKUP(E10,Lists!B$10:G$14,CEILING(F10-0.5,1)+1,TRUE)) ->  | N10: =IF(M10*L10=0,"",VLOOKUP(L10,Lists!B$10:G$14,CEILING(M10-0.5,1)+1,TRUE)) ->  | Y10: -10.00 | Z10: -10.00 | AA10: -10.00 | AB10: -10.00
A11: R4 | G11: =IF(F11*E11=0,"",VLOOKUP(E11,Lists!B$10:G$14,CEILING(F11-0.5,1)+1,TRUE)) ->  | N11: =IF(M11*L11=0,"",VLOOKUP(L11,Lists!B$10:G$14,CEILING(M11-0.5,1)+1,TRUE)) ->  | Y11: -10.00 | Z11: -10.00 | AA11: -10.00 | AB11: -10.00
A12: R5 | G12: =IF(F12*E12=0,"",VLOOKUP(E12,Lists!B$10:G$14,CEILING(F12-0.5,1)+1,TRUE)) ->  | N12: =IF(M12*L12=0,"",VLOOKUP(L12,Lists!B$10:G$14,CEILING(M12-0.5,1)+1,TRUE)) ->  | Y12: -10.00 | Z12: -10.00 | AA12: -10.00 | AB12: -10.00
A13: R6 | G13: =IF(F13*E13=0,"",VLOOKUP(E13,Lists!B$10:G$14,CEILING(F13-0.5,1)+1,TRUE)) ->  | N13: =IF(M13*L13=0,"",VLOOKUP(L13,Lists!B$10:G$14,CEILING(M13-0.5,1)+1,TRUE)) ->  | Y13: -10.00 | Z13: -10.00 | AA13: -10.00 | AB13: -10.00
A14: R7 | G14: =IF(F14*E14=0,"",VLOOKUP(E14,Lists!B$10:G$14,CEILING(F14-0.5,1)+1,TRUE)) ->  | N14: =IF(M14*L14=0,"",VLOOKUP(L14,Lists!B$10:G$14,CEILING(M14-0.5,1)+1,TRUE)) ->  | Y14: -10.00 | Z14: -10.00 | AA14: -10.00 | AB14: -10.00
A15: R8 | G15: =IF(F15*E15=0,"",VLOOKUP(E15,Lists!B$10:G$14,CEILING(F15-0.5,1)+1,TRUE)) ->  | N15: =IF(M15*L15=0,"",VLOOKUP(L15,Lists!B$10:G$14,CEILING(M15-0.5,1)+1,TRUE)) ->  | Y15: -10.00 | Z15: -10.00 | AA15: -10.00 | AB15: -10.00
A16: R9 | G16: =IF(F16*E16=0,"",VLOOKUP(E16,Lists!B$10:G$14,CEILING(F16-0.5,1)+1,TRUE)) ->  | N16: =IF(M16*L16=0,"",VLOOKUP(L16,Lists!B$10:G$14,CEILING(M16-0.5,1)+1,TRUE)) ->  | Y16: -10.00 | Z16: -10.00 | AA16: -10.00 | AB16: -10.00
A17: R10 | G17: =IF(F17*E17=0,"",VLOOKUP(E17,Lists!B$10:G$14,CEILING(F17-0.5,1)+1,TRUE)) ->  | N17: =IF(M17*L17=0,"",VLOOKUP(L17,Lists!B$10:G$14,CEILING(M17-0.5,1)+1,TRUE)) ->  | Y17: -10.00 | Z17: -10.00 | AA17: -10.00 | AB17: -10.00
A18: R11 | G18: =IF(F18*E18=0,"",VLOOKUP(E18,Lists!B$10:G$14,CEILING(F18-0.5,1)+1,TRUE)) ->  | N18: =IF(M18*L18=0,"",VLOOKUP(L18,Lists!B$10:G$14,CEILING(M18-0.5,1)+1,TRUE)) ->  | Y18: -10.00 | Z18: -10.00 | AA18: -10.00 | AB18: -10.00
A19: R12 | G19: =IF(F19*E19=0,"",VLOOKUP(E19,Lists!B$10:G$14,CEILING(F19-0.5,1)+1,TRUE)) ->  | N19: =IF(M19*L19=0,"",VLOOKUP(L19,Lists!B$10:G$14,CEILING(M19-0.5,1)+1,TRUE)) ->  | Y19: -10.00 | Z19: -10.00 | AA19: -10.00 | AB19: -10.00
A20: R13 | G20: =IF(F20*E20=0,"",VLOOKUP(E20,Lists!B$10:G$14,CEILING(F20-0.5,1)+1,TRUE)) ->  | N20: =IF(M20*L20=0,"",VLOOKUP(L20,Lists!B$10:G$14,CEILING(M20-0.5,1)+1,TRUE)) ->  | Y20: -10.00 | Z20: -10.00 | AA20: -10.00 | AB20: -10.00
A21: R14 | G21: =IF(F21*E21=0,"",VLOOKUP(E21,Lists!B$10:G$14,CEILING(F21-0.5,1)+1,TRUE)) ->  | N21: =IF(M21*L21=0,"",VLOOKUP(L21,Lists!B$10:G$14,CEILING(M21-0.5,1)+1,TRUE)) ->  | Y21: -10.00 | Z21: -10.00 | AA21: -10.00 | AB21: -10.00
A22: R15 | G22: =IF(F22*E22=0,"",VLOOKUP(E22,Lists!B$10:G$14,CEILING(F22-0.5,1)+1,TRUE)) ->  | N22: =IF(M22*L22=0,"",VLOOKUP(L22,Lists!B$10:G$14,CEILING(M22-0.5,1)+1,TRUE)) ->  | Y22: -10.00 | Z22: -10.00 | AA22: -10.00 | AB22: -10.00
A23: R16 | G23: =IF(F23*E23=0,"",VLOOKUP(E23,Lists!B$10:G$14,CEILING(F23-0.5,1)+1,TRUE)) ->  | N23: =IF(M23*L23=0,"",VLOOKUP(L23,Lists!B$10:G$14,CEILING(M23-0.5,1)+1,TRUE)) ->  | Y23: -10.00 | Z23: -10.00 | AA23: -10.00 | AB23: -10.00
A24: R17 | G24: =IF(F24*E24=0,"",VLOOKUP(E24,Lists!B$10:G$14,CEILING(F24-0.5,1)+1,TRUE)) ->  | N24: =IF(M24*L24=0,"",VLOOKUP(L24,Lists!B$10:G$14,CEILING(M24-0.5,1)+1,TRUE)) ->  | Y24: -10.00 | Z24: -10.00 | AA24: -10.00 | AB24: -10.00
A25: R18 | G25: =IF(F25*E25=0,"",VLOOKUP(E25,Lists!B$10:G$14,CEILING(F25-0.5,1)+1,TRUE)) ->  | N25: =IF(M25*L25=0,"",VLOOKUP(L25,Lists!B$10:G$14,CEILING(M25-0.5,1)+1,TRUE)) ->  | Y25: -10.00 | Z25: -10.00 | AA25: -10.00 | AB25: -10.00
A26: R19 | G26: =IF(F26*E26=0,"",VLOOKUP(E26,Lists!B$10:G$14,CEILING(F26-0.5,1)+1,TRUE)) ->  | N26: =IF(M26*L26=0,"",VLOOKUP(L26,Lists!B$10:G$14,CEILING(M26-0.5,1)+1,TRUE)) ->  | Y26: -10.00 | Z26: -10.00 | AA26: -10.00 | AB26: -10.00
A27: R20 | G27: =IF(F27*E27=0,"",VLOOKUP(E27,Lists!B$10:G$14,CEILING(F27-0.5,1)+1,TRUE)) ->  | N27: =IF(M27*L27=0,"",VLOOKUP(L27,Lists!B$10:G$14,CEILING(M27-0.5,1)+1,TRUE)) ->  | Y27: -10.00 | Z27: -10.00 | AA27: -10.00 | AB27: -10.00
AC28: X-forskyv | AD28: Y-forskyv
AC29: -0.85 | AD29: -0.5
Y30: X-Konsekvens | Z30: Y-Sannsynlighet | AC30: -0.85 | AD30: -0.25
A31: =A3 -> Mål / krav nr 10: | X31: Gj sn | Y31: =IF(F6="",-10,F6-0.5) -> -10.00 | Z31: =IF(E6="",-10,E6-0.5) -> -10.00 | AC31: -0.85 | AD31: -0.75
A32: =IF(A4="","",A4) ->  | Y32: =IF(M6="",Y31,M6-0.6) -> -10.00 | Z32: =IF(L6="",Z31,L6-0.6) -> -10.00 | AC32: -0.75 | AD32: -0.5
X33: =A8 -> R1 | Y33: =Y8 -> -10.00 | Z33: =Z8 -> -10 | AC33: -0.75 | AD33: -0.25
C34: Når risikovurdering før og etter tiltak er utfylt er: | Y34: =AA8 -> -10.00 | Z34: =AB8 -> -10 | AC34: -0.75 | AD34: -0.75
C35: ● = Risikonivå før tiltak | X35: =A9 -> R2 | Y35: =Y9 -> -10 | Z35: =Z9 -> -10 | AC35: -0.66 | AD35: -0.5
C36: ■ = Risikonivå etter tiltak | Y36: =AA9 -> -10.00 | Z36: =AB9 -> -10 | AC36: -0.66 | AD36: -0.25
X37: =A10 -> R3 | Y37: =Y10 -> -10 | Z37: =Z10 -> -10 | AC37: -0.66 | AD37: -0.75
Y38: =AA10 -> -10 | Z38: =AB10 -> -10 | AC38: -0.5 | AD38: -0.5
X39: =A11 -> R4 | Y39: =Y11 -> -10 | Z39: =Z11 -> -10 | AC39: -0.5 | AD39: -0.25
Y40: =AA11 -> -10 | Z40: =AB11 -> -10 | AC40: -0.5 | AD40: -0.75
X41: =A12 -> R5 | Y41: =Y12 -> -10 | Z41: =Z12 -> -10 | AC41: -0.33 | AD41: -0.5
Y42: =AA12 -> -10 | Z42: =AB12 -> -10 | AC42: -0.33 | AD42: -0.25
X43: =A13 -> R6 | Y43: =Y13 -> -10 | Z43: =Z13 -> -10 | AC43: -0.33 | AD43: -0.75
Y44: =AA13 -> -10 | Z44: =AB13 -> -10 | AC44: -0.25 | AD44: -0.5
X45: =A14 -> R7 | Y45: =Y14 -> -10 | Z45: =Z14 -> -10 | AC45: -0.25 | AD45: -0.25
Y46: =AA14 -> -10 | Z46: =AB14 -> -10 | AC46: -0.25 | AD46: -0.75
X47: =A15 -> R8 | Y47: =Y15 -> -10 | Z47: =Z15 -> -10 | AC47: -0.15 | AD47: -0.5
Y48: =AA15 -> -10 | Z48: =AB15 -> -10 | AC48: -0.15 | AD48: -0.25
X49: =A16 -> R9 | Y49: =Y16 -> -10 | Z49: =Z16 -> -10
Y50: =AA16 -> -10 | Z50: =AB16 -> -10
X51: =A17 -> R10 | Y51: =Y17 -> -10 | Z51: =Z17 -> -10
Y52: =AA17 -> -10 | Z52: =AB17 -> -10
X53: =A18 -> R11 | Y53: =Y18 -> -10 | Z53: =Z18 -> -10
Y54: =AA18 -> -10 | Z54: =AB18 -> -10
X55: =A19 -> R12 | Y55: =Y19 -> -10.00 | Z55: =Z19 -> -10
Y56: =AA19 -> -10 | Z56: =AB19 -> -10
X57: =A20 -> R13 | Y57: =Y20 -> -10 | Z57: =Z20 -> -10
Y58: =AA20 -> -10 | Z58: =AB20 -> -10
X59: =A21 -> R14 | Y59: =Y21 -> -10 | Z59: =Z21 -> -10
Y60: =AA21 -> -10 | Z60: =AB21 -> -10
X61: =A22 -> R15 | Y61: =Y22 -> -10 | Z61: =Z22 -> -10
Y62: =AA22 -> -10 | Z62: =AB22 -> -10
X63: =A23 -> R16 | Y63: =Y23 -> -10.00 | Z63: =Z23 -> -10.00
Y64: =AA23 -> -10.00 | Z64: =AB23 -> -10.00
X65: =A24 -> R17 | Y65: =Y24 -> -10.00 | Z65: =Z24 -> -10.00
Y66: =AA24 -> -10.00 | Z66: =AB24 -> -10.00
X67: =A25 -> R18 | Y67: =Y25 -> -10.00 | Z67: =Z25 -> -10.00
Y68: =AA25 -> -10.00 | Z68: =AB25 -> -10.00
X69: =A26 -> R19 | Y69: =Y26 -> -10.00 | Z69: =Z26 -> -10.00
Y70: =AA26 -> -10.00 | Z70: =AB26 -> -10.00
X71: =A27 -> R20 | Y71: =Y27 -> -10.00 | Z71: =Z27 -> -10.00
Y72: =AA27 -> -10.00 | Z72: =AB27 -> -10.00

Sheet Mål 11
A1: Risikoidentifikasjon og analyse | E1: Ansvarlig: | L1: Risikomatrise, se under
A2: Enhet: | C2: =IF(Forside!C2="","",Forside!C2) -> Tjenesteområde <<tjenesteområde>> | E2: Dato: | F2: =IF(Forside!C4="","",Forside!C4) -> 
A3: Mål / krav nr 11: | E3: Risiko før tiltak | H3: Deltakere i prosessen: | L3: Risiko etter tiltak
E4: Risiko-vurdering | G4: Risiko-nivå | H4: =IF(Forside!C3="","",Forside!C3) -> <<deltakere>> | L4: Risiko-vurdering | N4: Risiko-nivå
E5: S | F5: K | L5: S | M5: K
D6: Gjsn risiko for målet: | E6: =IF(ISERROR(AVERAGE(E8:E27)),"",ROUND(AVERAGE(E8:E27),0)) ->  | F6: =IF(ISERROR(AVERAGE(F8:F27)),"",ROUND(AVERAGE(F8:F27),0)) ->  | G6: =IF(ISERROR(E6*F6),"",VLOOKUP(E6,Lists!B$10:G$14,CEILING(F6-0.5,1)+1,TRUE)) ->  | L6: =IF(ISERROR(AVERAGE(L8:L27)),"",ROUND(AVERAGE(L8:L27),0)) ->  | M6: =IF(ISERROR(AVERAGE(M8:M27)),"",ROUND(AVERAGE(M8:M27),0)) ->  | N6: =IF(ISERROR(L6*M6),"",VLOOKUP(L6,Lists!B$10:G$14,CEILING(M6-0.5,1)+1,TRUE)) ->  | Y6: Før tiltak | AA6: Etter tiltak
A7: Risiko nr | B7: Mulige hendelser/ risiko | C7: Område | D7: Eksisterende tiltak | E7: S | F7: K | G7: Risiko-nivå | H7: Risikoeier: | I7: Nye tiltak: | J7: Ansvarlig: | K7: Frist: | L7: S | M7: K | N7: Risiko-nivå | Y7: X-forskyv konsekv | Z7: Y-forskyv Sanns | AA7: X-forskyv konsekv | AB7: Y-forskyv Sanns
A8: R1 | G8: =IF(F8*E8=0,"",VLOOKUP(E8,Lists!B$10:G$14,CEILING(F8-0.5,1)+1,TRUE)) ->  | N8: =IF(M8*L8=0,"",VLOOKUP(L8,Lists!B$10:G$14,CEILING(M8-0.5,1)+1,TRUE)) ->  | Y8: =IF(F8="",-10,F8+AC29) -> -10.00 | Z8: =IF(E8="",-10,E8+AD29) -> -10.00 | AA8: =IF(M8="",Y8,M8+AC29) -> -10.00 | AB8: =IF(L8="",Z8,L8+AD29) -> -10.00
A9: R2 | G9: =IF(F9*E9=0,"",VLOOKUP(E9,Lists!B$10:G$14,CEILING(F9-0.5,1)+1,TRUE)) ->  | N9: =IF(M9*L9=0,"",VLOOKUP(L9,Lists!B$10:G$14,CEILING(M9-0.5,1)+1,TRUE)) ->  | Y9: -10.00 | Z9: -10.00 | AA9: -10.00 | AB9: -10.00
A10: R3 | G10: =IF(F10*E10=0,"",VLOOKUP(E10,Lists!B$10:G$14,CEILING(F10-0.5,1)+1,TRUE)) ->  | N10: =IF(M10*L10=0,"",VLOOKUP(L10,Lists!B$10:G$14,CEILING(M10-0.5,1)+1,TRUE)) ->  | Y10: -10.00 | Z10: -10.00 | AA10: -10.00 | AB10: -10.00
A11: R4 | G11: =IF(F11*E11=0,"",VLOOKUP(E11,Lists!B$10:G$14,CEILING(F11-0.5,1)+1,TRUE)) ->  | N11: =IF(M11*L11=0,"",VLOOKUP(L11,Lists!B$10:G$14,CEILING(M11-0.5,1)+1,TRUE)) ->  | Y11: -10.00 | Z11: -10.00 | AA11: -10.00 | AB11: -10.00
A12: R5 | G12: =IF(F12*E12=0,"",VLOOKUP(E12,Lists!B$10:G$14,CEILING(F12-0.5,1)+1,TRUE)) ->  | N12: =IF(M12*L12=0,"",VLOOKUP(L12,Lists!B$10:G$14,CEILING(M12-0.5,1)+1,TRUE)) ->  | Y12: -10.00 | Z12: -10.00 | AA12: -10.00 | AB12: -10.00
A13: R6 | G13: =IF(F13*E13=0,"",VLOOKUP(E13,Lists!B$10:G$14,CEILING(F13-0.5,1)+1,TRUE)) ->  | N13: =IF(M13*L13=0,"",VLOOKUP(L13,Lists!B$10:G$14,CEILING(M13-0.5,1)+1,TRUE)) ->  | Y13: -10.00 | Z13: -10.00 | AA13: -10.00 | AB13: -10.00
A14: R7 | G14: =IF(F14*E14=0,"",VLOOKUP(E14,Lists!B$10:G$14,CEILING(F14-0.5,1)+1,TRUE)) ->  | N14: =IF(M14*L14=0,"",VLOOKUP(L14,Lists!B$10:G$14,CEILING(M14-0.5,1)+1,TRUE)) ->  | Y14: -10.00 | Z14: -10.00 | AA14: -10.00 | AB14: -10.00
A15: R8 | G15: =IF(F15*E15=0,"",VLOOKUP(E15,Lists!B$10:G$14,CEILING(F15-0.5,1)+1,TRUE)) ->  | N15: =IF(M15*L15=0,"",VLOOKUP(L15,Lists!B$10:G$14,CEILING(M15-0.5,1)+1,TRUE)) ->  | Y15: -10.00 | Z15: -10.00 | AA15: -10.00 | AB15: -10.00
A16: R9 | G16: =IF(F16*E16=0,"",VLOOKUP(E16,Lists!B$10:G$14,CEILING(F16-0.5,1)+1,TRUE)) ->  | N16: =IF(M16*L16=0,"",VLOOKUP(L16,Lists!B$10:G$14,CEILING(M16-0.5,1)+1,TRUE)) ->  | Y16: -10.00 | Z16: -10.00 | AA16: -10.00 | AB16: -10.00
A17: R10 | G17: =IF(F17*E17=0,"",VLOOKUP(E17,Lists!B$10:G$14,CEILING(F17-0.5,1)+1,TRUE)) ->  | N17: =IF(M17*L17=0,"",VLOOKUP(L17,Lists!B$10:G$14,CEILING(M17-0.5,1)+1,TRUE)) ->  | Y17: -10.00 | Z17: -10.00 | AA17: -10.00 | AB17: -10.00
A18: R11 | G18: =IF(F18*E18=0,"",VLOOKUP(E18,Lists!B$10:G$14,CEILING(F18-0.5,1)+1,TRUE)) ->  | N18: =IF(M18*L18=0,"",VLOOKUP(L18,Lists!B$10:G$14,CEILING(M18-0.5,1)+1,TRUE)) ->  | Y18: -10.00 | Z18: -10.00 | AA18: -10.00 | AB18: -10.00
A19: R12 | G19: =IF(F19*E19=0,"",VLOOKUP(E19,Lists!B$10:G$14,CEILING(F19-0.5,1)+1,TRUE)) ->  | N19: =IF(M19*L19=0,"",VLOOKUP(L19,Lists!B$10:G$14,CEILING(M19-0.5,1)+1,TRUE)) ->  | Y19: -10.00 | Z19: -10.00 | AA19: -10.00 | AB19: -10.00
A20: R13 | G20: =IF(F20*E20=0,"",VLOOKUP(E20,Lists!B$10:G$14,CEILING(F20-0.5,1)+1,TRUE)) ->  | N20: =IF(M20*L20=0,"",VLOOKUP(L20,Lists!B$10:G$14,CEILING(M20-0.5,1)+1,TRUE)) ->  | Y20: -10.00 | Z20: -10.00 | AA20: -10.00 | AB20: -10.00
A21: R14 | G21: =IF(F21*E21=0,"",VLOOKUP(E21,Lists!B$10:G$14,CEILING(F21-0.5,1)+1,TRUE)) ->  | N21: =IF(M21*L21=0,"",VLOOKUP(L21,Lists!B$10:G$14,CEILING(M21-0.5,1)+1,TRUE)) ->  | Y21: -10.00 | Z21: -10.00 | AA21: -10.00 | AB21: -10.00
A22: R15 | G22: =IF(F22*E22=0,"",VLOOKUP(E22,Lists!B$10:G$14,CEILING(F22-0.5,1)+1,TRUE)) ->  | N22: =IF(M22*L22=0,"",VLOOKUP(L22,Lists!B$10:G$14,CEILING(M22-0.5,1)+1,TRUE)) ->  | Y22: -10.00 | Z22: -10.00 | AA22: -10.00 | AB22: -10.00
A23: R16 | G23: =IF(F23*E23=0,"",VLOOKUP(E23,Lists!B$10:G$14,CEILING(F23-0.5,1)+1,TRUE)) ->  | N23: =IF(M23*L23=0,"",VLOOKUP(L23,Lists!B$10:G$14,CEILING(M23-0.5,1)+1,TRUE)) ->  | Y23: -10.00 | Z23: -10.00 | AA23: -10.00 | AB23: -10.00
A24: R17 | G24: =IF(F24*E24=0,"",VLOOKUP(E24,Lists!B$10:G$14,CEILING(F24-0.5,1)+1,TRUE)) ->  | N24: =IF(M24*L24=0,"",VLOOKUP(L24,Lists!B$10:G$14,CEILING(M24-0.5,1)+1,TRUE)) ->  | Y24: -10.00 | Z24: -10.00 | AA24: -10.00 | AB24: -10.00
A25: R18 | G25: =IF(F25*E25=0,"",VLOOKUP(E25,Lists!B$10:G$14,CEILING(F25-0.5,1)+1,TRUE)) ->  | N25: =IF(M25*L25=0,"",VLOOKUP(L25,Lists!B$10:G$14,CEILING(M25-0.5,1)+1,TRUE)) ->  | Y25: -10.00 | Z25: -10.00 | AA25: -10.00 | AB25: -10.00
A26: R19 | G26: =IF(F26*E26=0,"",VLOOKUP(E26,Lists!B$10:G$14,CEILING(F26-0.5,1)+1,TRUE)) ->  | N26: =IF(M26*L26=0,"",VLOOKUP(L26,Lists!B$10:G$14,CEILING(M26-0.5,1)+1,TRUE)) ->  | Y26: -10.00 | Z26: -10.00 | AA26: -10.00 | AB26: -10.00
A27: R20 | G27: =IF(F27*E27=0,"",VLOOKUP(E27,Lists!B$10:G$14,CEILING(F27-0.5,1)+1,TRUE)) ->  | N27: =IF(M27*L27=0,"",VLOOKUP(L27,Lists!B$10:G$14,CEILING(M27-0.5,1)+1,TRUE)) ->  | Y27: -10.00 | Z27: -10.00 | AA27: -10.00 | AB27: -10.00
AC28: X-forskyv | AD28: Y-forskyv
AC29: -0.85 | AD29: -0.5
Y30: X-Konsekvens | Z30: Y-Sannsynlighet | AC30: -0.85 | AD30: -0.25
A31: =A3 -> Mål / krav nr 11: | X31: Gj sn | Y31: =IF(F6="",-10,F6-0.5) -> -10.00 | Z31: =IF(E6="",-10,E6-0.5) -> -10.00 | AC31: -0.85 | AD31: -0.75
A32: =IF(A4="","",A4) ->  | Y32: =IF(M6="",Y31,M6-0.6) -> -10.00 | Z32: =IF(L6="",Z31,L6-0.6) -> -10.00 | AC32: -0.75 | AD32: -0.5
X33: =A8 -> R1 | Y33: =Y8 -> -10.00 | Z33: =Z8 -> -10 | AC33: -0.75 | AD33: -0.25
C34: Når risikovurdering før og etter tiltak er utfylt er: | Y34: =AA8 -> -10.00 | Z34: =AB8 -> -10 | AC34: -0.75 | AD34: -0.75
C35: ● = Risikonivå før tiltak | X35: =A9 -> R2 | Y35: =Y9 -> -10 | Z35: =Z9 -> -10 | AC35: -0.66 | AD35: -0.5
C36: ■ = Risikonivå etter tiltak | Y36: =AA9 -> -10.00 | Z36: =AB9 -> -10 | AC36: -0.66 | AD36: -0.25
X37: =A10 -> R3 | Y37: =Y10 -> -10 | Z37: =Z10 -> -10 | AC37: -0.66 | AD37: -0.75
Y38: =AA10 -> -10 | Z38: =AB10 -> -10 | AC38: -0.5 | AD38: -0.5
X39: =A11 -> R4 | Y39: =Y11 -> -10 | Z39: =Z11 -> -10 | AC39: -0.5 | AD39: -0.25
Y40: =AA11 -> -10 | Z40: =AB11 -> -10 | AC40: -0.5 | AD40: -0.75
X41: =A12 -> R5 | Y41: =Y12 -> -10 | Z41: =Z12 -> -10 | AC41: -0.33 | AD41: -0.5
Y42: =AA12 -> -10 | Z42: =AB12 -> -10 | AC42: -0.33 | AD42: -0.25
X43: =A13 -> R6 | Y43: =Y13 -> -10 | Z43: =Z13 -> -10 | AC43: -0.33 | AD43: -0.75
Y44: =AA13 -> -10 | Z44: =AB13 -> -10 | AC44: -0.25 | AD44: -0.5
X45: =A14 -> R7 | Y45: =Y14 -> -10 | Z45: =Z14 -> -10 | AC45: -0.25 | AD45: -0.25
Y46: =AA14 -> -10 | Z46: =AB14 -> -10 | AC46: -0.25 | AD46: -0.75
X47: =A15 -> R8 | Y47: =Y15 -> -10 | Z47: =Z15 -> -10 | AC47: -0.15 | AD47: -0.5
Y48: =AA15 -> -10 | Z48: =AB15 -> -10 | AC48: -0.15 | AD48: -0.25
X49: =A16 -> R9 | Y49: =Y16 -> -10 | Z49: =Z16 -> -10
Y50: =AA16 -> -10 | Z50: =AB16 -> -10
X51: =A17 -> R10 | Y51: =Y17 -> -10 | Z51: =Z17 -> -10
Y52: =AA17 -> -10 | Z52: =AB17 -> -10
X53: =A18 -> R11 | Y53: =Y18 -> -10 | Z53: =Z18 -> -10
Y54: =AA18 -> -10 | Z54: =AB18 -> -10
X55: =A19 -> R12 | Y55: =Y19 -> -10.00 | Z55: =Z19 -> -10
Y56: =AA19 -> -10 | Z56: =AB19 -> -10
X57: =A20 -> R13 | Y57: =Y20 -> -10 | Z57: =Z20 -> -10
Y58: =AA20 -> -10 | Z58: =AB20 -> -10
X59: =A21 -> R14 | Y59: =Y21 -> -10 | Z59: =Z21 -> -10
Y60: =AA21 -> -10 | Z60: =AB21 -> -10
X61: =A22 -> R15 | Y61: =Y22 -> -10 | Z61: =Z22 -> -10
Y62: =AA22 -> -10 | Z62: =AB22 -> -10
X63: =A23 -> R16 | Y63: =Y23 -> -10.00 | Z63: =Z23 -> -10.00
Y64: =AA23 -> -10.00 | Z64: =AB23 -> -10.00
X65: =A24 -> R17 | Y65: =Y24 -> -10.00 | Z65: =Z24 -> -10.00
Y66: =AA24 -> -10.00 | Z66: =AB24 -> -10.00
X67: =A25 -> R18 | Y67: =Y25 -> -10.00 | Z67: =Z25 -> -10.00
Y68: =AA25 -> -10.00 | Z68: =AB25 -> -10.00
X69: =A26 -> R19 | Y69: =Y26 -> -10.00 | Z69: =Z26 -> -10.00
Y70: =AA26 -> -10.00 | Z70: =AB26 -> -10.00
X71: =A27 -> R20 | Y71: =Y27 -> -10.00 | Z71: =Z27 -> -10.00
Y72: =AA27 -> -10.00 | Z72: =AB27 -> -10.00

Sheet Mål 12
A1: Risikoidentifikasjon og analyse | E1: Ansvarlig: | L1: Risikomatrise, se under
A2: Enhet: | C2: =IF(Forside!C2="","",Forside!C2) -> Tjenesteområde <<tjenesteområde>> | E2: Dato: | F2: =IF(Forside!C4="","",Forside!C4) -> 
A3: Mål / krav nr 12: | E3: Risiko før tiltak | H3: Deltakere i prosessen: | L3: Risiko etter tiltak
E4: Risiko-vurdering | G4: Risiko-nivå | H4: =IF(Forside!C3="","",Forside!C3) -> <<deltakere>> | L4: Risiko-vurdering | N4: Risiko-nivå
E5: S | F5: K | L5: S | M5: K
D6: Gjsn risiko for målet: | E6: =IF(ISERROR(AVERAGE(E8:E27)),"",ROUND(AVERAGE(E8:E27),0)) ->  | F6: =IF(ISERROR(AVERAGE(F8:F27)),"",ROUND(AVERAGE(F8:F27),0)) ->  | G6: =IF(ISERROR(E6*F6),"",VLOOKUP(E6,Lists!B$10:G$14,CEILING(F6-0.5,1)+1,TRUE)) ->  | L6: =IF(ISERROR(AVERAGE(L8:L27)),"",ROUND(AVERAGE(L8:L27),0)) ->  | M6: =IF(ISERROR(AVERAGE(M8:M27)),"",ROUND(AVERAGE(M8:M27),0)) ->  | N6: =IF(ISERROR(L6*M6),"",VLOOKUP(L6,Lists!B$10:G$14,CEILING(M6-0.5,1)+1,TRUE)) ->  | Y6: Før tiltak | AA6: Etter tiltak
A7: Risiko nr | B7: Kritiske suksessfaktorer | C7: Område | D7: Eksisterende tiltak | E7: S | F7: K | G7: Risiko-nivå | H7: Risikoeier: | I7: Nye tiltak: | J7: Ansvarlig: | K7: Frist: | L7: S | M7: K | N7: Risiko-nivå | Y7: X-forskyv konsekv | Z7: Y-forskyv Sanns | AA7: X-forskyv konsekv | AB7: Y-forskyv Sanns
A8: R1 | G8: =IF(F8*E8=0,"",VLOOKUP(E8,Lists!B$10:G$14,CEILING(F8-0.5,1)+1,TRUE)) ->  | N8: =IF(M8*L8=0,"",VLOOKUP(L8,Lists!B$10:G$14,CEILING(M8-0.5,1)+1,TRUE)) ->  | Y8: =IF(F8="",-10,F8+AC29) -> -10.00 | Z8: =IF(E8="",-10,E8+AD29) -> -10.00 | AA8: =IF(M8="",Y8,M8+AC29) -> -10.00 | AB8: =IF(L8="",Z8,L8+AD29) -> -10.00
A9: R2 | G9: =IF(F9*E9=0,"",VLOOKUP(E9,Lists!B$10:G$14,CEILING(F9-0.5,1)+1,TRUE)) ->  | N9: =IF(M9*L9=0,"",VLOOKUP(L9,Lists!B$10:G$14,CEILING(M9-0.5,1)+1,TRUE)) ->  | Y9: -10.00 | Z9: -10.00 | AA9: -10.00 | AB9: -10.00
A10: R3 | G10: =IF(F10*E10=0,"",VLOOKUP(E10,Lists!B$10:G$14,CEILING(F10-0.5,1)+1,TRUE)) ->  | N10: =IF(M10*L10=0,"",VLOOKUP(L10,Lists!B$10:G$14,CEILING(M10-0.5,1)+1,TRUE)) ->  | Y10: -10.00 | Z10: -10.00 | AA10: -10.00 | AB10: -10.00
A11: R4 | G11: =IF(F11*E11=0,"",VLOOKUP(E11,Lists!B$10:G$14,CEILING(F11-0.5,1)+1,TRUE)) ->  | N11: =IF(M11*L11=0,"",VLOOKUP(L11,Lists!B$10:G$14,CEILING(M11-0.5,1)+1,TRUE)) ->  | Y11: -10.00 | Z11: -10.00 | AA11: -10.00 | AB11: -10.00
A12: R5 | G12: =IF(F12*E12=0,"",VLOOKUP(E12,Lists!B$10:G$14,CEILING(F12-0.5,1)+1,TRUE)) ->  | N12: =IF(M12*L12=0,"",VLOOKUP(L12,Lists!B$10:G$14,CEILING(M12-0.5,1)+1,TRUE)) ->  | Y12: -10.00 | Z12: -10.00 | AA12: -10.00 | AB12: -10.00
A13: R6 | G13: =IF(F13*E13=0,"",VLOOKUP(E13,Lists!B$10:G$14,CEILING(F13-0.5,1)+1,TRUE)) ->  | N13: =IF(M13*L13=0,"",VLOOKUP(L13,Lists!B$10:G$14,CEILING(M13-0.5,1)+1,TRUE)) ->  | Y13: -10.00 | Z13: -10.00 | AA13: -10.00 | AB13: -10.00
A14: R7 | G14: =IF(F14*E14=0,"",VLOOKUP(E14,Lists!B$10:G$14,CEILING(F14-0.5,1)+1,TRUE)) ->  | N14: =IF(M14*L14=0,"",VLOOKUP(L14,Lists!B$10:G$14,CEILING(M14-0.5,1)+1,TRUE)) ->  | Y14: -10.00 | Z14: -10.00 | AA14: -10.00 | AB14: -10.00
A15: R8 | G15: =IF(F15*E15=0,"",VLOOKUP(E15,Lists!B$10:G$14,CEILING(F15-0.5,1)+1,TRUE)) ->  | N15: =IF(M15*L15=0,"",VLOOKUP(L15,Lists!B$10:G$14,CEILING(M15-0.5,1)+1,TRUE)) ->  | Y15: -10.00 | Z15: -10.00 | AA15: -10.00 | AB15: -10.00
A16: R9 | G16: =IF(F16*E16=0,"",VLOOKUP(E16,Lists!B$10:G$14,CEILING(F16-0.5,1)+1,TRUE)) ->  | N16: =IF(M16*L16=0,"",VLOOKUP(L16,Lists!B$10:G$14,CEILING(M16-0.5,1)+1,TRUE)) ->  | Y16: -10.00 | Z16: -10.00 | AA16: -10.00 | AB16: -10.00
A17: R10 | G17: =IF(F17*E17=0,"",VLOOKUP(E17,Lists!B$10:G$14,CEILING(F17-0.5,1)+1,TRUE)) ->  | N17: =IF(M17*L17=0,"",VLOOKUP(L17,Lists!B$10:G$14,CEILING(M17-0.5,1)+1,TRUE)) ->  | Y17: -10.00 | Z17: -10.00 | AA17: -10.00 | AB17: -10.00
A18: R11 | G18: =IF(F18*E18=0,"",VLOOKUP(E18,Lists!B$10:G$14,CEILING(F18-0.5,1)+1,TRUE)) ->  | N18: =IF(M18*L18=0,"",VLOOKUP(L18,Lists!B$10:G$14,CEILING(M18-0.5,1)+1,TRUE)) ->  | Y18: -10.00 | Z18: -10.00 | AA18: -10.00 | AB18: -10.00
A19: R12 | G19: =IF(F19*E19=0,"",VLOOKUP(E19,Lists!B$10:G$14,CEILING(F19-0.5,1)+1,TRUE)) ->  | N19: =IF(M19*L19=0,"",VLOOKUP(L19,Lists!B$10:G$14,CEILING(M19-0.5,1)+1,TRUE)) ->  | Y19: -10.00 | Z19: -10.00 | AA19: -10.00 | AB19: -10.00
A20: R13 | G20: =IF(F20*E20=0,"",VLOOKUP(E20,Lists!B$10:G$14,CEILING(F20-0.5,1)+1,TRUE)) ->  | N20: =IF(M20*L20=0,"",VLOOKUP(L20,Lists!B$10:G$14,CEILING(M20-0.5,1)+1,TRUE)) ->  | Y20: -10.00 | Z20: -10.00 | AA20: -10.00 | AB20: -10.00
A21: R14 | G21: =IF(F21*E21=0,"",VLOOKUP(E21,Lists!B$10:G$14,CEILING(F21-0.5,1)+1,TRUE)) ->  | N21: =IF(M21*L21=0,"",VLOOKUP(L21,Lists!B$10:G$14,CEILING(M21-0.5,1)+1,TRUE)) ->  | Y21: -10.00 | Z21: -10.00 | AA21: -10.00 | AB21: -10.00
A22: R15 | G22: =IF(F22*E22=0,"",VLOOKUP(E22,Lists!B$10:G$14,CEILING(F22-0.5,1)+1,TRUE)) ->  | N22: =IF(M22*L22=0,"",VLOOKUP(L22,Lists!B$10:G$14,CEILING(M22-0.5,1)+1,TRUE)) ->  | Y22: -10.00 | Z22: -10.00 | AA22: -10.00 | AB22: -10.00
A23: R16 | G23: =IF(F23*E23=0,"",VLOOKUP(E23,Lists!B$10:G$14,CEILING(F23-0.5,1)+1,TRUE)) ->  | N23: =IF(M23*L23=0,"",VLOOKUP(L23,Lists!B$10:G$14,CEILING(M23-0.5,1)+1,TRUE)) ->  | Y23: -10.00 | Z23: -10.00 | AA23: -10.00 | AB23: -10.00
A24: R17 | G24: =IF(F24*E24=0,"",VLOOKUP(E24,Lists!B$10:G$14,CEILING(F24-0.5,1)+1,TRUE)) ->  | N24: =IF(M24*L24=0,"",VLOOKUP(L24,Lists!B$10:G$14,CEILING(M24-0.5,1)+1,TRUE)) ->  | Y24: -10.00 | Z24: -10.00 | AA24: -10.00 | AB24: -10.00
A25: R18 | G25: =IF(F25*E25=0,"",VLOOKUP(E25,Lists!B$10:G$14,CEILING(F25-0.5,1)+1,TRUE)) ->  | N25: =IF(M25*L25=0,"",VLOOKUP(L25,Lists!B$10:G$14,CEILING(M25-0.5,1)+1,TRUE)) ->  | Y25: -10.00 | Z25: -10.00 | AA25: -10.00 | AB25: -10.00
A26: R19 | G26: =IF(F26*E26=0,"",VLOOKUP(E26,Lists!B$10:G$14,CEILING(F26-0.5,1)+1,TRUE)) ->  | N26: =IF(M26*L26=0,"",VLOOKUP(L26,Lists!B$10:G$14,CEILING(M26-0.5,1)+1,TRUE)) ->  | Y26: -10.00 | Z26: -10.00 | AA26: -10.00 | AB26: -10.00
A27: R20 | G27: =IF(F27*E27=0,"",VLOOKUP(E27,Lists!B$10:G$14,CEILING(F27-0.5,1)+1,TRUE)) ->  | N27: =IF(M27*L27=0,"",VLOOKUP(L27,Lists!B$10:G$14,CEILING(M27-0.5,1)+1,TRUE)) ->  | Y27: -10.00 | Z27: -10.00 | AA27: -10.00 | AB27: -10.00
AC28: X-forskyv | AD28: Y-forskyv
AC29: -0.85 | AD29: -0.5
Y30: X-Konsekvens | Z30: Y-Sannsynlighet | AC30: -0.85 | AD30: -0.25
A31: =A3 -> Mål / krav nr 12: | X31: Gj sn | Y31: =IF(F6="",-10,F6-0.5) -> -10.00 | Z31: =IF(E6="",-10,E6-0.5) -> -10.00 | AC31: -0.85 | AD31: -0.75
A32: =IF(A4="","",A4) ->  | Y32: =IF(M6="",Y31,M6-0.6) -> -10.00 | Z32: =IF(L6="",Z31,L6-0.6) -> -10.00 | AC32: -0.75 | AD32: -0.5
X33: =A8 -> R1 | Y33: =Y8 -> -10.00 | Z33: =Z8 -> -10 | AC33: -0.75 | AD33: -0.25
C34: Når risikovurdering før og etter tiltak er utfylt er: | Y34: =AA8 -> -10.00 | Z34: =AB8 -> -10 | AC34: -0.75 | AD34: -0.75
C35: ● = Risikonivå før tiltak | X35: =A9 -> R2 | Y35: =Y9 -> -10 | Z35: =Z9 -> -10 | AC35: -0.66 | AD35: -0.5
C36: ■ = Risikonivå etter tiltak | Y36: =AA9 -> -10.00 | Z36: =AB9 -> -10 | AC36: -0.66 | AD36: -0.25
X37: =A10 -> R3 | Y37: =Y10 -> -10 | Z37: =Z10 -> -10 | AC37: -0.66 | AD37: -0.75
Y38: =AA10 -> -10 | Z38: =AB10 -> -10 | AC38: -0.5 | AD38: -0.5
X39: =A11 -> R4 | Y39: =Y11 -> -10 | Z39: =Z11 -> -10 | AC39: -0.5 | AD39: -0.25
Y40: =AA11 -> -10 | Z40: =AB11 -> -10 | AC40: -0.5 | AD40: -0.75
X41: =A12 -> R5 | Y41: =Y12 -> -10 | Z41: =Z12 -> -10 | AC41: -0.33 | AD41: -0.5
Y42: =AA12 -> -10 | Z42: =AB12 -> -10 | AC42: -0.33 | AD42: -0.25
X43: =A13 -> R6 | Y43: =Y13 -> -10 | Z43: =Z13 -> -10 | AC43: -0.33 | AD43: -0.75
Y44: =AA13 -> -10 | Z44: =AB13 -> -10 | AC44: -0.25 | AD44: -0.5
X45: =A14 -> R7 | Y45: =Y14 -> -10 | Z45: =Z14 -> -10 | AC45: -0.25 | AD45: -0.25
Y46: =AA14 -> -10 | Z46: =AB14 -> -10 | AC46: -0.25 | AD46: -0.75
X47: =A15 -> R8 | Y47: =Y15 -> -10 | Z47: =Z15 -> -10 | AC47: -0.15 | AD47: -0.5
Y48: =AA15 -> -10 | Z48: =AB15 -> -10 | AC48: -0.15 | AD48: -0.25
X49: =A16 -> R9 | Y49: =Y16 -> -10 | Z49: =Z16 -> -10
Y50: =AA16 -> -10 | Z50: =AB16 -> -10
X51: =A17 -> R10 | Y51: =Y17 -> -10 | Z51: =Z17 -> -10
Y52: =AA17 -> -10 | Z52: =AB17 -> -10
X53: =A18 -> R11 | Y53: =Y18 -> -10 | Z53: =Z18 -> -10
Y54: =AA18 -> -10 | Z54: =AB18 -> -10
X55: =A19 -> R12 | Y55: =Y19 -> -10.00 | Z55: =Z19 -> -10
Y56: =AA19 -> -10 | Z56: =AB19 -> -10
X57: =A20 -> R13 | Y57: =Y20 -> -10 | Z57: =Z20 -> -10
Y58: =AA20 -> -10 | Z58: =AB20 -> -10
X59: =A21 -> R14 | Y59: =Y21 -> -10 | Z59: =Z21 -> -10
Y60: =AA21 -> -10 | Z60: =AB21 -> -10
X61: =A22 -> R15 | Y61: =Y22 -> -10 | Z61: =Z22 -> -10
Y62: =AA22 -> -10 | Z62: =AB22 -> -10
X63: =A23 -> R16 | Y63: =Y23 -> -10.00 | Z63: =Z23 -> -10.00
Y64: =AA23 -> -10.00 | Z64: =AB23 -> -10.00
X65: =A24 -> R17 | Y65: =Y24 -> -10.00 | Z65: =Z24 -> -10.00
Y66: =AA24 -> -10.00 | Z66: =AB24 -> -10.00
X67: =A25 -> R18 | Y67: =Y25 -> -10.00 | Z67: =Z25 -> -10.00
Y68: =AA25 -> -10.00 | Z68: =AB25 -> -10.00
X69: =A26 -> R19 | Y69: =Y26 -> -10.00 | Z69: =Z26 -> -10.00
Y70: =AA26 -> -10.00 | Z70: =AB26 -> -10.00
X71: =A27 -> R20 | Y71: =Y27 -> -10.00 | Z71: =Z27 -> -10.00
Y72: =AA27 -> -10.00 | Z72: =AB27 -> -10.00

Sheet Mål 13
A1: Risikoidentifikasjon og analyse | E1: Ansvarlig: | L1: Risikomatrise, se under
A2: Enhet: | C2: =IF(Forside!C2="","",Forside!C2) -> Tjenesteområde <<tjenesteområde>> | E2: Dato: | F2: =IF(Forside!C4="","",Forside!C4) -> 
A3: Mål / krav nr 13: | E3: Risiko før tiltak | H3: Deltakere i prosessen: | L3: Risiko etter tiltak
E4: Risiko-vurdering | G4: Risiko-nivå | H4: =IF(Forside!C3="","",Forside!C3) -> <<deltakere>> | L4: Risiko-vurdering | N4: Risiko-nivå
E5: S | F5: K | L5: S | M5: K
D6: Gjsn risiko for målet: | E6: =IF(ISERROR(AVERAGE(E8:E27)),"",ROUND(AVERAGE(E8:E27),0)) ->  | F6: =IF(ISERROR(AVERAGE(F8:F27)),"",ROUND(AVERAGE(F8:F27),0)) ->  | G6: =IF(ISERROR(E6*F6),"",VLOOKUP(E6,Lists!B$10:G$14,CEILING(F6-0.5,1)+1,TRUE)) ->  | L6: =IF(ISERROR(AVERAGE(L8:L27)),"",ROUND(AVERAGE(L8:L27),0)) ->  | M6: =IF(ISERROR(AVERAGE(M8:M27)),"",ROUND(AVERAGE(M8:M27),0)) ->  | N6: =IF(ISERROR(L6*M6),"",VLOOKUP(L6,Lists!B$10:G$14,CEILING(M6-0.5,1)+1,TRUE)) ->  | Y6: Før tiltak | AA6: Etter tiltak
A7: Risiko nr | B7: Kritiske suksessfaktorer | C7: Område | D7: Eksisterende tiltak | E7: S | F7: K | G7: Risiko-nivå | H7: Risikoeier: | I7: Nye tiltak: | J7: Ansvarlig: | K7: Frist: | L7: S | M7: K | N7: Risiko-nivå | Y7: X-forskyv konsekv | Z7: Y-forskyv Sanns | AA7: X-forskyv konsekv | AB7: Y-forskyv Sanns
A8: R1 | G8: =IF(F8*E8=0,"",VLOOKUP(E8,Lists!B$10:G$14,CEILING(F8-0.5,1)+1,TRUE)) ->  | N8: =IF(M8*L8=0,"",VLOOKUP(L8,Lists!B$10:G$14,CEILING(M8-0.5,1)+1,TRUE)) ->  | Y8: =IF(F8="",-10,F8+AC29) -> -10.00 | Z8: =IF(E8="",-10,E8+AD29) -> -10.00 | AA8: =IF(M8="",Y8,M8+AC29) -> -10.00 | AB8: =IF(L8="",Z8,L8+AD29) -> -10.00
A9: R2 | G9: =IF(F9*E9=0,"",VLOOKUP(E9,Lists!B$10:G$14,CEILING(F9-0.5,1)+1,TRUE)) ->  | N9: =IF(M9*L9=0,"",VLOOKUP(L9,Lists!B$10:G$14,CEILING(M9-0.5,1)+1,TRUE)) ->  | Y9: -10.00 | Z9: -10.00 | AA9: -10.00 | AB9: -10.00
A10: R3 | G10: =IF(F10*E10=0,"",VLOOKUP(E10,Lists!B$10:G$14,CEILING(F10-0.5,1)+1,TRUE)) ->  | N10: =IF(M10*L10=0,"",VLOOKUP(L10,Lists!B$10:G$14,CEILING(M10-0.5,1)+1,TRUE)) ->  | Y10: -10.00 | Z10: -10.00 | AA10: -10.00 | AB10: -10.00
A11: R4 | G11: =IF(F11*E11=0,"",VLOOKUP(E11,Lists!B$10:G$14,CEILING(F11-0.5,1)+1,TRUE)) ->  | N11: =IF(M11*L11=0,"",VLOOKUP(L11,Lists!B$10:G$14,CEILING(M11-0.5,1)+1,TRUE)) ->  | Y11: -10.00 | Z11: -10.00 | AA11: -10.00 | AB11: -10.00
A12: R5 | G12: =IF(F12*E12=0,"",VLOOKUP(E12,Lists!B$10:G$14,CEILING(F12-0.5,1)+1,TRUE)) ->  | N12: =IF(M12*L12=0,"",VLOOKUP(L12,Lists!B$10:G$14,CEILING(M12-0.5,1)+1,TRUE)) ->  | Y12: -10.00 | Z12: -10.00 | AA12: -10.00 | AB12: -10.00
A13: R6 | G13: =IF(F13*E13=0,"",VLOOKUP(E13,Lists!B$10:G$14,CEILING(F13-0.5,1)+1,TRUE)) ->  | N13: =IF(M13*L13=0,"",VLOOKUP(L13,Lists!B$10:G$14,CEILING(M13-0.5,1)+1,TRUE)) ->  | Y13: -10.00 | Z13: -10.00 | AA13: -10.00 | AB13: -10.00
A14: R7 | G14: =IF(F14*E14=0,"",VLOOKUP(E14,Lists!B$10:G$14,CEILING(F14-0.5,1)+1,TRUE)) ->  | N14: =IF(M14*L14=0,"",VLOOKUP(L14,Lists!B$10:G$14,CEILING(M14-0.5,1)+1,TRUE)) ->  | Y14: -10.00 | Z14: -10.00 | AA14: -10.00 | AB14: -10.00
A15: R8 | G15: =IF(F15*E15=0,"",VLOOKUP(E15,Lists!B$10:G$14,CEILING(F15-0.5,1)+1,TRUE)) ->  | N15: =IF(M15*L15=0,"",VLOOKUP(L15,Lists!B$10:G$14,CEILING(M15-0.5,1)+1,TRUE)) ->  | Y15: -10.00 | Z15: -10.00 | AA15: -10.00 | AB15: -10.00
A16: R9 | G16: =IF(F16*E16=0,"",VLOOKUP(E16,Lists!B$10:G$14,CEILING(F16-0.5,1)+1,TRUE)) ->  | N16: =IF(M16*L16=0,"",VLOOKUP(L16,Lists!B$10:G$14,CEILING(M16-0.5,1)+1,TRUE)) ->  | Y16: -10.00 | Z16: -10.00 | AA16: -10.00 | AB16: -10.00
A17: R10 | G17: =IF(F17*E17=0,"",VLOOKUP(E17,Lists!B$10:G$14,CEILING(F17-0.5,1)+1,TRUE)) ->  | N17: =IF(M17*L17=0,"",VLOOKUP(L17,Lists!B$10:G$14,CEILING(M17-0.5,1)+1,TRUE)) ->  | Y17: -10.00 | Z17: -10.00 | AA17: -10.00 | AB17: -10.00
A18: R11 | G18: =IF(F18*E18=0,"",VLOOKUP(E18,Lists!B$10:G$14,CEILING(F18-0.5,1)+1,TRUE)) ->  | N18: =IF(M18*L18=0,"",VLOOKUP(L18,Lists!B$10:G$14,CEILING(M18-0.5,1)+1,TRUE)) ->  | Y18: -10.00 | Z18: -10.00 | AA18: -10.00 | AB18: -10.00
A19: R12 | G19: =IF(F19*E19=0,"",VLOOKUP(E19,Lists!B$10:G$14,CEILING(F19-0.5,1)+1,TRUE)) ->  | N19: =IF(M19*L19=0,"",VLOOKUP(L19,Lists!B$10:G$14,CEILING(M19-0.5,1)+1,TRUE)) ->  | Y19: -10.00 | Z19: -10.00 | AA19: -10.00 | AB19: -10.00
A20: R13 | G20: =IF(F20*E20=0,"",VLOOKUP(E20,Lists!B$10:G$14,CEILING(F20-0.5,1)+1,TRUE)) ->  | N20: =IF(M20*L20=0,"",VLOOKUP(L20,Lists!B$10:G$14,CEILING(M20-0.5,1)+1,TRUE)) ->  | Y20: -10.00 | Z20: -10.00 | AA20: -10.00 | AB20: -10.00
A21: R14 | G21: =IF(F21*E21=0,"",VLOOKUP(E21,Lists!B$10:G$14,CEILING(F21-0.5,1)+1,TRUE)) ->  | N21: =IF(M21*L21=0,"",VLOOKUP(L21,Lists!B$10:G$14,CEILING(M21-0.5,1)+1,TRUE)) ->  | Y21: -10.00 | Z21: -10.00 | AA21: -10.00 | AB21: -10.00
A22: R15 | G22: =IF(F22*E22=0,"",VLOOKUP(E22,Lists!B$10:G$14,CEILING(F22-0.5,1)+1,TRUE)) ->  | N22: =IF(M22*L22=0,"",VLOOKUP(L22,Lists!B$10:G$14,CEILING(M22-0.5,1)+1,TRUE)) ->  | Y22: -10.00 | Z22: -10.00 | AA22: -10.00 | AB22: -10.00
A23: R16 | G23: =IF(F23*E23=0,"",VLOOKUP(E23,Lists!B$10:G$14,CEILING(F23-0.5,1)+1,TRUE)) ->  | N23: =IF(M23*L23=0,"",VLOOKUP(L23,Lists!B$10:G$14,CEILING(M23-0.5,1)+1,TRUE)) ->  | Y23: -10.00 | Z23: -10.00 | AA23: -10.00 | AB23: -10.00
A24: R17 | G24: =IF(F24*E24=0,"",VLOOKUP(E24,Lists!B$10:G$14,CEILING(F24-0.5,1)+1,TRUE)) ->  | N24: =IF(M24*L24=0,"",VLOOKUP(L24,Lists!B$10:G$14,CEILING(M24-0.5,1)+1,TRUE)) ->  | Y24: -10.00 | Z24: -10.00 | AA24: -10.00 | AB24: -10.00
A25: R18 | G25: =IF(F25*E25=0,"",VLOOKUP(E25,Lists!B$10:G$14,CEILING(F25-0.5,1)+1,TRUE)) ->  | N25: =IF(M25*L25=0,"",VLOOKUP(L25,Lists!B$10:G$14,CEILING(M25-0.5,1)+1,TRUE)) ->  | Y25: -10.00 | Z25: -10.00 | AA25: -10.00 | AB25: -10.00
A26: R19 | G26: =IF(F26*E26=0,"",VLOOKUP(E26,Lists!B$10:G$14,CEILING(F26-0.5,1)+1,TRUE)) ->  | N26: =IF(M26*L26=0,"",VLOOKUP(L26,Lists!B$10:G$14,CEILING(M26-0.5,1)+1,TRUE)) ->  | Y26: -10.00 | Z26: -10.00 | AA26: -10.00 | AB26: -10.00
A27: R20 | G27: =IF(F27*E27=0,"",VLOOKUP(E27,Lists!B$10:G$14,CEILING(F27-0.5,1)+1,TRUE)) ->  | N27: =IF(M27*L27=0,"",VLOOKUP(L27,Lists!B$10:G$14,CEILING(M27-0.5,1)+1,TRUE)) ->  | Y27: -10.00 | Z27: -10.00 | AA27: -10.00 | AB27: -10.00
AC28: X-forskyv | AD28: Y-forskyv
AC29: -0.85 | AD29: -0.5
Y30: X-Konsekvens | Z30: Y-Sannsynlighet | AC30: -0.85 | AD30: -0.25
A31: =A3 -> Mål / krav nr 13: | X31: Gj sn | Y31: =IF(F6="",-10,F6-0.5) -> -10.00 | Z31: =IF(E6="",-10,E6-0.5) -> -10.00 | AC31: -0.85 | AD31: -0.75
A32: =IF(A4="","",A4) ->  | Y32: =IF(M6="",Y31,M6-0.6) -> -10.00 | Z32: =IF(L6="",Z31,L6-0.6) -> -10.00 | AC32: -0.75 | AD32: -0.5
X33: =A8 -> R1 | Y33: =Y8 -> -10.00 | Z33: =Z8 -> -10 | AC33: -0.75 | AD33: -0.25
C34: Når risikovurdering før og etter tiltak er utfylt er: | Y34: =AA8 -> -10.00 | Z34: =AB8 -> -10 | AC34: -0.75 | AD34: -0.75
C35: ● = Risikonivå før tiltak | X35: =A9 -> R2 | Y35: =Y9 -> -10 | Z35: =Z9 -> -10 | AC35: -0.66 | AD35: -0.5
C36: ■ = Risikonivå etter tiltak | Y36: =AA9 -> -10.00 | Z36: =AB9 -> -10 | AC36: -0.66 | AD36: -0.25
X37: =A10 -> R3 | Y37: =Y10 -> -10 | Z37: =Z10 -> -10 | AC37: -0.66 | AD37: -0.75
Y38: =AA10 -> -10 | Z38: =AB10 -> -10 | AC38: -0.5 | AD38: -0.5
X39: =A11 -> R4 | Y39: =Y11 -> -10 | Z39: =Z11 -> -10 | AC39: -0.5 | AD39: -0.25
Y40: =AA11 -> -10 | Z40: =AB11 -> -10 | AC40: -0.5 | AD40: -0.75
X41: =A12 -> R5 | Y41: =Y12 -> -10 | Z41: =Z12 -> -10 | AC41: -0.33 | AD41: -0.5
Y42: =AA12 -> -10 | Z42: =AB12 -> -10 | AC42: -0.33 | AD42: -0.25
X43: =A13 -> R6 | Y43: =Y13 -> -10 | Z43: =Z13 -> -10 | AC43: -0.33 | AD43: -0.75
Y44: =AA13 -> -10 | Z44: =AB13 -> -10 | AC44: -0.25 | AD44: -0.5
X45: =A14 -> R7 | Y45: =Y14 -> -10 | Z45: =Z14 -> -10 | AC45: -0.25 | AD45: -0.25
Y46: =AA14 -> -10 | Z46: =AB14 -> -10 | AC46: -0.25 | AD46: -0.75
X47: =A15 -> R8 | Y47: =Y15 -> -10 | Z47: =Z15 -> -10 | AC47: -0.15 | AD47: -0.5
Y48: =AA15 -> -10 | Z48: =AB15 -> -10 | AC48: -0.15 | AD48: -0.25
X49: =A16 -> R9 | Y49: =Y16 -> -10 | Z49: =Z16 -> -10
Y50: =AA16 -> -10 | Z50: =AB16 -> -10
X51: =A17 -> R10 | Y51: =Y17 -> -10 | Z51: =Z17 -> -10
Y52: =AA17 -> -10 | Z52: =AB17 -> -10
X53: =A18 -> R11 | Y53: =Y18 -> -10 | Z53: =Z18 -> -10
Y54: =AA18 -> -10 | Z54: =AB18 -> -10
X55: =A19 -> R12 | Y55: =Y19 -> -10.00 | Z55: =Z19 -> -10
Y56: =AA19 -> -10 | Z56: =AB19 -> -10
X57: =A20 -> R13 | Y57: =Y20 -> -10 | Z57: =Z20 -> -10
Y58: =AA20 -> -10 | Z58: =AB20 -> -10
X59: =A21 -> R14 | Y59: =Y21 -> -10 | Z59: =Z21 -> -10
Y60: =AA21 -> -10 | Z60: =AB21 -> -10
X61: =A22 -> R15 | Y61: =Y22 -> -10 | Z61: =Z22 -> -10
Y62: =AA22 -> -10 | Z62: =AB22 -> -10
X63: =A23 -> R16 | Y63: =Y23 -> -10.00 | Z63: =Z23 -> -10.00
Y64: =AA23 -> -10.00 | Z64: =AB23 -> -10.00
X65: =A24 -> R17 | Y65: =Y24 -> -10.00 | Z65: =Z24 -> -10.00
Y66: =AA24 -> -10.00 | Z66: =AB24 -> -10.00
X67: =A25 -> R18 | Y67: =Y25 -> -10.00 | Z67: =Z25 -> -10.00
Y68: =AA25 -> -10.00 | Z68: =AB25 -> -10.00
X69: =A26 -> R19 | Y69: =Y26 -> -10.00 | Z69: =Z26 -> -10.00
Y70: =AA26 -> -10.00 | Z70: =AB26 -> -10.00
X71: =A27 -> R20 | Y71: =Y27 -> -10.00 | Z71: =Z27 -> -10.00
Y72: =AA27 -> -10.00 | Z72: =AB27 -> -10.00

Sheet Mål 14
A1: Risikoidentifikasjon og analyse | E1: Ansvarlig: | L1: Risikomatrise, se under
A2: Enhet: | C2: =IF(Forside!C2="","",Forside!C2) -> Tjenesteområde <<tjenesteområde>> | E2: Dato: | F2: =IF(Forside!C4="","",Forside!C4) -> 
A3: Mål / krav nr 14: | E3: Risiko før tiltak | H3: Deltakere i prosessen: | L3: Risiko etter tiltak
E4: Risiko-vurdering | G4: Risiko-nivå | H4: =IF(Forside!C3="","",Forside!C3) -> <<deltakere>> | L4: Risiko-vurdering | N4: Risiko-nivå
E5: S | F5: K | L5: S | M5: K
D6: Gjsn risiko for målet: | E6: =IF(ISERROR(AVERAGE(E8:E27)),"",ROUND(AVERAGE(E8:E27),0)) ->  | F6: =IF(ISERROR(AVERAGE(F8:F27)),"",ROUND(AVERAGE(F8:F27),0)) ->  | G6: =IF(ISERROR(E6*F6),"",VLOOKUP(E6,Lists!B$10:G$14,CEILING(F6-0.5,1)+1,TRUE)) ->  | L6: =IF(ISERROR(AVERAGE(L8:L27)),"",ROUND(AVERAGE(L8:L27),0)) ->  | M6: =IF(ISERROR(AVERAGE(M8:M27)),"",ROUND(AVERAGE(M8:M27),0)) ->  | N6: =IF(ISERROR(L6*M6),"",VLOOKUP(L6,Lists!B$10:G$14,CEILING(M6-0.5,1)+1,TRUE)) ->  | Y6: Før tiltak | AA6: Etter tiltak
A7: Risiko nr | B7: Kritiske suksessfaktorer | C7: Område | D7: Eksisterende tiltak | E7: S | F7: K | G7: Risiko-nivå | H7: Risikoeier: | I7: Nye tiltak: | J7: Ansvarlig: | K7: Frist: | L7: S | M7: K | N7: Risiko-nivå | Y7: X-forskyv konsekv | Z7: Y-forskyv Sanns | AA7: X-forskyv konsekv | AB7: Y-forskyv Sanns
A8: R1 | G8: =IF(F8*E8=0,"",VLOOKUP(E8,Lists!B$10:G$14,CEILING(F8-0.5,1)+1,TRUE)) ->  | N8: =IF(M8*L8=0,"",VLOOKUP(L8,Lists!B$10:G$14,CEILING(M8-0.5,1)+1,TRUE)) ->  | Y8: =IF(F8="",-10,F8+AC29) -> -10.00 | Z8: =IF(E8="",-10,E8+AD29) -> -10.00 | AA8: =IF(M8="",Y8,M8+AC29) -> -10.00 | AB8: =IF(L8="",Z8,L8+AD29) -> -10.00
A9: R2 | G9: =IF(F9*E9=0,"",VLOOKUP(E9,Lists!B$10:G$14,CEILING(F9-0.5,1)+1,TRUE)) ->  | N9: =IF(M9*L9=0,"",VLOOKUP(L9,Lists!B$10:G$14,CEILING(M9-0.5,1)+1,TRUE)) ->  | Y9: -10.00 | Z9: -10.00 | AA9: -10.00 | AB9: -10.00
A10: R3 | G10: =IF(F10*E10=0,"",VLOOKUP(E10,Lists!B$10:G$14,CEILING(F10-0.5,1)+1,TRUE)) ->  | N10: =IF(M10*L10=0,"",VLOOKUP(L10,Lists!B$10:G$14,CEILING(M10-0.5,1)+1,TRUE)) ->  | Y10: -10.00 | Z10: -10.00 | AA10: -10.00 | AB10: -10.00
A11: R4 | G11: =IF(F11*E11=0,"",VLOOKUP(E11,Lists!B$10:G$14,CEILING(F11-0.5,1)+1,TRUE)) ->  | N11: =IF(M11*L11=0,"",VLOOKUP(L11,Lists!B$10:G$14,CEILING(M11-0.5,1)+1,TRUE)) ->  | Y11: -10.00 | Z11: -10.00 | AA11: -10.00 | AB11: -10.00
A12: R5 | G12: =IF(F12*E12=0,"",VLOOKUP(E12,Lists!B$10:G$14,CEILING(F12-0.5,1)+1,TRUE)) ->  | N12: =IF(M12*L12=0,"",VLOOKUP(L12,Lists!B$10:G$14,CEILING(M12-0.5,1)+1,TRUE)) ->  | Y12: -10.00 | Z12: -10.00 | AA12: -10.00 | AB12: -10.00
A13: R6 | G13: =IF(F13*E13=0,"",VLOOKUP(E13,Lists!B$10:G$14,CEILING(F13-0.5,1)+1,TRUE)) ->  | N13: =IF(M13*L13=0,"",VLOOKUP(L13,Lists!B$10:G$14,CEILING(M13-0.5,1)+1,TRUE)) ->  | Y13: -10.00 | Z13: -10.00 | AA13: -10.00 | AB13: -10.00
A14: R7 | G14: =IF(F14*E14=0,"",VLOOKUP(E14,Lists!B$10:G$14,CEILING(F14-0.5,1)+1,TRUE)) ->  | N14: =IF(M14*L14=0,"",VLOOKUP(L14,Lists!B$10:G$14,CEILING(M14-0.5,1)+1,TRUE)) ->  | Y14: -10.00 | Z14: -10.00 | AA14: -10.00 | AB14: -10.00
A15: R8 | G15: =IF(F15*E15=0,"",VLOOKUP(E15,Lists!B$10:G$14,CEILING(F15-0.5,1)+1,TRUE)) ->  | N15: =IF(M15*L15=0,"",VLOOKUP(L15,Lists!B$10:G$14,CEILING(M15-0.5,1)+1,TRUE)) ->  | Y15: -10.00 | Z15: -10.00 | AA15: -10.00 | AB15: -10.00
A16: R9 | G16: =IF(F16*E16=0,"",VLOOKUP(E16,Lists!B$10:G$14,CEILING(F16-0.5,1)+1,TRUE)) ->  | N16: =IF(M16*L16=0,"",VLOOKUP(L16,Lists!B$10:G$14,CEILING(M16-0.5,1)+1,TRUE)) ->  | Y16: -10.00 | Z16: -10.00 | AA16: -10.00 | AB16: -10.00
A17: R10 | G17: =IF(F17*E17=0,"",VLOOKUP(E17,Lists!B$10:G$14,CEILING(F17-0.5,1)+1,TRUE)) ->  | N17: =IF(M17*L17=0,"",VLOOKUP(L17,Lists!B$10:G$14,CEILING(M17-0.5,1)+1,TRUE)) ->  | Y17: -10.00 | Z17: -10.00 | AA17: -10.00 | AB17: -10.00
A18: R11 | G18: =IF(F18*E18=0,"",VLOOKUP(E18,Lists!B$10:G$14,CEILING(F18-0.5,1)+1,TRUE)) ->  | N18: =IF(M18*L18=0,"",VLOOKUP(L18,Lists!B$10:G$14,CEILING(M18-0.5,1)+1,TRUE)) ->  | Y18: -10.00 | Z18: -10.00 | AA18: -10.00 | AB18: -10.00
A19: R12 | G19: =IF(F19*E19=0,"",VLOOKUP(E19,Lists!B$10:G$14,CEILING(F19-0.5,1)+1,TRUE)) ->  | N19: =IF(M19*L19=0,"",VLOOKUP(L19,Lists!B$10:G$14,CEILING(M19-0.5,1)+1,TRUE)) ->  | Y19: -10.00 | Z19: -10.00 | AA19: -10.00 | AB19: -10.00
A20: R13 | G20: =IF(F20*E20=0,"",VLOOKUP(E20,Lists!B$10:G$14,CEILING(F20-0.5,1)+1,TRUE)) ->  | N20: =IF(M20*L20=0,"",VLOOKUP(L20,Lists!B$10:G$14,CEILING(M20-0.5,1)+1,TRUE)) ->  | Y20: -10.00 | Z20: -10.00 | AA20: -10.00 | AB20: -10.00
A21: R14 | G21: =IF(F21*E21=0,"",VLOOKUP(E21,Lists!B$10:G$14,CEILING(F21-0.5,1)+1,TRUE)) ->  | N21: =IF(M21*L21=0,"",VLOOKUP(L21,Lists!B$10:G$14,CEILING(M21-0.5,1)+1,TRUE)) ->  | Y21: -10.00 | Z21: -10.00 | AA21: -10.00 | AB21: -10.00
A22: R15 | G22: =IF(F22*E22=0,"",VLOOKUP(E22,Lists!B$10:G$14,CEILING(F22-0.5,1)+1,TRUE)) ->  | N22: =IF(M22*L22=0,"",VLOOKUP(L22,Lists!B$10:G$14,CEILING(M22-0.5,1)+1,TRUE)) ->  | Y22: -10.00 | Z22: -10.00 | AA22: -10.00 | AB22: -10.00
A23: R16 | G23: =IF(F23*E23=0,"",VLOOKUP(E23,Lists!B$10:G$14,CEILING(F23-0.5,1)+1,TRUE)) ->  | N23: =IF(M23*L23=0,"",VLOOKUP(L23,Lists!B$10:G$14,CEILING(M23-0.5,1)+1,TRUE)) ->  | Y23: -10.00 | Z23: -10.00 | AA23: -10.00 | AB23: -10.00
A24: R17 | G24: =IF(F24*E24=0,"",VLOOKUP(E24,Lists!B$10:G$14,CEILING(F24-0.5,1)+1,TRUE)) ->  | N24: =IF(M24*L24=0,"",VLOOKUP(L24,Lists!B$10:G$14,CEILING(M24-0.5,1)+1,TRUE)) ->  | Y24: -10.00 | Z24: -10.00 | AA24: -10.00 | AB24: -10.00
A25: R18 | G25: =IF(F25*E25=0,"",VLOOKUP(E25,Lists!B$10:G$14,CEILING(F25-0.5,1)+1,TRUE)) ->  | N25: =IF(M25*L25=0,"",VLOOKUP(L25,Lists!B$10:G$14,CEILING(M25-0.5,1)+1,TRUE)) ->  | Y25: -10.00 | Z25: -10.00 | AA25: -10.00 | AB25: -10.00
A26: R19 | G26: =IF(F26*E26=0,"",VLOOKUP(E26,Lists!B$10:G$14,CEILING(F26-0.5,1)+1,TRUE)) ->  | N26: =IF(M26*L26=0,"",VLOOKUP(L26,Lists!B$10:G$14,CEILING(M26-0.5,1)+1,TRUE)) ->  | Y26: -10.00 | Z26: -10.00 | AA26: -10.00 | AB26: -10.00
A27: R20 | G27: =IF(F27*E27=0,"",VLOOKUP(E27,Lists!B$10:G$14,CEILING(F27-0.5,1)+1,TRUE)) ->  | N27: =IF(M27*L27=0,"",VLOOKUP(L27,Lists!B$10:G$14,CEILING(M27-0.5,1)+1,TRUE)) ->  | Y27: -10.00 | Z27: -10.00 | AA27: -10.00 | AB27: -10.00
AC28: X-forskyv | AD28: Y-forskyv
AC29: -0.85 | AD29: -0.5
Y30: X-Konsekvens | Z30: Y-Sannsynlighet | AC30: -0.85 | AD30: -0.25
A31: =A3 -> Mål / krav nr 14: | X31: Gj sn | Y31: =IF(F6="",-10,F6-0.5) -> -10.00 | Z31: =IF(E6="",-10,E6-0.5) -> -10.00 | AC31: -0.85 | AD31: -0.75
A32: =IF(A4="","",A4) ->  | Y32: =IF(M6="",Y31,M6-0.6) -> -10.00 | Z32: =IF(L6="",Z31,L6-0.6) -> -10.00 | AC32: -0.75 | AD32: -0.5
X33: =A8 -> R1 | Y33: =Y8 -> -10.00 | Z33: =Z8 -> -10 | AC33: -0.75 | AD33: -0.25
C34: Når risikovurdering før og etter tiltak er utfylt er: | Y34: =AA8 -> -10.00 | Z34: =AB8 -> -10 | AC34: -0.75 | AD34: -0.75
C35: ● = Risikonivå før tiltak | X35: =A9 -> R2 | Y35: =Y9 -> -10 | Z35: =Z9 -> -10 | AC35: -0.66 | AD35: -0.5
C36: ■ = Risikonivå etter tiltak | Y36: =AA9 -> -10.00 | Z36: =AB9 -> -10 | AC36: -0.66 | AD36: -0.25
X37: =A10 -> R3 | Y37: =Y10 -> -10 | Z37: =Z10 -> -10 | AC37: -0.66 | AD37: -0.75
Y38: =AA10 -> -10 | Z38: =AB10 -> -10 | AC38: -0.5 | AD38: -0.5
X39: =A11 -> R4 | Y39: =Y11 -> -10 | Z39: =Z11 -> -10 | AC39: -0.5 | AD39: -0.25
Y40: =AA11 -> -10 | Z40: =AB11 -> -10 | AC40: -0.5 | AD40: -0.75
X41: =A12 -> R5 | Y41: =Y12 -> -10 | Z41: =Z12 -> -10 | AC41: -0.33 | AD41: -0.5
Y42: =AA12 -> -10 | Z42: =AB12 -> -10 | AC42: -0.33 | AD42: -0.25
X43: =A13 -> R6 | Y43: =Y13 -> -10 | Z43: =Z13 -> -10 | AC43: -0.33 | AD43: -0.75
Y44: =AA13 -> -10 | Z44: =AB13 -> -10 | AC44: -0.25 | AD44: -0.5
X45: =A14 -> R7 | Y45: =Y14 -> -10 | Z45: =Z14 -> -10 | AC45: -0.25 | AD45: -0.25
Y46: =AA14 -> -10 | Z46: =AB14 -> -10 | AC46: -0.25 | AD46: -0.75
X47: =A15 -> R8 | Y47: =Y15 -> -10 | Z47: =Z15 -> -10 | AC47: -0.15 | AD47: -0.5
Y48: =AA15 -> -10 | Z48: =AB15 -> -10 | AC48: -0.15 | AD48: -0.25
X49: =A16 -> R9 | Y49: =Y16 -> -10 | Z49: =Z16 -> -10
Y50: =AA16 -> -10 | Z50: =AB16 -> -10
X51: =A17 -> R10 | Y51: =Y17 -> -10 | Z51: =Z17 -> -10
Y52: =AA17 -> -10 | Z52: =AB17 -> -10
X53: =A18 -> R11 | Y53: =Y18 -> -10 | Z53: =Z18 -> -10
Y54: =AA18 -> -10 | Z54: =AB18 -> -10
X55: =A19 -> R12 | Y55: =Y19 -> -10.00 | Z55: =Z19 -> -10
Y56: =AA19 -> -10 | Z56: =AB19 -> -10
X57: =A20 -> R13 | Y57: =Y20 -> -10 | Z57: =Z20 -> -10
Y58: =AA20 -> -10 | Z58: =AB20 -> -10
X59: =A21 -> R14 | Y59: =Y21 -> -10 | Z59: =Z21 -> -10
Y60: =AA21 -> -10 | Z60: =AB21 -> -10
X61: =A22 -> R15 | Y61: =Y22 -> -10 | Z61: =Z22 -> -10
Y62: =AA22 -> -10 | Z62: =AB22 -> -10
X63: =A23 -> R16 | Y63: =Y23 -> -10.00 | Z63: =Z23 -> -10.00
Y64: =AA23 -> -10.00 | Z64: =AB23 -> -10.00
X65: =A24 -> R17 | Y65: =Y24 -> -10.00 | Z65: =Z24 -> -10.00
Y66: =AA24 -> -10.00 | Z66: =AB24 -> -10.00
X67: =A25 -> R18 | Y67: =Y25 -> -10.00 | Z67: =Z25 -> -10.00
Y68: =AA25 -> -10.00 | Z68: =AB25 -> -10.00
X69: =A26 -> R19 | Y69: =Y26 -> -10.00 | Z69: =Z26 -> -10.00
Y70: =AA26 -> -10.00 | Z70: =AB26 -> -10.00
X71: =A27 -> R20 | Y71: =Y27 -> -10.00 | Z71: =Z27 -> -10.00
Y72: =AA27 -> -10.00 | Z72: =AB27 -> -10.00

Sheet Mål 15
A1: Risikoidentifikasjon og analyse | E1: Ansvarlig: | L1: Risikomatrise, se under
A2: Enhet: | C2: =IF(Forside!C2="","",Forside!C2) -> Tjenesteområde <<tjenesteområde>> | E2: Dato: | F2: =IF(Forside!C4="","",Forside!C4) -> 
A3: Mål / resultatkrav nr 15: | E3: Risiko før tiltak | H3: Deltakere i prosessen: | L3: Risiko etter tiltak
E4: Risiko-vurdering | G4: Risiko-nivå | H4: =IF(Forside!C3="","",Forside!C3) -> <<deltakere>> | L4: Risiko-vurdering | N4: Risiko-nivå
E5: S | F5: K | L5: S | M5: K
D6: Gjsn risiko for målet: | E6: =IF(ISERROR(AVERAGE(E8:E27)),"",ROUND(AVERAGE(E8:E27),0)) ->  | F6: =IF(ISERROR(AVERAGE(F8:F27)),"",ROUND(AVERAGE(F8:F27),0)) ->  | G6: =IF(ISERROR(E6*F6),"",VLOOKUP(E6,Lists!B$10:G$14,CEILING(F6-0.5,1)+1,TRUE)) ->  | L6: =IF(ISERROR(AVERAGE(L8:L27)),"",ROUND(AVERAGE(L8:L27),0)) ->  | M6: =IF(ISERROR(AVERAGE(M8:M27)),"",ROUND(AVERAGE(M8:M27),0)) ->  | N6: =IF(ISERROR(L6*M6),"",VLOOKUP(L6,Lists!B$10:G$14,CEILING(M6-0.5,1)+1,TRUE)) ->  | Y6: Før tiltak | AA6: Etter tiltak
A7: Risiko nr | B7: Kritiske suksessfaktorer | C7: Område | D7: Eksisterende tiltak | E7: S | F7: K | G7: Risiko-nivå | H7: Risikoeier: | I7: Nye tiltak: | J7: Ansvarlig: | K7: Frist: | L7: S | M7: K | N7: Risiko-nivå | Y7: X-forskyv konsekv | Z7: Y-forskyv Sanns | AA7: X-forskyv konsekv | AB7: Y-forskyv Sanns
A8: R1 | G8: =IF(F8*E8=0,"",VLOOKUP(E8,Lists!B$10:G$14,CEILING(F8-0.5,1)+1,TRUE)) ->  | N8: =IF(M8*L8=0,"",VLOOKUP(L8,Lists!B$10:G$14,CEILING(M8-0.5,1)+1,TRUE)) ->  | Y8: =IF(F8="",-10,F8+AC29) -> -10.00 | Z8: =IF(E8="",-10,E8+AD29) -> -10.00 | AA8: =IF(M8="",Y8,M8+AC29) -> -10.00 | AB8: =IF(L8="",Z8,L8+AD29) -> -10.00
A9: R2 | G9: =IF(F9*E9=0,"",VLOOKUP(E9,Lists!B$10:G$14,CEILING(F9-0.5,1)+1,TRUE)) ->  | N9: =IF(M9*L9=0,"",VLOOKUP(L9,Lists!B$10:G$14,CEILING(M9-0.5,1)+1,TRUE)) ->  | Y9: -10.00 | Z9: -10.00 | AA9: -10.00 | AB9: -10.00
A10: R3 | G10: =IF(F10*E10=0,"",VLOOKUP(E10,Lists!B$10:G$14,CEILING(F10-0.5,1)+1,TRUE)) ->  | N10: =IF(M10*L10=0,"",VLOOKUP(L10,Lists!B$10:G$14,CEILING(M10-0.5,1)+1,TRUE)) ->  | Y10: -10.00 | Z10: -10.00 | AA10: -10.00 | AB10: -10.00
A11: R4 | G11: =IF(F11*E11=0,"",VLOOKUP(E11,Lists!B$10:G$14,CEILING(F11-0.5,1)+1,TRUE)) ->  | N11: =IF(M11*L11=0,"",VLOOKUP(L11,Lists!B$10:G$14,CEILING(M11-0.5,1)+1,TRUE)) ->  | Y11: -10.00 | Z11: -10.00 | AA11: -10.00 | AB11: -10.00
A12: R5 | G12: =IF(F12*E12=0,"",VLOOKUP(E12,Lists!B$10:G$14,CEILING(F12-0.5,1)+1,TRUE)) ->  | N12: =IF(M12*L12=0,"",VLOOKUP(L12,Lists!B$10:G$14,CEILING(M12-0.5,1)+1,TRUE)) ->  | Y12: -10.00 | Z12: -10.00 | AA12: -10.00 | AB12: -10.00
A13: R6 | G13: =IF(F13*E13=0,"",VLOOKUP(E13,Lists!B$10:G$14,CEILING(F13-0.5,1)+1,TRUE)) ->  | N13: =IF(M13*L13=0,"",VLOOKUP(L13,Lists!B$10:G$14,CEILING(M13-0.5,1)+1,TRUE)) ->  | Y13: -10.00 | Z13: -10.00 | AA13: -10.00 | AB13: -10.00
A14: R7 | G14: =IF(F14*E14=0,"",VLOOKUP(E14,Lists!B$10:G$14,CEILING(F14-0.5,1)+1,TRUE)) ->  | N14: =IF(M14*L14=0,"",VLOOKUP(L14,Lists!B$10:G$14,CEILING(M14-0.5,1)+1,TRUE)) ->  | Y14: -10.00 | Z14: -10.00 | AA14: -10.00 | AB14: -10.00
A15: R8 | G15: =IF(F15*E15=0,"",VLOOKUP(E15,Lists!B$10:G$14,CEILING(F15-0.5,1)+1,TRUE)) ->  | N15: =IF(M15*L15=0,"",VLOOKUP(L15,Lists!B$10:G$14,CEILING(M15-0.5,1)+1,TRUE)) ->  | Y15: -10.00 | Z15: -10.00 | AA15: -10.00 | AB15: -10.00
A16: R9 | G16: =IF(F16*E16=0,"",VLOOKUP(E16,Lists!B$10:G$14,CEILING(F16-0.5,1)+1,TRUE)) ->  | N16: =IF(M16*L16=0,"",VLOOKUP(L16,Lists!B$10:G$14,CEILING(M16-0.5,1)+1,TRUE)) ->  | Y16: -10.00 | Z16: -10.00 | AA16: -10.00 | AB16: -10.00
A17: R10 | G17: =IF(F17*E17=0,"",VLOOKUP(E17,Lists!B$10:G$14,CEILING(F17-0.5,1)+1,TRUE)) ->  | N17: =IF(M17*L17=0,"",VLOOKUP(L17,Lists!B$10:G$14,CEILING(M17-0.5,1)+1,TRUE)) ->  | Y17: -10.00 | Z17: -10.00 | AA17: -10.00 | AB17: -10.00
A18: R11 | G18: =IF(F18*E18=0,"",VLOOKUP(E18,Lists!B$10:G$14,CEILING(F18-0.5,1)+1,TRUE)) ->  | N18: =IF(M18*L18=0,"",VLOOKUP(L18,Lists!B$10:G$14,CEILING(M18-0.5,1)+1,TRUE)) ->  | Y18: -10.00 | Z18: -10.00 | AA18: -10.00 | AB18: -10.00
A19: R12 | G19: =IF(F19*E19=0,"",VLOOKUP(E19,Lists!B$10:G$14,CEILING(F19-0.5,1)+1,TRUE)) ->  | N19: =IF(M19*L19=0,"",VLOOKUP(L19,Lists!B$10:G$14,CEILING(M19-0.5,1)+1,TRUE)) ->  | Y19: -10.00 | Z19: -10.00 | AA19: -10.00 | AB19: -10.00
A20: R13 | G20: =IF(F20*E20=0,"",VLOOKUP(E20,Lists!B$10:G$14,CEILING(F20-0.5,1)+1,TRUE)) ->  | N20: =IF(M20*L20=0,"",VLOOKUP(L20,Lists!B$10:G$14,CEILING(M20-0.5,1)+1,TRUE)) ->  | Y20: -10.00 | Z20: -10.00 | AA20: -10.00 | AB20: -10.00
A21: R14 | G21: =IF(F21*E21=0,"",VLOOKUP(E21,Lists!B$10:G$14,CEILING(F21-0.5,1)+1,TRUE)) ->  | N21: =IF(M21*L21=0,"",VLOOKUP(L21,Lists!B$10:G$14,CEILING(M21-0.5,1)+1,TRUE)) ->  | Y21: -10.00 | Z21: -10.00 | AA21: -10.00 | AB21: -10.00
A22: R15 | G22: =IF(F22*E22=0,"",VLOOKUP(E22,Lists!B$10:G$14,CEILING(F22-0.5,1)+1,TRUE)) ->  | N22: =IF(M22*L22=0,"",VLOOKUP(L22,Lists!B$10:G$14,CEILING(M22-0.5,1)+1,TRUE)) ->  | Y22: -10.00 | Z22: -10.00 | AA22: -10.00 | AB22: -10.00
A23: R16 | G23: =IF(F23*E23=0,"",VLOOKUP(E23,Lists!B$10:G$14,CEILING(F23-0.5,1)+1,TRUE)) ->  | N23: =IF(M23*L23=0,"",VLOOKUP(L23,Lists!B$10:G$14,CEILING(M23-0.5,1)+1,TRUE)) ->  | Y23: -10.00 | Z23: -10.00 | AA23: -10.00 | AB23: -10.00
A24: R17 | G24: =IF(F24*E24=0,"",VLOOKUP(E24,Lists!B$10:G$14,CEILING(F24-0.5,1)+1,TRUE)) ->  | N24: =IF(M24*L24=0,"",VLOOKUP(L24,Lists!B$10:G$14,CEILING(M24-0.5,1)+1,TRUE)) ->  | Y24: -10.00 | Z24: -10.00 | AA24: -10.00 | AB24: -10.00
A25: R18 | G25: =IF(F25*E25=0,"",VLOOKUP(E25,Lists!B$10:G$14,CEILING(F25-0.5,1)+1,TRUE)) ->  | N25: =IF(M25*L25=0,"",VLOOKUP(L25,Lists!B$10:G$14,CEILING(M25-0.5,1)+1,TRUE)) ->  | Y25: -10.00 | Z25: -10.00 | AA25: -10.00 | AB25: -10.00
A26: R19 | G26: =IF(F26*E26=0,"",VLOOKUP(E26,Lists!B$10:G$14,CEILING(F26-0.5,1)+1,TRUE)) ->  | N26: =IF(M26*L26=0,"",VLOOKUP(L26,Lists!B$10:G$14,CEILING(M26-0.5,1)+1,TRUE)) ->  | Y26: -10.00 | Z26: -10.00 | AA26: -10.00 | AB26: -10.00
A27: R20 | G27: =IF(F27*E27=0,"",VLOOKUP(E27,Lists!B$10:G$14,CEILING(F27-0.5,1)+1,TRUE)) ->  | N27: =IF(M27*L27=0,"",VLOOKUP(L27,Lists!B$10:G$14,CEILING(M27-0.5,1)+1,TRUE)) ->  | Y27: -10.00 | Z27: -10.00 | AA27: -10.00 | AB27: -10.00
AC28: X-forskyv | AD28: Y-forskyv
AC29: -0.85 | AD29: -0.5
Y30: X-Konsekvens | Z30: Y-Sannsynlighet | AC30: -0.85 | AD30: -0.25
A31: =A3 -> Mål / resultatkrav nr 15: | X31: Gj sn | Y31: =IF(F6="",-10,F6-0.5) -> -10.00 | Z31: =IF(E6="",-10,E6-0.5) -> -10.00 | AC31: -0.85 | AD31: -0.75
A32: =IF(A4="","",A4) ->  | Y32: =IF(M6="",Y31,M6-0.6) -> -10.00 | Z32: =IF(L6="",Z31,L6-0.6) -> -10.00 | AC32: -0.75 | AD32: -0.5
X33: =A8 -> R1 | Y33: =Y8 -> -10.00 | Z33: =Z8 -> -10 | AC33: -0.75 | AD33: -0.25
C34: Når risikovurdering før og etter tiltak er utfylt er: | Y34: =AA8 -> -10.00 | Z34: =AB8 -> -10 | AC34: -0.75 | AD34: -0.75
C35: ● = Risikonivå før tiltak | X35: =A9 -> R2 | Y35: =Y9 -> -10 | Z35: =Z9 -> -10 | AC35: -0.66 | AD35: -0.5
C36: ■ = Risikonivå etter tiltak | Y36: =AA9 -> -10.00 | Z36: =AB9 -> -10 | AC36: -0.66 | AD36: -0.25
X37: =A10 -> R3 | Y37: =Y10 -> -10 | Z37: =Z10 -> -10 | AC37: -0.66 | AD37: -0.75
Y38: =AA10 -> -10 | Z38: =AB10 -> -10 | AC38: -0.5 | AD38: -0.5
X39: =A11 -> R4 | Y39: =Y11 -> -10 | Z39: =Z11 -> -10 | AC39: -0.5 | AD39: -0.25
Y40: =AA11 -> -10 | Z40: =AB11 -> -10 | AC40: -0.5 | AD40: -0.75
X41: =A12 -> R5 | Y41: =Y12 -> -10 | Z41: =Z12 -> -10 | AC41: -0.33 | AD41: -0.5
Y42: =AA12 -> -10 | Z42: =AB12 -> -10 | AC42: -0.33 | AD42: -0.25
X43: =A13 -> R6 | Y43: =Y13 -> -10 | Z43: =Z13 -> -10 | AC43: -0.33 | AD43: -0.75
Y44: =AA13 -> -10 | Z44: =AB13 -> -10 | AC44: -0.25 | AD44: -0.5
X45: =A14 -> R7 | Y45: =Y14 -> -10 | Z45: =Z14 -> -10 | AC45: -0.25 | AD45: -0.25
Y46: =AA14 -> -10 | Z46: =AB14 -> -10 | AC46: -0.25 | AD46: -0.75
X47: =A15 -> R8 | Y47: =Y15 -> -10 | Z47: =Z15 -> -10 | AC47: -0.15 | AD47: -0.5
Y48: =AA15 -> -10 | Z48: =AB15 -> -10 | AC48: -0.15 | AD48: -0.25
X49: =A16 -> R9 | Y49: =Y16 -> -10 | Z49: =Z16 -> -10
Y50: =AA16 -> -10 | Z50: =AB16 -> -10
X51: =A17 -> R10 | Y51: =Y17 -> -10 | Z51: =Z17 -> -10
Y52: =AA17 -> -10 | Z52: =AB17 -> -10
X53: =A18 -> R11 | Y53: =Y18 -> -10 | Z53: =Z18 -> -10
Y54: =AA18 -> -10 | Z54: =AB18 -> -10
X55: =A19 -> R12 | Y55: =Y19 -> -10.00 | Z55: =Z19 -> -10
Y56: =AA19 -> -10 | Z56: =AB19 -> -10
X57: =A20 -> R13 | Y57: =Y20 -> -10 | Z57: =Z20 -> -10
Y58: =AA20 -> -10 | Z58: =AB20 -> -10
X59: =A21 -> R14 | Y59: =Y21 -> -10 | Z59: =Z21 -> -10
Y60: =AA21 -> -10 | Z60: =AB21 -> -10
X61: =A22 -> R15 | Y61: =Y22 -> -10 | Z61: =Z22 -> -10
Y62: =AA22 -> -10 | Z62: =AB22 -> -10
X63: =A23 -> R16 | Y63: =Y23 -> -10.00 | Z63: =Z23 -> -10.00
Y64: =AA23 -> -10.00 | Z64: =AB23 -> -10.00
X65: =A24 -> R17 | Y65: =Y24 -> -10.00 | Z65: =Z24 -> -10.00
Y66: =AA24 -> -10.00 | Z66: =AB24 -> -10.00
X67: =A25 -> R18 | Y67: =Y25 -> -10.00 | Z67: =Z25 -> -10.00
Y68: =AA25 -> -10.00 | Z68: =AB25 -> -10.00
X69: =A26 -> R19 | Y69: =Y26 -> -10.00 | Z69: =Z26 -> -10.00
Y70: =AA26 -> -10.00 | Z70: =AB26 -> -10.00
X71: =A27 -> R20 | Y71: =Y27 -> -10.00 | Z71: =Z27 -> -10.00
Y72: =AA27 -> -10.00 | Z72: =AB27 -> -10.00

Sheet Mål 16
A1: Risikoidentifikasjon og analyse | E1: Ansvarlig: | L1: Risikomatrise, se under
A2: Enhet: | C2: =IF(Forside!C2="","",Forside!C2) -> Tjenesteområde <<tjenesteområde>> | E2: Dato: | F2: =IF(Forside!C4="","",Forside!C4) -> 
A3: Mål / krav nr 16: | E3: Risiko før tiltak | H3: Deltakere i prosessen: | L3: Risiko etter tiltak
E4: Risiko-vurdering | G4: Risiko-nivå | H4: =IF(Forside!C3="","",Forside!C3) -> <<deltakere>> | L4: Risiko-vurdering | N4: Risiko-nivå
E5: S | F5: K | L5: S | M5: K
D6: Gjsn risiko for målet: | E6: =IF(ISERROR(AVERAGE(E8:E27)),"",ROUND(AVERAGE(E8:E27),0)) ->  | F6: =IF(ISERROR(AVERAGE(F8:F27)),"",ROUND(AVERAGE(F8:F27),0)) ->  | G6: =IF(ISERROR(E6*F6),"",VLOOKUP(E6,Lists!B$10:G$14,CEILING(F6-0.5,1)+1,TRUE)) ->  | L6: =IF(ISERROR(AVERAGE(L8:L27)),"",ROUND(AVERAGE(L8:L27),0)) ->  | M6: =IF(ISERROR(AVERAGE(M8:M27)),"",ROUND(AVERAGE(M8:M27),0)) ->  | N6: =IF(ISERROR(L6*M6),"",VLOOKUP(L6,Lists!B$10:G$14,CEILING(M6-0.5,1)+1,TRUE)) ->  | Y6: Før tiltak | AA6: Etter tiltak
A7: Risiko nr | B7: Kritiske suksessfaktorer | C7: Område | D7: Eksisterende tiltak | E7: S | F7: K | G7: Risiko-nivå | H7: Risikoeier: | I7: Nye tiltak: | J7: Ansvarlig: | K7: Frist: | L7: S | M7: K | N7: Risiko-nivå | Y7: X-forskyv konsekv | Z7: Y-forskyv Sanns | AA7: X-forskyv konsekv | AB7: Y-forskyv Sanns
A8: R1 | G8: =IF(F8*E8=0,"",VLOOKUP(E8,Lists!B$10:G$14,CEILING(F8-0.5,1)+1,TRUE)) ->  | N8: =IF(M8*L8=0,"",VLOOKUP(L8,Lists!B$10:G$14,CEILING(M8-0.5,1)+1,TRUE)) ->  | Y8: =IF(F8="",-10,F8+AC29) -> -10.00 | Z8: =IF(E8="",-10,E8+AD29) -> -10.00 | AA8: =IF(M8="",Y8,M8+AC29) -> -10.00 | AB8: =IF(L8="",Z8,L8+AD29) -> -10.00
A9: R2 | G9: =IF(F9*E9=0,"",VLOOKUP(E9,Lists!B$10:G$14,CEILING(F9-0.5,1)+1,TRUE)) ->  | N9: =IF(M9*L9=0,"",VLOOKUP(L9,Lists!B$10:G$14,CEILING(M9-0.5,1)+1,TRUE)) ->  | Y9: -10.00 | Z9: -10.00 | AA9: -10.00 | AB9: -10.00
A10: R3 | G10: =IF(F10*E10=0,"",VLOOKUP(E10,Lists!B$10:G$14,CEILING(F10-0.5,1)+1,TRUE)) ->  | N10: =IF(M10*L10=0,"",VLOOKUP(L10,Lists!B$10:G$14,CEILING(M10-0.5,1)+1,TRUE)) ->  | Y10: -10.00 | Z10: -10.00 | AA10: -10.00 | AB10: -10.00
A11: R4 | G11: =IF(F11*E11=0,"",VLOOKUP(E11,Lists!B$10:G$14,CEILING(F11-0.5,1)+1,TRUE)) ->  | N11: =IF(M11*L11=0,"",VLOOKUP(L11,Lists!B$10:G$14,CEILING(M11-0.5,1)+1,TRUE)) ->  | Y11: -10.00 | Z11: -10.00 | AA11: -10.00 | AB11: -10.00
A12: R5 | G12: =IF(F12*E12=0,"",VLOOKUP(E12,Lists!B$10:G$14,CEILING(F12-0.5,1)+1,TRUE)) ->  | N12: =IF(M12*L12=0,"",VLOOKUP(L12,Lists!B$10:G$14,CEILING(M12-0.5,1)+1,TRUE)) ->  | Y12: -10.00 | Z12: -10.00 | AA12: -10.00 | AB12: -10.00
A13: R6 | G13: =IF(F13*E13=0,"",VLOOKUP(E13,Lists!B$10:G$14,CEILING(F13-0.5,1)+1,TRUE)) ->  | N13: =IF(M13*L13=0,"",VLOOKUP(L13,Lists!B$10:G$14,CEILING(M13-0.5,1)+1,TRUE)) ->  | Y13: -10.00 | Z13: -10.00 | AA13: -10.00 | AB13: -10.00
A14: R7 | G14: =IF(F14*E14=0,"",VLOOKUP(E14,Lists!B$10:G$14,CEILING(F14-0.5,1)+1,TRUE)) ->  | N14: =IF(M14*L14=0,"",VLOOKUP(L14,Lists!B$10:G$14,CEILING(M14-0.5,1)+1,TRUE)) ->  | Y14: -10.00 | Z14: -10.00 | AA14: -10.00 | AB14: -10.00
A15: R8 | G15: =IF(F15*E15=0,"",VLOOKUP(E15,Lists!B$10:G$14,CEILING(F15-0.5,1)+1,TRUE)) ->  | N15: =IF(M15*L15=0,"",VLOOKUP(L15,Lists!B$10:G$14,CEILING(M15-0.5,1)+1,TRUE)) ->  | Y15: -10.00 | Z15: -10.00 | AA15: -10.00 | AB15: -10.00
A16: R9 | G16: =IF(F16*E16=0,"",VLOOKUP(E16,Lists!B$10:G$14,CEILING(F16-0.5,1)+1,TRUE)) ->  | N16: =IF(M16*L16=0,"",VLOOKUP(L16,Lists!B$10:G$14,CEILING(M16-0.5,1)+1,TRUE)) ->  | Y16: -10.00 | Z16: -10.00 | AA16: -10.00 | AB16: -10.00
A17: R10 | G17: =IF(F17*E17=0,"",VLOOKUP(E17,Lists!B$10:G$14,CEILING(F17-0.5,1)+1,TRUE)) ->  | N17: =IF(M17*L17=0,"",VLOOKUP(L17,Lists!B$10:G$14,CEILING(M17-0.5,1)+1,TRUE)) ->  | Y17: -10.00 | Z17: -10.00 | AA17: -10.00 | AB17: -10.00
A18: R11 | G18: =IF(F18*E18=0,"",VLOOKUP(E18,Lists!B$10:G$14,CEILING(F18-0.5,1)+1,TRUE)) ->  | N18: =IF(M18*L18=0,"",VLOOKUP(L18,Lists!B$10:G$14,CEILING(M18-0.5,1)+1,TRUE)) ->  | Y18: -10.00 | Z18: -10.00 | AA18: -10.00 | AB18: -10.00
A19: R12 | G19: =IF(F19*E19=0,"",VLOOKUP(E19,Lists!B$10:G$14,CEILING(F19-0.5,1)+1,TRUE)) ->  | N19: =IF(M19*L19=0,"",VLOOKUP(L19,Lists!B$10:G$14,CEILING(M19-0.5,1)+1,TRUE)) ->  | Y19: -10.00 | Z19: -10.00 | AA19: -10.00 | AB19: -10.00
A20: R13 | G20: =IF(F20*E20=0,"",VLOOKUP(E20,Lists!B$10:G$14,CEILING(F20-0.5,1)+1,TRUE)) ->  | N20: =IF(M20*L20=0,"",VLOOKUP(L20,Lists!B$10:G$14,CEILING(M20-0.5,1)+1,TRUE)) ->  | Y20: -10.00 | Z20: -10.00 | AA20: -10.00 | AB20: -10.00
A21: R14 | G21: =IF(F21*E21=0,"",VLOOKUP(E21,Lists!B$10:G$14,CEILING(F21-0.5,1)+1,TRUE)) ->  | N21: =IF(M21*L21=0,"",VLOOKUP(L21,Lists!B$10:G$14,CEILING(M21-0.5,1)+1,TRUE)) ->  | Y21: -10.00 | Z21: -10.00 | AA21: -10.00 | AB21: -10.00
A22: R15 | G22: =IF(F22*E22=0,"",VLOOKUP(E22,Lists!B$10:G$14,CEILING(F22-0.5,1)+1,TRUE)) ->  | N22: =IF(M22*L22=0,"",VLOOKUP(L22,Lists!B$10:G$14,CEILING(M22-0.5,1)+1,TRUE)) ->  | Y22: -10.00 | Z22: -10.00 | AA22: -10.00 | AB22: -10.00
A23: R16 | G23: =IF(F23*E23=0,"",VLOOKUP(E23,Lists!B$10:G$14,CEILING(F23-0.5,1)+1,TRUE)) ->  | N23: =IF(M23*L23=0,"",VLOOKUP(L23,Lists!B$10:G$14,CEILING(M23-0.5,1)+1,TRUE)) ->  | Y23: -10.00 | Z23: -10.00 | AA23: -10.00 | AB23: -10.00
A24: R17 | G24: =IF(F24*E24=0,"",VLOOKUP(E24,Lists!B$10:G$14,CEILING(F24-0.5,1)+1,TRUE)) ->  | N24: =IF(M24*L24=0,"",VLOOKUP(L24,Lists!B$10:G$14,CEILING(M24-0.5,1)+1,TRUE)) ->  | Y24: -10.00 | Z24: -10.00 | AA24: -10.00 | AB24: -10.00
A25: R18 | G25: =IF(F25*E25=0,"",VLOOKUP(E25,Lists!B$10:G$14,CEILING(F25-0.5,1)+1,TRUE)) ->  | N25: =IF(M25*L25=0,"",VLOOKUP(L25,Lists!B$10:G$14,CEILING(M25-0.5,1)+1,TRUE)) ->  | Y25: -10.00 | Z25: -10.00 | AA25: -10.00 | AB25: -10.00
A26: R19 | G26: =IF(F26*E26=0,"",VLOOKUP(E26,Lists!B$10:G$14,CEILING(F26-0.5,1)+1,TRUE)) ->  | N26: =IF(M26*L26=0,"",VLOOKUP(L26,Lists!B$10:G$14,CEILING(M26-0.5,1)+1,TRUE)) ->  | Y26: -10.00 | Z26: -10.00 | AA26: -10.00 | AB26: -10.00
A27: R20 | G27: =IF(F27*E27=0,"",VLOOKUP(E27,Lists!B$10:G$14,CEILING(F27-0.5,1)+1,TRUE)) ->  | N27: =IF(M27*L27=0,"",VLOOKUP(L27,Lists!B$10:G$14,CEILING(M27-0.5,1)+1,TRUE)) ->  | Y27: -10.00 | Z27: -10.00 | AA27: -10.00 | AB27: -10.00
AC28: X-forskyv | AD28: Y-forskyv
AC29: -0.85 | AD29: -0.5
Y30: X-Konsekvens | Z30: Y-Sannsynlighet | AC30: -0.85 | AD30: -0.25
A31: =A3 -> Mål / krav nr 16: | X31: Gj sn | Y31: =IF(F6="",-10,F6-0.5) -> -10.00 | Z31: =IF(E6="",-10,E6-0.5) -> -10.00 | AC31: -0.85 | AD31: -0.75
A32: =IF(A4="","",A4) ->  | Y32: =IF(M6="",Y31,M6-0.6) -> -10.00 | Z32: =IF(L6="",Z31,L6-0.6) -> -10.00 | AC32: -0.75 | AD32: -0.5
X33: =A8 -> R1 | Y33: =Y8 -> -10.00 | Z33: =Z8 -> -10 | AC33: -0.75 | AD33: -0.25
C34: Når risikovurdering før og etter tiltak er utfylt er: | Y34: =AA8 -> -10.00 | Z34: =AB8 -> -10 | AC34: -0.75 | AD34: -0.75
C35: ● = Risikonivå før tiltak | X35: =A9 -> R2 | Y35: =Y9 -> -10 | Z35: =Z9 -> -10 | AC35: -0.66 | AD35: -0.5
C36: ■ = Risikonivå etter tiltak | Y36: =AA9 -> -10.00 | Z36: =AB9 -> -10 | AC36: -0.66 | AD36: -0.25
X37: =A10 -> R3 | Y37: =Y10 -> -10 | Z37: =Z10 -> -10 | AC37: -0.66 | AD37: -0.75
Y38: =AA10 -> -10 | Z38: =AB10 -> -10 | AC38: -0.5 | AD38: -0.5
X39: =A11 -> R4 | Y39: =Y11 -> -10 | Z39: =Z11 -> -10 | AC39: -0.5 | AD39: -0.25
Y40: =AA11 -> -10 | Z40: =AB11 -> -10 | AC40: -0.5 | AD40: -0.75
X41: =A12 -> R5 | Y41: =Y12 -> -10 | Z41: =Z12 -> -10 | AC41: -0.33 | AD41: -0.5
Y42: =AA12 -> -10 | Z42: =AB12 -> -10 | AC42: -0.33 | AD42: -0.25
X43: =A13 -> R6 | Y43: =Y13 -> -10 | Z43: =Z13 -> -10 | AC43: -0.33 | AD43: -0.75
Y44: =AA13 -> -10 | Z44: =AB13 -> -10 | AC44: -0.25 | AD44: -0.5
X45: =A14 -> R7 | Y45: =Y14 -> -10 | Z45: =Z14 -> -10 | AC45: -0.25 | AD45: -0.25
Y46: =AA14 -> -10 | Z46: =AB14 -> -10 | AC46: -0.25 | AD46: -0.75
X47: =A15 -> R8 | Y47: =Y15 -> -10 | Z47: =Z15 -> -10 | AC47: -0.15 | AD47: -0.5
Y48: =AA15 -> -10 | Z48: =AB15 -> -10 | AC48: -0.15 | AD48: -0.25
X49: =A16 -> R9 | Y49: =Y16 -> -10 | Z49: =Z16 -> -10
Y50: =AA16 -> -10 | Z50: =AB16 -> -10
X51: =A17 -> R10 | Y51: =Y17 -> -10 | Z51: =Z17 -> -10
Y52: =AA17 -> -10 | Z52: =AB17 -> -10
X53: =A18 -> R11 | Y53: =Y18 -> -10 | Z53: =Z18 -> -10
Y54: =AA18 -> -10 | Z54: =AB18 -> -10
X55: =A19 -> R12 | Y55: =Y19 -> -10.00 | Z55: =Z19 -> -10
Y56: =AA19 -> -10 | Z56: =AB19 -> -10
X57: =A20 -> R13 | Y57: =Y20 -> -10 | Z57: =Z20 -> -10
Y58: =AA20 -> -10 | Z58: =AB20 -> -10
X59: =A21 -> R14 | Y59: =Y21 -> -10 | Z59: =Z21 -> -10
Y60: =AA21 -> -10 | Z60: =AB21 -> -10
X61: =A22 -> R15 | Y61: =Y22 -> -10 | Z61: =Z22 -> -10
Y62: =AA22 -> -10 | Z62: =AB22 -> -10
X63: =A23 -> R16 | Y63: =Y23 -> -10.00 | Z63: =Z23 -> -10.00
Y64: =AA23 -> -10.00 | Z64: =AB23 -> -10.00
X65: =A24 -> R17 | Y65: =Y24 -> -10.00 | Z65: =Z24 -> -10.00
Y66: =AA24 -> -10.00 | Z66: =AB24 -> -10.00
X67: =A25 -> R18 | Y67: =Y25 -> -10.00 | Z67: =Z25 -> -10.00
Y68: =AA25 -> -10.00 | Z68: =AB25 -> -10.00
X69: =A26 -> R19 | Y69: =Y26 -> -10.00 | Z69: =Z26 -> -10.00
Y70: =AA26 -> -10.00 | Z70: =AB26 -> -10.00
X71: =A27 -> R20 | Y71: =Y27 -> -10.00 | Z71: =Z27 -> -10.00
Y72: =AA27 -> -10.00 | Z72: =AB27 -> -10.00

Sheet Mål 17
A1: Risikoidentifikasjon og analyse | E1: Ansvarlig: | L1: Risikomatrise, se under
A2: Enhet: | C2: =IF(Forside!C2="","",Forside!C2) -> Tjenesteområde <<tjenesteområde>> | E2: Dato: | F2: =IF(Forside!C4="","",Forside!C4) -> 
A3: Mål / krav nr 17: | E3: Risiko før tiltak | H3: Deltakere i prosessen: | L3: Risiko etter tiltak
E4: Risiko-vurdering | G4: Risiko-nivå | H4: =IF(Forside!C3="","",Forside!C3) -> <<deltakere>> | L4: Risiko-vurdering | N4: Risiko-nivå
E5: S | F5: K | L5: S | M5: K
D6: Gjsn risiko for målet: | E6: =IF(ISERROR(AVERAGE(E8:E27)),"",ROUND(AVERAGE(E8:E27),0)) ->  | F6: =IF(ISERROR(AVERAGE(F8:F27)),"",ROUND(AVERAGE(F8:F27),0)) ->  | G6: =IF(ISERROR(E6*F6),"",VLOOKUP(E6,Lists!B$10:G$14,CEILING(F6-0.5,1)+1,TRUE)) ->  | L6: =IF(ISERROR(AVERAGE(L8:L27)),"",ROUND(AVERAGE(L8:L27),0)) ->  | M6: =IF(ISERROR(AVERAGE(M8:M27)),"",ROUND(AVERAGE(M8:M27),0)) ->  | N6: =IF(ISERROR(L6*M6),"",VLOOKUP(L6,Lists!B$10:G$14,CEILING(M6-0.5,1)+1,TRUE)) ->  | Y6: Før tiltak | AA6: Etter tiltak
A7: Risiko nr | B7: Kritiske suksessfaktorer | C7: Område | D7: Eksisterende tiltak | E7: S | F7: K | G7: Risiko-nivå | H7: Risikoeier: | I7: Nye tiltak: | J7: Ansvarlig: | K7: Frist: | L7: S | M7: K | N7: Risiko-nivå | Y7: X-forskyv konsekv | Z7: Y-forskyv Sanns | AA7: X-forskyv konsekv | AB7: Y-forskyv Sanns
A8: R1 | G8: =IF(F8*E8=0,"",VLOOKUP(E8,Lists!B$10:G$14,CEILING(F8-0.5,1)+1,TRUE)) ->  | N8: =IF(M8*L8=0,"",VLOOKUP(L8,Lists!B$10:G$14,CEILING(M8-0.5,1)+1,TRUE)) ->  | Y8: =IF(F8="",-10,F8+AC29) -> -10.00 | Z8: =IF(E8="",-10,E8+AD29) -> -10.00 | AA8: =IF(M8="",Y8,M8+AC29) -> -10.00 | AB8: =IF(L8="",Z8,L8+AD29) -> -10.00
A9: R2 | G9: =IF(F9*E9=0,"",VLOOKUP(E9,Lists!B$10:G$14,CEILING(F9-0.5,1)+1,TRUE)) ->  | N9: =IF(M9*L9=0,"",VLOOKUP(L9,Lists!B$10:G$14,CEILING(M9-0.5,1)+1,TRUE)) ->  | Y9: -10.00 | Z9: -10.00 | AA9: -10.00 | AB9: -10.00
A10: R3 | G10: =IF(F10*E10=0,"",VLOOKUP(E10,Lists!B$10:G$14,CEILING(F10-0.5,1)+1,TRUE)) ->  | N10: =IF(M10*L10=0,"",VLOOKUP(L10,Lists!B$10:G$14,CEILING(M10-0.5,1)+1,TRUE)) ->  | Y10: -10.00 | Z10: -10.00 | AA10: -10.00 | AB10: -10.00
A11: R4 | G11: =IF(F11*E11=0,"",VLOOKUP(E11,Lists!B$10:G$14,CEILING(F11-0.5,1)+1,TRUE)) ->  | N11: =IF(M11*L11=0,"",VLOOKUP(L11,Lists!B$10:G$14,CEILING(M11-0.5,1)+1,TRUE)) ->  | Y11: -10.00 | Z11: -10.00 | AA11: -10.00 | AB11: -10.00
A12: R5 | G12: =IF(F12*E12=0,"",VLOOKUP(E12,Lists!B$10:G$14,CEILING(F12-0.5,1)+1,TRUE)) ->  | N12: =IF(M12*L12=0,"",VLOOKUP(L12,Lists!B$10:G$14,CEILING(M12-0.5,1)+1,TRUE)) ->  | Y12: -10.00 | Z12: -10.00 | AA12: -10.00 | AB12: -10.00
A13: R6 | G13: =IF(F13*E13=0,"",VLOOKUP(E13,Lists!B$10:G$14,CEILING(F13-0.5,1)+1,TRUE)) ->  | N13: =IF(M13*L13=0,"",VLOOKUP(L13,Lists!B$10:G$14,CEILING(M13-0.5,1)+1,TRUE)) ->  | Y13: -10.00 | Z13: -10.00 | AA13: -10.00 | AB13: -10.00
A14: R7 | G14: =IF(F14*E14=0,"",VLOOKUP(E14,Lists!B$10:G$14,CEILING(F14-0.5,1)+1,TRUE)) ->  | N14: =IF(M14*L14=0,"",VLOOKUP(L14,Lists!B$10:G$14,CEILING(M14-0.5,1)+1,TRUE)) ->  | Y14: -10.00 | Z14: -10.00 | AA14: -10.00 | AB14: -10.00
A15: R8 | G15: =IF(F15*E15=0,"",VLOOKUP(E15,Lists!B$10:G$14,CEILING(F15-0.5,1)+1,TRUE)) ->  | N15: =IF(M15*L15=0,"",VLOOKUP(L15,Lists!B$10:G$14,CEILING(M15-0.5,1)+1,TRUE)) ->  | Y15: -10.00 | Z15: -10.00 | AA15: -10.00 | AB15: -10.00
A16: R9 | G16: =IF(F16*E16=0,"",VLOOKUP(E16,Lists!B$10:G$14,CEILING(F16-0.5,1)+1,TRUE)) ->  | N16: =IF(M16*L16=0,"",VLOOKUP(L16,Lists!B$10:G$14,CEILING(M16-0.5,1)+1,TRUE)) ->  | Y16: -10.00 | Z16: -10.00 | AA16: -10.00 | AB16: -10.00
A17: R10 | G17: =IF(F17*E17=0,"",VLOOKUP(E17,Lists!B$10:G$14,CEILING(F17-0.5,1)+1,TRUE)) ->  | N17: =IF(M17*L17=0,"",VLOOKUP(L17,Lists!B$10:G$14,CEILING(M17-0.5,1)+1,TRUE)) ->  | Y17: -10.00 | Z17: -10.00 | AA17: -10.00 | AB17: -10.00
A18: R11 | G18: =IF(F18*E18=0,"",VLOOKUP(E18,Lists!B$10:G$14,CEILING(F18-0.5,1)+1,TRUE)) ->  | N18: =IF(M18*L18=0,"",VLOOKUP(L18,Lists!B$10:G$14,CEILING(M18-0.5,1)+1,TRUE)) ->  | Y18: -10.00 | Z18: -10.00 | AA18: -10.00 | AB18: -10.00
A19: R12 | G19: =IF(F19*E19=0,"",VLOOKUP(E19,Lists!B$10:G$14,CEILING(F19-0.5,1)+1,TRUE)) ->  | N19: =IF(M19*L19=0,"",VLOOKUP(L19,Lists!B$10:G$14,CEILING(M19-0.5,1)+1,TRUE)) ->  | Y19: -10.00 | Z19: -10.00 | AA19: -10.00 | AB19: -10.00
A20: R13 | G20: =IF(F20*E20=0,"",VLOOKUP(E20,Lists!B$10:G$14,CEILING(F20-0.5,1)+1,TRUE)) ->  | N20: =IF(M20*L20=0,"",VLOOKUP(L20,Lists!B$10:G$14,CEILING(M20-0.5,1)+1,TRUE)) ->  | Y20: -10.00 | Z20: -10.00 | AA20: -10.00 | AB20: -10.00
A21: R14 | G21: =IF(F21*E21=0,"",VLOOKUP(E21,Lists!B$10:G$14,CEILING(F21-0.5,1)+1,TRUE)) ->  | N21: =IF(M21*L21=0,"",VLOOKUP(L21,Lists!B$10:G$14,CEILING(M21-0.5,1)+1,TRUE)) ->  | Y21: -10.00 | Z21: -10.00 | AA21: -10.00 | AB21: -10.00
A22: R15 | G22: =IF(F22*E22=0,"",VLOOKUP(E22,Lists!B$10:G$14,CEILING(F22-0.5,1)+1,TRUE)) ->  | N22: =IF(M22*L22=0,"",VLOOKUP(L22,Lists!B$10:G$14,CEILING(M22-0.5,1)+1,TRUE)) ->  | Y22: -10.00 | Z22: -10.00 | AA22: -10.00 | AB22: -10.00
A23: R16 | G23: =IF(F23*E23=0,"",VLOOKUP(E23,Lists!B$10:G$14,CEILING(F23-0.5,1)+1,TRUE)) ->  | N23: =IF(M23*L23=0,"",VLOOKUP(L23,Lists!B$10:G$14,CEILING(M23-0.5,1)+1,TRUE)) ->  | Y23: -10.00 | Z23: -10.00 | AA23: -10.00 | AB23: -10.00
A24: R17 | G24: =IF(F24*E24=0,"",VLOOKUP(E24,Lists!B$10:G$14,CEILING(F24-0.5,1)+1,TRUE)) ->  | N24: =IF(M24*L24=0,"",VLOOKUP(L24,Lists!B$10:G$14,CEILING(M24-0.5,1)+1,TRUE)) ->  | Y24: -10.00 | Z24: -10.00 | AA24: -10.00 | AB24: -10.00
A25: R18 | G25: =IF(F25*E25=0,"",VLOOKUP(E25,Lists!B$10:G$14,CEILING(F25-0.5,1)+1,TRUE)) ->  | N25: =IF(M25*L25=0,"",VLOOKUP(L25,Lists!B$10:G$14,CEILING(M25-0.5,1)+1,TRUE)) ->  | Y25: -10.00 | Z25: -10.00 | AA25: -10.00 | AB25: -10.00
A26: R19 | G26: =IF(F26*E26=0,"",VLOOKUP(E26,Lists!B$10:G$14,CEILING(F26-0.5,1)+1,TRUE)) ->  | N26: =IF(M26*L26=0,"",VLOOKUP(L26,Lists!B$10:G$14,CEILING(M26-0.5,1)+1,TRUE)) ->  | Y26: -10.00 | Z26: -10.00 | AA26: -10.00 | AB26: -10.00
A27: R20 | G27: =IF(F27*E27=0,"",VLOOKUP(E27,Lists!B$10:G$14,CEILING(F27-0.5,1)+1,TRUE)) ->  | N27: =IF(M27*L27=0,"",VLOOKUP(L27,Lists!B$10:G$14,CEILING(M27-0.5,1)+1,TRUE)) ->  | Y27: -10.00 | Z27: -10.00 | AA27: -10.00 | AB27: -10.00
AC28: X-forskyv | AD28: Y-forskyv
AC29: -0.85 | AD29: -0.5
Y30: X-Konsekvens | Z30: Y-Sannsynlighet | AC30: -0.85 | AD30: -0.25
A31: =A3 -> Mål / krav nr 17: | X31: Gj sn | Y31: =IF(F6="",-10,F6-0.5) -> -10.00 | Z31: =IF(E6="",-10,E6-0.5) -> -10.00 | AC31: -0.85 | AD31: -0.75
A32: =IF(A4="","",A4) ->  | Y32: =IF(M6="",Y31,M6-0.6) -> -10.00 | Z32: =IF(L6="",Z31,L6-0.6) -> -10.00 | AC32: -0.75 | AD32: -0.5
X33: =A8 -> R1 | Y33: =Y8 -> -10.00 | Z33: =Z8 -> -10 | AC33: -0.75 | AD33: -0.25
C34: Når risikovurdering før og etter tiltak er utfylt er: | Y34: =AA8 -> -10.00 | Z34: =AB8 -> -10 | AC34: -0.75 | AD34: -0.75
C35: ● = Risikonivå før tiltak | X35: =A9 -> R2 | Y35: =Y9 -> -10 | Z35: =Z9 -> -10 | AC35: -0.66 | AD35: -0.5
C36: ■ = Risikonivå etter tiltak | Y36: =AA9 -> -10.00 | Z36: =AB9 -> -10 | AC36: -0.66 | AD36: -0.25
X37: =A10 -> R3 | Y37: =Y10 -> -10 | Z37: =Z10 -> -10 | AC37: -0.66 | AD37: -0.75
Y38: =AA10 -> -10 | Z38: =AB10 -> -10 | AC38: -0.5 | AD38: -0.5
X39: =A11 -> R4 | Y39: =Y11 -> -10 | Z39: =Z11 -> -10 | AC39: -0.5 | AD39: -0.25
Y40: =AA11 -> -10 | Z40: =AB11 -> -10 | AC40: -0.5 | AD40: -0.75
X41: =A12 -> R5 | Y41: =Y12 -> -10 | Z41: =Z12 -> -10 | AC41: -0.33 | AD41: -0.5
Y42: =AA12 -> -10 | Z42: =AB12 -> -10 | AC42: -0.33 | AD42: -0.25
X43: =A13 -> R6 | Y43: =Y13 -> -10 | Z43: =Z13 -> -10 | AC43: -0.33 | AD43: -0.75
Y44: =AA13 -> -10 | Z44: =AB13 -> -10 | AC44: -0.25 | AD44: -0.5
X45: =A14 -> R7 | Y45: =Y14 -> -10 | Z45: =Z14 -> -10 | AC45: -0.25 | AD45: -0.25
Y46: =AA14 -> -10 | Z46: =AB14 -> -10 | AC46: -0.25 | AD46: -0.75
X47: =A15 -> R8 | Y47: =Y15 -> -10 | Z47: =Z15 -> -10 | AC47: -0.15 | AD47: -0.5
Y48: =AA15 -> -10 | Z48: =AB15 -> -10 | AC48: -0.15 | AD48: -0.25
X49: =A16 -> R9 | Y49: =Y16 -> -10 | Z49: =Z16 -> -10
Y50: =AA16 -> -10 | Z50: =AB16 -> -10
X51: =A17 -> R10 | Y51: =Y17 -> -10 | Z51: =Z17 -> -10
Y52: =AA17 -> -10 | Z52: =AB17 -> -10
X53: =A18 -> R11 | Y53: =Y18 -> -10 | Z53: =Z18 -> -10
Y54: =AA18 -> -10 | Z54: =AB18 -> -10
X55: =A19 -> R12 | Y55: =Y19 -> -10.00 | Z55: =Z19 -> -10
Y56: =AA19 -> -10 | Z56: =AB19 -> -10
X57: =A20 -> R13 | Y57: =Y20 -> -10 | Z57: =Z20 -> -10
Y58: =AA20 -> -10 | Z58: =AB20 -> -10
X59: =A21 -> R14 | Y59: =Y21 -> -10 | Z59: =Z21 -> -10
Y60: =AA21 -> -10 | Z60: =AB21 -> -10
X61: =A22 -> R15 | Y61: =Y22 -> -10 | Z61: =Z22 -> -10
Y62: =AA22 -> -10 | Z62: =AB22 -> -10
X63: =A23 -> R16 | Y63: =Y23 -> -10.00 | Z63: =Z23 -> -10.00
Y64: =AA23 -> -10.00 | Z64: =AB23 -> -10.00
X65: =A24 -> R17 | Y65: =Y24 -> -10.00 | Z65: =Z24 -> -10.00
Y66: =AA24 -> -10.00 | Z66: =AB24 -> -10.00
X67: =A25 -> R18 | Y67: =Y25 -> -10.00 | Z67: =Z25 -> -10.00
Y68: =AA25 -> -10.00 | Z68: =AB25 -> -10.00
X69: =A26 -> R19 | Y69: =Y26 -> -10.00 | Z69: =Z26 -> -10.00
Y70: =AA26 -> -10.00 | Z70: =AB26 -> -10.00
X71: =A27 -> R20 | Y71: =Y27 -> -10.00 | Z71: =Z27 -> -10.00
Y72: =AA27 -> -10.00 | Z72: =AB27 -> -10.00

Sheet Mål 18
A1: Risikoidentifikasjon og analyse | E1: Ansvarlig: | L1: Risikomatrise, se under
A2: Enhet: | C2: =IF(Forside!C2="","",Forside!C2) -> Tjenesteområde <<tjenesteområde>> | E2: Dato: | F2: =IF(Forside!C4="","",Forside!C4) -> 
A3: Mål / krav nr 18: | E3: Risiko før tiltak | H3: Deltakere i prosessen: | L3: Risiko etter tiltak
E4: Risiko-vurdering | G4: Risiko-nivå | H4: =IF(Forside!C3="","",Forside!C3) -> <<deltakere>> | L4: Risiko-vurdering | N4: Risiko-nivå
E5: S | F5: K | L5: S | M5: K
D6: Gjsn risiko for målet: | E6: =IF(ISERROR(AVERAGE(E8:E27)),"",ROUND(AVERAGE(E8:E27),0)) ->  | F6: =IF(ISERROR(AVERAGE(F8:F27)),"",ROUND(AVERAGE(F8:F27),0)) ->  | G6: =IF(ISERROR(E6*F6),"",VLOOKUP(E6,Lists!B$10:G$14,CEILING(F6-0.5,1)+1,TRUE)) ->  | L6: =IF(ISERROR(AVERAGE(L8:L27)),"",ROUND(AVERAGE(L8:L27),0)) ->  | M6: =IF(ISERROR(AVERAGE(M8:M27)),"",ROUND(AVERAGE(M8:M27),0)) ->  | N6: =IF(ISERROR(L6*M6),"",VLOOKUP(L6,Lists!B$10:G$14,CEILING(M6-0.5,1)+1,TRUE)) ->  | Y6: Før tiltak | AA6: Etter tiltak
A7: Risiko nr | B7: Kritiske suksessfaktorer | C7: Område | D7: Eksisterende tiltak | E7: S | F7: K | G7: Risiko-nivå | H7: Risikoeier: | I7: Nye tiltak: | J7: Ansvarlig: | K7: Frist: | L7: S | M7: K | N7: Risiko-nivå | Y7: X-forskyv konsekv | Z7: Y-forskyv Sanns | AA7: X-forskyv konsekv | AB7: Y-forskyv Sanns
A8: R1 | G8: =IF(F8*E8=0,"",VLOOKUP(E8,Lists!B$10:G$14,CEILING(F8-0.5,1)+1,TRUE)) ->  | N8: =IF(M8*L8=0,"",VLOOKUP(L8,Lists!B$10:G$14,CEILING(M8-0.5,1)+1,TRUE)) ->  | Y8: =IF(F8="",-10,F8+AC29) -> -10.00 | Z8: =IF(E8="",-10,E8+AD29) -> -10.00 | AA8: =IF(M8="",Y8,M8+AC29) -> -10.00 | AB8: =IF(L8="",Z8,L8+AD29) -> -10.00
A9: R2 | G9: =IF(F9*E9=0,"",VLOOKUP(E9,Lists!B$10:G$14,CEILING(F9-0.5,1)+1,TRUE)) ->  | N9: =IF(M9*L9=0,"",VLOOKUP(L9,Lists!B$10:G$14,CEILING(M9-0.5,1)+1,TRUE)) ->  | Y9: -10.00 | Z9: -10.00 | AA9: -10.00 | AB9: -10.00
A10: R3 | G10: =IF(F10*E10=0,"",VLOOKUP(E10,Lists!B$10:G$14,CEILING(F10-0.5,1)+1,TRUE)) ->  | N10: =IF(M10*L10=0,"",VLOOKUP(L10,Lists!B$10:G$14,CEILING(M10-0.5,1)+1,TRUE)) ->  | Y10: -10.00 | Z10: -10.00 | AA10: -10.00 | AB10: -10.00
A11: R4 | G11: =IF(F11*E11=0,"",VLOOKUP(E11,Lists!B$10:G$14,CEILING(F11-0.5,1)+1,TRUE)) ->  | N11: =IF(M11*L11=0,"",VLOOKUP(L11,Lists!B$10:G$14,CEILING(M11-0.5,1)+1,TRUE)) ->  | Y11: -10.00 | Z11: -10.00 | AA11: -10.00 | AB11: -10.00
A12: R5 | G12: =IF(F12*E12=0,"",VLOOKUP(E12,Lists!B$10:G$14,CEILING(F12-0.5,1)+1,TRUE)) ->  | N12: =IF(M12*L12=0,"",VLOOKUP(L12,Lists!B$10:G$14,CEILING(M12-0.5,1)+1,TRUE)) ->  | Y12: -10.00 | Z12: -10.00 | AA12: -10.00 | AB12: -10.00
A13: R6 | G13: =IF(F13*E13=0,"",VLOOKUP(E13,Lists!B$10:G$14,CEILING(F13-0.5,1)+1,TRUE)) ->  | N13: =IF(M13*L13=0,"",VLOOKUP(L13,Lists!B$10:G$14,CEILING(M13-0.5,1)+1,TRUE)) ->  | Y13: -10.00 | Z13: -10.00 | AA13: -10.00 | AB13: -10.00
A14: R7 | G14: =IF(F14*E14=0,"",VLOOKUP(E14,Lists!B$10:G$14,CEILING(F14-0.5,1)+1,TRUE)) ->  | N14: =IF(M14*L14=0,"",VLOOKUP(L14,Lists!B$10:G$14,CEILING(M14-0.5,1)+1,TRUE)) ->  | Y14: -10.00 | Z14: -10.00 | AA14: -10.00 | AB14: -10.00
A15: R8 | G15: =IF(F15*E15=0,"",VLOOKUP(E15,Lists!B$10:G$14,CEILING(F15-0.5,1)+1,TRUE)) ->  | N15: =IF(M15*L15=0,"",VLOOKUP(L15,Lists!B$10:G$14,CEILING(M15-0.5,1)+1,TRUE)) ->  | Y15: -10.00 | Z15: -10.00 | AA15: -10.00 | AB15: -10.00
A16: R9 | G16: =IF(F16*E16=0,"",VLOOKUP(E16,Lists!B$10:G$14,CEILING(F16-0.5,1)+1,TRUE)) ->  | N16: =IF(M16*L16=0,"",VLOOKUP(L16,Lists!B$10:G$14,CEILING(M16-0.5,1)+1,TRUE)) ->  | Y16: -10.00 | Z16: -10.00 | AA16: -10.00 | AB16: -10.00
A17: R10 | G17: =IF(F17*E17=0,"",VLOOKUP(E17,Lists!B$10:G$14,CEILING(F17-0.5,1)+1,TRUE)) ->  | N17: =IF(M17*L17=0,"",VLOOKUP(L17,Lists!B$10:G$14,CEILING(M17-0.5,1)+1,TRUE)) ->  | Y17: -10.00 | Z17: -10.00 | AA17: -10.00 | AB17: -10.00
A18: R11 | G18: =IF(F18*E18=0,"",VLOOKUP(E18,Lists!B$10:G$14,CEILING(F18-0.5,1)+1,TRUE)) ->  | N18: =IF(M18*L18=0,"",VLOOKUP(L18,Lists!B$10:G$14,CEILING(M18-0.5,1)+1,TRUE)) ->  | Y18: -10.00 | Z18: -10.00 | AA18: -10.00 | AB18: -10.00
A19: R12 | G19: =IF(F19*E19=0,"",VLOOKUP(E19,Lists!B$10:G$14,CEILING(F19-0.5,1)+1,TRUE)) ->  | N19: =IF(M19*L19=0,"",VLOOKUP(L19,Lists!B$10:G$14,CEILING(M19-0.5,1)+1,TRUE)) ->  | Y19: -10.00 | Z19: -10.00 | AA19: -10.00 | AB19: -10.00
A20: R13 | G20: =IF(F20*E20=0,"",VLOOKUP(E20,Lists!B$10:G$14,CEILING(F20-0.5,1)+1,TRUE)) ->  | N20: =IF(M20*L20=0,"",VLOOKUP(L20,Lists!B$10:G$14,CEILING(M20-0.5,1)+1,TRUE)) ->  | Y20: -10.00 | Z20: -10.00 | AA20: -10.00 | AB20: -10.00
A21: R14 | G21: =IF(F21*E21=0,"",VLOOKUP(E21,Lists!B$10:G$14,CEILING(F21-0.5,1)+1,TRUE)) ->  | N21: =IF(M21*L21=0,"",VLOOKUP(L21,Lists!B$10:G$14,CEILING(M21-0.5,1)+1,TRUE)) ->  | Y21: -10.00 | Z21: -10.00 | AA21: -10.00 | AB21: -10.00
A22: R15 | G22: =IF(F22*E22=0,"",VLOOKUP(E22,Lists!B$10:G$14,CEILING(F22-0.5,1)+1,TRUE)) ->  | N22: =IF(M22*L22=0,"",VLOOKUP(L22,Lists!B$10:G$14,CEILING(M22-0.5,1)+1,TRUE)) ->  | Y22: -10.00 | Z22: -10.00 | AA22: -10.00 | AB22: -10.00
A23: R16 | G23: =IF(F23*E23=0,"",VLOOKUP(E23,Lists!B$10:G$14,CEILING(F23-0.5,1)+1,TRUE)) ->  | N23: =IF(M23*L23=0,"",VLOOKUP(L23,Lists!B$10:G$14,CEILING(M23-0.5,1)+1,TRUE)) ->  | Y23: -10.00 | Z23: -10.00 | AA23: -10.00 | AB23: -10.00
A24: R17 | G24: =IF(F24*E24=0,"",VLOOKUP(E24,Lists!B$10:G$14,CEILING(F24-0.5,1)+1,TRUE)) ->  | N24: =IF(M24*L24=0,"",VLOOKUP(L24,Lists!B$10:G$14,CEILING(M24-0.5,1)+1,TRUE)) ->  | Y24: -10.00 | Z24: -10.00 | AA24: -10.00 | AB24: -10.00
A25: R18 | G25: =IF(F25*E25=0,"",VLOOKUP(E25,Lists!B$10:G$14,CEILING(F25-0.5,1)+1,TRUE)) ->  | N25: =IF(M25*L25=0,"",VLOOKUP(L25,Lists!B$10:G$14,CEILING(M25-0.5,1)+1,TRUE)) ->  | Y25: -10.00 | Z25: -10.00 | AA25: -10.00 | AB25: -10.00
A26: R19 | G26: =IF(F26*E26=0,"",VLOOKUP(E26,Lists!B$10:G$14,CEILING(F26-0.5,1)+1,TRUE)) ->  | N26: =IF(M26*L26=0,"",VLOOKUP(L26,Lists!B$10:G$14,CEILING(M26-0.5,1)+1,TRUE)) ->  | Y26: -10.00 | Z26: -10.00 | AA26: -10.00 | AB26: -10.00
A27: R20 | G27: =IF(F27*E27=0,"",VLOOKUP(E27,Lists!B$10:G$14,CEILING(F27-0.5,1)+1,TRUE)) ->  | N27: =IF(M27*L27=0,"",VLOOKUP(L27,Lists!B$10:G$14,CEILING(M27-0.5,1)+1,TRUE)) ->  | Y27: -10.00 | Z27: -10.00 | AA27: -10.00 | AB27: -10.00
AC28: X-forskyv | AD28: Y-forskyv
AC29: -0.85 | AD29: -0.5
Y30: X-Konsekvens | Z30: Y-Sannsynlighet | AC30: -0.85 | AD30: -0.25
A31: =A3 -> Mål / krav nr 18: | X31: Gj sn | Y31: =IF(F6="",-10,F6-0.5) -> -10.00 | Z31: =IF(E6="",-10,E6-0.5) -> -10.00 | AC31: -0.85 | AD31: -0.75
A32: =IF(A4="","",A4) ->  | Y32: =IF(M6="",Y31,M6-0.6) -> -10.00 | Z32: =IF(L6="",Z31,L6-0.6) -> -10.00 | AC32: -0.75 | AD32: -0.5
X33: =A8 -> R1 | Y33: =Y8 -> -10.00 | Z33: =Z8 -> -10 | AC33: -0.75 | AD33: -0.25
C34: Når risikovurdering før og etter tiltak er utfylt er: | Y34: =AA8 -> -10.00 | Z34: =AB8 -> -10 | AC34: -0.75 | AD34: -0.75
C35: ● = Risikonivå før tiltak | X35: =A9 -> R2 | Y35: =Y9 -> -10 | Z35: =Z9 -> -10 | AC35: -0.66 | AD35: -0.5
C36: ■ = Risikonivå etter tiltak | Y36: =AA9 -> -10.00 | Z36: =AB9 -> -10 | AC36: -0.66 | AD36: -0.25
X37: =A10 -> R3 | Y37: =Y10 -> -10 | Z37: =Z10 -> -10 | AC37: -0.66 | AD37: -0.75
Y38: =AA10 -> -10 | Z38: =AB10 -> -10 | AC38: -0.5 | AD38: -0.5
X39: =A11 -> R4 | Y39: =Y11 -> -10 | Z39: =Z11 -> -10 | AC39: -0.5 | AD39: -0.25
Y40: =AA11 -> -10 | Z40: =AB11 -> -10 | AC40: -0.5 | AD40: -0.75
X41: =A12 -> R5 | Y41: =Y12 -> -10 | Z41: =Z12 -> -10 | AC41: -0.33 | AD41: -0.5
Y42: =AA12 -> -10 | Z42: =AB12 -> -10 | AC42: -0.33 | AD42: -0.25
X43: =A13 -> R6 | Y43: =Y13 -> -10 | Z43: =Z13 -> -10 | AC43: -0.33 | AD43: -0.75
Y44: =AA13 -> -10 | Z44: =AB13 -> -10 | AC44: -0.25 | AD44: -0.5
X45: =A14 -> R7 | Y45: =Y14 -> -10 | Z45: =Z14 -> -10 | AC45: -0.25 | AD45: -0.25
Y46: =AA14 -> -10 | Z46: =AB14 -> -10 | AC46: -0.25 | AD46: -0.75
X47: =A15 -> R8 | Y47: =Y15 -> -10 | Z47: =Z15 -> -10 | AC47: -0.15 | AD47: -0.5
Y48: =AA15 -> -10 | Z48: =AB15 -> -10 | AC48: -0.15 | AD48: -0.25
X49: =A16 -> R9 | Y49: =Y16 -> -10 | Z49: =Z16 -> -10
Y50: =AA16 -> -10 | Z50: =AB16 -> -10
X51: =A17 -> R10 | Y51: =Y17 -> -10 | Z51: =Z17 -> -10
Y52: =AA17 -> -10 | Z52: =AB17 -> -10
X53: =A18 -> R11 | Y53: =Y18 -> -10 | Z53: =Z18 -> -10
Y54: =AA18 -> -10 | Z54: =AB18 -> -10
X55: =A19 -> R12 | Y55: =Y19 -> -10.00 | Z55: =Z19 -> -10
Y56: =AA19 -> -10 | Z56: =AB19 -> -10
X57: =A20 -> R13 | Y57: =Y20 -> -10 | Z57: =Z20 -> -10
Y58: =AA20 -> -10 | Z58: =AB20 -> -10
X59: =A21 -> R14 | Y59: =Y21 -> -10 | Z59: =Z21 -> -10
Y60: =AA21 -> -10 | Z60: =AB21 -> -10
X61: =A22 -> R15 | Y61: =Y22 -> -10 | Z61: =Z22 -> -10
Y62: =AA22 -> -10 | Z62: =AB22 -> -10
X63: =A23 -> R16 | Y63: =Y23 -> -10.00 | Z63: =Z23 -> -10.00
Y64: =AA23 -> -10.00 | Z64: =AB23 -> -10.00
X65: =A24 -> R17 | Y65: =Y24 -> -10.00 | Z65: =Z24 -> -10.00
Y66: =AA24 -> -10.00 | Z66: =AB24 -> -10.00
X67: =A25 -> R18 | Y67: =Y25 -> -10.00 | Z67: =Z25 -> -10.00
Y68: =AA25 -> -10.00 | Z68: =AB25 -> -10.00
X69: =A26 -> R19 | Y69: =Y26 -> -10.00 | Z69: =Z26 -> -10.00
Y70: =AA26 -> -10.00 | Z70: =AB26 -> -10.00
X71: =A27 -> R20 | Y71: =Y27 -> -10.00 | Z71: =Z27 -> -10.00
Y72: =AA27 -> -10.00 | Z72: =AB27 -> -10.00

Sheet Mål 19
A1: Risikoidentifikasjon og analyse | E1: Ansvarlig: | L1: Risikomatrise, se under
A2: Enhet: | C2: =IF(Forside!C2="","",Forside!C2) -> Tjenesteområde <<tjenesteområde>> | E2: Dato: | F2: =IF(Forside!C4="","",Forside!C4) -> 
A3: Mål / krav nr 19: | E3: Risiko før tiltak | H3: Deltakere i prosessen: | L3: Risiko etter tiltak
E4: Risiko-vurdering | G4: Risiko-nivå | H4: =IF(Forside!C3="","",Forside!C3) -> <<deltakere>> | L4: Risiko-vurdering | N4: Risiko-nivå
E5: S | F5: K | L5: S | M5: K
D6: Gjsn risiko for målet: | E6: =IF(ISERROR(AVERAGE(E8:E27)),"",ROUND(AVERAGE(E8:E27),0)) ->  | F6: =IF(ISERROR(AVERAGE(F8:F27)),"",ROUND(AVERAGE(F8:F27),0)) ->  | G6: =IF(ISERROR(E6*F6),"",VLOOKUP(E6,Lists!B$10:G$14,CEILING(F6-0.5,1)+1,TRUE)) ->  | L6: =IF(ISERROR(AVERAGE(L8:L27)),"",ROUND(AVERAGE(L8:L27),0)) ->  | M6: =IF(ISERROR(AVERAGE(M8:M27)),"",ROUND(AVERAGE(M8:M27),0)) ->  | N6: =IF(ISERROR(L6*M6),"",VLOOKUP(L6,Lists!B$10:G$14,CEILING(M6-0.5,1)+1,TRUE)) ->  | Y6: Før tiltak | AA6: Etter tiltak
A7: Risiko nr | B7: Kritiske suksessfaktorer | C7: Område | D7: Eksisterende tiltak | E7: S | F7: K | G7: Risiko-nivå | H7: Risikoeier: | I7: Nye tiltak: | J7: Ansvarlig: | K7: Frist: | L7: S | M7: K | N7: Risiko-nivå | Y7: X-forskyv konsekv | Z7: Y-forskyv Sanns | AA7: X-forskyv konsekv | AB7: Y-forskyv Sanns
A8: R1 | G8: =IF(F8*E8=0,"",VLOOKUP(E8,Lists!B$10:G$14,CEILING(F8-0.5,1)+1,TRUE)) ->  | N8: =IF(M8*L8=0,"",VLOOKUP(L8,Lists!B$10:G$14,CEILING(M8-0.5,1)+1,TRUE)) ->  | Y8: =IF(F8="",-10,F8+AC29) -> -10.00 | Z8: =IF(E8="",-10,E8+AD29) -> -10.00 | AA8: =IF(M8="",Y8,M8+AC29) -> -10.00 | AB8: =IF(L8="",Z8,L8+AD29) -> -10.00
A9: R2 | G9: =IF(F9*E9=0,"",VLOOKUP(E9,Lists!B$10:G$14,CEILING(F9-0.5,1)+1,TRUE)) ->  | N9: =IF(M9*L9=0,"",VLOOKUP(L9,Lists!B$10:G$14,CEILING(M9-0.5,1)+1,TRUE)) ->  | Y9: -10.00 | Z9: -10.00 | AA9: -10.00 | AB9: -10.00
A10: R3 | G10: =IF(F10*E10=0,"",VLOOKUP(E10,Lists!B$10:G$14,CEILING(F10-0.5,1)+1,TRUE)) ->  | N10: =IF(M10*L10=0,"",VLOOKUP(L10,Lists!B$10:G$14,CEILING(M10-0.5,1)+1,TRUE)) ->  | Y10: -10.00 | Z10: -10.00 | AA10: -10.00 | AB10: -10.00
A11: R4 | G11: =IF(F11*E11=0,"",VLOOKUP(E11,Lists!B$10:G$14,CEILING(F11-0.5,1)+1,TRUE)) ->  | N11: =IF(M11*L11=0,"",VLOOKUP(L11,Lists!B$10:G$14,CEILING(M11-0.5,1)+1,TRUE)) ->  | Y11: -10.00 | Z11: -10.00 | AA11: -10.00 | AB11: -10.00
A12: R5 | G12: =IF(F12*E12=0,"",VLOOKUP(E12,Lists!B$10:G$14,CEILING(F12-0.5,1)+1,TRUE)) ->  | N12: =IF(M12*L12=0,"",VLOOKUP(L12,Lists!B$10:G$14,CEILING(M12-0.5,1)+1,TRUE)) ->  | Y12: -10.00 | Z12: -10.00 | AA12: -10.00 | AB12: -10.00
A13: R6 | G13: =IF(F13*E13=0,"",VLOOKUP(E13,Lists!B$10:G$14,CEILING(F13-0.5,1)+1,TRUE)) ->  | N13: =IF(M13*L13=0,"",VLOOKUP(L13,Lists!B$10:G$14,CEILING(M13-0.5,1)+1,TRUE)) ->  | Y13: -10.00 | Z13: -10.00 | AA13: -10.00 | AB13: -10.00
A14: R7 | G14: =IF(F14*E14=0,"",VLOOKUP(E14,Lists!B$10:G$14,CEILING(F14-0.5,1)+1,TRUE)) ->  | N14: =IF(M14*L14=0,"",VLOOKUP(L14,Lists!B$10:G$14,CEILING(M14-0.5,1)+1,TRUE)) ->  | Y14: -10.00 | Z14: -10.00 | AA14: -10.00 | AB14: -10.00
A15: R8 | G15: =IF(F15*E15=0,"",VLOOKUP(E15,Lists!B$10:G$14,CEILING(F15-0.5,1)+1,TRUE)) ->  | N15: =IF(M15*L15=0,"",VLOOKUP(L15,Lists!B$10:G$14,CEILING(M15-0.5,1)+1,TRUE)) ->  | Y15: -10.00 | Z15: -10.00 | AA15: -10.00 | AB15: -10.00
A16: R9 | G16: =IF(F16*E16=0,"",VLOOKUP(E16,Lists!B$10:G$14,CEILING(F16-0.5,1)+1,TRUE)) ->  | N16: =IF(M16*L16=0,"",VLOOKUP(L16,Lists!B$10:G$14,CEILING(M16-0.5,1)+1,TRUE)) ->  | Y16: -10.00 | Z16: -10.00 | AA16: -10.00 | AB16: -10.00
A17: R10 | G17: =IF(F17*E17=0,"",VLOOKUP(E17,Lists!B$10:G$14,CEILING(F17-0.5,1)+1,TRUE)) ->  | N17: =IF(M17*L17=0,"",VLOOKUP(L17,Lists!B$10:G$14,CEILING(M17-0.5,1)+1,TRUE)) ->  | Y17: -10.00 | Z17: -10.00 | AA17: -10.00 | AB17: -10.00
A18: R11 | G18: =IF(F18*E18=0,"",VLOOKUP(E18,Lists!B$10:G$14,CEILING(F18-0.5,1)+1,TRUE)) ->  | N18: =IF(M18*L18=0,"",VLOOKUP(L18,Lists!B$10:G$14,CEILING(M18-0.5,1)+1,TRUE)) ->  | Y18: -10.00 | Z18: -10.00 | AA18: -10.00 | AB18: -10.00
A19: R12 | G19: =IF(F19*E19=0,"",VLOOKUP(E19,Lists!B$10:G$14,CEILING(F19-0.5,1)+1,TRUE)) ->  | N19: =IF(M19*L19=0,"",VLOOKUP(L19,Lists!B$10:G$14,CEILING(M19-0.5,1)+1,TRUE)) ->  | Y19: -10.00 | Z19: -10.00 | AA19: -10.00 | AB19: -10.00
A20: R13 | G20: =IF(F20*E20=0,"",VLOOKUP(E20,Lists!B$10:G$14,CEILING(F20-0.5,1)+1,TRUE)) ->  | N20: =IF(M20*L20=0,"",VLOOKUP(L20,Lists!B$10:G$14,CEILING(M20-0.5,1)+1,TRUE)) ->  | Y20: -10.00 | Z20: -10.00 | AA20: -10.00 | AB20: -10.00
A21: R14 | G21: =IF(F21*E21=0,"",VLOOKUP(E21,Lists!B$10:G$14,CEILING(F21-0.5,1)+1,TRUE)) ->  | N21: =IF(M21*L21=0,"",VLOOKUP(L21,Lists!B$10:G$14,CEILING(M21-0.5,1)+1,TRUE)) ->  | Y21: -10.00 | Z21: -10.00 | AA21: -10.00 | AB21: -10.00
A22: R15 | G22: =IF(F22*E22=0,"",VLOOKUP(E22,Lists!B$10:G$14,CEILING(F22-0.5,1)+1,TRUE)) ->  | N22: =IF(M22*L22=0,"",VLOOKUP(L22,Lists!B$10:G$14,CEILING(M22-0.5,1)+1,TRUE)) ->  | Y22: -10.00 | Z22: -10.00 | AA22: -10.00 | AB22: -10.00
A23: R16 | G23: =IF(F23*E23=0,"",VLOOKUP(E23,Lists!B$10:G$14,CEILING(F23-0.5,1)+1,TRUE)) ->  | N23: =IF(M23*L23=0,"",VLOOKUP(L23,Lists!B$10:G$14,CEILING(M23-0.5,1)+1,TRUE)) ->  | Y23: -10.00 | Z23: -10.00 | AA23: -10.00 | AB23: -10.00
A24: R17 | G24: =IF(F24*E24=0,"",VLOOKUP(E24,Lists!B$10:G$14,CEILING(F24-0.5,1)+1,TRUE)) ->  | N24: =IF(M24*L24=0,"",VLOOKUP(L24,Lists!B$10:G$14,CEILING(M24-0.5,1)+1,TRUE)) ->  | Y24: -10.00 | Z24: -10.00 | AA24: -10.00 | AB24: -10.00
A25: R18 | G25: =IF(F25*E25=0,"",VLOOKUP(E25,Lists!B$10:G$14,CEILING(F25-0.5,1)+1,TRUE)) ->  | N25: =IF(M25*L25=0,"",VLOOKUP(L25,Lists!B$10:G$14,CEILING(M25-0.5,1)+1,TRUE)) ->  | Y25: -10.00 | Z25: -10.00 | AA25: -10.00 | AB25: -10.00
A26: R19 | G26: =IF(F26*E26=0,"",VLOOKUP(E26,Lists!B$10:G$14,CEILING(F26-0.5,1)+1,TRUE)) ->  | N26: =IF(M26*L26=0,"",VLOOKUP(L26,Lists!B$10:G$14,CEILING(M26-0.5,1)+1,TRUE)) ->  | Y26: -10.00 | Z26: -10.00 | AA26: -10.00 | AB26: -10.00
A27: R20 | G27: =IF(F27*E27=0,"",VLOOKUP(E27,Lists!B$10:G$14,CEILING(F27-0.5,1)+1,TRUE)) ->  | N27: =IF(M27*L27=0,"",VLOOKUP(L27,Lists!B$10:G$14,CEILING(M27-0.5,1)+1,TRUE)) ->  | Y27: -10.00 | Z27: -10.00 | AA27: -10.00 | AB27: -10.00
AC28: X-forskyv | AD28: Y-forskyv
AC29: -0.85 | AD29: -0.5
Y30: X-Konsekvens | Z30: Y-Sannsynlighet | AC30: -0.85 | AD30: -0.25
A31: =A3 -> Mål / krav nr 19: | X31: Gj sn | Y31: =IF(F6="",-10,F6-0.5) -> -10.00 | Z31: =IF(E6="",-10,E6-0.5) -> -10.00 | AC31: -0.85 | AD31: -0.75
A32: =IF(A4="","",A4) ->  | Y32: =IF(M6="",Y31,M6-0.6) -> -10.00 | Z32: =IF(L6="",Z31,L6-0.6) -> -10.00 | AC32: -0.75 | AD32: -0.5
X33: =A8 -> R1 | Y33: =Y8 -> -10.00 | Z33: =Z8 -> -10 | AC33: -0.75 | AD33: -0.25
C34: Når risikovurdering før og etter tiltak er utfylt er: | Y34: =AA8 -> -10.00 | Z34: =AB8 -> -10 | AC34: -0.75 | AD34: -0.75
C35: ● = Risikonivå før tiltak | X35: =A9 -> R2 | Y35: =Y9 -> -10 | Z35: =Z9 -> -10 | AC35: -0.66 | AD35: -0.5
C36: ■ = Risikonivå etter tiltak | Y36: =AA9 -> -10.00 | Z36: =AB9 -> -10 | AC36: -0.66 | AD36: -0.25
X37: =A10 -> R3 | Y37: =Y10 -> -10 | Z37: =Z10 -> -10 | AC37: -0.66 | AD37: -0.75
Y38: =AA10 -> -10 | Z38: =AB10 -> -10 | AC38: -0.5 | AD38: -0.5
X39: =A11 -> R4 | Y39: =Y11 -> -10 | Z39: =Z11 -> -10 | AC39: -0.5 | AD39: -0.25
Y40: =AA11 -> -10 | Z40: =AB11 -> -10 | AC40: -0.5 | AD40: -0.75
X41: =A12 -> R5 | Y41: =Y12 -> -10 | Z41: =Z12 -> -10 | AC41: -0.33 | AD41: -0.5
Y42: =AA12 -> -10 | Z42: =AB12 -> -10 | AC42: -0.33 | AD42: -0.25
X43: =A13 -> R6 | Y43: =Y13 -> -10 | Z43: =Z13 -> -10 | AC43: -0.33 | AD43: -0.75
Y44: =AA13 -> -10 | Z44: =AB13 -> -10 | AC44: -0.25 | AD44: -0.5
X45: =A14 -> R7 | Y45: =Y14 -> -10 | Z45: =Z14 -> -10 | AC45: -0.25 | AD45: -0.25
Y46: =AA14 -> -10 | Z46: =AB14 -> -10 | AC46: -0.25 | AD46: -0.75
X47: =A15 -> R8 | Y47: =Y15 -> -10 | Z47: =Z15 -> -10 | AC47: -0.15 | AD47: -0.5
Y48: =AA15 -> -10 | Z48: =AB15 -> -10 | AC48: -0.15 | AD48: -0.25
X49: =A16 -> R9 | Y49: =Y16 -> -10 | Z49: =Z16 -> -10
Y50: =AA16 -> -10 | Z50: =AB16 -> -10
X51: =A17 -> R10 | Y51: =Y17 -> -10 | Z51: =Z17 -> -10
Y52: =AA17 -> -10 | Z52: =AB17 -> -10
X53: =A18 -> R11 | Y53: =Y18 -> -10 | Z53: =Z18 -> -10
Y54: =AA18 -> -10 | Z54: =AB18 -> -10
X55: =A19 -> R12 | Y55: =Y19 -> -10.00 | Z55: =Z19 -> -10
Y56: =AA19 -> -10 | Z56: =AB19 -> -10
X57: =A20 -> R13 | Y57: =Y20 -> -10 | Z57: =Z20 -> -10
Y58: =AA20 -> -10 | Z58: =AB20 -> -10
X59: =A21 -> R14 | Y59: =Y21 -> -10 | Z59: =Z21 -> -10
Y60: =AA21 -> -10 | Z60: =AB21 -> -10
X61: =A22 -> R15 | Y61: =Y22 -> -10 | Z61: =Z22 -> -10
Y62: =AA22 -> -10 | Z62: =AB22 -> -10
X63: =A23 -> R16 | Y63: =Y23 -> -10.00 | Z63: =Z23 -> -10.00
Y64: =AA23 -> -10.00 | Z64: =AB23 -> -10.00
X65: =A24 -> R17 | Y65: =Y24 -> -10.00 | Z65: =Z24 -> -10.00
Y66: =AA24 -> -10.00 | Z66: =AB24 -> -10.00
X67: =A25 -> R18 | Y67: =Y25 -> -10.00 | Z67: =Z25 -> -10.00
Y68: =AA25 -> -10.00 | Z68: =AB25 -> -10.00
X69: =A26 -> R19 | Y69: =Y26 -> -10.00 | Z69: =Z26 -> -10.00
Y70: =AA26 -> -10.00 | Z70: =AB26 -> -10.00
X71: =A27 -> R20 | Y71: =Y27 -> -10.00 | Z71: =Z27 -> -10.00
Y72: =AA27 -> -10.00 | Z72: =AB27 -> -10.00

Sheet Mål 20
A1: Risikoidentifikasjon og analyse | E1: Ansvarlig: | L1: Risikomatrise, se under
A2: Enhet: | C2: =IF(Forside!C2="","",Forside!C2) -> Tjenesteområde <<tjenesteområde>> | E2: Dato: | F2: =IF(Forside!C4="","",Forside!C4) -> 
A3: Mål / krav nr 20: | E3: Risiko før tiltak | H3: Deltakere i prosessen: | L3: Risiko etter tiltak
E4: Risiko-vurdering | G4: Risiko-nivå | H4: =IF(Forside!C3="","",Forside!C3) -> <<deltakere>> | L4: Risiko-vurdering | N4: Risiko-nivå
E5: S | F5: K | L5: S | M5: K
D6: Gjsn risiko for målet: | E6: =IF(ISERROR(AVERAGE(E8:E27)),"",ROUND(AVERAGE(E8:E27),0)) ->  | F6: =IF(ISERROR(AVERAGE(F8:F27)),"",ROUND(AVERAGE(F8:F27),0)) ->  | G6: =IF(ISERROR(E6*F6),"",VLOOKUP(E6,Lists!B$10:G$14,CEILING(F6-0.5,1)+1,TRUE)) ->  | L6: =IF(ISERROR(AVERAGE(L8:L27)),"",ROUND(AVERAGE(L8:L27),0)) ->  | M6: =IF(ISERROR(AVERAGE(M8:M27)),"",ROUND(AVERAGE(M8:M27),0)) ->  | N6: =IF(ISERROR(L6*M6),"",VLOOKUP(L6,Lists!B$10:G$14,CEILING(M6-0.5,1)+1,TRUE)) ->  | Y6: Før tiltak | AA6: Etter tiltak
A7: Risiko nr | B7: Kritiske suksessfaktorer | C7: Område | D7: Eksisterende tiltak | E7: S | F7: K | G7: Risiko-nivå | H7: Risikoeier: | I7: Nye tiltak: | J7: Ansvarlig: | K7: Frist: | L7: S | M7: K | N7: Risiko-nivå | Y7: X-forskyv konsekv | Z7: Y-forskyv Sanns | AA7: X-forskyv konsekv | AB7: Y-forskyv Sanns
A8: R1 | G8: =IF(F8*E8=0,"",VLOOKUP(E8,Lists!B$10:G$14,CEILING(F8-0.5,1)+1,TRUE)) ->  | N8: =IF(M8*L8=0,"",VLOOKUP(L8,Lists!B$10:G$14,CEILING(M8-0.5,1)+1,TRUE)) ->  | Y8: =IF(F8="",-10,F8+AC29) -> -10.00 | Z8: =IF(E8="",-10,E8+AD29) -> -10.00 | AA8: =IF(M8="",Y8,M8+AC29) -> -10.00 | AB8: =IF(L8="",Z8,L8+AD29) -> -10.00
A9: R2 | G9: =IF(F9*E9=0,"",VLOOKUP(E9,Lists!B$10:G$14,CEILING(F9-0.5,1)+1,TRUE)) ->  | N9: =IF(M9*L9=0,"",VLOOKUP(L9,Lists!B$10:G$14,CEILING(M9-0.5,1)+1,TRUE)) ->  | Y9: -10.00 | Z9: -10.00 | AA9: -10.00 | AB9: -10.00
A10: R3 | G10: =IF(F10*E10=0,"",VLOOKUP(E10,Lists!B$10:G$14,CEILING(F10-0.5,1)+1,TRUE)) ->  | N10: =IF(M10*L10=0,"",VLOOKUP(L10,Lists!B$10:G$14,CEILING(M10-0.5,1)+1,TRUE)) ->  | Y10: -10.00 | Z10: -10.00 | AA10: -10.00 | AB10: -10.00
A11: R4 | G11: =IF(F11*E11=0,"",VLOOKUP(E11,Lists!B$10:G$14,CEILING(F11-0.5,1)+1,TRUE)) ->  | N11: =IF(M11*L11=0,"",VLOOKUP(L11,Lists!B$10:G$14,CEILING(M11-0.5,1)+1,TRUE)) ->  | Y11: -10.00 | Z11: -10.00 | AA11: -10.00 | AB11: -10.00
A12: R5 | G12: =IF(F12*E12=0,"",VLOOKUP(E12,Lists!B$10:G$14,CEILING(F12-0.5,1)+1,TRUE)) ->  | N12: =IF(M12*L12=0,"",VLOOKUP(L12,Lists!B$10:G$14,CEILING(M12-0.5,1)+1,TRUE)) ->  | Y12: -10.00 | Z12: -10.00 | AA12: -10.00 | AB12: -10.00
A13: R6 | G13: =IF(F13*E13=0,"",VLOOKUP(E13,Lists!B$10:G$14,CEILING(F13-0.5,1)+1,TRUE)) ->  | N13: =IF(M13*L13=0,"",VLOOKUP(L13,Lists!B$10:G$14,CEILING(M13-0.5,1)+1,TRUE)) ->  | Y13: -10.00 | Z13: -10.00 | AA13: -10.00 | AB13: -10.00
A14: R7 | G14: =IF(F14*E14=0,"",VLOOKUP(E14,Lists!B$10:G$14,CEILING(F14-0.5,1)+1,TRUE)) ->  | N14: =IF(M14*L14=0,"",VLOOKUP(L14,Lists!B$10:G$14,CEILING(M14-0.5,1)+1,TRUE)) ->  | Y14: -10.00 | Z14: -10.00 | AA14: -10.00 | AB14: -10.00
A15: R8 | G15: =IF(F15*E15=0,"",VLOOKUP(E15,Lists!B$10:G$14,CEILING(F15-0.5,1)+1,TRUE)) ->  | N15: =IF(M15*L15=0,"",VLOOKUP(L15,Lists!B$10:G$14,CEILING(M15-0.5,1)+1,TRUE)) ->  | Y15: -10.00 | Z15: -10.00 | AA15: -10.00 | AB15: -10.00
A16: R9 | G16: =IF(F16*E16=0,"",VLOOKUP(E16,Lists!B$10:G$14,CEILING(F16-0.5,1)+1,TRUE)) ->  | N16: =IF(M16*L16=0,"",VLOOKUP(L16,Lists!B$10:G$14,CEILING(M16-0.5,1)+1,TRUE)) ->  | Y16: -10.00 | Z16: -10.00 | AA16: -10.00 | AB16: -10.00
A17: R10 | G17: =IF(F17*E17=0,"",VLOOKUP(E17,Lists!B$10:G$14,CEILING(F17-0.5,1)+1,TRUE)) ->  | N17: =IF(M17*L17=0,"",VLOOKUP(L17,Lists!B$10:G$14,CEILING(M17-0.5,1)+1,TRUE)) ->  | Y17: -10.00 | Z17: -10.00 | AA17: -10.00 | AB17: -10.00
A18: R11 | G18: =IF(F18*E18=0,"",VLOOKUP(E18,Lists!B$10:G$14,CEILING(F18-0.5,1)+1,TRUE)) ->  | N18: =IF(M18*L18=0,"",VLOOKUP(L18,Lists!B$10:G$14,CEILING(M18-0.5,1)+1,TRUE)) ->  | Y18: -10.00 | Z18: -10.00 | AA18: -10.00 | AB18: -10.00
A19: R12 | G19: =IF(F19*E19=0,"",VLOOKUP(E19,Lists!B$10:G$14,CEILING(F19-0.5,1)+1,TRUE)) ->  | N19: =IF(M19*L19=0,"",VLOOKUP(L19,Lists!B$10:G$14,CEILING(M19-0.5,1)+1,TRUE)) ->  | Y19: -10.00 | Z19: -10.00 | AA19: -10.00 | AB19: -10.00
A20: R13 | G20: =IF(F20*E20=0,"",VLOOKUP(E20,Lists!B$10:G$14,CEILING(F20-0.5,1)+1,TRUE)) ->  | N20: =IF(M20*L20=0,"",VLOOKUP(L20,Lists!B$10:G$14,CEILING(M20-0.5,1)+1,TRUE)) ->  | Y20: -10.00 | Z20: -10.00 | AA20: -10.00 | AB20: -10.00
A21: R14 | G21: =IF(F21*E21=0,"",VLOOKUP(E21,Lists!B$10:G$14,CEILING(F21-0.5,1)+1,TRUE)) ->  | N21: =IF(M21*L21=0,"",VLOOKUP(L21,Lists!B$10:G$14,CEILING(M21-0.5,1)+1,TRUE)) ->  | Y21: -10.00 | Z21: -10.00 | AA21: -10.00 | AB21: -10.00
A22: R15 | G22: =IF(F22*E22=0,"",VLOOKUP(E22,Lists!B$10:G$14,CEILING(F22-0.5,1)+1,TRUE)) ->  | N22: =IF(M22*L22=0,"",VLOOKUP(L22,Lists!B$10:G$14,CEILING(M22-0.5,1)+1,TRUE)) ->  | Y22: -10.00 | Z22: -10.00 | AA22: -10.00 | AB22: -10.00
A23: R16 | G23: =IF(F23*E23=0,"",VLOOKUP(E23,Lists!B$10:G$14,CEILING(F23-0.5,1)+1,TRUE)) ->  | N23: =IF(M23*L23=0,"",VLOOKUP(L23,Lists!B$10:G$14,CEILING(M23-0.5,1)+1,TRUE)) ->  | Y23: -10.00 | Z23: -10.00 | AA23: -10.00 | AB23: -10.00
A24: R17 | G24: =IF(F24*E24=0,"",VLOOKUP(E24,Lists!B$10:G$14,CEILING(F24-0.5,1)+1,TRUE)) ->  | N24: =IF(M24*L24=0,"",VLOOKUP(L24,Lists!B$10:G$14,CEILING(M24-0.5,1)+1,TRUE)) ->  | Y24: -10.00 | Z24: -10.00 | AA24: -10.00 | AB24: -10.00
A25: R18 | G25: =IF(F25*E25=0,"",VLOOKUP(E25,Lists!B$10:G$14,CEILING(F25-0.5,1)+1,TRUE)) ->  | N25: =IF(M25*L25=0,"",VLOOKUP(L25,Lists!B$10:G$14,CEILING(M25-0.5,1)+1,TRUE)) ->  | Y25: -10.00 | Z25: -10.00 | AA25: -10.00 | AB25: -10.00
A26: R19 | G26: =IF(F26*E26=0,"",VLOOKUP(E26,Lists!B$10:G$14,CEILING(F26-0.5,1)+1,TRUE)) ->  | N26: =IF(M26*L26=0,"",VLOOKUP(L26,Lists!B$10:G$14,CEILING(M26-0.5,1)+1,TRUE)) ->  | Y26: -10.00 | Z26: -10.00 | AA26: -10.00 | AB26: -10.00
A27: R20 | G27: =IF(F27*E27=0,"",VLOOKUP(E27,Lists!B$10:G$14,CEILING(F27-0.5,1)+1,TRUE)) ->  | N27: =IF(M27*L27=0,"",VLOOKUP(L27,Lists!B$10:G$14,CEILING(M27-0.5,1)+1,TRUE)) ->  | Y27: -10.00 | Z27: -10.00 | AA27: -10.00 | AB27: -10.00
AC28: X-forskyv | AD28: Y-forskyv
AC29: -0.85 | AD29: -0.5
Y30: X-Konsekvens | Z30: Y-Sannsynlighet | AC30: -0.85 | AD30: -0.25
A31: =A3 -> Mål / krav nr 20: | X31: Gj sn | Y31: =IF(F6="",-10,F6-0.5) -> -10.00 | Z31: =IF(E6="",-10,E6-0.5) -> -10.00 | AC31: -0.85 | AD31: -0.75
A32: =IF(A4="","",A4) ->  | Y32: =IF(M6="",Y31,M6-0.6) -> -10.00 | Z32: =IF(L6="",Z31,L6-0.6) -> -10.00 | AC32: -0.75 | AD32: -0.5
X33: =A8 -> R1 | Y33: =Y8 -> -10.00 | Z33: =Z8 -> -10 | AC33: -0.75 | AD33: -0.25
C34: Når risikovurdering før og etter tiltak er utfylt er: | Y34: =AA8 -> -10.00 | Z34: =AB8 -> -10 | AC34: -0.75 | AD34: -0.75
C35: ● = Risikonivå før tiltak | X35: =A9 -> R2 | Y35: =Y9 -> -10 | Z35: =Z9 -> -10 | AC35: -0.66 | AD35: -0.5
C36: ■ = Risikonivå etter tiltak | Y36: =AA9 -> -10.00 | Z36: =AB9 -> -10 | AC36: -0.66 | AD36: -0.25
X37: =A10 -> R3 | Y37: =Y10 -> -10 | Z37: =Z10 -> -10 | AC37: -0.66 | AD37: -0.75
Y38: =AA10 -> -10 | Z38: =AB10 -> -10 | AC38: -0.5 | AD38: -0.5
X39: =A11 -> R4 | Y39: =Y11 -> -10 | Z39: =Z11 -> -10 | AC39: -0.5 | AD39: -0.25
Y40: =AA11 -> -10 | Z40: =AB11 -> -10 | AC40: -0.5 | AD40: -0.75
X41: =A12 -> R5 | Y41: =Y12 -> -10 | Z41: =Z12 -> -10 | AC41: -0.33 | AD41: -0.5
Y42: =AA12 -> -10 | Z42: =AB12 -> -10 | AC42: -0.33 | AD42: -0.25
X43: =A13 -> R6 | Y43: =Y13 -> -10 | Z43: =Z13 -> -10 | AC43: -0.33 | AD43: -0.75
Y44: =AA13 -> -10 | Z44: =AB13 -> -10 | AC44: -0.25 | AD44: -0.5
X45: =A14 -> R7 | Y45: =Y14 -> -10 | Z45: =Z14 -> -10 | AC45: -0.25 | AD45: -0.25
Y46: =AA14 -> -10 | Z46: =AB14 -> -10 | AC46: -0.25 | AD46: -0.75
X47: =A15 -> R8 | Y47: =Y15 -> -10 | Z47: =Z15 -> -10 | AC47: -0.15 | AD47: -0.5
Y48: =AA15 -> -10 | Z48: =AB15 -> -10 | AC48: -0.15 | AD48: -0.25
X49: =A16 -> R9 | Y49: =Y16 -> -10 | Z49: =Z16 -> -10
Y50: =AA16 -> -10 | Z50: =AB16 -> -10
X51: =A17 -> R10 | Y51: =Y17 -> -10 | Z51: =Z17 -> -10
Y52: =AA17 -> -10 | Z52: =AB17 -> -10
X53: =A18 -> R11 | Y53: =Y18 -> -10 | Z53: =Z18 -> -10
Y54: =AA18 -> -10 | Z54: =AB18 -> -10
X55: =A19 -> R12 | Y55: =Y19 -> -10.00 | Z55: =Z19 -> -10
Y56: =AA19 -> -10 | Z56: =AB19 -> -10
X57: =A20 -> R13 | Y57: =Y20 -> -10 | Z57: =Z20 -> -10
Y58: =AA20 -> -10 | Z58: =AB20 -> -10
X59: =A21 -> R14 | Y59: =Y21 -> -10 | Z59: =Z21 -> -10
Y60: =AA21 -> -10 | Z60: =AB21 -> -10
X61: =A22 -> R15 | Y61: =Y22 -> -10 | Z61: =Z22 -> -10
Y62: =AA22 -> -10 | Z62: =AB22 -> -10
X63: =A23 -> R16 | Y63: =Y23 -> -10.00 | Z63: =Z23 -> -10.00
Y64: =AA23 -> -10.00 | Z64: =AB23 -> -10.00
X65: =A24 -> R17 | Y65: =Y24 -> -10.00 | Z65: =Z24 -> -10.00
Y66: =AA24 -> -10.00 | Z66: =AB24 -> -10.00
X67: =A25 -> R18 | Y67: =Y25 -> -10.00 | Z67: =Z25 -> -10.00
Y68: =AA25 -> -10.00 | Z68: =AB25 -> -10.00
X69: =A26 -> R19 | Y69: =Y26 -> -10.00 | Z69: =Z26 -> -10.00
Y70: =AA26 -> -10.00 | Z70: =AB26 -> -10.00
X71: =A27 -> R20 | Y71: =Y27 -> -10.00 | Z71: =Z27 -> -10.00
Y72: =AA27 -> -10.00 | Z72: =AB27 -> -10.00
